Workbook

Sheet Capa
A38: ="BRASILEIRO INTERCLUBES"&+CHAR(10)&+YEAR(Jogos!C6) -> BRASILEIRO INTERCLUBES 2022
A45: Matias Barbosa / MG | D45: 15 a 17 de abril de 2022
A49: Levantamento Estatístico PAULO SERGIO MARTINS & JOSE RICARDO ALMEIDA

Sheet Info
A1: ="XL CAMPEONATO BRASILEIRO INTERCLUBES / "&+RIGHT(A2,4) -> XL CAMPEONATO BRASILEIRO INTERCLUBES / 2022
A2: =Capa!A45&+", "&+Capa!D45 -> Matias Barbosa / MG, 15 a 17 de abril de 2022
A4: ESTATISTICAS:
K6: EQUIPES | Q6: INDIVIDUAIS | Z6: PARTICIPANTES
B7: JOGOS | K7: =SUM(K8:K13) -> 79 | N7: =IF(K7=MAX(Jogos!A:A),"","erro") ->  | Q7: =SUM(Q8:Q13) -> 316 | T7: =IF(Q7=MAX(Jogos!B:B),"","erro")&+IF(Q7-Q13=ClaIND!W3,"","erro") ->  | Z7: CLUBES/EQUIPES | AH7: =COUNTA('Clubes Participantes'!B:B)-1 -> 17
C8: VITÓRIAS|DERROTAS | K8: =COUNTIFS(Jogos!A:A,">0",Jogos!N:N,"V")+COUNTIFS(Jogos!A:A,">0",Jogos!N:N,"D")-K10-K13 -> 70 | N8: =K8/$K$7 -> 89% | Q8: =COUNTIFS(Jogos!B:B,">0",Jogos!N:N,"V")+COUNTIFS(Jogos!B:B,">0",Jogos!N:N,"D")-Q10-Q13 -> 232 | T8: =Q8/$Q$7 -> 73% | Z8: BOTONISTAS | AH8: =COUNTA('Tecnicos Participantes'!A:A)-3 -> 85
C9: EMPATES | K9: =COUNTIFS(Jogos!A:A,">0",Jogos!N:N,"E") -> 9 | N9: 11% | Q9: =COUNTIFS(Jogos!B:B,">0",Jogos!N:N,"E") -> 84 | T9: 27%
C10: WO´s | K10: =COUNTIF(Jogos!$S:$S,"W0") -> 0 | N10: 0% | Q10: =COUNTIFS(Jogos!B:B,">0",Jogos!$S:$S,"W0IND") -> 0 | T10: 0% | Z10: GOLS (com W0´s) | AH10: =ClaIND!T2 -> 692
C11: WW´s | K11: =COUNTIF(Jogos!$S:$S,"WW") -> 0 | N11: 0% | Q11: =COUNTIFS(Jogos!B:B,">0",Jogos!$S:$S,"WWIND") -> 0 | T11: 0% | Z11: GOLS (sem W0´s) | AH11: =AH10-(Q10*2)-(Q13*2) -> 692
C12: ANULADOS | K12: =COUNTIF(Jogos!$S:$S,"NULO") -> 0 | N12: 0% | Q12: =COUNTIFS(Jogos!B:B,">0",Jogos!$S:$S,"NULOIND") -> 0 | T12: 0% | Z12: MÉDIA GOLS/JOGO * | AH12: =AH11/(Q8+Q9) -> 2.19
C13: AUSENTES | K13: =COUNTIF(Jogos!S:S,"AUS") -> 0 | N13: 0% | Q13: =COUNTIFS(Jogos!B:B,">0",Jogos!$S:$S,"AUSIND") -> 0 | T13: 0% | Z13: *desconsiderado os W0´s
A15: FÓRMULA DE DISPUTA:
A17: TAÇA DE OURO | C17: 1ª Fase | H17: 2ª Fase | L17: QUARTAS | R17: SEMI | W17: FINAL
C18: Na primeira fase, as equipes são divididas em dois grupos e os três primeiros de cada grupo avançam para as QUARTAS. Os quarto e quinto colocados avançam para a 2a FASE. Os vencedores dos confrontos da 2a FASE também avançam para as QUARTAS. A partir daí, se enfrentam em "mata-mata" até a final.
M24: 2
R26: 2
C28: 9 | H28: 2 | M28: 2
W30: 2
C32: 8 | H32: 2 | M32: 2
R34: 2
M36: 2
A40: TAÇA DE PRATA | H40: 1ª Fase | M40: SEMI | R40: FINAL
H41: Os tres ultimos de cada grupo da 1a FASE da Taça de Ouro se enfrentam em jogo único. Os vencedores destes confrontros se juntam ao 6o colocado do grupo A e disputam as SEMI. Os vencedores das SEMI disputam o título.
H47: 2
M49: 2
H51: 2 | R51: 2
M53: 2
H55: 2
A59: CRITÉRIOS DE CLASSIFICAÇÃO:
A61: 1) Maior número de PONTOS GANHOS, na fase em disputa
A62: 2) Maior número de VITORIAS, na fase em disputa
A63: 3) Melhor SALDO DE GOLS, na fase em disputa
A64: 4) Maior número de GOLS PRO, na fase em disputa
A65: 5) Melhor SALDO DE GOLS, no(s) confronto(s) direto(s), na fase em disputa
A66: 6) Maior soma de SALDO DE GOLS INDIVIDUAIS, na fase em disputa
A67: 7) Maior soma de GOLS PRO INDIVIDUAIS, na fase em disputa
A68: 8) Adotar os critérios (1) a (7), pela ordem, em todo o campeonato
A69: 9) Sorteio
A70: OBS1: Caso três ou mais equipes estejam empatadas, o quinto critério deverá ser desconsiderado.
A71: OBS2: Para efeito de classificação final, considera-se:
C72: 1) Disputado a fase mais próxima da final;
C73: 2) Melhor rendimento técnico (total PG obtidos dividos pelo total PG possiveis)

Sheet Clubes Participantes
A1: =Info!A1 -> XL CAMPEONATO BRASILEIRO INTERCLUBES / 2022
A2: =Info!A2 -> Matias Barbosa / MG, 15 a 17 de abril de 2022
A4: CLUBE | B4: CIDADE / UF
A5: AABB/ACAFUMA [A] | B5: Brasilia / DF
A6: AABB/ACAFUMA [B] | B6: Brasilia / DF
A7: AABB/ACAFUMA [C] | B7: Brasilia / DF
A8: BOTAFOGO | B8: Rio de Janeiro / RJ
A9: CHACAL [A] | B9: Juiz de Fora / MG
A10: CHACAL [B] | B10: Juiz de Fora / MG
A11: COMARY | B11: Teresópolis / RJ
A12: ELDORADO | B12: Juiz de Fora / MG
A13: GRÊMIO MINEIRO | B13: Belo Horizonte / MG
A14: LIBERDADE [A] | B14: Belo Horizonte / MG
A15: LIBERDADE [B] | B15: Belo Horizonte / MG
A16: MATIAS [A] | B16: Matias Barbosa / MG
A17: MATIAS [B] | B17: Matias Barbosa / MG
A18: TUPI [A] | B18: Juiz de Fora / MG
A19: TUPI [B] | B19: Juiz de Fora / MG
A20: UNIÃO INDEPENDENTE/UBERABA | B20: Uberaba / MG
A21: VASCO DA GAMA | B21: Rio de Janeiro / RJ

Sheet Tecnicos Participantes
A1: =Info!A1 -> XL CAMPEONATO BRASILEIRO INTERCLUBES / 2022
A2: =Info!A2 -> Matias Barbosa / MG, 15 a 17 de abril de 2022
A4: BOTONISTA | B4: CLUBE
A5: Adolpho Parente | B5: AABB/ACAFUMA [B]
A6: Ailson Brites "Jucao" | B6: MATIAS [B]
A7: Alcides Figueira | B7: AABB/ACAFUMA [B]
A8: Alex Lage | B8: ELDORADO
A9: Altanir Junior "Juninho" | B9: BOTAFOGO
A10: Andre Brandao | B10: AABB/ACAFUMA [C]
A11: Antonio Carlos Almeida | B11: AABB/ACAFUMA [A]
A12: Bernardo Pires | B12: ELDORADO
A13: Breno Ribeiro | B13: LIBERDADE [A]
A14: Brunno Gill | B14: MATIAS [A]
A15: Bruno Machado "Mestre" | B15: BOTAFOGO
A16: Carlos Antonio Miranda | B16: TUPI [A]
A17: Carlos Henrique Garcia "CH" | B17: LIBERDADE [A]
A18: Claudio Figueiredo | B18: COMARY
A19: Constancio Moura | B19: UNIÃO INDEPENDENTE/UBERABA
A20: Daniel Oliveira | B20: LIBERDADE [B]
A21: Diego Americo | B21: BOTAFOGO
A22: Eber Chapinotti | B22: MATIAS [B]
A23: Eder Patrocinio | B23: VASCO DA GAMA
A24: Eduardo Costa "Dudu" | B24: VASCO DA GAMA
A25: Eduardo Guerra | B25: TUPI [A]
A26: Eduardo Tavares | B26: COMARY
A27: Emerson Claudino | B27: UNIÃO INDEPENDENTE/UBERABA
A28: Evandro Gomes | B28: VASCO DA GAMA
A29: Everton Costa | B29: CHACAL [B]
A30: Fernando Ferreira "Nando" | B30: VASCO DA GAMA
A31: Fernando Vianna | B31: GRÊMIO MINEIRO
A32: Flavio Scarpelli | B32: TUPI [B]
A33: Gustavo Lopes "Heavy" | B33: GRÊMIO MINEIRO
A34: Heman Junior | B34: CHACAL [B]
A35: Henrique Madeira | B35: VASCO DA GAMA
A36: Humberto Ramos | B36: MATIAS [B]
A37: Igor Guarilha | B37: COMARY
A38: Janilson Pereira | B38: CHACAL [A]
A39: Jefferson Rosa | B39: CHACAL [B]
A40: Joao Eduardo Pereira | B40: LIBERDADE [B]
A41: Joao Francisco Stephan | B41: CHACAL [A]
A42: Jorge Dias | B42: ELDORADO
A43: Jose Lessa | B43: MATIAS [A]
A44: Jose Pires | B44: ELDORADO
A45: Juliano Gomes | B45: UNIÃO INDEPENDENTE/UBERABA
A46: Julio Celio Braga | B46: CHACAL [A]
A47: Leandro Benicio "Leco" | B47: TUPI [B]
A48: Leonardo de Oliveira | B48: MATIAS [A]
A49: Leonardo Duguet | B49: LIBERDADE [A]
A50: Leonardo Stumpf | B50: TUPI [A]
A51: Lorival Ribeiro | B51: LIBERDADE [A]
A52: Lucas Luna | B52: CHACAL [B]
A53: Luiz Carlos Guerra | B53: LIBERDADE [B]
A54: Luiz Claudio Caruso | B54: AABB/ACAFUMA [A]
A55: Luiz Henrique Colla | B55: TUPI [B]
A56: Luiz Humberto "Beto" | B56: UNIÃO INDEPENDENTE/UBERABA
A57: Marcelo Ferreira | B57: AABB/ACAFUMA [B]
A58: Marcelo Henrique "Bozo" | B58: MATIAS [A]
A59: Marcelo Lima | B59: VASCO DA GAMA
A60: Marcelo Silva "Issa" | B60: AABB/ACAFUMA [C]
A61: Marcelo Virgilio | B61: LIBERDADE [B]
A62: Marco Andre Veloso | B62: COMARY
A63: Marcos Ferreira | B63: BOTAFOGO
A64: Marcus Monteiro | B64: TUPI [A]
A65: Mario Cleber | B65: MATIAS [B]
A66: Pablino Colen | B66: CHACAL [B]
A67: Pablo Sidarta | B67: COMARY
A68: Paulo Airton Junior | B68: AABB/ACAFUMA [C]
A69: Paulo Caruso | B69: AABB/ACAFUMA [A]
A70: Paulo Cesar Faria | B70: AABB/ACAFUMA [B]
A71: Paulo Mangia "Chicao" | B71: CHACAL [A]
A72: Paulo Marcos de França | B72: TUPI [A]
A73: Paulo Ricardo Souza | B73: TUPI [B]
A74: Rafael Pena | B74: LIBERDADE [B]
A75: Renato Negreiros | B75: BOTAFOGO
A76: Ricardo Machado | B76: COMARY
A77: Ricardo Sartine | B77: MATIAS [B]
A78: Rodolfo Magalhaes | B78: CHACAL [B]
A79: Rodrigo Caruso "Digao" | B79: AABB/ACAFUMA [B]
A80: Rodrigo Primola "Tuba" | B80: GRÊMIO MINEIRO
A81: Romualdo Piccinini | B81: MATIAS [B]
A82: Sergio Falcometa | B82: BOTAFOGO
A83: Simplicio Santos | B83: AABB/ACAFUMA [C]
A84: Tarcizio Dinoa Junior | B84: AABB/ACAFUMA [A]
A85: Thiago Stephan | B85: CHACAL [A]
A86: Valmir Silva | B86: VASCO DA GAMA
A87: Vander Felipe | B87: GRÊMIO MINEIRO
A88: Vanderley da Silva | B88: CHACAL [B]
A89: Wendel Cordeiro | B89: LIBERDADE [A]

Sheet Jogos
A1: =Info!A1 -> XL CAMPEONATO BRASILEIRO INTERCLUBES / 2022
A2: =Info!A2 -> Matias Barbosa / MG, 15 a 17 de abril de 2022 | U2: ↓ selecione a EQUIPE ou BOTONISTA ↓
K3: MANDANTE | O3: VISITANTE | S3: WO|WW | W3: ←←←←←←←←←←←←← | X3: =IFERROR(VLOOKUP(U3,Y:Z,2,FALSE),"--") -> --
A4: JG.CLU | B4: JG.IND | C4: DATA | D4: GRUPO | E4: PARTIDA | K4: PG | L4: GP | M4: GPI | N4: V|E|D | P4: GPI | Q4: GP | R4: PG | U4: JOGOS DA EQUIPE ou BOTONISTA | W4: MANDANTE | X4: VISITANTE | Y4: EQUIPE ou BOTONISTA
A6: 001 | C6: 2022-04-15 | D6: 02 | E6: AABB/ACAFUMA [B] | F6: 1 | G6: x | H6: 2 | I6: MATIAS [A] | K6: =IF(N6="V",3,IF(N6="E",1,0)) -> 0 | L6: =F6 -> 1 | M6: =SUM(M7:M10) -> 2 | N6: =IF(F6&+H6="WW","D",IF(F6>H6,"V",IF(F6=H6,"E","D"))) -> D | O6: =IF(F6&+H6="WW","D",IF(F6<H6,"V",IF(F6=H6,"E","D"))) -> V | P6: =SUM(P7:P10) -> 4 | Q6: =H6 -> 2 | R6: =IF(O6="V",3,IF(O6="E",1,0)) -> 3 | S6: =IF(LEFT(E6,7)="","AUS"&+IF(B6>0,"IND",""),IF(LEFT(I6,7)="","AUS"&+IF(B6>0,"IND",""),IF(LEFT(E6,7)="Ausente","AUS"&+IF(B6>0,"IND",""),IF(LEFT(I6,7)="Ausente","AUS"&+IF(B6>0,"IND",""),IF(RIGHT(F6,1)="*","NULO"&+IF(B6>0,"IND",""),IF(F6&H6="----","NULO"&+IF(B6>0,"IND",""),IF(F6&H6="W0","W0"&+IF(B6>0,"IND",""),IF(F6&H6="0W","W0"&+IF(B6>0,"IND",""),IF(F6&H6="WW","WW"&+IF(B6>0,"IND",""),"--"))))))))) -> -- | U6: =IF($X$3="BOTONISTA",(IF($U$3=E6,$U$3,IF($U$3=I6,$U$3,"--"))),IF($X$3="EQUIPE",(IF($U$3=W6,$U$3,IF($U$3=X6,$U$3,"--"))),"--")) -> -- | W6: =E6 -> AABB/ACAFUMA [B] | X6: =I6 -> MATIAS [A] | Y6: LIBERDADE [A] | Z6: =IF(LEFT(Y6,7)="AUSENTE","EQUIPE",IF(IFERROR(VLOOKUP(Y6,'Clubes Participantes'!A:B,1,FALSE),"BOTONISTA")="BOTONISTA","BOTONISTA","EQUIPE")) -> EQUIPE
B7: 001 | E7: Adolpho Parente | F7: 1 | G7: x | H7: 0 | I7: Jose Lessa | M7: =IF(F7&H7="WW",0,IF(F7&H7="W0",2,F7)) -> 1 | N7: =IF(F7&+H7="WW","D",IF(F7>H7,"V",IF(F7=H7,"E","D"))) -> V | O7: =IF(F7&+H7="WW","D",IF(F7<H7,"V",IF(F7=H7,"E","D"))) -> D | P7: =IF(F7&H7="WW",0,IF(F7&H7="0W",2,H7)) -> 0 | S7: =IF(LEFT(E7,7)="","AUS"&+IF(B7>0,"IND",""),IF(LEFT(I7,7)="","AUS"&+IF(B7>0,"IND",""),IF(LEFT(E7,7)="Ausente","AUS"&+IF(B7>0,"IND",""),IF(LEFT(I7,7)="Ausente","AUS"&+IF(B7>0,"IND",""),IF(RIGHT(F7,1)="*","NULO"&+IF(B7>0,"IND",""),IF(F7&H7="----","NULO"&+IF(B7>0,"IND",""),IF(F7&H7="W0","W0"&+IF(B7>0,"IND",""),IF(F7&H7="0W","W0"&+IF(B7>0,"IND",""),IF(F7&H7="WW","WW"&+IF(B7>0,"IND",""),"--"))))))))) -> -- | U7: -- | W7: =W6 -> AABB/ACAFUMA [B] | X7: =X6 -> MATIAS [A] | Y7: Breno Ribeiro | Z7: =IF(LEFT(Y7,7)="AUSENTE","EQUIPE",IF(IFERROR(VLOOKUP(Y7,'Clubes Participantes'!A:B,1,FALSE),"BOTONISTA")="BOTONISTA","BOTONISTA","EQUIPE")) -> BOTONISTA
B8: 002 | E8: Paulo Cesar Faria | F8: 0 | G8: x | H8: 0 | I8: Marcelo Henrique | M8: =IF(F8&H8="WW",0,IF(F8&H8="W0",2,F8)) -> 0 | N8: E | O8: E | P8: =IF(F8&H8="WW",0,IF(F8&H8="0W",2,H8)) -> 0 | S8: -- | U8: -- | W8: =W6 -> AABB/ACAFUMA [B] | X8: MATIAS [A] | Y8: Carlos Henrique Garcia | Z8: =IF(LEFT(Y8,7)="AUSENTE","EQUIPE",IF(IFERROR(VLOOKUP(Y8,'Clubes Participantes'!A:B,1,FALSE),"BOTONISTA")="BOTONISTA","BOTONISTA","EQUIPE")) -> BOTONISTA
B9: 003 | E9: Rodrigo Caruso | F9: 0 | G9: x | H9: 1 | I9: Brunno Gill | M9: 0 | N9: D | O9: V | P9: 1 | S9: -- | U9: -- | W9: AABB/ACAFUMA [B] | X9: MATIAS [A] | Y9: Leonardo Duguet | Z9: =IF(LEFT(Y9,7)="AUSENTE","EQUIPE",IF(IFERROR(VLOOKUP(Y9,'Clubes Participantes'!A:B,1,FALSE),"BOTONISTA")="BOTONISTA","BOTONISTA","EQUIPE")) -> BOTONISTA
B10: 004 | E10: Alcides Figueira | F10: 1 | G10: x | H10: 3 | I10: Leonardo de Oliveira | M10: 1 | N10: D | O10: V | P10: 3 | S10: -- | U10: -- | W10: AABB/ACAFUMA [B] | X10: MATIAS [A] | Y10: Lorival Ribeiro | Z10: =IF(LEFT(Y10,7)="AUSENTE","EQUIPE",IF(IFERROR(VLOOKUP(Y10,'Clubes Participantes'!A:B,1,FALSE),"BOTONISTA")="BOTONISTA","BOTONISTA","EQUIPE")) -> BOTONISTA
A11: 002 | C11: 2022-04-15 | D11: 02 | E11: VASCO DA GAMA | F11: 0 | G11: x | H11: 4 | I11: LIBERDADE [A] | K11: =IF(N11="V",3,IF(N11="E",1,0)) -> 0 | L11: =F11 -> 0 | M11: =SUM(M12:M15) -> 3 | N11: D | O11: V | P11: =SUM(P12:P15) -> 11 | Q11: =H11 -> 4 | R11: =IF(O11="V",3,IF(O11="E",1,0)) -> 3 | S11: -- | U11: -- | W11: =E11 -> VASCO DA GAMA | X11: =I11 -> LIBERDADE [A] | Y11: Wendel Cordeiro | Z11: =IF(LEFT(Y11,7)="AUSENTE","EQUIPE",IF(IFERROR(VLOOKUP(Y11,'Clubes Participantes'!A:B,1,FALSE),"BOTONISTA")="BOTONISTA","BOTONISTA","EQUIPE")) -> BOTONISTA
B12: 005 | E12: Evandro Gomes | F12: 1 | G12: x | H12: 2 | I12: Leonardo Duguet | M12: =IF(F12&H12="WW",0,IF(F12&H12="W0",2,F12)) -> 1 | N12: =IF(F12&+H12="WW","D",IF(F12>H12,"V",IF(F12=H12,"E","D"))) -> D | O12: =IF(F12&+H12="WW","D",IF(F12<H12,"V",IF(F12=H12,"E","D"))) -> V | P12: =IF(F12&H12="WW",0,IF(F12&H12="0W",2,H12)) -> 2 | S12: -- | U12: -- | W12: =W11 -> VASCO DA GAMA | X12: LIBERDADE [A] | Y12: TUPI [A] | Z12: =IF(LEFT(Y12,7)="AUSENTE","EQUIPE",IF(IFERROR(VLOOKUP(Y12,'Clubes Participantes'!A:B,1,FALSE),"BOTONISTA")="BOTONISTA","BOTONISTA","EQUIPE")) -> EQUIPE
B13: 006 | E13: Eder Patrocinio | F13: 0 | G13: x | H13: 4 | I13: Breno Ribeiro | M13: 0 | N13: D | O13: V | P13: 4 | S13: -- | U13: -- | W13: =W11 -> VASCO DA GAMA | X13: LIBERDADE [A] | Y13: Carlos Antonio Miranda | Z13: =IF(LEFT(Y13,7)="AUSENTE","EQUIPE",IF(IFERROR(VLOOKUP(Y13,'Clubes Participantes'!A:B,1,FALSE),"BOTONISTA")="BOTONISTA","BOTONISTA","EQUIPE")) -> BOTONISTA
B14: 007 | E14: Fernando Ferreira | F14: 1 | G14: x | H14: 3 | I14: Lorival Ribeiro | M14: 1 | N14: D | O14: V | P14: 3 | S14: -- | U14: -- | W14: VASCO DA GAMA | X14: LIBERDADE [A] | Y14: Eduardo Guerra | Z14: =IF(LEFT(Y14,7)="AUSENTE","EQUIPE",IF(IFERROR(VLOOKUP(Y14,'Clubes Participantes'!A:B,1,FALSE),"BOTONISTA")="BOTONISTA","BOTONISTA","EQUIPE")) -> BOTONISTA
B15: 008 | E15: Henrique Madeira | F15: 1 | G15: x | H15: 2 | I15: Carlos Henrique Garcia | M15: 1 | N15: D | O15: V | P15: 2 | S15: -- | U15: -- | W15: VASCO DA GAMA | X15: LIBERDADE [A] | Y15: Leonardo Stumpf | Z15: =IF(LEFT(Y15,7)="AUSENTE","EQUIPE",IF(IFERROR(VLOOKUP(Y15,'Clubes Participantes'!A:B,1,FALSE),"BOTONISTA")="BOTONISTA","BOTONISTA","EQUIPE")) -> BOTONISTA
A16: 003 | C16: 2022-04-15 | D16: 01 | E16: BOTAFOGO | F16: 4 | G16: x | H16: 0 | I16: GRÊMIO MINEIRO | K16: =IF(N16="V",3,IF(N16="E",1,0)) -> 3 | L16: =F16 -> 4 | M16: =SUM(M17:M20) -> 7 | N16: V | O16: D | P16: =SUM(P17:P20) -> 3 | Q16: =H16 -> 0 | R16: =IF(O16="V",3,IF(O16="E",1,0)) -> 0 | S16: -- | U16: -- | W16: =E16 -> BOTAFOGO | X16: =I16 -> GRÊMIO MINEIRO | Y16: Marcus Monteiro | Z16: =IF(LEFT(Y16,7)="AUSENTE","EQUIPE",IF(IFERROR(VLOOKUP(Y16,'Clubes Participantes'!A:B,1,FALSE),"BOTONISTA")="BOTONISTA","BOTONISTA","EQUIPE")) -> BOTONISTA
B17: 009 | E17: Altanir Junior | F17: 2 | G17: x | H17: 1 | I17: Gustavo Lopes | M17: =IF(F17&H17="WW",0,IF(F17&H17="W0",2,F17)) -> 2 | N17: V | O17: D | P17: =IF(F17&H17="WW",0,IF(F17&H17="0W",2,H17)) -> 1 | S17: -- | U17: -- | W17: =W16 -> BOTAFOGO | X17: GRÊMIO MINEIRO | Y17: Paulo Marcos de França | Z17: =IF(LEFT(Y17,7)="AUSENTE","EQUIPE",IF(IFERROR(VLOOKUP(Y17,'Clubes Participantes'!A:B,1,FALSE),"BOTONISTA")="BOTONISTA","BOTONISTA","EQUIPE")) -> BOTONISTA
B18: 010 | E18: Diego Americo | F18: 2 | G18: x | H18: 1 | I18: Vander Felipe | M18: 2 | N18: V | O18: D | P18: 1 | S18: -- | U18: -- | W18: =W16 -> BOTAFOGO | X18: GRÊMIO MINEIRO | Y18: UNIÃO INDEPENDENTE/UBERABA | Z18: =IF(LEFT(Y18,7)="AUSENTE","EQUIPE",IF(IFERROR(VLOOKUP(Y18,'Clubes Participantes'!A:B,1,FALSE),"BOTONISTA")="BOTONISTA","BOTONISTA","EQUIPE")) -> EQUIPE
B19: 011 | E19: Renato Negreiros | F19: 2 | G19: x | H19: 1 | I19: Rodrigo Primola | M19: 2 | N19: V | O19: D | P19: 1 | S19: -- | U19: -- | W19: BOTAFOGO | X19: GRÊMIO MINEIRO | Y19: Constancio Moura | Z19: =IF(LEFT(Y19,7)="AUSENTE","EQUIPE",IF(IFERROR(VLOOKUP(Y19,'Clubes Participantes'!A:B,1,FALSE),"BOTONISTA")="BOTONISTA","BOTONISTA","EQUIPE")) -> BOTONISTA
B20: 012 | E20: Sergio Falcometa | F20: 1 | G20: x | H20: 0 | I20: Fernando Vianna | M20: 1 | N20: V | O20: D | P20: 0 | S20: -- | U20: -- | W20: BOTAFOGO | X20: GRÊMIO MINEIRO | Y20: Emerson Claudino | Z20: =IF(LEFT(Y20,7)="AUSENTE","EQUIPE",IF(IFERROR(VLOOKUP(Y20,'Clubes Participantes'!A:B,1,FALSE),"BOTONISTA")="BOTONISTA","BOTONISTA","EQUIPE")) -> BOTONISTA
A21: 004 | C21: 2022-04-15 | D21: 01 | E21: AABB/ACAFUMA [C] | F21: 1 | G21: x | H21: 1 | I21: AABB/ACAFUMA [A] | K21: =IF(N21="V",3,IF(N21="E",1,0)) -> 1 | L21: =F21 -> 1 | M21: =SUM(M22:M25) -> 3 | N21: E | O21: E | P21: =SUM(P22:P25) -> 3 | Q21: =H21 -> 1 | R21: =IF(O21="V",3,IF(O21="E",1,0)) -> 1 | S21: -- | U21: -- | W21: =E21 -> AABB/ACAFUMA [C] | X21: =I21 -> AABB/ACAFUMA [A] | Y21: Juliano Gomes | Z21: =IF(LEFT(Y21,7)="AUSENTE","EQUIPE",IF(IFERROR(VLOOKUP(Y21,'Clubes Participantes'!A:B,1,FALSE),"BOTONISTA")="BOTONISTA","BOTONISTA","EQUIPE")) -> BOTONISTA
B22: 013 | E22: Andre Brandao | F22: 0 | G22: x | H22: 0 | I22: Antonio Carlos Almeida | M22: =IF(F22&H22="WW",0,IF(F22&H22="W0",2,F22)) -> 0 | N22: E | O22: E | P22: =IF(F22&H22="WW",0,IF(F22&H22="0W",2,H22)) -> 0 | S22: -- | U22: -- | W22: =W21 -> AABB/ACAFUMA [C] | X22: AABB/ACAFUMA [A] | Y22: Luiz Humberto | Z22: =IF(LEFT(Y22,7)="AUSENTE","EQUIPE",IF(IFERROR(VLOOKUP(Y22,'Clubes Participantes'!A:B,1,FALSE),"BOTONISTA")="BOTONISTA","BOTONISTA","EQUIPE")) -> BOTONISTA
B23: 014 | E23: Paulo Airton Junior | F23: 1 | G23: x | H23: 1 | I23: Tarcizio Dinoa Junior | M23: 1 | N23: E | O23: E | P23: 1 | S23: -- | U23: -- | W23: =W21 -> AABB/ACAFUMA [C] | X23: AABB/ACAFUMA [A] | Y23: MATIAS [A] | Z23: =IF(LEFT(Y23,7)="AUSENTE","EQUIPE",IF(IFERROR(VLOOKUP(Y23,'Clubes Participantes'!A:B,1,FALSE),"BOTONISTA")="BOTONISTA","BOTONISTA","EQUIPE")) -> EQUIPE
B24: 015 | E24: Simplicio Santos | F24: 1 | G24: x | H24: 2 | I24: Luiz Claudio Caruso | M24: 1 | N24: D | O24: V | P24: 2 | S24: -- | U24: -- | W24: AABB/ACAFUMA [C] | X24: AABB/ACAFUMA [A] | Y24: Brunno Gill | Z24: =IF(LEFT(Y24,7)="AUSENTE","EQUIPE",IF(IFERROR(VLOOKUP(Y24,'Clubes Participantes'!A:B,1,FALSE),"BOTONISTA")="BOTONISTA","BOTONISTA","EQUIPE")) -> BOTONISTA
B25: 016 | E25: Marcelo Silva | F25: 1 | G25: x | H25: 0 | I25: Paulo Caruso | M25: 1 | N25: V | O25: D | P25: 0 | S25: -- | U25: -- | W25: AABB/ACAFUMA [C] | X25: AABB/ACAFUMA [A] | Y25: Jose Lessa | Z25: =IF(LEFT(Y25,7)="AUSENTE","EQUIPE",IF(IFERROR(VLOOKUP(Y25,'Clubes Participantes'!A:B,1,FALSE),"BOTONISTA")="BOTONISTA","BOTONISTA","EQUIPE")) -> BOTONISTA
A26: 005 | C26: 2022-04-15 | D26: 01 | E26: COMARY | F26: 1 | G26: x | H26: 2 | I26: CHACAL [A] | K26: =IF(N26="V",3,IF(N26="E",1,0)) -> 0 | L26: =F26 -> 1 | M26: =SUM(M27:M30) -> 2 | N26: D | O26: V | P26: =SUM(P27:P30) -> 6 | Q26: =H26 -> 2 | R26: =IF(O26="V",3,IF(O26="E",1,0)) -> 3 | S26: -- | U26: -- | W26: =E26 -> COMARY | X26: =I26 -> CHACAL [A] | Y26: Leonardo de Oliveira | Z26: =IF(LEFT(Y26,7)="AUSENTE","EQUIPE",IF(IFERROR(VLOOKUP(Y26,'Clubes Participantes'!A:B,1,FALSE),"BOTONISTA")="BOTONISTA","BOTONISTA","EQUIPE")) -> BOTONISTA
B27: 017 | E27: Eduardo Tavares | F27: 0 | G27: x | H27: 0 | I27: Thiago Stephan | M27: =IF(F27&H27="WW",0,IF(F27&H27="W0",2,F27)) -> 0 | N27: E | O27: E | P27: =IF(F27&H27="WW",0,IF(F27&H27="0W",2,H27)) -> 0 | S27: -- | U27: -- | W27: =W26 -> COMARY | X27: CHACAL [A] | Y27: Marcelo Henrique | Z27: =IF(LEFT(Y27,7)="AUSENTE","EQUIPE",IF(IFERROR(VLOOKUP(Y27,'Clubes Participantes'!A:B,1,FALSE),"BOTONISTA")="BOTONISTA","BOTONISTA","EQUIPE")) -> BOTONISTA
B28: 018 | E28: Igor Guarilha | F28: 2 | G28: x | H28: 1 | I28: Julio Celio Braga | M28: 2 | N28: V | O28: D | P28: 1 | S28: -- | U28: -- | W28: =W26 -> COMARY | X28: CHACAL [A] | Y28: BOTAFOGO | Z28: =IF(LEFT(Y28,7)="AUSENTE","EQUIPE",IF(IFERROR(VLOOKUP(Y28,'Clubes Participantes'!A:B,1,FALSE),"BOTONISTA")="BOTONISTA","BOTONISTA","EQUIPE")) -> EQUIPE
B29: 019 | E29: Ricardo Machado | F29: 0 | G29: x | H29: 3 | I29: Joao Francisco Stephan | M29: 0 | N29: D | O29: V | P29: 3 | S29: -- | U29: -- | W29: COMARY | X29: CHACAL [A] | Y29: Altanir Junior | Z29: =IF(LEFT(Y29,7)="AUSENTE","EQUIPE",IF(IFERROR(VLOOKUP(Y29,'Clubes Participantes'!A:B,1,FALSE),"BOTONISTA")="BOTONISTA","BOTONISTA","EQUIPE")) -> BOTONISTA
B30: 020 | E30: Marco Andre Veloso | F30: 0 | G30: x | H30: 2 | I30: Janilson Pereira | M30: 0 | N30: D | O30: V | P30: 2 | S30: -- | U30: -- | W30: COMARY | X30: CHACAL [A] | Y30: Bruno Machado | Z30: =IF(LEFT(Y30,7)="AUSENTE","EQUIPE",IF(IFERROR(VLOOKUP(Y30,'Clubes Participantes'!A:B,1,FALSE),"BOTONISTA")="BOTONISTA","BOTONISTA","EQUIPE")) -> BOTONISTA
A31: 006 | C31: 2022-04-15 | D31: 02 | E31: CHACAL [B] | F31: 0 | G31: x | H31: 4 | I31: UNIÃO INDEPENDENTE/UBERABA | K31: =IF(N31="V",3,IF(N31="E",1,0)) -> 0 | L31: =F31 -> 0 | M31: =SUM(M32:M35) -> 0 | N31: D | O31: V | P31: =SUM(P32:P35) -> 8 | Q31: =H31 -> 4 | R31: =IF(O31="V",3,IF(O31="E",1,0)) -> 3 | S31: -- | U31: -- | W31: =E31 -> CHACAL [B] | X31: =I31 -> UNIÃO INDEPENDENTE/UBERABA | Y31: Diego Americo | Z31: =IF(LEFT(Y31,7)="AUSENTE","EQUIPE",IF(IFERROR(VLOOKUP(Y31,'Clubes Participantes'!A:B,1,FALSE),"BOTONISTA")="BOTONISTA","BOTONISTA","EQUIPE")) -> BOTONISTA
B32: 021 | E32: Everton Costa | F32: 0 | G32: x | H32: 2 | I32: Emerson Claudino | M32: =IF(F32&H32="WW",0,IF(F32&H32="W0",2,F32)) -> 0 | N32: D | O32: V | P32: =IF(F32&H32="WW",0,IF(F32&H32="0W",2,H32)) -> 2 | S32: -- | U32: -- | W32: =W31 -> CHACAL [B] | X32: UNIÃO INDEPENDENTE/UBERABA | Y32: Marcos Ferreira | Z32: =IF(LEFT(Y32,7)="AUSENTE","EQUIPE",IF(IFERROR(VLOOKUP(Y32,'Clubes Participantes'!A:B,1,FALSE),"BOTONISTA")="BOTONISTA","BOTONISTA","EQUIPE")) -> BOTONISTA
B33: 022 | E33: Jefferson Rosa | F33: 0 | G33: x | H33: 2 | I33: Juliano Gomes | M33: 0 | N33: D | O33: V | P33: 2 | S33: -- | U33: -- | W33: =W31 -> CHACAL [B] | X33: UNIÃO INDEPENDENTE/UBERABA | Y33: Renato Negreiros | Z33: =IF(LEFT(Y33,7)="AUSENTE","EQUIPE",IF(IFERROR(VLOOKUP(Y33,'Clubes Participantes'!A:B,1,FALSE),"BOTONISTA")="BOTONISTA","BOTONISTA","EQUIPE")) -> BOTONISTA
B34: 023 | E34: Heman Junior | F34: 0 | G34: x | H34: 2 | I34: Constancio Moura | M34: 0 | N34: D | O34: V | P34: 2 | S34: -- | U34: -- | W34: CHACAL [B] | X34: UNIÃO INDEPENDENTE/UBERABA | Y34: Sergio Falcometa | Z34: =IF(LEFT(Y34,7)="AUSENTE","EQUIPE",IF(IFERROR(VLOOKUP(Y34,'Clubes Participantes'!A:B,1,FALSE),"BOTONISTA")="BOTONISTA","BOTONISTA","EQUIPE")) -> BOTONISTA
B35: 024 | E35: Lucas Luna | F35: 0 | G35: x | H35: 2 | I35: Luiz Humberto | M35: 0 | N35: D | O35: V | P35: 2 | S35: -- | U35: -- | W35: CHACAL [B] | X35: UNIÃO INDEPENDENTE/UBERABA | Y35: LIBERDADE [B] | Z35: =IF(LEFT(Y35,7)="AUSENTE","EQUIPE",IF(IFERROR(VLOOKUP(Y35,'Clubes Participantes'!A:B,1,FALSE),"BOTONISTA")="BOTONISTA","BOTONISTA","EQUIPE")) -> EQUIPE
A36: 007 | C36: 2022-04-15 | D36: 02 | E36: ELDORADO | F36: 0 | G36: x | H36: 2 | I36: TUPI [B] | K36: =IF(N36="V",3,IF(N36="E",1,0)) -> 0 | L36: =F36 -> 0 | M36: =SUM(M37:M40) -> 3 | N36: D | O36: V | P36: =SUM(P37:P40) -> 5 | Q36: =H36 -> 2 | R36: =IF(O36="V",3,IF(O36="E",1,0)) -> 3 | S36: -- | U36: -- | W36: =E36 -> ELDORADO | X36: =I36 -> TUPI [B] | Y36: Daniel Oliveira | Z36: =IF(LEFT(Y36,7)="AUSENTE","EQUIPE",IF(IFERROR(VLOOKUP(Y36,'Clubes Participantes'!A:B,1,FALSE),"BOTONISTA")="BOTONISTA","BOTONISTA","EQUIPE")) -> BOTONISTA
B37: 025 | E37: Jorge Dias | F37: 0 | G37: x | H37: 1 | I37: Paulo Ricardo Souza | M37: =IF(F37&H37="WW",0,IF(F37&H37="W0",2,F37)) -> 0 | N37: D | O37: V | P37: =IF(F37&H37="WW",0,IF(F37&H37="0W",2,H37)) -> 1 | S37: -- | U37: -- | W37: =W36 -> ELDORADO | X37: TUPI [B] | Y37: Joao Eduardo Pereira | Z37: =IF(LEFT(Y37,7)="AUSENTE","EQUIPE",IF(IFERROR(VLOOKUP(Y37,'Clubes Participantes'!A:B,1,FALSE),"BOTONISTA")="BOTONISTA","BOTONISTA","EQUIPE")) -> BOTONISTA
B38: 026 | E38: Jose Pires | F38: 0 | G38: x | H38: 0 | I38: Leandro Benicio | M38: 0 | N38: E | O38: E | P38: 0 | S38: -- | U38: -- | W38: =W36 -> ELDORADO | X38: TUPI [B] | Y38: Luiz Carlos Guerra | Z38: =IF(LEFT(Y38,7)="AUSENTE","EQUIPE",IF(IFERROR(VLOOKUP(Y38,'Clubes Participantes'!A:B,1,FALSE),"BOTONISTA")="BOTONISTA","BOTONISTA","EQUIPE")) -> BOTONISTA
B39: 027 | E39: Alex Lage | F39: 2 | G39: x | H39: 2 | I39: Luiz Henrique Colla | M39: 2 | N39: E | O39: E | P39: 2 | S39: -- | U39: -- | W39: ELDORADO | X39: TUPI [B] | Y39: Marcelo Virgilio | Z39: =IF(LEFT(Y39,7)="AUSENTE","EQUIPE",IF(IFERROR(VLOOKUP(Y39,'Clubes Participantes'!A:B,1,FALSE),"BOTONISTA")="BOTONISTA","BOTONISTA","EQUIPE")) -> BOTONISTA
B40: 028 | E40: Bernardo Pires | F40: 1 | G40: x | H40: 2 | I40: Flavio Scarpelli | M40: 1 | N40: D | O40: V | P40: 2 | S40: -- | U40: -- | W40: ELDORADO | X40: TUPI [B] | Y40: Rafael Pena | Z40: =IF(LEFT(Y40,7)="AUSENTE","EQUIPE",IF(IFERROR(VLOOKUP(Y40,'Clubes Participantes'!A:B,1,FALSE),"BOTONISTA")="BOTONISTA","BOTONISTA","EQUIPE")) -> BOTONISTA
A41: 008 | C41: 2022-04-15 | D41: 01 | E41: LIBERDADE [B] | F41: 2 | G41: x | H41: 0 | I41: COMARY | K41: =IF(N41="V",3,IF(N41="E",1,0)) -> 3 | L41: =F41 -> 2 | M41: =SUM(M42:M45) -> 4 | N41: V | O41: D | P41: =SUM(P42:P45) -> 0 | Q41: =H41 -> 0 | R41: =IF(O41="V",3,IF(O41="E",1,0)) -> 0 | S41: -- | U41: -- | W41: =E41 -> LIBERDADE [B] | X41: =I41 -> COMARY | Y41: VASCO DA GAMA | Z41: =IF(LEFT(Y41,7)="AUSENTE","EQUIPE",IF(IFERROR(VLOOKUP(Y41,'Clubes Participantes'!A:B,1,FALSE),"BOTONISTA")="BOTONISTA","BOTONISTA","EQUIPE")) -> EQUIPE
B42: 029 | E42: Luiz Carlos Guerra | F42: 3 | G42: x | H42: 0 | I42: Claudio Figueiredo | M42: =IF(F42&H42="WW",0,IF(F42&H42="W0",2,F42)) -> 3 | N42: V | O42: D | P42: =IF(F42&H42="WW",0,IF(F42&H42="0W",2,H42)) -> 0 | S42: -- | U42: -- | W42: =W41 -> LIBERDADE [B] | X42: COMARY | Y42: Eder Patrocinio | Z42: =IF(LEFT(Y42,7)="AUSENTE","EQUIPE",IF(IFERROR(VLOOKUP(Y42,'Clubes Participantes'!A:B,1,FALSE),"BOTONISTA")="BOTONISTA","BOTONISTA","EQUIPE")) -> BOTONISTA
B43: 030 | E43: Joao Eduardo Pereira | F43: 0 | G43: x | H43: 0 | I43: Igor Guarilha | M43: 0 | N43: E | O43: E | P43: 0 | S43: -- | U43: -- | W43: =W41 -> LIBERDADE [B] | X43: COMARY | Y43: Eduardo Costa | Z43: =IF(LEFT(Y43,7)="AUSENTE","EQUIPE",IF(IFERROR(VLOOKUP(Y43,'Clubes Participantes'!A:B,1,FALSE),"BOTONISTA")="BOTONISTA","BOTONISTA","EQUIPE")) -> BOTONISTA
B44: 031 | E44: Rafael Pena | F44: 0 | G44: x | H44: 0 | I44: Pablo Sidarta | M44: 0 | N44: E | O44: E | P44: 0 | S44: -- | U44: -- | W44: LIBERDADE [B] | X44: COMARY | Y44: Evandro Gomes | Z44: =IF(LEFT(Y44,7)="AUSENTE","EQUIPE",IF(IFERROR(VLOOKUP(Y44,'Clubes Participantes'!A:B,1,FALSE),"BOTONISTA")="BOTONISTA","BOTONISTA","EQUIPE")) -> BOTONISTA
B45: 032 | E45: Marcelo Virgilio | F45: 1 | G45: x | H45: 0 | I45: Eduardo Tavares | M45: 1 | N45: V | O45: D | P45: 0 | S45: -- | U45: -- | W45: LIBERDADE [B] | X45: COMARY | Y45: Fernando Ferreira | Z45: =IF(LEFT(Y45,7)="AUSENTE","EQUIPE",IF(IFERROR(VLOOKUP(Y45,'Clubes Participantes'!A:B,1,FALSE),"BOTONISTA")="BOTONISTA","BOTONISTA","EQUIPE")) -> BOTONISTA
A46: 009 | C46: 2022-04-15 | D46: 01 | E46: MATIAS [B] | F46: 0 | G46: x | H46: 3 | I46: BOTAFOGO | K46: =IF(N46="V",3,IF(N46="E",1,0)) -> 0 | L46: =F46 -> 0 | M46: =SUM(M47:M50) -> 1 | N46: D | O46: V | P46: =SUM(P47:P50) -> 5 | Q46: =H46 -> 3 | R46: =IF(O46="V",3,IF(O46="E",1,0)) -> 3 | S46: -- | U46: -- | W46: =E46 -> MATIAS [B] | X46: =I46 -> BOTAFOGO | Y46: Henrique Madeira | Z46: =IF(LEFT(Y46,7)="AUSENTE","EQUIPE",IF(IFERROR(VLOOKUP(Y46,'Clubes Participantes'!A:B,1,FALSE),"BOTONISTA")="BOTONISTA","BOTONISTA","EQUIPE")) -> BOTONISTA
B47: 033 | E47: Eber Chapinotti | F47: 0 | G47: x | H47: 1 | I47: Sergio Falcometa | M47: =IF(F47&H47="WW",0,IF(F47&H47="W0",2,F47)) -> 0 | N47: D | O47: V | P47: =IF(F47&H47="WW",0,IF(F47&H47="0W",2,H47)) -> 1 | S47: -- | U47: -- | W47: =W46 -> MATIAS [B] | X47: BOTAFOGO | Y47: Marcelo Lima | Z47: =IF(LEFT(Y47,7)="AUSENTE","EQUIPE",IF(IFERROR(VLOOKUP(Y47,'Clubes Participantes'!A:B,1,FALSE),"BOTONISTA")="BOTONISTA","BOTONISTA","EQUIPE")) -> BOTONISTA
B48: 034 | E48: Ailson Brites | F48: 1 | G48: x | H48: 3 | I48: Altanir Junior | M48: 1 | N48: D | O48: V | P48: 3 | S48: -- | U48: -- | W48: =W46 -> MATIAS [B] | X48: BOTAFOGO | Y48: Valmir Silva | Z48: =IF(LEFT(Y48,7)="AUSENTE","EQUIPE",IF(IFERROR(VLOOKUP(Y48,'Clubes Participantes'!A:B,1,FALSE),"BOTONISTA")="BOTONISTA","BOTONISTA","EQUIPE")) -> BOTONISTA
B49: 035 | E49: Mario Cleber | F49: 0 | G49: x | H49: 0 | I49: Diego Americo | M49: 0 | N49: E | O49: E | P49: 0 | S49: -- | U49: -- | W49: MATIAS [B] | X49: BOTAFOGO | Y49: AABB/ACAFUMA [C] | Z49: =IF(LEFT(Y49,7)="AUSENTE","EQUIPE",IF(IFERROR(VLOOKUP(Y49,'Clubes Participantes'!A:B,1,FALSE),"BOTONISTA")="BOTONISTA","BOTONISTA","EQUIPE")) -> EQUIPE
B50: 036 | E50: Romualdo Piccinini | F50: 0 | G50: x | H50: 1 | I50: Renato Negreiros | M50: 0 | N50: D | O50: V | P50: 1 | S50: -- | U50: -- | W50: MATIAS [B] | X50: BOTAFOGO | Y50: Andre Brandao | Z50: =IF(LEFT(Y50,7)="AUSENTE","EQUIPE",IF(IFERROR(VLOOKUP(Y50,'Clubes Participantes'!A:B,1,FALSE),"BOTONISTA")="BOTONISTA","BOTONISTA","EQUIPE")) -> BOTONISTA
A51: 010 | C51: 2022-04-15 | D51: 01 | E51: TUPI [A] | F51: 3 | G51: x | H51: 0 | I51: AABB/ACAFUMA [C] | K51: =IF(N51="V",3,IF(N51="E",1,0)) -> 3 | L51: =F51 -> 3 | M51: =SUM(M52:M55) -> 10 | N51: V | O51: D | P51: =SUM(P52:P55) -> 0 | Q51: =H51 -> 0 | R51: =IF(O51="V",3,IF(O51="E",1,0)) -> 0 | S51: -- | U51: -- | W51: =E51 -> TUPI [A] | X51: =I51 -> AABB/ACAFUMA [C] | Y51: Marcelo Silva | Z51: =IF(LEFT(Y51,7)="AUSENTE","EQUIPE",IF(IFERROR(VLOOKUP(Y51,'Clubes Participantes'!A:B,1,FALSE),"BOTONISTA")="BOTONISTA","BOTONISTA","EQUIPE")) -> BOTONISTA
B52: 037 | E52: Paulo Marcos de França | F52: 0 | G52: x | H52: 0 | I52: Andre Brandao | M52: =IF(F52&H52="WW",0,IF(F52&H52="W0",2,F52)) -> 0 | N52: E | O52: E | P52: =IF(F52&H52="WW",0,IF(F52&H52="0W",2,H52)) -> 0 | S52: -- | U52: -- | W52: =W51 -> TUPI [A] | X52: AABB/ACAFUMA [C] | Y52: Paulo Airton Junior | Z52: =IF(LEFT(Y52,7)="AUSENTE","EQUIPE",IF(IFERROR(VLOOKUP(Y52,'Clubes Participantes'!A:B,1,FALSE),"BOTONISTA")="BOTONISTA","BOTONISTA","EQUIPE")) -> BOTONISTA
B53: 038 | E53: Eduardo Guerra | F53: 2 | G53: x | H53: 0 | I53: Marcelo Silva | M53: 2 | N53: V | O53: D | P53: 0 | S53: -- | U53: -- | W53: =W51 -> TUPI [A] | X53: AABB/ACAFUMA [C] | Y53: Simplicio Santos | Z53: =IF(LEFT(Y53,7)="AUSENTE","EQUIPE",IF(IFERROR(VLOOKUP(Y53,'Clubes Participantes'!A:B,1,FALSE),"BOTONISTA")="BOTONISTA","BOTONISTA","EQUIPE")) -> BOTONISTA
B54: 039 | E54: Leonardo Stumpf | F54: 5 | G54: x | H54: 0 | I54: Paulo Airton Junior | M54: 5 | N54: V | O54: D | P54: 0 | S54: -- | U54: -- | W54: TUPI [A] | X54: AABB/ACAFUMA [C] | Y54: AABB/ACAFUMA [A] | Z54: =IF(LEFT(Y54,7)="AUSENTE","EQUIPE",IF(IFERROR(VLOOKUP(Y54,'Clubes Participantes'!A:B,1,FALSE),"BOTONISTA")="BOTONISTA","BOTONISTA","EQUIPE")) -> EQUIPE
B55: 040 | E55: Marcus Monteiro | F55: 3 | G55: x | H55: 0 | I55: Simplicio Santos | M55: 3 | N55: V | O55: D | P55: 0 | S55: -- | U55: -- | W55: TUPI [A] | X55: AABB/ACAFUMA [C] | Y55: Antonio Carlos Almeida | Z55: =IF(LEFT(Y55,7)="AUSENTE","EQUIPE",IF(IFERROR(VLOOKUP(Y55,'Clubes Participantes'!A:B,1,FALSE),"BOTONISTA")="BOTONISTA","BOTONISTA","EQUIPE")) -> BOTONISTA
A56: 011 | C56: 2022-04-15 | D56: 01 | E56: GRÊMIO MINEIRO | F56: 2 | G56: x | H56: 2 | I56: MATIAS [B] | K56: =IF(N56="V",3,IF(N56="E",1,0)) -> 1 | L56: =F56 -> 2 | M56: =SUM(M57:M60) -> 7 | N56: E | O56: E | P56: =SUM(P57:P60) -> 7 | Q56: =H56 -> 2 | R56: =IF(O56="V",3,IF(O56="E",1,0)) -> 1 | S56: -- | U56: -- | W56: =E56 -> GRÊMIO MINEIRO | X56: =I56 -> MATIAS [B] | Y56: Luiz Claudio Caruso | Z56: =IF(LEFT(Y56,7)="AUSENTE","EQUIPE",IF(IFERROR(VLOOKUP(Y56,'Clubes Participantes'!A:B,1,FALSE),"BOTONISTA")="BOTONISTA","BOTONISTA","EQUIPE")) -> BOTONISTA
B57: 041 | E57: Fernando Vianna | F57: 0 | G57: x | H57: 4 | I57: Romualdo Piccinini | M57: =IF(F57&H57="WW",0,IF(F57&H57="W0",2,F57)) -> 0 | N57: D | O57: V | P57: =IF(F57&H57="WW",0,IF(F57&H57="0W",2,H57)) -> 4 | S57: -- | U57: -- | W57: =W56 -> GRÊMIO MINEIRO | X57: MATIAS [B] | Y57: Paulo Caruso | Z57: =IF(LEFT(Y57,7)="AUSENTE","EQUIPE",IF(IFERROR(VLOOKUP(Y57,'Clubes Participantes'!A:B,1,FALSE),"BOTONISTA")="BOTONISTA","BOTONISTA","EQUIPE")) -> BOTONISTA
B58: 042 | E58: Rodrigo Primola | F58: 1 | G58: x | H58: 2 | I58: Eber Chapinotti | M58: 1 | N58: D | O58: V | P58: 2 | S58: -- | U58: -- | W58: =W56 -> GRÊMIO MINEIRO | X58: MATIAS [B] | Y58: Tarcizio Dinoa Junior | Z58: =IF(LEFT(Y58,7)="AUSENTE","EQUIPE",IF(IFERROR(VLOOKUP(Y58,'Clubes Participantes'!A:B,1,FALSE),"BOTONISTA")="BOTONISTA","BOTONISTA","EQUIPE")) -> BOTONISTA
B59: 043 | E59: Vander Felipe | F59: 3 | G59: x | H59: 1 | I59: Ailson Brites | M59: 3 | N59: V | O59: D | P59: 1 | S59: -- | U59: -- | W59: GRÊMIO MINEIRO | X59: MATIAS [B] | Y59: TUPI [B] | Z59: =IF(LEFT(Y59,7)="AUSENTE","EQUIPE",IF(IFERROR(VLOOKUP(Y59,'Clubes Participantes'!A:B,1,FALSE),"BOTONISTA")="BOTONISTA","BOTONISTA","EQUIPE")) -> EQUIPE
B60: 044 | E60: Gustavo Lopes | F60: 3 | G60: x | H60: 0 | I60: Humberto Ramos | M60: 3 | N60: V | O60: D | P60: 0 | S60: -- | U60: -- | W60: GRÊMIO MINEIRO | X60: MATIAS [B] | Y60: Flavio Scarpelli | Z60: =IF(LEFT(Y60,7)="AUSENTE","EQUIPE",IF(IFERROR(VLOOKUP(Y60,'Clubes Participantes'!A:B,1,FALSE),"BOTONISTA")="BOTONISTA","BOTONISTA","EQUIPE")) -> BOTONISTA
A61: 012 | C61: 2022-04-15 | D61: 01 | E61: AABB/ACAFUMA [A] | F61: 0 | G61: x | H61: 2 | I61: TUPI [A] | K61: =IF(N61="V",3,IF(N61="E",1,0)) -> 0 | L61: =F61 -> 0 | M61: =SUM(M62:M65) -> 1 | N61: D | O61: V | P61: =SUM(P62:P65) -> 5 | Q61: =H61 -> 2 | R61: =IF(O61="V",3,IF(O61="E",1,0)) -> 3 | S61: -- | U61: -- | W61: =E61 -> AABB/ACAFUMA [A] | X61: =I61 -> TUPI [A] | Y61: Leandro Benicio | Z61: =IF(LEFT(Y61,7)="AUSENTE","EQUIPE",IF(IFERROR(VLOOKUP(Y61,'Clubes Participantes'!A:B,1,FALSE),"BOTONISTA")="BOTONISTA","BOTONISTA","EQUIPE")) -> BOTONISTA
B62: 045 | E62: Antonio Carlos Almeida | F62: 0 | G62: x | H62: 0 | I62: Leonardo Stumpf | M62: =IF(F62&H62="WW",0,IF(F62&H62="W0",2,F62)) -> 0 | N62: E | O62: E | P62: =IF(F62&H62="WW",0,IF(F62&H62="0W",2,H62)) -> 0 | S62: -- | U62: -- | W62: =W61 -> AABB/ACAFUMA [A] | X62: TUPI [A] | Y62: Luiz Henrique Colla | Z62: =IF(LEFT(Y62,7)="AUSENTE","EQUIPE",IF(IFERROR(VLOOKUP(Y62,'Clubes Participantes'!A:B,1,FALSE),"BOTONISTA")="BOTONISTA","BOTONISTA","EQUIPE")) -> BOTONISTA
B63: 046 | E63: Tarcizio Dinoa Junior | F63: 1 | G63: x | H63: 1 | I63: Marcus Monteiro | M63: 1 | N63: E | O63: E | P63: 1 | S63: -- | U63: -- | W63: =W61 -> AABB/ACAFUMA [A] | X63: TUPI [A] | Y63: Paulo Ricardo Souza | Z63: =IF(LEFT(Y63,7)="AUSENTE","EQUIPE",IF(IFERROR(VLOOKUP(Y63,'Clubes Participantes'!A:B,1,FALSE),"BOTONISTA")="BOTONISTA","BOTONISTA","EQUIPE")) -> BOTONISTA
B64: 047 | E64: Luiz Claudio Caruso | F64: 0 | G64: x | H64: 2 | I64: Paulo Marcos de França | M64: 0 | N64: D | O64: V | P64: 2 | S64: -- | U64: -- | W64: AABB/ACAFUMA [A] | X64: TUPI [A] | Y64: AABB/ACAFUMA [B] | Z64: =IF(LEFT(Y64,7)="AUSENTE","EQUIPE",IF(IFERROR(VLOOKUP(Y64,'Clubes Participantes'!A:B,1,FALSE),"BOTONISTA")="BOTONISTA","BOTONISTA","EQUIPE")) -> EQUIPE
B65: 048 | E65: Paulo Caruso | F65: 0 | G65: x | H65: 2 | I65: Carlos Antonio Miranda | M65: 0 | N65: D | O65: V | P65: 2 | S65: -- | U65: -- | W65: AABB/ACAFUMA [A] | X65: TUPI [A] | Y65: Adolpho Parente | Z65: =IF(LEFT(Y65,7)="AUSENTE","EQUIPE",IF(IFERROR(VLOOKUP(Y65,'Clubes Participantes'!A:B,1,FALSE),"BOTONISTA")="BOTONISTA","BOTONISTA","EQUIPE")) -> BOTONISTA
A66: 013 | C66: 2022-04-15 | D66: 02 | E66: LIBERDADE [A] | F66: 2 | G66: x | H66: 1 | I66: AABB/ACAFUMA [B] | K66: =IF(N66="V",3,IF(N66="E",1,0)) -> 3 | L66: =F66 -> 2 | M66: =SUM(M67:M70) -> 6 | N66: V | O66: D | P66: =SUM(P67:P70) -> 4 | Q66: =H66 -> 1 | R66: =IF(O66="V",3,IF(O66="E",1,0)) -> 0 | S66: -- | U66: -- | W66: =E66 -> LIBERDADE [A] | X66: =I66 -> AABB/ACAFUMA [B] | Y66: Alcides Figueira | Z66: =IF(LEFT(Y66,7)="AUSENTE","EQUIPE",IF(IFERROR(VLOOKUP(Y66,'Clubes Participantes'!A:B,1,FALSE),"BOTONISTA")="BOTONISTA","BOTONISTA","EQUIPE")) -> BOTONISTA
B67: 049 | E67: Wendel Cordeiro | F67: 1 | G67: x | H67: 1 | I67: Alcides Figueira | M67: =IF(F67&H67="WW",0,IF(F67&H67="W0",2,F67)) -> 1 | N67: E | O67: E | P67: =IF(F67&H67="WW",0,IF(F67&H67="0W",2,H67)) -> 1 | S67: -- | U67: -- | W67: =W66 -> LIBERDADE [A] | X67: AABB/ACAFUMA [B] | Y67: Marcelo Ferreira | Z67: =IF(LEFT(Y67,7)="AUSENTE","EQUIPE",IF(IFERROR(VLOOKUP(Y67,'Clubes Participantes'!A:B,1,FALSE),"BOTONISTA")="BOTONISTA","BOTONISTA","EQUIPE")) -> BOTONISTA
B68: 050 | E68: Breno Ribeiro | F68: 0 | G68: x | H68: 2 | I68: Adolpho Parente | M68: 0 | N68: D | O68: V | P68: 2 | S68: -- | U68: -- | W68: =W66 -> LIBERDADE [A] | X68: AABB/ACAFUMA [B] | Y68: Paulo Cesar Faria | Z68: =IF(LEFT(Y68,7)="AUSENTE","EQUIPE",IF(IFERROR(VLOOKUP(Y68,'Clubes Participantes'!A:B,1,FALSE),"BOTONISTA")="BOTONISTA","BOTONISTA","EQUIPE")) -> BOTONISTA
B69: 051 | E69: Lorival Ribeiro | F69: 2 | G69: x | H69: 1 | I69: Rodrigo Caruso | M69: 2 | N69: V | O69: D | P69: 1 | S69: -- | U69: -- | W69: LIBERDADE [A] | X69: AABB/ACAFUMA [B] | Y69: Rodrigo Caruso | Z69: =IF(LEFT(Y69,7)="AUSENTE","EQUIPE",IF(IFERROR(VLOOKUP(Y69,'Clubes Participantes'!A:B,1,FALSE),"BOTONISTA")="BOTONISTA","BOTONISTA","EQUIPE")) -> BOTONISTA
B70: 052 | E70: Carlos Henrique Garcia | F70: 3 | G70: x | H70: 0 | I70: Marcelo Ferreira | M70: 3 | N70: V | O70: D | P70: 0 | S70: -- | U70: =IF($X$3="BOTONISTA",(IF($U$3=E70,$U$3,IF($U$3=I70,$U$3,"--"))),IF($X$3="EQUIPE",(IF($U$3=W70,$U$3,IF($U$3=X70,$U$3,"--"))),"--")) -> -- | W70: LIBERDADE [A] | X70: AABB/ACAFUMA [B] | Y70: COMARY | Z70: =IF(LEFT(Y70,7)="AUSENTE","EQUIPE",IF(IFERROR(VLOOKUP(Y70,'Clubes Participantes'!A:B,1,FALSE),"BOTONISTA")="BOTONISTA","BOTONISTA","EQUIPE")) -> EQUIPE
A71: 014 | C71: 2022-04-15 | D71: 01 | E71: CHACAL [A] | F71: 0 | G71: x | H71: 2 | I71: LIBERDADE [B] | K71: =IF(N71="V",3,IF(N71="E",1,0)) -> 0 | L71: =F71 -> 0 | M71: =SUM(M72:M75) -> 2 | N71: D | O71: V | P71: =SUM(P72:P75) -> 6 | Q71: =H71 -> 2 | R71: =IF(O71="V",3,IF(O71="E",1,0)) -> 3 | S71: =IF(LEFT(E71,7)="","AUS"&+IF(B71>0,"IND",""),IF(LEFT(I71,7)="","AUS"&+IF(B71>0,"IND",""),IF(LEFT(E71,7)="Ausente","AUS"&+IF(B71>0,"IND",""),IF(LEFT(I71,7)="Ausente","AUS"&+IF(B71>0,"IND",""),IF(RIGHT(F71,1)="*","NULO"&+IF(B71>0,"IND",""),IF(F71&H71="----","NULO"&+IF(B71>0,"IND",""),IF(F71&H71="W0","W0"&+IF(B71>0,"IND",""),IF(F71&H71="0W","W0"&+IF(B71>0,"IND",""),IF(F71&H71="WW","WW"&+IF(B71>0,"IND",""),"--"))))))))) -> -- | U71: -- | W71: =E71 -> CHACAL [A] | X71: =I71 -> LIBERDADE [B] | Y71: Claudio Figueiredo | Z71: =IF(LEFT(Y71,7)="AUSENTE","EQUIPE",IF(IFERROR(VLOOKUP(Y71,'Clubes Participantes'!A:B,1,FALSE),"BOTONISTA")="BOTONISTA","BOTONISTA","EQUIPE")) -> BOTONISTA
B72: 053 | E72: Thiago Stephan | F72: 1 | G72: x | H72: 1 | I72: Rafael Pena | M72: =IF(F72&H72="WW",0,IF(F72&H72="W0",2,F72)) -> 1 | N72: E | O72: E | P72: =IF(F72&H72="WW",0,IF(F72&H72="0W",2,H72)) -> 1 | S72: -- | U72: -- | W72: =W71 -> CHACAL [A] | X72: LIBERDADE [B] | Y72: Eduardo Tavares | Z72: =IF(LEFT(Y72,7)="AUSENTE","EQUIPE",IF(IFERROR(VLOOKUP(Y72,'Clubes Participantes'!A:B,1,FALSE),"BOTONISTA")="BOTONISTA","BOTONISTA","EQUIPE")) -> BOTONISTA
B73: 054 | E73: Paulo Mangia | F73: 0 | G73: x | H73: 2 | I73: Marcelo Virgilio | M73: 0 | N73: D | O73: V | P73: 2 | S73: -- | U73: -- | W73: =W71 -> CHACAL [A] | X73: LIBERDADE [B] | Y73: Igor Guarilha | Z73: =IF(LEFT(Y73,7)="AUSENTE","EQUIPE",IF(IFERROR(VLOOKUP(Y73,'Clubes Participantes'!A:B,1,FALSE),"BOTONISTA")="BOTONISTA","BOTONISTA","EQUIPE")) -> BOTONISTA
B74: 055 | E74: Joao Francisco Stephan | F74: 0 | G74: x | H74: 2 | I74: Luiz Carlos Guerra | M74: 0 | N74: D | O74: V | P74: 2 | S74: -- | U74: -- | W74: CHACAL [A] | X74: LIBERDADE [B] | Y74: Marco Andre Veloso | Z74: =IF(LEFT(Y74,7)="AUSENTE","EQUIPE",IF(IFERROR(VLOOKUP(Y74,'Clubes Participantes'!A:B,1,FALSE),"BOTONISTA")="BOTONISTA","BOTONISTA","EQUIPE")) -> BOTONISTA
B75: 056 | E75: Julio Celio Braga | F75: 1 | G75: x | H75: 1 | I75: Daniel Oliveira | M75: 1 | N75: E | O75: E | P75: 1 | S75: -- | U75: -- | W75: CHACAL [A] | X75: LIBERDADE [B] | Y75: Pablo Sidarta | Z75: =IF(LEFT(Y75,7)="AUSENTE","EQUIPE",IF(IFERROR(VLOOKUP(Y75,'Clubes Participantes'!A:B,1,FALSE),"BOTONISTA")="BOTONISTA","BOTONISTA","EQUIPE")) -> BOTONISTA
A76: 015 | C76: 2022-04-15 | D76: 02 | E76: UNIÃO INDEPENDENTE/UBERABA | F76: 2 | G76: x | H76: 2 | I76: VASCO DA GAMA | K76: =IF(N76="V",3,IF(N76="E",1,0)) -> 1 | L76: =F76 -> 2 | M76: =SUM(M77:M80) -> 4 | N76: =IF(F76&+H76="WW","D",IF(F76>H76,"V",IF(F76=H76,"E","D"))) -> E | O76: =IF(F76&+H76="WW","D",IF(F76<H76,"V",IF(F76=H76,"E","D"))) -> E | P76: =SUM(P77:P80) -> 8 | Q76: =H76 -> 2 | R76: =IF(O76="V",3,IF(O76="E",1,0)) -> 1 | S76: -- | U76: -- | W76: =E76 -> UNIÃO INDEPENDENTE/UBERABA | X76: =I76 -> VASCO DA GAMA | Y76: Ricardo Machado | Z76: =IF(LEFT(Y76,7)="AUSENTE","EQUIPE",IF(IFERROR(VLOOKUP(Y76,'Clubes Participantes'!A:B,1,FALSE),"BOTONISTA")="BOTONISTA","BOTONISTA","EQUIPE")) -> BOTONISTA
B77: 057 | E77: Constancio Moura | F77: 0 | G77: x | H77: 3 | I77: Eduardo Costa | M77: =IF(F77&H77="WW",0,IF(F77&H77="W0",2,F77)) -> 0 | N77: D | O77: V | P77: =IF(F77&H77="WW",0,IF(F77&H77="0W",2,H77)) -> 3 | S77: -- | U77: -- | W77: =W76 -> UNIÃO INDEPENDENTE/UBERABA | X77: VASCO DA GAMA | Y77: CHACAL [A] | Z77: =IF(LEFT(Y77,7)="AUSENTE","EQUIPE",IF(IFERROR(VLOOKUP(Y77,'Clubes Participantes'!A:B,1,FALSE),"BOTONISTA")="BOTONISTA","BOTONISTA","EQUIPE")) -> EQUIPE
B78: 058 | E78: Luiz Humberto | F78: 2 | G78: x | H78: 1 | I78: Evandro Gomes | M78: 2 | N78: V | O78: D | P78: 1 | S78: -- | U78: -- | W78: =W76 -> UNIÃO INDEPENDENTE/UBERABA | X78: VASCO DA GAMA | Y78: Janilson Pereira | Z78: =IF(LEFT(Y78,7)="AUSENTE","EQUIPE",IF(IFERROR(VLOOKUP(Y78,'Clubes Participantes'!A:B,1,FALSE),"BOTONISTA")="BOTONISTA","BOTONISTA","EQUIPE")) -> BOTONISTA
B79: 059 | E79: Emerson Claudino | F79: 2 | G79: x | H79: 1 | I79: Henrique Madeira | M79: 2 | N79: V | O79: D | P79: 1 | S79: -- | U79: -- | W79: UNIÃO INDEPENDENTE/UBERABA | X79: VASCO DA GAMA | Y79: Joao Francisco Stephan | Z79: =IF(LEFT(Y79,7)="AUSENTE","EQUIPE",IF(IFERROR(VLOOKUP(Y79,'Clubes Participantes'!A:B,1,FALSE),"BOTONISTA")="BOTONISTA","BOTONISTA","EQUIPE")) -> BOTONISTA
B80: 060 | E80: Juliano Gomes | F80: 0 | G80: x | H80: 3 | I80: Fernando Ferreira | M80: 0 | N80: D | O80: V | P80: 3 | S80: -- | U80: -- | W80: UNIÃO INDEPENDENTE/UBERABA | X80: VASCO DA GAMA | Y80: Julio Celio Braga | Z80: =IF(LEFT(Y80,7)="AUSENTE","EQUIPE",IF(IFERROR(VLOOKUP(Y80,'Clubes Participantes'!A:B,1,FALSE),"BOTONISTA")="BOTONISTA","BOTONISTA","EQUIPE")) -> BOTONISTA
A81: 016 | C81: 2022-04-15 | D81: 02 | E81: AABB/ACAFUMA [B] | F81: 0 | G81: x | H81: 2 | I81: UNIÃO INDEPENDENTE/UBERABA | K81: =IF(N81="V",3,IF(N81="E",1,0)) -> 0 | L81: =F81 -> 0 | M81: =SUM(M82:M85) -> 3 | N81: D | O81: V | P81: =SUM(P82:P85) -> 8 | Q81: =H81 -> 2 | R81: =IF(O81="V",3,IF(O81="E",1,0)) -> 3 | S81: -- | U81: -- | W81: =E81 -> AABB/ACAFUMA [B] | X81: =I81 -> UNIÃO INDEPENDENTE/UBERABA | Y81: Paulo Mangia | Z81: =IF(LEFT(Y81,7)="AUSENTE","EQUIPE",IF(IFERROR(VLOOKUP(Y81,'Clubes Participantes'!A:B,1,FALSE),"BOTONISTA")="BOTONISTA","BOTONISTA","EQUIPE")) -> BOTONISTA
B82: 061 | E82: Alcides Figueira | F82: 0 | G82: x | H82: 2 | I82: Emerson Claudino | M82: =IF(F82&H82="WW",0,IF(F82&H82="W0",2,F82)) -> 0 | N82: D | O82: V | P82: =IF(F82&H82="WW",0,IF(F82&H82="0W",2,H82)) -> 2 | S82: -- | U82: -- | W82: =W81 -> AABB/ACAFUMA [B] | X82: UNIÃO INDEPENDENTE/UBERABA | Y82: Thiago Stephan | Z82: =IF(LEFT(Y82,7)="AUSENTE","EQUIPE",IF(IFERROR(VLOOKUP(Y82,'Clubes Participantes'!A:B,1,FALSE),"BOTONISTA")="BOTONISTA","BOTONISTA","EQUIPE")) -> BOTONISTA
B83: 062 | E83: Adolpho Parente | F83: 2 | G83: x | H83: 2 | I83: Juliano Gomes | M83: 2 | N83: E | O83: E | P83: 2 | S83: -- | U83: -- | W83: =W81 -> AABB/ACAFUMA [B] | X83: UNIÃO INDEPENDENTE/UBERABA | Y83: ELDORADO | Z83: =IF(LEFT(Y83,7)="AUSENTE","EQUIPE",IF(IFERROR(VLOOKUP(Y83,'Clubes Participantes'!A:B,1,FALSE),"BOTONISTA")="BOTONISTA","BOTONISTA","EQUIPE")) -> EQUIPE
B84: 063 | E84: Paulo Cesar Faria | F84: 1 | G84: x | H84: 4 | I84: Constancio Moura | M84: 1 | N84: D | O84: V | P84: 4 | S84: -- | U84: -- | W84: AABB/ACAFUMA [B] | X84: UNIÃO INDEPENDENTE/UBERABA | Y84: Alex Lage | Z84: =IF(LEFT(Y84,7)="AUSENTE","EQUIPE",IF(IFERROR(VLOOKUP(Y84,'Clubes Participantes'!A:B,1,FALSE),"BOTONISTA")="BOTONISTA","BOTONISTA","EQUIPE")) -> BOTONISTA
B85: 064 | E85: Marcelo Ferreira | F85: 0 | G85: x | H85: 0 | I85: Luiz Humberto | M85: 0 | N85: E | O85: E | P85: 0 | S85: -- | U85: -- | W85: AABB/ACAFUMA [B] | X85: UNIÃO INDEPENDENTE/UBERABA | Y85: Bernardo Pires | Z85: =IF(LEFT(Y85,7)="AUSENTE","EQUIPE",IF(IFERROR(VLOOKUP(Y85,'Clubes Participantes'!A:B,1,FALSE),"BOTONISTA")="BOTONISTA","BOTONISTA","EQUIPE")) -> BOTONISTA
A86: 017 | C86: 2022-04-15 | D86: 01 | E86: AABB/ACAFUMA [C] | F86: 1 | G86: x | H86: 1 | I86: CHACAL [A] | K86: =IF(N86="V",3,IF(N86="E",1,0)) -> 1 | L86: =F86 -> 1 | M86: =SUM(M87:M90) -> 4 | N86: E | O86: E | P86: =SUM(P87:P90) -> 4 | Q86: =H86 -> 1 | R86: =IF(O86="V",3,IF(O86="E",1,0)) -> 1 | S86: -- | U86: -- | W86: =E86 -> AABB/ACAFUMA [C] | X86: =I86 -> CHACAL [A] | Y86: Jorge Dias | Z86: =IF(LEFT(Y86,7)="AUSENTE","EQUIPE",IF(IFERROR(VLOOKUP(Y86,'Clubes Participantes'!A:B,1,FALSE),"BOTONISTA")="BOTONISTA","BOTONISTA","EQUIPE")) -> BOTONISTA
B87: 065 | E87: Andre Brandao | F87: 1 | G87: x | H87: 1 | I87: Joao Francisco Stephan | M87: =IF(F87&H87="WW",0,IF(F87&H87="W0",2,F87)) -> 1 | N87: E | O87: E | P87: =IF(F87&H87="WW",0,IF(F87&H87="0W",2,H87)) -> 1 | S87: -- | U87: -- | W87: =W86 -> AABB/ACAFUMA [C] | X87: CHACAL [A] | Y87: Jose Pires | Z87: =IF(LEFT(Y87,7)="AUSENTE","EQUIPE",IF(IFERROR(VLOOKUP(Y87,'Clubes Participantes'!A:B,1,FALSE),"BOTONISTA")="BOTONISTA","BOTONISTA","EQUIPE")) -> BOTONISTA
B88: 066 | E88: Marcelo Silva | F88: 1 | G88: x | H88: 1 | I88: Thiago Stephan | M88: 1 | N88: E | O88: E | P88: 1 | S88: -- | U88: -- | W88: =W86 -> AABB/ACAFUMA [C] | X88: CHACAL [A] | Y88: GRÊMIO MINEIRO | Z88: =IF(LEFT(Y88,7)="AUSENTE","EQUIPE",IF(IFERROR(VLOOKUP(Y88,'Clubes Participantes'!A:B,1,FALSE),"BOTONISTA")="BOTONISTA","BOTONISTA","EQUIPE")) -> EQUIPE
B89: 067 | E89: Simplicio Santos | F89: 2 | G89: x | H89: 1 | I89: Paulo Mangia | M89: 2 | N89: V | O89: D | P89: 1 | S89: -- | U89: -- | W89: AABB/ACAFUMA [C] | X89: CHACAL [A] | Y89: Fernando Vianna | Z89: =IF(LEFT(Y89,7)="AUSENTE","EQUIPE",IF(IFERROR(VLOOKUP(Y89,'Clubes Participantes'!A:B,1,FALSE),"BOTONISTA")="BOTONISTA","BOTONISTA","EQUIPE")) -> BOTONISTA
B90: 068 | E90: Paulo Airton Junior | F90: 0 | G90: x | H90: 1 | I90: Janilson Pereira | M90: 0 | N90: D | O90: V | P90: 1 | S90: -- | U90: -- | W90: AABB/ACAFUMA [C] | X90: CHACAL [A] | Y90: Gustavo Lopes | Z90: =IF(LEFT(Y90,7)="AUSENTE","EQUIPE",IF(IFERROR(VLOOKUP(Y90,'Clubes Participantes'!A:B,1,FALSE),"BOTONISTA")="BOTONISTA","BOTONISTA","EQUIPE")) -> BOTONISTA
A91: 018 | C91: 2022-04-15 | D91: 02 | E91: VASCO DA GAMA | F91: 0 | G91: x | H91: 2 | I91: TUPI [B] | K91: =IF(N91="V",3,IF(N91="E",1,0)) -> 0 | L91: =F91 -> 0 | M91: =SUM(M92:M95) -> 4 | N91: D | O91: V | P91: =SUM(P92:P95) -> 6 | Q91: =H91 -> 2 | R91: =IF(O91="V",3,IF(O91="E",1,0)) -> 3 | S91: -- | U91: -- | W91: =E91 -> VASCO DA GAMA | X91: =I91 -> TUPI [B] | Y91: Rodrigo Primola | Z91: =IF(LEFT(Y91,7)="AUSENTE","EQUIPE",IF(IFERROR(VLOOKUP(Y91,'Clubes Participantes'!A:B,1,FALSE),"BOTONISTA")="BOTONISTA","BOTONISTA","EQUIPE")) -> BOTONISTA
B92: 069 | E92: Evandro Gomes | F92: 1 | G92: x | H92: 1 | I92: Paulo Ricardo Souza | M92: =IF(F92&H92="WW",0,IF(F92&H92="W0",2,F92)) -> 1 | N92: E | O92: E | P92: =IF(F92&H92="WW",0,IF(F92&H92="0W",2,H92)) -> 1 | S92: -- | U92: -- | W92: =W91 -> VASCO DA GAMA | X92: TUPI [B] | Y92: Vander Felipe | Z92: =IF(LEFT(Y92,7)="AUSENTE","EQUIPE",IF(IFERROR(VLOOKUP(Y92,'Clubes Participantes'!A:B,1,FALSE),"BOTONISTA")="BOTONISTA","BOTONISTA","EQUIPE")) -> BOTONISTA
B93: 070 | E93: Eder Patrocinio | F93: 2 | G93: x | H93: 2 | I93: Flavio Scarpelli | M93: 2 | N93: E | O93: E | P93: 2 | S93: -- | U93: -- | W93: =W91 -> VASCO DA GAMA | X93: TUPI [B] | Y93: MATIAS [B] | Z93: =IF(LEFT(Y93,7)="AUSENTE","EQUIPE",IF(IFERROR(VLOOKUP(Y93,'Clubes Participantes'!A:B,1,FALSE),"BOTONISTA")="BOTONISTA","BOTONISTA","EQUIPE")) -> EQUIPE
B94: 071 | E94: Eduardo Costa | F94: 0 | G94: x | H94: 1 | I94: Luiz Henrique Colla | M94: 0 | N94: D | O94: V | P94: 1 | S94: -- | U94: -- | W94: VASCO DA GAMA | X94: TUPI [B] | Y94: Ailson Brites | Z94: =IF(LEFT(Y94,7)="AUSENTE","EQUIPE",IF(IFERROR(VLOOKUP(Y94,'Clubes Participantes'!A:B,1,FALSE),"BOTONISTA")="BOTONISTA","BOTONISTA","EQUIPE")) -> BOTONISTA
B95: 072 | E95: Fernando Ferreira | F95: 1 | G95: x | H95: 2 | I95: Leandro Benicio | M95: 1 | N95: D | O95: V | P95: 2 | S95: -- | U95: -- | W95: VASCO DA GAMA | X95: TUPI [B] | Y95: Eber Chapinotti | Z95: =IF(LEFT(Y95,7)="AUSENTE","EQUIPE",IF(IFERROR(VLOOKUP(Y95,'Clubes Participantes'!A:B,1,FALSE),"BOTONISTA")="BOTONISTA","BOTONISTA","EQUIPE")) -> BOTONISTA
A96: 019 | C96: 2022-04-15 | D96: 01 | E96: COMARY | F96: 1 | G96: x | H96: 1 | I96: GRÊMIO MINEIRO | K96: =IF(N96="V",3,IF(N96="E",1,0)) -> 1 | L96: =F96 -> 1 | M96: =SUM(M97:M100) -> 4 | N96: E | O96: E | P96: =SUM(P97:P100) -> 4 | Q96: =H96 -> 1 | R96: =IF(O96="V",3,IF(O96="E",1,0)) -> 1 | S96: -- | U96: -- | W96: =E96 -> COMARY | X96: =I96 -> GRÊMIO MINEIRO | Y96: Humberto Ramos | Z96: =IF(LEFT(Y96,7)="AUSENTE","EQUIPE",IF(IFERROR(VLOOKUP(Y96,'Clubes Participantes'!A:B,1,FALSE),"BOTONISTA")="BOTONISTA","BOTONISTA","EQUIPE")) -> BOTONISTA
B97: 073 | E97: Igor Guarilha | F97: 1 | G97: x | H97: 2 | I97: Vander Felipe | M97: =IF(F97&H97="WW",0,IF(F97&H97="W0",2,F97)) -> 1 | N97: D | O97: V | P97: =IF(F97&H97="WW",0,IF(F97&H97="0W",2,H97)) -> 2 | S97: -- | U97: -- | W97: =W96 -> COMARY | X97: GRÊMIO MINEIRO | Y97: Mario Cleber | Z97: =IF(LEFT(Y97,7)="AUSENTE","EQUIPE",IF(IFERROR(VLOOKUP(Y97,'Clubes Participantes'!A:B,1,FALSE),"BOTONISTA")="BOTONISTA","BOTONISTA","EQUIPE")) -> BOTONISTA
B98: 074 | E98: Pablo Sidarta | F98: 1 | G98: x | H98: 1 | I98: Gustavo Lopes | M98: 1 | N98: E | O98: E | P98: 1 | S98: -- | U98: -- | W98: =W96 -> COMARY | X98: GRÊMIO MINEIRO | Y98: Ricardo Sartine | Z98: =IF(LEFT(Y98,7)="AUSENTE","EQUIPE",IF(IFERROR(VLOOKUP(Y98,'Clubes Participantes'!A:B,1,FALSE),"BOTONISTA")="BOTONISTA","BOTONISTA","EQUIPE")) -> BOTONISTA
B99: 075 | E99: Marco Andre Veloso | F99: 1 | G99: x | H99: 0 | I99: Fernando Vianna | M99: 1 | N99: V | O99: D | P99: 0 | S99: -- | U99: -- | W99: COMARY | X99: GRÊMIO MINEIRO | Y99: Romualdo Piccinini | Z99: =IF(LEFT(Y99,7)="AUSENTE","EQUIPE",IF(IFERROR(VLOOKUP(Y99,'Clubes Participantes'!A:B,1,FALSE),"BOTONISTA")="BOTONISTA","BOTONISTA","EQUIPE")) -> BOTONISTA
B100: 076 | E100: Claudio Figueiredo | F100: 1 | G100: x | H100: 1 | I100: Rodrigo Primola | M100: 1 | N100: E | O100: E | P100: 1 | S100: -- | U100: -- | W100: COMARY | X100: GRÊMIO MINEIRO | Y100: CHACAL [B] | Z100: =IF(LEFT(Y100,7)="AUSENTE","EQUIPE",IF(IFERROR(VLOOKUP(Y100,'Clubes Participantes'!A:B,1,FALSE),"BOTONISTA")="BOTONISTA","BOTONISTA","EQUIPE")) -> EQUIPE
A101: 020 | C101: 2022-04-15 | D101: 01 | E101: BOTAFOGO | F101: 2 | G101: x | H101: 2 | I101: AABB/ACAFUMA [A] | K101: =IF(N101="V",3,IF(N101="E",1,0)) -> 1 | L101: =F101 -> 2 | M101: =SUM(M102:M105) -> 5 | N101: E | O101: E | P101: =SUM(P102:P105) -> 4 | Q101: =H101 -> 2 | R101: =IF(O101="V",3,IF(O101="E",1,0)) -> 1 | S101: -- | U101: -- | W101: =E101 -> BOTAFOGO | X101: =I101 -> AABB/ACAFUMA [A] | Y101: Everton Costa | Z101: =IF(LEFT(Y101,7)="AUSENTE","EQUIPE",IF(IFERROR(VLOOKUP(Y101,'Clubes Participantes'!A:B,1,FALSE),"BOTONISTA")="BOTONISTA","BOTONISTA","EQUIPE")) -> BOTONISTA
B102: 077 | E102: Bruno Machado | F102: 0 | G102: x | H102: 1 | I102: Luiz Claudio Caruso | M102: =IF(F102&H102="WW",0,IF(F102&H102="W0",2,F102)) -> 0 | N102: D | O102: V | P102: =IF(F102&H102="WW",0,IF(F102&H102="0W",2,H102)) -> 1 | S102: -- | U102: -- | W102: =W101 -> BOTAFOGO | X102: AABB/ACAFUMA [A] | Y102: Heman Junior | Z102: =IF(LEFT(Y102,7)="AUSENTE","EQUIPE",IF(IFERROR(VLOOKUP(Y102,'Clubes Participantes'!A:B,1,FALSE),"BOTONISTA")="BOTONISTA","BOTONISTA","EQUIPE")) -> BOTONISTA
B103: 078 | E103: Renato Negreiros | F103: 0 | G103: x | H103: 2 | I103: Paulo Caruso | M103: 0 | N103: D | O103: V | P103: 2 | S103: -- | U103: -- | W103: =W101 -> BOTAFOGO | X103: AABB/ACAFUMA [A] | Y103: Jefferson Rosa | Z103: =IF(LEFT(Y103,7)="AUSENTE","EQUIPE",IF(IFERROR(VLOOKUP(Y103,'Clubes Participantes'!A:B,1,FALSE),"BOTONISTA")="BOTONISTA","BOTONISTA","EQUIPE")) -> BOTONISTA
B104: 079 | E104: Altanir Junior | F104: 3 | G104: x | H104: 1 | I104: Antonio Carlos Almeida | M104: 3 | N104: V | O104: D | P104: 1 | S104: -- | U104: -- | W104: BOTAFOGO | X104: AABB/ACAFUMA [A] | Y104: Lucas Luna | Z104: =IF(LEFT(Y104,7)="AUSENTE","EQUIPE",IF(IFERROR(VLOOKUP(Y104,'Clubes Participantes'!A:B,1,FALSE),"BOTONISTA")="BOTONISTA","BOTONISTA","EQUIPE")) -> BOTONISTA
B105: 080 | E105: Diego Americo | F105: 2 | G105: x | H105: 0 | I105: Tarcizio Dinoa Junior | M105: 2 | N105: V | O105: D | P105: 0 | S105: -- | U105: -- | W105: BOTAFOGO | X105: AABB/ACAFUMA [A] | Y105: Pablino Colen | Z105: =IF(LEFT(Y105,7)="AUSENTE","EQUIPE",IF(IFERROR(VLOOKUP(Y105,'Clubes Participantes'!A:B,1,FALSE),"BOTONISTA")="BOTONISTA","BOTONISTA","EQUIPE")) -> BOTONISTA
A106: 021 | C106: 2022-04-15 | D106: 02 | E106: ELDORADO | F106: 0 | G106: x | H106: 3 | I106: LIBERDADE [A] | K106: =IF(N106="V",3,IF(N106="E",1,0)) -> 0 | L106: =F106 -> 0 | M106: =SUM(M107:M110) -> 0 | N106: D | O106: V | P106: =SUM(P107:P110) -> 5 | Q106: =H106 -> 3 | R106: =IF(O106="V",3,IF(O106="E",1,0)) -> 3 | S106: -- | U106: -- | W106: =E106 -> ELDORADO | X106: =I106 -> LIBERDADE [A] | Y106: Rodolfo Magalhaes | Z106: =IF(LEFT(Y106,7)="AUSENTE","EQUIPE",IF(IFERROR(VLOOKUP(Y106,'Clubes Participantes'!A:B,1,FALSE),"BOTONISTA")="BOTONISTA","BOTONISTA","EQUIPE")) -> BOTONISTA
B107: 081 | E107: Bernardo Pires | F107: 0 | G107: x | H107: 1 | I107: Breno Ribeiro | M107: =IF(F107&H107="WW",0,IF(F107&H107="W0",2,F107)) -> 0 | N107: D | O107: V | P107: =IF(F107&H107="WW",0,IF(F107&H107="0W",2,H107)) -> 1 | S107: -- | U107: -- | W107: =W106 -> ELDORADO | X107: LIBERDADE [A] | Y107: Vanderley da Silva | Z107: =IF(LEFT(Y107,7)="AUSENTE","EQUIPE",IF(IFERROR(VLOOKUP(Y107,'Clubes Participantes'!A:B,1,FALSE),"BOTONISTA")="BOTONISTA","BOTONISTA","EQUIPE")) -> BOTONISTA
B108: 082 | E108: Jorge Dias | F108: 0 | G108: x | H108: 3 | I108: Carlos Henrique Garcia | M108: 0 | N108: D | O108: V | P108: 3 | S108: -- | U108: -- | W108: =W106 -> ELDORADO | X108: LIBERDADE [A]
B109: 083 | E109: Jose Pires | F109: 0 | G109: x | H109: 0 | I109: Wendel Cordeiro | M109: 0 | N109: E | O109: E | P109: 0 | S109: -- | U109: -- | W109: ELDORADO | X109: LIBERDADE [A]
B110: 084 | E110: Alex Lage | F110: 0 | G110: x | H110: 1 | I110: Leonardo Duguet | M110: 0 | N110: D | O110: V | P110: 1 | S110: -- | U110: -- | W110: ELDORADO | X110: LIBERDADE [A]
A111: 022 | C111: 2022-04-15 | D111: 02 | E111: CHACAL [B] | F111: 0 | G111: x | H111: 4 | I111: MATIAS [A] | K111: =IF(N111="V",3,IF(N111="E",1,0)) -> 0 | L111: =F111 -> 0 | M111: =SUM(M112:M115) -> 1 | N111: D | O111: V | P111: =SUM(P112:P115) -> 8 | Q111: =H111 -> 4 | R111: =IF(O111="V",3,IF(O111="E",1,0)) -> 3 | S111: -- | U111: -- | W111: =E111 -> CHACAL [B] | X111: =I111 -> MATIAS [A]
B112: 085 | E112: Pablino Colen | F112: 0 | G112: x | H112: 2 | I112: Jose Lessa | M112: =IF(F112&H112="WW",0,IF(F112&H112="W0",2,F112)) -> 0 | N112: D | O112: V | P112: =IF(F112&H112="WW",0,IF(F112&H112="0W",2,H112)) -> 2 | S112: -- | U112: -- | W112: =W111 -> CHACAL [B] | X112: MATIAS [A]
B113: 086 | E113: Lucas Luna | F113: 1 | G113: x | H113: 2 | I113: Leonardo de Oliveira | M113: 1 | N113: D | O113: V | P113: 2 | S113: -- | U113: -- | W113: =W111 -> CHACAL [B] | X113: MATIAS [A]
B114: 087 | E114: Everton Costa | F114: 0 | G114: x | H114: 2 | I114: Marcelo Henrique | M114: 0 | N114: D | O114: V | P114: 2 | S114: -- | U114: -- | W114: CHACAL [B] | X114: MATIAS [A]
B115: 088 | E115: Rodolfo Magalhaes | F115: 0 | G115: x | H115: 2 | I115: Brunno Gill | M115: 0 | N115: D | O115: V | P115: 2 | S115: -- | U115: -- | W115: CHACAL [B] | X115: MATIAS [A]
A116: 023 | C116: 2022-04-15 | D116: 01 | E116: MATIAS [B] | F116: 0 | G116: x | H116: 2 | I116: AABB/ACAFUMA [C] | K116: =IF(N116="V",3,IF(N116="E",1,0)) -> 0 | L116: =F116 -> 0 | M116: =SUM(M117:M120) -> 2 | N116: D | O116: V | P116: =SUM(P117:P120) -> 6 | Q116: =H116 -> 2 | R116: =IF(O116="V",3,IF(O116="E",1,0)) -> 3 | S116: -- | U116: -- | W116: =E116 -> MATIAS [B] | X116: =I116 -> AABB/ACAFUMA [C]
B117: 089 | E117: Romualdo Piccinini | F117: 0 | G117: x | H117: 2 | I117: Andre Brandao | M117: =IF(F117&H117="WW",0,IF(F117&H117="W0",2,F117)) -> 0 | N117: D | O117: V | P117: =IF(F117&H117="WW",0,IF(F117&H117="0W",2,H117)) -> 2 | S117: -- | U117: -- | W117: =W116 -> MATIAS [B] | X117: AABB/ACAFUMA [C]
B118: 090 | E118: Ailson Brites | F118: 1 | G118: x | H118: 1 | I118: Simplicio Santos | M118: 1 | N118: E | O118: E | P118: 1 | S118: -- | U118: -- | W118: =W116 -> MATIAS [B] | X118: AABB/ACAFUMA [C]
B119: 091 | E119: Mario Cleber | F119: 0 | G119: x | H119: 2 | I119: Paulo Airton Junior | M119: 0 | N119: D | O119: V | P119: 2 | S119: -- | U119: -- | W119: MATIAS [B] | X119: AABB/ACAFUMA [C]
B120: 092 | E120: Eber Chapinotti | F120: 1 | G120: x | H120: 1 | I120: Marcelo Silva | M120: 1 | N120: E | O120: E | P120: 1 | S120: -- | U120: -- | W120: MATIAS [B] | X120: AABB/ACAFUMA [C]
A121: 024 | C121: 2022-04-15 | D121: 01 | E121: LIBERDADE [B] | F121: 0 | G121: x | H121: 3 | I121: BOTAFOGO | K121: =IF(N121="V",3,IF(N121="E",1,0)) -> 0 | L121: =F121 -> 0 | M121: =SUM(M122:M125) -> 2 | N121: D | O121: V | P121: =SUM(P122:P125) -> 7 | Q121: =H121 -> 3 | R121: =IF(O121="V",3,IF(O121="E",1,0)) -> 3 | S121: -- | U121: -- | W121: =E121 -> LIBERDADE [B] | X121: =I121 -> BOTAFOGO
B122: 093 | E122: Marcelo Virgilio | F122: 0 | G122: x | H122: 0 | I122: Diego Americo | M122: =IF(F122&H122="WW",0,IF(F122&H122="W0",2,F122)) -> 0 | N122: E | O122: E | P122: =IF(F122&H122="WW",0,IF(F122&H122="0W",2,H122)) -> 0 | S122: -- | U122: -- | W122: =W121 -> LIBERDADE [B] | X122: BOTAFOGO
B123: 094 | E123: Luiz Carlos Guerra | F123: 1 | G123: x | H123: 2 | I123: Sergio Falcometa | M123: 1 | N123: D | O123: V | P123: 2 | S123: -- | U123: -- | W123: =W121 -> LIBERDADE [B] | X123: BOTAFOGO
B124: 095 | E124: Daniel Oliveira | F124: 0 | G124: x | H124: 2 | I124: Marcos Ferreira | M124: 0 | N124: D | O124: V | P124: 2 | S124: -- | U124: -- | W124: LIBERDADE [B] | X124: BOTAFOGO
B125: 096 | E125: Joao Eduardo Pereira | F125: 1 | G125: x | H125: 3 | I125: Altanir Junior | M125: 1 | N125: D | O125: V | P125: 3 | S125: -- | U125: -- | W125: LIBERDADE [B] | X125: BOTAFOGO
A126: 025 | C126: 2022-04-15 | D126: 01 | E126: TUPI [A] | F126: 2 | G126: x | H126: 1 | I126: COMARY | K126: =IF(N126="V",3,IF(N126="E",1,0)) -> 3 | L126: =F126 -> 2 | M126: =SUM(M127:M130) -> 7 | N126: V | O126: D | P126: =SUM(P127:P130) -> 7 | Q126: =H126 -> 1 | R126: =IF(O126="V",3,IF(O126="E",1,0)) -> 0 | S126: -- | U126: -- | W126: =E126 -> TUPI [A] | X126: =I126 -> COMARY
B127: 097 | E127: Leonardo Stumpf | F127: 3 | G127: x | H127: 3 | I127: Marco Andre Veloso | M127: =IF(F127&H127="WW",0,IF(F127&H127="W0",2,F127)) -> 3 | N127: E | O127: E | P127: =IF(F127&H127="WW",0,IF(F127&H127="0W",2,H127)) -> 3 | S127: -- | U127: -- | W127: =W126 -> TUPI [A] | X127: COMARY
B128: 098 | E128: Marcus Monteiro | F128: 2 | G128: x | H128: 1 | I128: Ricardo Machado | M128: 2 | N128: V | O128: D | P128: 1 | S128: -- | U128: -- | W128: =W126 -> TUPI [A] | X128: COMARY
B129: 099 | E129: Paulo Marcos de França | F129: 0 | G129: x | H129: 2 | I129: Pablo Sidarta | M129: 0 | N129: D | O129: V | P129: 2 | S129: -- | U129: -- | W129: TUPI [A] | X129: COMARY
B130: 100 | E130: Carlos Antonio Miranda | F130: 2 | G130: x | H130: 1 | I130: Eduardo Tavares | M130: 2 | N130: V | O130: D | P130: 1 | S130: -- | U130: -- | W130: TUPI [A] | X130: COMARY
A131: 026 | C131: 2022-04-15 | D131: 01 | E131: CHACAL [A] | F131: 2 | G131: x | H131: 0 | I131: MATIAS [B] | K131: =IF(N131="V",3,IF(N131="E",1,0)) -> 3 | L131: =F131 -> 2 | M131: =SUM(M132:M135) -> 6 | N131: V | O131: D | P131: =SUM(P132:P135) -> 2 | Q131: =H131 -> 0 | R131: =IF(O131="V",3,IF(O131="E",1,0)) -> 0 | S131: -- | U131: -- | W131: =E131 -> CHACAL [A] | X131: =I131 -> MATIAS [B]
B132: 101 | E132: Thiago Stephan | F132: 3 | G132: x | H132: 0 | I132: Humberto Ramos | M132: =IF(F132&H132="WW",0,IF(F132&H132="W0",2,F132)) -> 3 | N132: V | O132: D | P132: =IF(F132&H132="WW",0,IF(F132&H132="0W",2,H132)) -> 0 | S132: -- | U132: -- | W132: =W131 -> CHACAL [A] | X132: MATIAS [B]
B133: 102 | E133: Janilson Pereira | F133: 2 | G133: x | H133: 1 | I133: Ailson Brites | M133: 2 | N133: V | O133: D | P133: 1 | S133: -- | U133: -- | W133: =W131 -> CHACAL [A] | X133: MATIAS [B]
B134: 103 | E134: Julio Celio Braga | F134: 1 | G134: x | H134: 1 | I134: Romualdo Piccinini | M134: 1 | N134: E | O134: E | P134: 1 | S134: -- | U134: =IF($X$3="BOTONISTA",(IF($U$3=E134,$U$3,IF($U$3=I134,$U$3,"--"))),IF($X$3="EQUIPE",(IF($U$3=W134,$U$3,IF($U$3=X134,$U$3,"--"))),"--")) -> -- | W134: CHACAL [A] | X134: MATIAS [B]
B135: 104 | E135: Paulo Mangia | F135: 0 | G135: x | H135: 0 | I135: Eber Chapinotti | M135: 0 | N135: E | O135: E | P135: 0 | S135: =IF(LEFT(E135,7)="","AUS"&+IF(B135>0,"IND",""),IF(LEFT(I135,7)="","AUS"&+IF(B135>0,"IND",""),IF(LEFT(E135,7)="Ausente","AUS"&+IF(B135>0,"IND",""),IF(LEFT(I135,7)="Ausente","AUS"&+IF(B135>0,"IND",""),IF(RIGHT(F135,1)="*","NULO"&+IF(B135>0,"IND",""),IF(F135&H135="----","NULO"&+IF(B135>0,"IND",""),IF(F135&H135="W0","W0"&+IF(B135>0,"IND",""),IF(F135&H135="0W","W0"&+IF(B135>0,"IND",""),IF(F135&H135="WW","WW"&+IF(B135>0,"IND",""),"--"))))))))) -> -- | U135: -- | W135: CHACAL [A] | X135: MATIAS [B]
A136: 027 | C136: 2022-04-15 | D136: 01 | E136: GRÊMIO MINEIRO | F136: 1 | G136: x | H136: 3 | I136: TUPI [A] | K136: =IF(N136="V",3,IF(N136="E",1,0)) -> 0 | L136: =F136 -> 1 | M136: =SUM(M137:M140) -> 4 | N136: D | O136: V | P136: =SUM(P137:P140) -> 9 | Q136: =H136 -> 3 | R136: =IF(O136="V",3,IF(O136="E",1,0)) -> 3 | S136: -- | U136: -- | W136: =E136 -> GRÊMIO MINEIRO | X136: =I136 -> TUPI [A]
B137: 105 | E137: Vander Felipe | F137: 2 | G137: x | H137: 1 | I137: Leonardo Stumpf | M137: =IF(F137&H137="WW",0,IF(F137&H137="W0",2,F137)) -> 2 | N137: V | O137: D | P137: =IF(F137&H137="WW",0,IF(F137&H137="0W",2,H137)) -> 1 | S137: -- | U137: -- | W137: =W136 -> GRÊMIO MINEIRO | X137: TUPI [A]
B138: 106 | E138: Gustavo Lopes | F138: 0 | G138: x | H138: 2 | I138: Marcus Monteiro | M138: 0 | N138: D | O138: V | P138: 2 | S138: -- | U138: -- | W138: =W136 -> GRÊMIO MINEIRO | X138: TUPI [A]
B139: 107 | E139: Fernando Vianna | F139: 1 | G139: x | H139: 2 | I139: Carlos Antonio Miranda | M139: 1 | N139: D | O139: V | P139: 2 | S139: -- | U139: -- | W139: GRÊMIO MINEIRO | X139: TUPI [A]
B140: 108 | E140: Rodrigo Primola | F140: 1 | G140: x | H140: 4 | I140: Eduardo Guerra | M140: 1 | N140: =IF(F140&+H140="WW","D",IF(F140>H140,"V",IF(F140=H140,"E","D"))) -> D | O140: =IF(F140&+H140="WW","D",IF(F140<H140,"V",IF(F140=H140,"E","D"))) -> V | P140: 4 | S140: -- | U140: -- | W140: GRÊMIO MINEIRO | X140: TUPI [A]
A141: 028 | C141: 2022-04-15 | D141: 01 | E141: AABB/ACAFUMA [A] | F141: 1 | G141: x | H141: 2 | I141: LIBERDADE [B] | K141: =IF(N141="V",3,IF(N141="E",1,0)) -> 0 | L141: =F141 -> 1 | M141: =SUM(M142:M145) -> 4 | N141: D | O141: V | P141: =SUM(P142:P145) -> 5 | Q141: =H141 -> 2 | R141: =IF(O141="V",3,IF(O141="E",1,0)) -> 3 | S141: -- | U141: -- | W141: =E141 -> AABB/ACAFUMA [A] | X141: =I141 -> LIBERDADE [B]
B142: 109 | E142: Luiz Claudio Caruso | F142: 2 | G142: x | H142: 1 | I142: Rafael Pena | M142: =IF(F142&H142="WW",0,IF(F142&H142="W0",2,F142)) -> 2 | N142: V | O142: D | P142: =IF(F142&H142="WW",0,IF(F142&H142="0W",2,H142)) -> 1 | S142: -- | U142: -- | W142: =W141 -> AABB/ACAFUMA [A] | X142: LIBERDADE [B]
B143: 110 | E143: Paulo Caruso | F143: 0 | G143: x | H143: 1 | I143: Marcelo Virgilio | M143: 0 | N143: D | O143: V | P143: 1 | S143: -- | U143: -- | W143: =W141 -> AABB/ACAFUMA [A] | X143: LIBERDADE [B]
B144: 111 | E144: Antonio Carlos Almeida | F144: 1 | G144: x | H144: 2 | I144: Luiz Carlos Guerra | M144: 1 | N144: D | O144: V | P144: 2 | S144: -- | U144: -- | W144: AABB/ACAFUMA [A] | X144: LIBERDADE [B]
B145: 112 | E145: Tarcizio Dinoa Junior | F145: 1 | G145: x | H145: 1 | I145: Joao Eduardo Pereira | M145: 1 | N145: E | O145: E | P145: 1 | S145: -- | U145: -- | W145: AABB/ACAFUMA [A] | X145: LIBERDADE [B]
A146: 029 | C146: 2022-04-15 | D146: 02 | E146: MATIAS [A] | F146: 1 | G146: x | H146: 3 | I146: VASCO DA GAMA | K146: =IF(N146="V",3,IF(N146="E",1,0)) -> 0 | L146: =F146 -> 1 | M146: =SUM(M147:M150) -> 2 | N146: D | O146: V | P146: =SUM(P147:P150) -> 7 | Q146: =H146 -> 3 | R146: =IF(O146="V",3,IF(O146="E",1,0)) -> 3 | S146: -- | U146: -- | W146: =E146 -> MATIAS [A] | X146: =I146 -> VASCO DA GAMA
B147: 113 | E147: Brunno Gill | F147: 1 | G147: x | H147: 2 | I147: Eder Patrocinio | M147: =IF(F147&H147="WW",0,IF(F147&H147="W0",2,F147)) -> 1 | N147: D | O147: V | P147: =IF(F147&H147="WW",0,IF(F147&H147="0W",2,H147)) -> 2 | S147: -- | U147: -- | W147: =W146 -> MATIAS [A] | X147: VASCO DA GAMA
B148: 114 | E148: Leonardo de Oliveira | F148: 1 | G148: x | H148: 0 | I148: Valmir Silva | M148: 1 | N148: V | O148: D | P148: 0 | S148: -- | U148: -- | W148: =W146 -> MATIAS [A] | X148: VASCO DA GAMA
B149: 115 | E149: Marcelo Henrique | F149: 0 | G149: x | H149: 2 | I149: Fernando Ferreira | M149: 0 | N149: D | O149: V | P149: 2 | S149: -- | U149: -- | W149: MATIAS [A] | X149: VASCO DA GAMA
B150: 116 | E150: Jose Lessa | F150: 0 | G150: x | H150: 3 | I150: Marcelo Lima | M150: 0 | N150: D | O150: V | P150: 3 | S150: -- | U150: -- | W150: MATIAS [A] | X150: VASCO DA GAMA
A151: 030 | C151: 2022-04-15 | D151: 02 | E151: TUPI [B] | F151: 0 | G151: x | H151: 1 | I151: AABB/ACAFUMA [B] | K151: =IF(N151="V",3,IF(N151="E",1,0)) -> 0 | L151: =F151 -> 0 | M151: =SUM(M152:M155) -> 1 | N151: D | O151: V | P151: =SUM(P152:P155) -> 3 | Q151: =H151 -> 1 | R151: =IF(O151="V",3,IF(O151="E",1,0)) -> 3 | S151: -- | U151: -- | W151: =E151 -> TUPI [B] | X151: =I151 -> AABB/ACAFUMA [B]
B152: 117 | E152: Luiz Henrique Colla | F152: 1 | G152: x | H152: 1 | I152: Alcides Figueira | M152: =IF(F152&H152="WW",0,IF(F152&H152="W0",2,F152)) -> 1 | N152: E | O152: E | P152: =IF(F152&H152="WW",0,IF(F152&H152="0W",2,H152)) -> 1 | S152: -- | U152: -- | W152: =W151 -> TUPI [B] | X152: AABB/ACAFUMA [B]
B153: 118 | E153: Flavio Scarpelli | F153: 0 | G153: x | H153: 2 | I153: Adolpho Parente | M153: 0 | N153: D | O153: V | P153: 2 | S153: -- | U153: -- | W153: =W151 -> TUPI [B] | X153: AABB/ACAFUMA [B]
B154: 119 | E154: Leandro Benicio | F154: 0 | G154: x | H154: 0 | I154: Rodrigo Caruso | M154: 0 | N154: E | O154: E | P154: 0 | S154: -- | U154: -- | W154: TUPI [B] | X154: AABB/ACAFUMA [B]
B155: 120 | E155: Paulo Ricardo Souza | F155: 0 | G155: x | H155: 0 | I155: Marcelo Ferreira | M155: 0 | N155: E | O155: E | P155: 0 | S155: -- | U155: -- | W155: TUPI [B] | X155: AABB/ACAFUMA [B]
A156: 031 | C156: 2022-04-16 | D156: 01 | E156: BOTAFOGO | F156: 3 | G156: x | H156: 1 | I156: AABB/ACAFUMA [C] | K156: =IF(N156="V",3,IF(N156="E",1,0)) -> 3 | L156: =F156 -> 3 | M156: =SUM(M157:M160) -> 6 | N156: V | O156: D | P156: =SUM(P157:P160) -> 1 | Q156: =H156 -> 1 | R156: =IF(O156="V",3,IF(O156="E",1,0)) -> 0 | S156: -- | U156: -- | W156: =E156 -> BOTAFOGO | X156: =I156 -> AABB/ACAFUMA [C]
B157: 121 | E157: Sergio Falcometa | F157: 1 | G157: x | H157: 0 | I157: Simplicio Santos | M157: =IF(F157&H157="WW",0,IF(F157&H157="W0",2,F157)) -> 1 | N157: V | O157: D | P157: =IF(F157&H157="WW",0,IF(F157&H157="0W",2,H157)) -> 0 | S157: -- | U157: -- | W157: =W156 -> BOTAFOGO | X157: AABB/ACAFUMA [C]
B158: 122 | E158: Altanir Junior | F158: 3 | G158: x | H158: 0 | I158: Andre Brandao | M158: 3 | N158: V | O158: D | P158: 0 | S158: -- | U158: -- | W158: =W156 -> BOTAFOGO | X158: AABB/ACAFUMA [C]
B159: 123 | E159: Diego Americo | F159: 2 | G159: x | H159: 0 | I159: Marcelo Silva | M159: 2 | N159: V | O159: D | P159: 0 | S159: -- | U159: -- | W159: BOTAFOGO | X159: AABB/ACAFUMA [C]
B160: 124 | E160: Renato Negreiros | F160: 0 | G160: x | H160: 1 | I160: Paulo Airton Junior | M160: 0 | N160: D | O160: V | P160: 1 | S160: -- | U160: -- | W160: BOTAFOGO | X160: AABB/ACAFUMA [C]
A161: 032 | C161: 2022-04-16 | D161: 02 | E161: TUPI [B] | F161: 3 | G161: x | H161: 0 | I161: CHACAL [B] | K161: =IF(N161="V",3,IF(N161="E",1,0)) -> 3 | L161: =F161 -> 3 | M161: =SUM(M162:M165) -> 7 | N161: V | O161: D | P161: =SUM(P162:P165) -> 0 | Q161: =H161 -> 0 | R161: =IF(O161="V",3,IF(O161="E",1,0)) -> 0 | S161: -- | U161: -- | W161: =E161 -> TUPI [B] | X161: =I161 -> CHACAL [B]
B162: 125 | E162: Paulo Ricardo Souza | F162: 3 | G162: x | H162: 0 | I162: Vanderley da Silva | M162: =IF(F162&H162="WW",0,IF(F162&H162="W0",2,F162)) -> 3 | N162: V | O162: D | P162: =IF(F162&H162="WW",0,IF(F162&H162="0W",2,H162)) -> 0 | S162: -- | U162: -- | W162: =W161 -> TUPI [B] | X162: CHACAL [B]
B163: 126 | E163: Luiz Henrique Colla | F163: 3 | G163: x | H163: 0 | I163: Everton Costa | M163: 3 | N163: V | O163: D | P163: 0 | S163: -- | U163: -- | W163: =W161 -> TUPI [B] | X163: CHACAL [B]
B164: 127 | E164: Flavio Scarpelli | F164: 0 | G164: x | H164: 0 | I164: Rodolfo Magalhaes | M164: 0 | N164: E | O164: E | P164: 0 | S164: -- | U164: -- | W164: TUPI [B] | X164: CHACAL [B]
B165: 128 | E165: Leandro Benicio | F165: 1 | G165: x | H165: 0 | I165: Lucas Luna | M165: 1 | N165: V | O165: D | P165: 0 | S165: -- | U165: -- | W165: TUPI [B] | X165: CHACAL [B]
A166: 033 | C166: 2022-04-16 | D166: 02 | E166: MATIAS [A] | F166: 3 | G166: x | H166: 1 | I166: ELDORADO | K166: =IF(N166="V",3,IF(N166="E",1,0)) -> 3 | L166: =F166 -> 3 | M166: =SUM(M167:M170) -> 5 | N166: V | O166: D | P166: =SUM(P167:P170) -> 1 | Q166: =H166 -> 1 | R166: =IF(O166="V",3,IF(O166="E",1,0)) -> 0 | S166: -- | U166: -- | W166: =E166 -> MATIAS [A] | X166: =I166 -> ELDORADO
B167: 129 | E167: Leonardo de Oliveira | F167: 0 | G167: x | H167: 1 | I167: Alex Lage | M167: =IF(F167&H167="WW",0,IF(F167&H167="W0",2,F167)) -> 0 | N167: D | O167: V | P167: =IF(F167&H167="WW",0,IF(F167&H167="0W",2,H167)) -> 1 | S167: -- | U167: -- | W167: =W166 -> MATIAS [A] | X167: ELDORADO
B168: 130 | E168: Brunno Gill | F168: 1 | G168: x | H168: 0 | I168: Bernardo Pires | M168: 1 | N168: V | O168: D | P168: 0 | S168: -- | U168: -- | W168: =W166 -> MATIAS [A] | X168: ELDORADO
B169: 131 | E169: Marcelo Henrique | F169: 3 | G169: x | H169: 0 | I169: Jose Pires | M169: 3 | N169: V | O169: D | P169: 0 | S169: -- | U169: -- | W169: MATIAS [A] | X169: ELDORADO
B170: 132 | E170: Jose Lessa | F170: 1 | G170: x | H170: 0 | I170: Jorge Dias | M170: 1 | N170: V | O170: D | P170: 0 | S170: -- | U170: -- | W170: MATIAS [A] | X170: ELDORADO
A171: 034 | C171: 2022-04-16 | D171: 01 | E171: MATIAS [B] | F171: 0 | G171: x | H171: 4 | I171: TUPI [A] | K171: =IF(N171="V",3,IF(N171="E",1,0)) -> 0 | L171: =F171 -> 0 | M171: =SUM(M172:M175) -> 1 | N171: D | O171: V | P171: =SUM(P172:P175) -> 8 | Q171: =H171 -> 4 | R171: =IF(O171="V",3,IF(O171="E",1,0)) -> 3 | S171: -- | U171: -- | W171: =E171 -> MATIAS [B] | X171: =I171 -> TUPI [A]
B172: 133 | E172: Ailson Brites | F172: 1 | G172: x | H172: 2 | I172: Eduardo Guerra | M172: =IF(F172&H172="WW",0,IF(F172&H172="W0",2,F172)) -> 1 | N172: D | O172: V | P172: =IF(F172&H172="WW",0,IF(F172&H172="0W",2,H172)) -> 2 | S172: -- | U172: -- | W172: =W171 -> MATIAS [B] | X172: TUPI [A]
B173: 134 | E173: Mario Cleber | F173: 0 | G173: x | H173: 3 | I173: Leonardo Stumpf | M173: 0 | N173: D | O173: V | P173: 3 | S173: -- | U173: -- | W173: =W171 -> MATIAS [B] | X173: TUPI [A]
B174: 135 | E174: Eber Chapinotti | F174: 0 | G174: x | H174: 2 | I174: Marcus Monteiro | M174: 0 | N174: D | O174: V | P174: 2 | S174: -- | U174: -- | W174: MATIAS [B] | X174: TUPI [A]
B175: 136 | E175: Romualdo Piccinini | F175: 0 | G175: x | H175: 1 | I175: Paulo Marcos de França | M175: 0 | N175: D | O175: V | P175: 1 | S175: -- | U175: -- | W175: MATIAS [B] | X175: TUPI [A]
A176: 035 | C176: 2022-04-16 | D176: 01 | E176: GRÊMIO MINEIRO | F176: 0 | G176: x | H176: 3 | I176: AABB/ACAFUMA [A] | K176: =IF(N176="V",3,IF(N176="E",1,0)) -> 0 | L176: =F176 -> 0 | M176: =SUM(M177:M180) -> 2 | N176: D | O176: V | P176: =SUM(P177:P180) -> 9 | Q176: =H176 -> 3 | R176: =IF(O176="V",3,IF(O176="E",1,0)) -> 3 | S176: -- | U176: -- | W176: =E176 -> GRÊMIO MINEIRO | X176: =I176 -> AABB/ACAFUMA [A]
B177: 137 | E177: Vander Felipe | F177: 1 | G177: x | H177: 4 | I177: Luiz Claudio Caruso | M177: =IF(F177&H177="WW",0,IF(F177&H177="W0",2,F177)) -> 1 | N177: D | O177: V | P177: =IF(F177&H177="WW",0,IF(F177&H177="0W",2,H177)) -> 4 | S177: -- | U177: -- | W177: =W176 -> GRÊMIO MINEIRO | X177: AABB/ACAFUMA [A]
B178: 138 | E178: Gustavo Lopes | F178: 0 | G178: x | H178: 0 | I178: Paulo Caruso | M178: 0 | N178: E | O178: E | P178: 0 | S178: -- | U178: -- | W178: =W176 -> GRÊMIO MINEIRO | X178: AABB/ACAFUMA [A]
B179: 139 | E179: Fernando Vianna | F179: 1 | G179: x | H179: 3 | I179: Antonio Carlos Almeida | M179: 1 | N179: D | O179: V | P179: 3 | S179: -- | U179: -- | W179: GRÊMIO MINEIRO | X179: AABB/ACAFUMA [A]
B180: 140 | E180: Rodrigo Primola | F180: 0 | G180: x | H180: 2 | I180: Tarcizio Dinoa Junior | M180: 0 | N180: D | O180: V | P180: 2 | S180: -- | U180: -- | W180: GRÊMIO MINEIRO | X180: AABB/ACAFUMA [A]
A181: 036 | C181: 2022-04-16 | D181: 02 | E181: TUPI [B] | F181: 3 | G181: x | H181: 1 | I181: MATIAS [A] | K181: =IF(N181="V",3,IF(N181="E",1,0)) -> 3 | L181: =F181 -> 3 | M181: =SUM(M182:M185) -> 7 | N181: V | O181: D | P181: =SUM(P182:P185) -> 4 | Q181: =H181 -> 1 | R181: =IF(O181="V",3,IF(O181="E",1,0)) -> 0 | S181: -- | U181: -- | W181: =E181 -> TUPI [B] | X181: =I181 -> MATIAS [A]
B182: 141 | E182: Luiz Henrique Colla | F182: 1 | G182: x | H182: 0 | I182: Brunno Gill | M182: =IF(F182&H182="WW",0,IF(F182&H182="W0",2,F182)) -> 1 | N182: V | O182: D | P182: =IF(F182&H182="WW",0,IF(F182&H182="0W",2,H182)) -> 0 | S182: -- | U182: -- | W182: =W181 -> TUPI [B] | X182: MATIAS [A]
B183: 142 | E183: Leandro Benicio | F183: 2 | G183: x | H183: 3 | I183: Jose Lessa | M183: 2 | N183: D | O183: V | P183: 3 | S183: -- | U183: -- | W183: =W181 -> TUPI [B] | X183: MATIAS [A]
B184: 143 | E184: Flavio Scarpelli | F184: 1 | G184: x | H184: 0 | I184: Marcelo Henrique | M184: 1 | N184: V | O184: D | P184: 0 | S184: -- | U184: -- | W184: TUPI [B] | X184: MATIAS [A]
B185: 144 | E185: Paulo Ricardo Souza | F185: 3 | G185: x | H185: 1 | I185: Leonardo de Oliveira | M185: 3 | N185: V | O185: D | P185: 1 | S185: -- | U185: -- | W185: TUPI [B] | X185: MATIAS [A]
A186: 037 | C186: 2022-04-16 | D186: 01 | E186: COMARY | F186: 2 | G186: x | H186: 0 | I186: BOTAFOGO | K186: =IF(N186="V",3,IF(N186="E",1,0)) -> 3 | L186: =F186 -> 2 | M186: =SUM(M187:M190) -> 5 | N186: V | O186: D | P186: =SUM(P187:P190) -> 2 | Q186: =H186 -> 0 | R186: =IF(O186="V",3,IF(O186="E",1,0)) -> 0 | S186: -- | U186: -- | W186: =E186 -> COMARY | X186: =I186 -> BOTAFOGO
B187: 145 | E187: Eduardo Tavares | F187: 2 | G187: x | H187: 0 | I187: Sergio Falcometa | M187: =IF(F187&H187="WW",0,IF(F187&H187="W0",2,F187)) -> 2 | N187: V | O187: D | P187: =IF(F187&H187="WW",0,IF(F187&H187="0W",2,H187)) -> 0 | S187: -- | U187: -- | W187: =W186 -> COMARY | X187: BOTAFOGO
B188: 146 | E188: Marco Andre Veloso | F188: 2 | G188: x | H188: 1 | I188: Altanir Junior | M188: 2 | N188: V | O188: D | P188: 1 | S188: -- | U188: -- | W188: =W186 -> COMARY | X188: BOTAFOGO
B189: 147 | E189: Igor Guarilha | F189: 0 | G189: x | H189: 0 | I189: Diego Americo | M189: 0 | N189: E | O189: E | P189: 0 | S189: -- | U189: -- | W189: COMARY | X189: BOTAFOGO
B190: 148 | E190: Pablo Sidarta | F190: 1 | G190: x | H190: 1 | I190: Renato Negreiros | M190: 1 | N190: E | O190: E | P190: 1 | S190: -- | U190: -- | W190: COMARY | X190: BOTAFOGO
A191: 038 | C191: 2022-04-16 | D191: 01 | E191: LIBERDADE [B] | F191: 3 | G191: x | H191: 1 | I191: MATIAS [B] | K191: =IF(N191="V",3,IF(N191="E",1,0)) -> 3 | L191: =F191 -> 3 | M191: =SUM(M192:M195) -> 6 | N191: V | O191: D | P191: =SUM(P192:P195) -> 2 | Q191: =H191 -> 1 | R191: =IF(O191="V",3,IF(O191="E",1,0)) -> 0 | S191: -- | U191: -- | W191: =E191 -> LIBERDADE [B] | X191: =I191 -> MATIAS [B]
B192: 149 | E192: Marcelo Virgilio | F192: 1 | G192: x | H192: 2 | I192: Eber Chapinotti | M192: =IF(F192&H192="WW",0,IF(F192&H192="W0",2,F192)) -> 1 | N192: D | O192: V | P192: =IF(F192&H192="WW",0,IF(F192&H192="0W",2,H192)) -> 2 | S192: -- | U192: -- | W192: =W191 -> LIBERDADE [B] | X192: MATIAS [B]
B193: 150 | E193: Luiz Carlos Guerra | F193: 2 | G193: x | H193: 0 | I193: Ricardo Sartine | M193: 2 | N193: V | O193: D | P193: 0 | S193: -- | U193: -- | W193: =W191 -> LIBERDADE [B] | X193: MATIAS [B]
B194: 151 | E194: Joao Eduardo Pereira | F194: 1 | G194: x | H194: 0 | I194: Ailson Brites | M194: 1 | N194: V | O194: D | P194: 0 | S194: -- | U194: -- | W194: LIBERDADE [B] | X194: MATIAS [B]
B195: 152 | E195: Rafael Pena | F195: 2 | G195: x | H195: 0 | I195: Romualdo Piccinini | M195: 2 | N195: V | O195: D | P195: 0 | S195: -- | U195: -- | W195: LIBERDADE [B] | X195: MATIAS [B]
A196: 039 | C196: 2022-04-16 | D196: 01 | E196: CHACAL [A] | F196: 1 | G196: x | H196: 2 | I196: GRÊMIO MINEIRO | K196: =IF(N196="V",3,IF(N196="E",1,0)) -> 0 | L196: =F196 -> 1 | M196: =SUM(M197:M200) -> 5 | N196: D | O196: V | P196: =SUM(P197:P200) -> 5 | Q196: =H196 -> 2 | R196: =IF(O196="V",3,IF(O196="E",1,0)) -> 3 | S196: -- | U196: -- | W196: =E196 -> CHACAL [A] | X196: =I196 -> GRÊMIO MINEIRO
B197: 153 | E197: Thiago Stephan | F197: 4 | G197: x | H197: 1 | I197: Rodrigo Primola | M197: =IF(F197&H197="WW",0,IF(F197&H197="W0",2,F197)) -> 4 | N197: V | O197: D | P197: =IF(F197&H197="WW",0,IF(F197&H197="0W",2,H197)) -> 1 | S197: -- | U197: -- | W197: =W196 -> CHACAL [A] | X197: GRÊMIO MINEIRO
B198: 154 | E198: Janilson Pereira | F198: 1 | G198: x | H198: 3 | I198: Vander Felipe | M198: 1 | N198: D | O198: V | P198: 3 | S198: -- | U198: -- | W198: =W196 -> CHACAL [A] | X198: GRÊMIO MINEIRO
B199: 155 | E199: Julio Celio Braga | F199: 0 | G199: x | H199: 1 | I199: Gustavo Lopes | M199: 0 | N199: D | O199: V | P199: 1 | S199: -- | U199: -- | W199: CHACAL [A] | X199: GRÊMIO MINEIRO
B200: 156 | E200: Paulo Mangia | F200: 0 | G200: x | H200: 0 | I200: Fernando Vianna | M200: 0 | N200: E | O200: E | P200: 0 | S200: -- | U200: -- | W200: CHACAL [A] | X200: GRÊMIO MINEIRO
A201: 040 | C201: 2022-04-16 | D201: 02 | E201: LIBERDADE [A] | F201: 2 | G201: x | H201: 0 | I201: UNIÃO INDEPENDENTE/UBERABA | K201: =IF(N201="V",3,IF(N201="E",1,0)) -> 3 | L201: =F201 -> 2 | M201: =SUM(M202:M205) -> 6 | N201: V | O201: D | P201: =SUM(P202:P205) -> 3 | Q201: =H201 -> 0 | R201: =IF(O201="V",3,IF(O201="E",1,0)) -> 0 | S201: -- | U201: -- | W201: =E201 -> LIBERDADE [A] | X201: =I201 -> UNIÃO INDEPENDENTE/UBERABA
... 199 more rows

Sheet ClaFIN
A1: =Info!A1 -> XL CAMPEONATO BRASILEIRO INTERCLUBES / 2022
A2: =Info!A2 -> Matias Barbosa / MG, 15 a 17 de abril de 2022
A4: CLASSIFICAÇÃO FINAL | D4: PG | E4: V | F4: E | G4: D | H4: GP | I4: GC | J4: SG | K4: GPI | L4: GCI | M4: SGI | N4: J | O4: REND
A5: TAÇA DE OURO | B5: 1º | C5: LIBERDADE [A] | D5: =SUMIFS(ClaOUR!D:D,ClaOUR!$C:$C,$C5)+SUMIFS(ClaPRA!D:D,ClaPRA!$C:$C,$C5) -> 28 | E5: =SUMIFS(ClaOUR!E:E,ClaOUR!$C:$C,$C5)+SUMIFS(ClaPRA!E:E,ClaPRA!$C:$C,$C5) -> 9 | F5: =SUMIFS(ClaOUR!F:F,ClaOUR!$C:$C,$C5)+SUMIFS(ClaPRA!F:F,ClaPRA!$C:$C,$C5) -> 1 | G5: =SUMIFS(ClaOUR!G:G,ClaOUR!$C:$C,$C5)+SUMIFS(ClaPRA!G:G,ClaPRA!$C:$C,$C5) -> 0 | H5: =SUMIFS(ClaOUR!H:H,ClaOUR!$C:$C,$C5)+SUMIFS(ClaPRA!H:H,ClaPRA!$C:$C,$C5) -> 25 | I5: =SUMIFS(ClaOUR!I:I,ClaOUR!$C:$C,$C5)+SUMIFS(ClaPRA!I:I,ClaPRA!$C:$C,$C5) -> 6 | J5: =SUMIFS(ClaOUR!J:J,ClaOUR!$C:$C,$C5)+SUMIFS(ClaPRA!J:J,ClaPRA!$C:$C,$C5) -> 19 | K5: =SUMIFS(ClaOUR!K:K,ClaOUR!$C:$C,$C5)+SUMIFS(ClaPRA!K:K,ClaPRA!$C:$C,$C5) -> 62 | L5: =SUMIFS(ClaOUR!L:L,ClaOUR!$C:$C,$C5)+SUMIFS(ClaPRA!L:L,ClaPRA!$C:$C,$C5) -> 28 | M5: =SUMIFS(ClaOUR!M:M,ClaOUR!$C:$C,$C5)+SUMIFS(ClaPRA!M:M,ClaPRA!$C:$C,$C5) -> 34 | N5: =SUM(E5:G5) -> 10 | O5: =D5/(N5*3) -> 93.3%
C6: Breno Ribeiro | D6: =IF(N6=0,-0.001,E6*3+F6) -> 20 | E6: =COUNTIFS(Jogos!$E:$E,$C6,Jogos!$N:$N,"V")+COUNTIFS(Jogos!$I:$I,$C6,Jogos!$O:$O,"V") -> 6 | F6: =COUNTIFS(Jogos!$E:$E,$C6,Jogos!$N:$N,"E")+COUNTIFS(Jogos!$I:$I,$C6,Jogos!$O:$O,"E") -> 2 | G6: =COUNTIFS(Jogos!$E:$E,$C6,Jogos!$N:$N,"D")+COUNTIFS(Jogos!$I:$I,$C6,Jogos!$O:$O,"D") -> 2 | H6: =SUMIFS(Jogos!$F:$F,Jogos!$E:$E,$C6)+SUMIFS(Jogos!$H:$H,Jogos!$I:$I,$C6) -> 13 | I6: =SUMIFS(Jogos!$H:$H,Jogos!$E:$E,$C6)+SUMIFS(Jogos!$F:$F,Jogos!$I:$I,$C6)+COUNTIFS(Jogos!$S:$S,"WWIND",Jogos!$E:$E,$C6)*2+COUNTIFS(Jogos!$S:$S,"WWIND",Jogos!$I:$I,$C6)*2 -> 7 | J6: =H6-I6 -> 6 | N6: 10 | O6: =IF(N6=0,-0.00001,D6/(N6*3)) -> 66.7%
C7: Carlos Henrique Garcia | D7: =IF(N7=0,-0.001,E7*3+F7) -> 20 | E7: =COUNTIFS(Jogos!$E:$E,$C7,Jogos!$N:$N,"V")+COUNTIFS(Jogos!$I:$I,$C7,Jogos!$O:$O,"V") -> 6 | F7: =COUNTIFS(Jogos!$E:$E,$C7,Jogos!$N:$N,"E")+COUNTIFS(Jogos!$I:$I,$C7,Jogos!$O:$O,"E") -> 2 | G7: =COUNTIFS(Jogos!$E:$E,$C7,Jogos!$N:$N,"D")+COUNTIFS(Jogos!$I:$I,$C7,Jogos!$O:$O,"D") -> 2 | H7: =SUMIFS(Jogos!$F:$F,Jogos!$E:$E,$C7)+SUMIFS(Jogos!$H:$H,Jogos!$I:$I,$C7) -> 19 | I7: =SUMIFS(Jogos!$H:$H,Jogos!$E:$E,$C7)+SUMIFS(Jogos!$F:$F,Jogos!$I:$I,$C7)+COUNTIFS(Jogos!$S:$S,"WWIND",Jogos!$E:$E,$C7)*2+COUNTIFS(Jogos!$S:$S,"WWIND",Jogos!$I:$I,$C7)*2 -> 7 | J7: =H7-I7 -> 12 | N7: 10 | O7: =IF(N7=0,-0.00001,D7/(N7*3)) -> 66.7%
C8: Leonardo Duguet | D8: =IF(N8=0,-0.001,E8*3+F8) -> 19 | E8: =COUNTIFS(Jogos!$E:$E,$C8,Jogos!$N:$N,"V")+COUNTIFS(Jogos!$I:$I,$C8,Jogos!$O:$O,"V") -> 6 | F8: =COUNTIFS(Jogos!$E:$E,$C8,Jogos!$N:$N,"E")+COUNTIFS(Jogos!$I:$I,$C8,Jogos!$O:$O,"E") -> 1 | G8: =COUNTIFS(Jogos!$E:$E,$C8,Jogos!$N:$N,"D")+COUNTIFS(Jogos!$I:$I,$C8,Jogos!$O:$O,"D") -> 1 | H8: =SUMIFS(Jogos!$F:$F,Jogos!$E:$E,$C8)+SUMIFS(Jogos!$H:$H,Jogos!$I:$I,$C8) -> 10 | I8: =SUMIFS(Jogos!$H:$H,Jogos!$E:$E,$C8)+SUMIFS(Jogos!$F:$F,Jogos!$I:$I,$C8)+COUNTIFS(Jogos!$S:$S,"WWIND",Jogos!$E:$E,$C8)*2+COUNTIFS(Jogos!$S:$S,"WWIND",Jogos!$I:$I,$C8)*2 -> 5 | J8: =H8-I8 -> 5 | N8: 8 | O8: =IF(N8=0,-0.00001,D8/(N8*3)) -> 79.2%
C9: Lorival Ribeiro | D9: =IF(N9=0,-0.001,E9*3+F9) -> 23 | E9: =COUNTIFS(Jogos!$E:$E,$C9,Jogos!$N:$N,"V")+COUNTIFS(Jogos!$I:$I,$C9,Jogos!$O:$O,"V") -> 7 | F9: =COUNTIFS(Jogos!$E:$E,$C9,Jogos!$N:$N,"E")+COUNTIFS(Jogos!$I:$I,$C9,Jogos!$O:$O,"E") -> 2 | G9: =COUNTIFS(Jogos!$E:$E,$C9,Jogos!$N:$N,"D")+COUNTIFS(Jogos!$I:$I,$C9,Jogos!$O:$O,"D") -> 0 | H9: =SUMIFS(Jogos!$F:$F,Jogos!$E:$E,$C9)+SUMIFS(Jogos!$H:$H,Jogos!$I:$I,$C9) -> 19 | I9: =SUMIFS(Jogos!$H:$H,Jogos!$E:$E,$C9)+SUMIFS(Jogos!$F:$F,Jogos!$I:$I,$C9)+COUNTIFS(Jogos!$S:$S,"WWIND",Jogos!$E:$E,$C9)*2+COUNTIFS(Jogos!$S:$S,"WWIND",Jogos!$I:$I,$C9)*2 -> 6 | J9: =H9-I9 -> 13 | N9: 9 | O9: =IF(N9=0,-0.00001,D9/(N9*3)) -> 85.2%
C10: Wendel Cordeiro | D10: =IF(N10=0,-0.001,E10*3+F10) -> 2 | E10: =COUNTIFS(Jogos!$E:$E,$C10,Jogos!$N:$N,"V")+COUNTIFS(Jogos!$I:$I,$C10,Jogos!$O:$O,"V") -> 0 | F10: =COUNTIFS(Jogos!$E:$E,$C10,Jogos!$N:$N,"E")+COUNTIFS(Jogos!$I:$I,$C10,Jogos!$O:$O,"E") -> 2 | G10: =COUNTIFS(Jogos!$E:$E,$C10,Jogos!$N:$N,"D")+COUNTIFS(Jogos!$I:$I,$C10,Jogos!$O:$O,"D") -> 1 | H10: =SUMIFS(Jogos!$F:$F,Jogos!$E:$E,$C10)+SUMIFS(Jogos!$H:$H,Jogos!$I:$I,$C10) -> 1 | I10: =SUMIFS(Jogos!$H:$H,Jogos!$E:$E,$C10)+SUMIFS(Jogos!$F:$F,Jogos!$I:$I,$C10)+COUNTIFS(Jogos!$S:$S,"WWIND",Jogos!$E:$E,$C10)*2+COUNTIFS(Jogos!$S:$S,"WWIND",Jogos!$I:$I,$C10)*2 -> 3 | J10: =H10-I10 -> -2 | N10: 3 | O10: =IF(N10=0,-0.00001,D10/(N10*3)) -> 22.2%
B11: 2º | C11: TUPI [A] | D11: =SUMIFS(ClaOUR!D:D,ClaOUR!$C:$C,$C11)+SUMIFS(ClaPRA!D:D,ClaPRA!$C:$C,$C11) -> 30 | E11: =SUMIFS(ClaOUR!E:E,ClaOUR!$C:$C,$C11)+SUMIFS(ClaPRA!E:E,ClaPRA!$C:$C,$C11) -> 10 | F11: =SUMIFS(ClaOUR!F:F,ClaOUR!$C:$C,$C11)+SUMIFS(ClaPRA!F:F,ClaPRA!$C:$C,$C11) -> 0 | G11: =SUMIFS(ClaOUR!G:G,ClaOUR!$C:$C,$C11)+SUMIFS(ClaPRA!G:G,ClaPRA!$C:$C,$C11) -> 1 | H11: =SUMIFS(ClaOUR!H:H,ClaOUR!$C:$C,$C11)+SUMIFS(ClaPRA!H:H,ClaPRA!$C:$C,$C11) -> 27 | I11: =SUMIFS(ClaOUR!I:I,ClaOUR!$C:$C,$C11)+SUMIFS(ClaPRA!I:I,ClaPRA!$C:$C,$C11) -> 5 | J11: =SUMIFS(ClaOUR!J:J,ClaOUR!$C:$C,$C11)+SUMIFS(ClaPRA!J:J,ClaPRA!$C:$C,$C11) -> 22 | K11: =SUMIFS(ClaOUR!K:K,ClaOUR!$C:$C,$C11)+SUMIFS(ClaPRA!K:K,ClaPRA!$C:$C,$C11) -> 72 | L11: =SUMIFS(ClaOUR!L:L,ClaOUR!$C:$C,$C11)+SUMIFS(ClaPRA!L:L,ClaPRA!$C:$C,$C11) -> 31 | M11: =SUMIFS(ClaOUR!M:M,ClaOUR!$C:$C,$C11)+SUMIFS(ClaPRA!M:M,ClaPRA!$C:$C,$C11) -> 41 | N11: =SUM(E11:G11) -> 11 | O11: =D11/(N11*3) -> 90.9%
C12: Carlos Antonio Miranda | D12: =IF(N12=0,-0.001,E12*3+F12) -> 20 | E12: =COUNTIFS(Jogos!$E:$E,$C12,Jogos!$N:$N,"V")+COUNTIFS(Jogos!$I:$I,$C12,Jogos!$O:$O,"V") -> 6 | F12: =COUNTIFS(Jogos!$E:$E,$C12,Jogos!$N:$N,"E")+COUNTIFS(Jogos!$I:$I,$C12,Jogos!$O:$O,"E") -> 2 | G12: =COUNTIFS(Jogos!$E:$E,$C12,Jogos!$N:$N,"D")+COUNTIFS(Jogos!$I:$I,$C12,Jogos!$O:$O,"D") -> 1 | H12: =SUMIFS(Jogos!$F:$F,Jogos!$E:$E,$C12)+SUMIFS(Jogos!$H:$H,Jogos!$I:$I,$C12) -> 14 | I12: =SUMIFS(Jogos!$H:$H,Jogos!$E:$E,$C12)+SUMIFS(Jogos!$F:$F,Jogos!$I:$I,$C12)+COUNTIFS(Jogos!$S:$S,"WWIND",Jogos!$E:$E,$C12)*2+COUNTIFS(Jogos!$S:$S,"WWIND",Jogos!$I:$I,$C12)*2 -> 7 | J12: =H12-I12 -> 7 | N12: 9 | O12: =IF(N12=0,-0.00001,D12/(N12*3)) -> 74.1%
C13: Eduardo Guerra | D13: =IF(N13=0,-0.001,E13*3+F13) -> 10 | E13: =COUNTIFS(Jogos!$E:$E,$C13,Jogos!$N:$N,"V")+COUNTIFS(Jogos!$I:$I,$C13,Jogos!$O:$O,"V") -> 3 | F13: =COUNTIFS(Jogos!$E:$E,$C13,Jogos!$N:$N,"E")+COUNTIFS(Jogos!$I:$I,$C13,Jogos!$O:$O,"E") -> 1 | G13: =COUNTIFS(Jogos!$E:$E,$C13,Jogos!$N:$N,"D")+COUNTIFS(Jogos!$I:$I,$C13,Jogos!$O:$O,"D") -> 0 | H13: =SUMIFS(Jogos!$F:$F,Jogos!$E:$E,$C13)+SUMIFS(Jogos!$H:$H,Jogos!$I:$I,$C13) -> 9 | I13: =SUMIFS(Jogos!$H:$H,Jogos!$E:$E,$C13)+SUMIFS(Jogos!$F:$F,Jogos!$I:$I,$C13)+COUNTIFS(Jogos!$S:$S,"WWIND",Jogos!$E:$E,$C13)*2+COUNTIFS(Jogos!$S:$S,"WWIND",Jogos!$I:$I,$C13)*2 -> 3 | J13: =H13-I13 -> 6 | N13: 4 | O13: =IF(N13=0,-0.00001,D13/(N13*3)) -> 83.3%
C14: Leonardo Stumpf | D14: =IF(N14=0,-0.001,E14*3+F14) -> 23 | E14: =COUNTIFS(Jogos!$E:$E,$C14,Jogos!$N:$N,"V")+COUNTIFS(Jogos!$I:$I,$C14,Jogos!$O:$O,"V") -> 7 | F14: =COUNTIFS(Jogos!$E:$E,$C14,Jogos!$N:$N,"E")+COUNTIFS(Jogos!$I:$I,$C14,Jogos!$O:$O,"E") -> 2 | G14: =COUNTIFS(Jogos!$E:$E,$C14,Jogos!$N:$N,"D")+COUNTIFS(Jogos!$I:$I,$C14,Jogos!$O:$O,"D") -> 2 | H14: =SUMIFS(Jogos!$F:$F,Jogos!$E:$E,$C14)+SUMIFS(Jogos!$H:$H,Jogos!$I:$I,$C14) -> 23 | I14: =SUMIFS(Jogos!$H:$H,Jogos!$E:$E,$C14)+SUMIFS(Jogos!$F:$F,Jogos!$I:$I,$C14)+COUNTIFS(Jogos!$S:$S,"WWIND",Jogos!$E:$E,$C14)*2+COUNTIFS(Jogos!$S:$S,"WWIND",Jogos!$I:$I,$C14)*2 -> 9 | J14: =H14-I14 -> 14 | N14: =SUM(E14:G14) -> 11 | O14: =IF(N14=0,-0.00001,D14/(N14*3)) -> 69.7%
C15: Marcus Monteiro | D15: 22 | E15: =COUNTIFS(Jogos!$E:$E,$C15,Jogos!$N:$N,"V")+COUNTIFS(Jogos!$I:$I,$C15,Jogos!$O:$O,"V") -> 6 | F15: =COUNTIFS(Jogos!$E:$E,$C15,Jogos!$N:$N,"E")+COUNTIFS(Jogos!$I:$I,$C15,Jogos!$O:$O,"E") -> 4 | G15: =COUNTIFS(Jogos!$E:$E,$C15,Jogos!$N:$N,"D")+COUNTIFS(Jogos!$I:$I,$C15,Jogos!$O:$O,"D") -> 1 | H15: =SUMIFS(Jogos!$F:$F,Jogos!$E:$E,$C15)+SUMIFS(Jogos!$H:$H,Jogos!$I:$I,$C15) -> 17 | I15: =SUMIFS(Jogos!$H:$H,Jogos!$E:$E,$C15)+SUMIFS(Jogos!$F:$F,Jogos!$I:$I,$C15)+COUNTIFS(Jogos!$S:$S,"WWIND",Jogos!$E:$E,$C15)*2+COUNTIFS(Jogos!$S:$S,"WWIND",Jogos!$I:$I,$C15)*2 -> 9 | J15: 8 | N15: 11 | O15: 66.7%
C16: Paulo Marcos de França | D16: 18 | E16: =COUNTIFS(Jogos!$E:$E,$C16,Jogos!$N:$N,"V")+COUNTIFS(Jogos!$I:$I,$C16,Jogos!$O:$O,"V") -> 5 | F16: =COUNTIFS(Jogos!$E:$E,$C16,Jogos!$N:$N,"E")+COUNTIFS(Jogos!$I:$I,$C16,Jogos!$O:$O,"E") -> 3 | G16: =COUNTIFS(Jogos!$E:$E,$C16,Jogos!$N:$N,"D")+COUNTIFS(Jogos!$I:$I,$C16,Jogos!$O:$O,"D") -> 1 | H16: =SUMIFS(Jogos!$F:$F,Jogos!$E:$E,$C16)+SUMIFS(Jogos!$H:$H,Jogos!$I:$I,$C16) -> 9 | I16: =SUMIFS(Jogos!$H:$H,Jogos!$E:$E,$C16)+SUMIFS(Jogos!$F:$F,Jogos!$I:$I,$C16)+COUNTIFS(Jogos!$S:$S,"WWIND",Jogos!$E:$E,$C16)*2+COUNTIFS(Jogos!$S:$S,"WWIND",Jogos!$I:$I,$C16)*2 -> 3 | J16: 6 | N16: 9 | O16: 66.7%
B17: 3º | C17: MATIAS [A] | D17: =SUMIFS(ClaOUR!D:D,ClaOUR!$C:$C,$C17)+SUMIFS(ClaPRA!D:D,ClaPRA!$C:$C,$C17) -> 16 | E17: =SUMIFS(ClaOUR!E:E,ClaOUR!$C:$C,$C17)+SUMIFS(ClaPRA!E:E,ClaPRA!$C:$C,$C17) -> 5 | F17: =SUMIFS(ClaOUR!F:F,ClaOUR!$C:$C,$C17)+SUMIFS(ClaPRA!F:F,ClaPRA!$C:$C,$C17) -> 1 | G17: =SUMIFS(ClaOUR!G:G,ClaOUR!$C:$C,$C17)+SUMIFS(ClaPRA!G:G,ClaPRA!$C:$C,$C17) -> 3 | H17: =SUMIFS(ClaOUR!H:H,ClaOUR!$C:$C,$C17)+SUMIFS(ClaPRA!H:H,ClaPRA!$C:$C,$C17) -> 18 | I17: =SUMIFS(ClaOUR!I:I,ClaOUR!$C:$C,$C17)+SUMIFS(ClaPRA!I:I,ClaPRA!$C:$C,$C17) -> 15 | J17: =SUMIFS(ClaOUR!J:J,ClaOUR!$C:$C,$C17)+SUMIFS(ClaPRA!J:J,ClaPRA!$C:$C,$C17) -> 3 | K17: =SUMIFS(ClaOUR!K:K,ClaOUR!$C:$C,$C17)+SUMIFS(ClaPRA!K:K,ClaPRA!$C:$C,$C17) -> 39 | L17: =SUMIFS(ClaOUR!L:L,ClaOUR!$C:$C,$C17)+SUMIFS(ClaPRA!L:L,ClaPRA!$C:$C,$C17) -> 31 | M17: =SUMIFS(ClaOUR!M:M,ClaOUR!$C:$C,$C17)+SUMIFS(ClaPRA!M:M,ClaPRA!$C:$C,$C17) -> 8 | N17: =SUM(E17:G17) -> 9 | O17: =D17/(N17*3) -> 59.3%
C18: Brunno Gill | D18: =IF(N18=0,-0.001,E18*3+F18) -> 18 | E18: =COUNTIFS(Jogos!$E:$E,$C18,Jogos!$N:$N,"V")+COUNTIFS(Jogos!$I:$I,$C18,Jogos!$O:$O,"V") -> 6 | F18: =COUNTIFS(Jogos!$E:$E,$C18,Jogos!$N:$N,"E")+COUNTIFS(Jogos!$I:$I,$C18,Jogos!$O:$O,"E") -> 0 | G18: =COUNTIFS(Jogos!$E:$E,$C18,Jogos!$N:$N,"D")+COUNTIFS(Jogos!$I:$I,$C18,Jogos!$O:$O,"D") -> 3 | H18: =SUMIFS(Jogos!$F:$F,Jogos!$E:$E,$C18)+SUMIFS(Jogos!$H:$H,Jogos!$I:$I,$C18) -> 12 | I18: =SUMIFS(Jogos!$H:$H,Jogos!$E:$E,$C18)+SUMIFS(Jogos!$F:$F,Jogos!$I:$I,$C18)+COUNTIFS(Jogos!$S:$S,"WWIND",Jogos!$E:$E,$C18)*2+COUNTIFS(Jogos!$S:$S,"WWIND",Jogos!$I:$I,$C18)*2 -> 6 | J18: =H18-I18 -> 6 | N18: =SUM(E18:G18) -> 9 | O18: =IF(N18=0,-0.00001,D18/(N18*3)) -> 66.7%
C19: Jose Lessa | D19: =IF(N19=0,-0.001,E19*3+F19) -> 19 | E19: =COUNTIFS(Jogos!$E:$E,$C19,Jogos!$N:$N,"V")+COUNTIFS(Jogos!$I:$I,$C19,Jogos!$O:$O,"V") -> 6 | F19: =COUNTIFS(Jogos!$E:$E,$C19,Jogos!$N:$N,"E")+COUNTIFS(Jogos!$I:$I,$C19,Jogos!$O:$O,"E") -> 1 | G19: =COUNTIFS(Jogos!$E:$E,$C19,Jogos!$N:$N,"D")+COUNTIFS(Jogos!$I:$I,$C19,Jogos!$O:$O,"D") -> 2 | H19: =SUMIFS(Jogos!$F:$F,Jogos!$E:$E,$C19)+SUMIFS(Jogos!$H:$H,Jogos!$I:$I,$C19) -> 12 | I19: =SUMIFS(Jogos!$H:$H,Jogos!$E:$E,$C19)+SUMIFS(Jogos!$F:$F,Jogos!$I:$I,$C19)+COUNTIFS(Jogos!$S:$S,"WWIND",Jogos!$E:$E,$C19)*2+COUNTIFS(Jogos!$S:$S,"WWIND",Jogos!$I:$I,$C19)*2 -> 7 | J19: =H19-I19 -> 5 | N19: =SUM(E19:G19) -> 9 | O19: =IF(N19=0,-0.00001,D19/(N19*3)) -> 70.4%
C20: Leonardo de Oliveira | D20: =IF(N20=0,-0.001,E20*3+F20) -> 12 | E20: =COUNTIFS(Jogos!$E:$E,$C20,Jogos!$N:$N,"V")+COUNTIFS(Jogos!$I:$I,$C20,Jogos!$O:$O,"V") -> 4 | F20: =COUNTIFS(Jogos!$E:$E,$C20,Jogos!$N:$N,"E")+COUNTIFS(Jogos!$I:$I,$C20,Jogos!$O:$O,"E") -> 0 | G20: =COUNTIFS(Jogos!$E:$E,$C20,Jogos!$N:$N,"D")+COUNTIFS(Jogos!$I:$I,$C20,Jogos!$O:$O,"D") -> 5 | H20: =SUMIFS(Jogos!$F:$F,Jogos!$E:$E,$C20)+SUMIFS(Jogos!$H:$H,Jogos!$I:$I,$C20) -> 10 | I20: =SUMIFS(Jogos!$H:$H,Jogos!$E:$E,$C20)+SUMIFS(Jogos!$F:$F,Jogos!$I:$I,$C20)+COUNTIFS(Jogos!$S:$S,"WWIND",Jogos!$E:$E,$C20)*2+COUNTIFS(Jogos!$S:$S,"WWIND",Jogos!$I:$I,$C20)*2 -> 11 | J20: =H20-I20 -> -1 | N20: =SUM(E20:G20) -> 9 | O20: =IF(N20=0,-0.00001,D20/(N20*3)) -> 44.4%
C21: Marcelo Henrique | D21: =IF(N21=0,-0.001,E21*3+F21) -> 8 | E21: =COUNTIFS(Jogos!$E:$E,$C21,Jogos!$N:$N,"V")+COUNTIFS(Jogos!$I:$I,$C21,Jogos!$O:$O,"V") -> 2 | F21: =COUNTIFS(Jogos!$E:$E,$C21,Jogos!$N:$N,"E")+COUNTIFS(Jogos!$I:$I,$C21,Jogos!$O:$O,"E") -> 2 | G21: =COUNTIFS(Jogos!$E:$E,$C21,Jogos!$N:$N,"D")+COUNTIFS(Jogos!$I:$I,$C21,Jogos!$O:$O,"D") -> 5 | H21: =SUMIFS(Jogos!$F:$F,Jogos!$E:$E,$C21)+SUMIFS(Jogos!$H:$H,Jogos!$I:$I,$C21) -> 5 | I21: =SUMIFS(Jogos!$H:$H,Jogos!$E:$E,$C21)+SUMIFS(Jogos!$F:$F,Jogos!$I:$I,$C21)+COUNTIFS(Jogos!$S:$S,"WWIND",Jogos!$E:$E,$C21)*2+COUNTIFS(Jogos!$S:$S,"WWIND",Jogos!$I:$I,$C21)*2 -> 7 | J21: =H21-I21 -> -2 | N21: =SUM(E21:G21) -> 9 | O21: =IF(N21=0,-0.00001,D21/(N21*3)) -> 29.6%
B22: 4º | C22: UNIÃO INDEPENDENTE/UBERABA | D22: =SUMIFS(ClaOUR!D:D,ClaOUR!$C:$C,$C22)+SUMIFS(ClaPRA!D:D,ClaPRA!$C:$C,$C22) -> 14 | E22: =SUMIFS(ClaOUR!E:E,ClaOUR!$C:$C,$C22)+SUMIFS(ClaPRA!E:E,ClaPRA!$C:$C,$C22) -> 4 | F22: =SUMIFS(ClaOUR!F:F,ClaOUR!$C:$C,$C22)+SUMIFS(ClaPRA!F:F,ClaPRA!$C:$C,$C22) -> 2 | G22: =SUMIFS(ClaOUR!G:G,ClaOUR!$C:$C,$C22)+SUMIFS(ClaPRA!G:G,ClaPRA!$C:$C,$C22) -> 3 | H22: =SUMIFS(ClaOUR!H:H,ClaOUR!$C:$C,$C22)+SUMIFS(ClaPRA!H:H,ClaPRA!$C:$C,$C22) -> 15 | I22: =SUMIFS(ClaOUR!I:I,ClaOUR!$C:$C,$C22)+SUMIFS(ClaPRA!I:I,ClaPRA!$C:$C,$C22) -> 10 | J22: =SUMIFS(ClaOUR!J:J,ClaOUR!$C:$C,$C22)+SUMIFS(ClaPRA!J:J,ClaPRA!$C:$C,$C22) -> 5 | K22: =SUMIFS(ClaOUR!K:K,ClaOUR!$C:$C,$C22)+SUMIFS(ClaPRA!K:K,ClaPRA!$C:$C,$C22) -> 40 | L22: =SUMIFS(ClaOUR!L:L,ClaOUR!$C:$C,$C22)+SUMIFS(ClaPRA!L:L,ClaPRA!$C:$C,$C22) -> 30 | M22: =SUMIFS(ClaOUR!M:M,ClaOUR!$C:$C,$C22)+SUMIFS(ClaPRA!M:M,ClaPRA!$C:$C,$C22) -> 10 | N22: 9 | O22: =D22/(N22*3) -> 51.9%
C23: Constancio Moura | D23: 14 | E23: =COUNTIFS(Jogos!$E:$E,$C23,Jogos!$N:$N,"V")+COUNTIFS(Jogos!$I:$I,$C23,Jogos!$O:$O,"V") -> 4 | F23: =COUNTIFS(Jogos!$E:$E,$C23,Jogos!$N:$N,"E")+COUNTIFS(Jogos!$I:$I,$C23,Jogos!$O:$O,"E") -> 2 | G23: =COUNTIFS(Jogos!$E:$E,$C23,Jogos!$N:$N,"D")+COUNTIFS(Jogos!$I:$I,$C23,Jogos!$O:$O,"D") -> 3 | H23: =SUMIFS(Jogos!$F:$F,Jogos!$E:$E,$C23)+SUMIFS(Jogos!$H:$H,Jogos!$I:$I,$C23) -> 12 | I23: =SUMIFS(Jogos!$H:$H,Jogos!$E:$E,$C23)+SUMIFS(Jogos!$F:$F,Jogos!$I:$I,$C23)+COUNTIFS(Jogos!$S:$S,"WWIND",Jogos!$E:$E,$C23)*2+COUNTIFS(Jogos!$S:$S,"WWIND",Jogos!$I:$I,$C23)*2 -> 10 | J23: 2 | N23: 9 | O23: 51.9%
C24: Emerson Claudino | D24: 15 | E24: =COUNTIFS(Jogos!$E:$E,$C24,Jogos!$N:$N,"V")+COUNTIFS(Jogos!$I:$I,$C24,Jogos!$O:$O,"V") -> 4 | F24: =COUNTIFS(Jogos!$E:$E,$C24,Jogos!$N:$N,"E")+COUNTIFS(Jogos!$I:$I,$C24,Jogos!$O:$O,"E") -> 3 | G24: =COUNTIFS(Jogos!$E:$E,$C24,Jogos!$N:$N,"D")+COUNTIFS(Jogos!$I:$I,$C24,Jogos!$O:$O,"D") -> 2 | H24: =SUMIFS(Jogos!$F:$F,Jogos!$E:$E,$C24)+SUMIFS(Jogos!$H:$H,Jogos!$I:$I,$C24) -> 9 | I24: =SUMIFS(Jogos!$H:$H,Jogos!$E:$E,$C24)+SUMIFS(Jogos!$F:$F,Jogos!$I:$I,$C24)+COUNTIFS(Jogos!$S:$S,"WWIND",Jogos!$E:$E,$C24)*2+COUNTIFS(Jogos!$S:$S,"WWIND",Jogos!$I:$I,$C24)*2 -> 4 | J24: 5 | N24: 9 | O24: 55.6%
C25: Juliano Gomes | D25: 14 | E25: =COUNTIFS(Jogos!$E:$E,$C25,Jogos!$N:$N,"V")+COUNTIFS(Jogos!$I:$I,$C25,Jogos!$O:$O,"V") -> 4 | F25: =COUNTIFS(Jogos!$E:$E,$C25,Jogos!$N:$N,"E")+COUNTIFS(Jogos!$I:$I,$C25,Jogos!$O:$O,"E") -> 2 | G25: =COUNTIFS(Jogos!$E:$E,$C25,Jogos!$N:$N,"D")+COUNTIFS(Jogos!$I:$I,$C25,Jogos!$O:$O,"D") -> 3 | H25: =SUMIFS(Jogos!$F:$F,Jogos!$E:$E,$C25)+SUMIFS(Jogos!$H:$H,Jogos!$I:$I,$C25) -> 12 | I25: =SUMIFS(Jogos!$H:$H,Jogos!$E:$E,$C25)+SUMIFS(Jogos!$F:$F,Jogos!$I:$I,$C25)+COUNTIFS(Jogos!$S:$S,"WWIND",Jogos!$E:$E,$C25)*2+COUNTIFS(Jogos!$S:$S,"WWIND",Jogos!$I:$I,$C25)*2 -> 11 | J25: 1 | N25: 9 | O25: 51.9%
C26: Luiz Humberto | D26: 13 | E26: =COUNTIFS(Jogos!$E:$E,$C26,Jogos!$N:$N,"V")+COUNTIFS(Jogos!$I:$I,$C26,Jogos!$O:$O,"V") -> 3 | F26: =COUNTIFS(Jogos!$E:$E,$C26,Jogos!$N:$N,"E")+COUNTIFS(Jogos!$I:$I,$C26,Jogos!$O:$O,"E") -> 4 | G26: =COUNTIFS(Jogos!$E:$E,$C26,Jogos!$N:$N,"D")+COUNTIFS(Jogos!$I:$I,$C26,Jogos!$O:$O,"D") -> 2 | H26: =SUMIFS(Jogos!$F:$F,Jogos!$E:$E,$C26)+SUMIFS(Jogos!$H:$H,Jogos!$I:$I,$C26) -> 7 | I26: =SUMIFS(Jogos!$H:$H,Jogos!$E:$E,$C26)+SUMIFS(Jogos!$F:$F,Jogos!$I:$I,$C26)+COUNTIFS(Jogos!$S:$S,"WWIND",Jogos!$E:$E,$C26)*2+COUNTIFS(Jogos!$S:$S,"WWIND",Jogos!$I:$I,$C26)*2 -> 5 | J26: 2 | N26: 9 | O26: 48.1%
B27: 5º | C27: BOTAFOGO | D27: =SUMIFS(ClaOUR!D:D,ClaOUR!$C:$C,$C27)+SUMIFS(ClaPRA!D:D,ClaPRA!$C:$C,$C27) -> 16 | E27: =SUMIFS(ClaOUR!E:E,ClaOUR!$C:$C,$C27)+SUMIFS(ClaPRA!E:E,ClaPRA!$C:$C,$C27) -> 5 | F27: =SUMIFS(ClaOUR!F:F,ClaOUR!$C:$C,$C27)+SUMIFS(ClaPRA!F:F,ClaPRA!$C:$C,$C27) -> 1 | G27: =SUMIFS(ClaOUR!G:G,ClaOUR!$C:$C,$C27)+SUMIFS(ClaPRA!G:G,ClaPRA!$C:$C,$C27) -> 3 | H27: =SUMIFS(ClaOUR!H:H,ClaOUR!$C:$C,$C27)+SUMIFS(ClaPRA!H:H,ClaPRA!$C:$C,$C27) -> 18 | I27: =SUMIFS(ClaOUR!I:I,ClaOUR!$C:$C,$C27)+SUMIFS(ClaPRA!I:I,ClaPRA!$C:$C,$C27) -> 9 | J27: =SUMIFS(ClaOUR!J:J,ClaOUR!$C:$C,$C27)+SUMIFS(ClaPRA!J:J,ClaPRA!$C:$C,$C27) -> 9 | K27: =SUMIFS(ClaOUR!K:K,ClaOUR!$C:$C,$C27)+SUMIFS(ClaPRA!K:K,ClaPRA!$C:$C,$C27) -> 44 | L27: =SUMIFS(ClaOUR!L:L,ClaOUR!$C:$C,$C27)+SUMIFS(ClaPRA!L:L,ClaPRA!$C:$C,$C27) -> 29 | M27: =SUMIFS(ClaOUR!M:M,ClaOUR!$C:$C,$C27)+SUMIFS(ClaPRA!M:M,ClaPRA!$C:$C,$C27) -> 15 | N27: 9 | O27: =D27/(N27*3) -> 59.3%
C28: Altanir Junior | D28: 16 | E28: =COUNTIFS(Jogos!$E:$E,$C28,Jogos!$N:$N,"V")+COUNTIFS(Jogos!$I:$I,$C28,Jogos!$O:$O,"V") -> 5 | F28: =COUNTIFS(Jogos!$E:$E,$C28,Jogos!$N:$N,"E")+COUNTIFS(Jogos!$I:$I,$C28,Jogos!$O:$O,"E") -> 1 | G28: =COUNTIFS(Jogos!$E:$E,$C28,Jogos!$N:$N,"D")+COUNTIFS(Jogos!$I:$I,$C28,Jogos!$O:$O,"D") -> 3 | H28: =SUMIFS(Jogos!$F:$F,Jogos!$E:$E,$C28)+SUMIFS(Jogos!$H:$H,Jogos!$I:$I,$C28) -> 15 | I28: =SUMIFS(Jogos!$H:$H,Jogos!$E:$E,$C28)+SUMIFS(Jogos!$F:$F,Jogos!$I:$I,$C28)+COUNTIFS(Jogos!$S:$S,"WWIND",Jogos!$E:$E,$C28)*2+COUNTIFS(Jogos!$S:$S,"WWIND",Jogos!$I:$I,$C28)*2 -> 9 | J28: 6 | N28: 9 | O28: 59.3%
C29: Bruno Machado | D29: 0 | E29: =COUNTIFS(Jogos!$E:$E,$C29,Jogos!$N:$N,"V")+COUNTIFS(Jogos!$I:$I,$C29,Jogos!$O:$O,"V") -> 0 | F29: =COUNTIFS(Jogos!$E:$E,$C29,Jogos!$N:$N,"E")+COUNTIFS(Jogos!$I:$I,$C29,Jogos!$O:$O,"E") -> 0 | G29: =COUNTIFS(Jogos!$E:$E,$C29,Jogos!$N:$N,"D")+COUNTIFS(Jogos!$I:$I,$C29,Jogos!$O:$O,"D") -> 1 | H29: =SUMIFS(Jogos!$F:$F,Jogos!$E:$E,$C29)+SUMIFS(Jogos!$H:$H,Jogos!$I:$I,$C29) -> 0 | I29: =SUMIFS(Jogos!$H:$H,Jogos!$E:$E,$C29)+SUMIFS(Jogos!$F:$F,Jogos!$I:$I,$C29)+COUNTIFS(Jogos!$S:$S,"WWIND",Jogos!$E:$E,$C29)*2+COUNTIFS(Jogos!$S:$S,"WWIND",Jogos!$I:$I,$C29)*2 -> 1 | J29: -1 | N29: 1 | O29: 0.0%
C30: Diego Americo | D30: 17 | E30: =COUNTIFS(Jogos!$E:$E,$C30,Jogos!$N:$N,"V")+COUNTIFS(Jogos!$I:$I,$C30,Jogos!$O:$O,"V") -> 4 | F30: =COUNTIFS(Jogos!$E:$E,$C30,Jogos!$N:$N,"E")+COUNTIFS(Jogos!$I:$I,$C30,Jogos!$O:$O,"E") -> 5 | G30: =COUNTIFS(Jogos!$E:$E,$C30,Jogos!$N:$N,"D")+COUNTIFS(Jogos!$I:$I,$C30,Jogos!$O:$O,"D") -> 0 | H30: =SUMIFS(Jogos!$F:$F,Jogos!$E:$E,$C30)+SUMIFS(Jogos!$H:$H,Jogos!$I:$I,$C30) -> 10 | I30: =SUMIFS(Jogos!$H:$H,Jogos!$E:$E,$C30)+SUMIFS(Jogos!$F:$F,Jogos!$I:$I,$C30)+COUNTIFS(Jogos!$S:$S,"WWIND",Jogos!$E:$E,$C30)*2+COUNTIFS(Jogos!$S:$S,"WWIND",Jogos!$I:$I,$C30)*2 -> 3 | J30: 7 | N30: 9 | O30: 63.0%
C31: Marcos Ferreira | D31: 3 | E31: =COUNTIFS(Jogos!$E:$E,$C31,Jogos!$N:$N,"V")+COUNTIFS(Jogos!$I:$I,$C31,Jogos!$O:$O,"V") -> 1 | F31: =COUNTIFS(Jogos!$E:$E,$C31,Jogos!$N:$N,"E")+COUNTIFS(Jogos!$I:$I,$C31,Jogos!$O:$O,"E") -> 0 | G31: =COUNTIFS(Jogos!$E:$E,$C31,Jogos!$N:$N,"D")+COUNTIFS(Jogos!$I:$I,$C31,Jogos!$O:$O,"D") -> 0 | H31: =SUMIFS(Jogos!$F:$F,Jogos!$E:$E,$C31)+SUMIFS(Jogos!$H:$H,Jogos!$I:$I,$C31) -> 2 | I31: =SUMIFS(Jogos!$H:$H,Jogos!$E:$E,$C31)+SUMIFS(Jogos!$F:$F,Jogos!$I:$I,$C31)+COUNTIFS(Jogos!$S:$S,"WWIND",Jogos!$E:$E,$C31)*2+COUNTIFS(Jogos!$S:$S,"WWIND",Jogos!$I:$I,$C31)*2 -> 0 | J31: 2 | N31: 1 | O31: 100.0%
C32: Renato Negreiros | D32: 9 | E32: =COUNTIFS(Jogos!$E:$E,$C32,Jogos!$N:$N,"V")+COUNTIFS(Jogos!$I:$I,$C32,Jogos!$O:$O,"V") -> 2 | F32: =COUNTIFS(Jogos!$E:$E,$C32,Jogos!$N:$N,"E")+COUNTIFS(Jogos!$I:$I,$C32,Jogos!$O:$O,"E") -> 3 | G32: =COUNTIFS(Jogos!$E:$E,$C32,Jogos!$N:$N,"D")+COUNTIFS(Jogos!$I:$I,$C32,Jogos!$O:$O,"D") -> 3 | H32: =SUMIFS(Jogos!$F:$F,Jogos!$E:$E,$C32)+SUMIFS(Jogos!$H:$H,Jogos!$I:$I,$C32) -> 7 | I32: =SUMIFS(Jogos!$H:$H,Jogos!$E:$E,$C32)+SUMIFS(Jogos!$F:$F,Jogos!$I:$I,$C32)+COUNTIFS(Jogos!$S:$S,"WWIND",Jogos!$E:$E,$C32)*2+COUNTIFS(Jogos!$S:$S,"WWIND",Jogos!$I:$I,$C32)*2 -> 9 | J32: -2 | N32: 8 | O32: 37.5%
C33: Sergio Falcometa | D33: 18 | E33: =COUNTIFS(Jogos!$E:$E,$C33,Jogos!$N:$N,"V")+COUNTIFS(Jogos!$I:$I,$C33,Jogos!$O:$O,"V") -> 6 | F33: =COUNTIFS(Jogos!$E:$E,$C33,Jogos!$N:$N,"E")+COUNTIFS(Jogos!$I:$I,$C33,Jogos!$O:$O,"E") -> 0 | G33: =COUNTIFS(Jogos!$E:$E,$C33,Jogos!$N:$N,"D")+COUNTIFS(Jogos!$I:$I,$C33,Jogos!$O:$O,"D") -> 2 | H33: =SUMIFS(Jogos!$F:$F,Jogos!$E:$E,$C33)+SUMIFS(Jogos!$H:$H,Jogos!$I:$I,$C33) -> 10 | I33: =SUMIFS(Jogos!$H:$H,Jogos!$E:$E,$C33)+SUMIFS(Jogos!$F:$F,Jogos!$I:$I,$C33)+COUNTIFS(Jogos!$S:$S,"WWIND",Jogos!$E:$E,$C33)*2+COUNTIFS(Jogos!$S:$S,"WWIND",Jogos!$I:$I,$C33)*2 -> 7 | J33: 3 | N33: 8 | O33: 75.0%
B34: 6º | C34: LIBERDADE [B] | D34: =SUMIFS(ClaOUR!D:D,ClaOUR!$C:$C,$C34)+SUMIFS(ClaPRA!D:D,ClaPRA!$C:$C,$C34) -> 16 | E34: =SUMIFS(ClaOUR!E:E,ClaOUR!$C:$C,$C34)+SUMIFS(ClaPRA!E:E,ClaPRA!$C:$C,$C34) -> 5 | F34: =SUMIFS(ClaOUR!F:F,ClaOUR!$C:$C,$C34)+SUMIFS(ClaPRA!F:F,ClaPRA!$C:$C,$C34) -> 1 | G34: =SUMIFS(ClaOUR!G:G,ClaOUR!$C:$C,$C34)+SUMIFS(ClaPRA!G:G,ClaPRA!$C:$C,$C34) -> 3 | H34: =SUMIFS(ClaOUR!H:H,ClaOUR!$C:$C,$C34)+SUMIFS(ClaPRA!H:H,ClaPRA!$C:$C,$C34) -> 14 | I34: =SUMIFS(ClaOUR!I:I,ClaOUR!$C:$C,$C34)+SUMIFS(ClaPRA!I:I,ClaPRA!$C:$C,$C34) -> 12 | J34: =SUMIFS(ClaOUR!J:J,ClaOUR!$C:$C,$C34)+SUMIFS(ClaPRA!J:J,ClaPRA!$C:$C,$C34) -> 2 | K34: =SUMIFS(ClaOUR!K:K,ClaOUR!$C:$C,$C34)+SUMIFS(ClaPRA!K:K,ClaPRA!$C:$C,$C34) -> 36 | L34: =SUMIFS(ClaOUR!L:L,ClaOUR!$C:$C,$C34)+SUMIFS(ClaPRA!L:L,ClaPRA!$C:$C,$C34) -> 30 | M34: =SUMIFS(ClaOUR!M:M,ClaOUR!$C:$C,$C34)+SUMIFS(ClaPRA!M:M,ClaPRA!$C:$C,$C34) -> 6 | N34: 9 | O34: =D34/(N34*3) -> 59.3%
C35: Daniel Oliveira | D35: 4 | E35: =COUNTIFS(Jogos!$E:$E,$C35,Jogos!$N:$N,"V")+COUNTIFS(Jogos!$I:$I,$C35,Jogos!$O:$O,"V") -> 1 | F35: =COUNTIFS(Jogos!$E:$E,$C35,Jogos!$N:$N,"E")+COUNTIFS(Jogos!$I:$I,$C35,Jogos!$O:$O,"E") -> 1 | G35: =COUNTIFS(Jogos!$E:$E,$C35,Jogos!$N:$N,"D")+COUNTIFS(Jogos!$I:$I,$C35,Jogos!$O:$O,"D") -> 3 | H35: =SUMIFS(Jogos!$F:$F,Jogos!$E:$E,$C35)+SUMIFS(Jogos!$H:$H,Jogos!$I:$I,$C35) -> 4 | I35: =SUMIFS(Jogos!$H:$H,Jogos!$E:$E,$C35)+SUMIFS(Jogos!$F:$F,Jogos!$I:$I,$C35)+COUNTIFS(Jogos!$S:$S,"WWIND",Jogos!$E:$E,$C35)*2+COUNTIFS(Jogos!$S:$S,"WWIND",Jogos!$I:$I,$C35)*2 -> 7 | J35: -3 | N35: 5 | O35: 26.7%
C36: Joao Eduardo Pereira | D36: 9 | E36: =COUNTIFS(Jogos!$E:$E,$C36,Jogos!$N:$N,"V")+COUNTIFS(Jogos!$I:$I,$C36,Jogos!$O:$O,"V") -> 2 | F36: =COUNTIFS(Jogos!$E:$E,$C36,Jogos!$N:$N,"E")+COUNTIFS(Jogos!$I:$I,$C36,Jogos!$O:$O,"E") -> 3 | G36: =COUNTIFS(Jogos!$E:$E,$C36,Jogos!$N:$N,"D")+COUNTIFS(Jogos!$I:$I,$C36,Jogos!$O:$O,"D") -> 1 | H36: =SUMIFS(Jogos!$F:$F,Jogos!$E:$E,$C36)+SUMIFS(Jogos!$H:$H,Jogos!$I:$I,$C36) -> 6 | I36: =SUMIFS(Jogos!$H:$H,Jogos!$E:$E,$C36)+SUMIFS(Jogos!$F:$F,Jogos!$I:$I,$C36)+COUNTIFS(Jogos!$S:$S,"WWIND",Jogos!$E:$E,$C36)*2+COUNTIFS(Jogos!$S:$S,"WWIND",Jogos!$I:$I,$C36)*2 -> 6 | J36: 0 | N36: 6 | O36: 50.0%
C37: Luiz Carlos Guerra | D37: 17 | E37: =COUNTIFS(Jogos!$E:$E,$C37,Jogos!$N:$N,"V")+COUNTIFS(Jogos!$I:$I,$C37,Jogos!$O:$O,"V") -> 5 | F37: =COUNTIFS(Jogos!$E:$E,$C37,Jogos!$N:$N,"E")+COUNTIFS(Jogos!$I:$I,$C37,Jogos!$O:$O,"E") -> 2 | G37: =COUNTIFS(Jogos!$E:$E,$C37,Jogos!$N:$N,"D")+COUNTIFS(Jogos!$I:$I,$C37,Jogos!$O:$O,"D") -> 2 | H37: =SUMIFS(Jogos!$F:$F,Jogos!$E:$E,$C37)+SUMIFS(Jogos!$H:$H,Jogos!$I:$I,$C37) -> 15 | I37: =SUMIFS(Jogos!$H:$H,Jogos!$E:$E,$C37)+SUMIFS(Jogos!$F:$F,Jogos!$I:$I,$C37)+COUNTIFS(Jogos!$S:$S,"WWIND",Jogos!$E:$E,$C37)*2+COUNTIFS(Jogos!$S:$S,"WWIND",Jogos!$I:$I,$C37)*2 -> 7 | J37: 8 | N37: 9 | O37: 63.0%
C38: Marcelo Virgilio | D38: 13 | E38: =COUNTIFS(Jogos!$E:$E,$C38,Jogos!$N:$N,"V")+COUNTIFS(Jogos!$I:$I,$C38,Jogos!$O:$O,"V") -> 4 | F38: =COUNTIFS(Jogos!$E:$E,$C38,Jogos!$N:$N,"E")+COUNTIFS(Jogos!$I:$I,$C38,Jogos!$O:$O,"E") -> 1 | G38: =COUNTIFS(Jogos!$E:$E,$C38,Jogos!$N:$N,"D")+COUNTIFS(Jogos!$I:$I,$C38,Jogos!$O:$O,"D") -> 3 | H38: =SUMIFS(Jogos!$F:$F,Jogos!$E:$E,$C38)+SUMIFS(Jogos!$H:$H,Jogos!$I:$I,$C38) -> 6 | I38: =SUMIFS(Jogos!$H:$H,Jogos!$E:$E,$C38)+SUMIFS(Jogos!$F:$F,Jogos!$I:$I,$C38)+COUNTIFS(Jogos!$S:$S,"WWIND",Jogos!$E:$E,$C38)*2+COUNTIFS(Jogos!$S:$S,"WWIND",Jogos!$I:$I,$C38)*2 -> 4 | J38: 2 | N38: 8 | O38: 54.2%
C39: Rafael Pena | D39: 9 | E39: =COUNTIFS(Jogos!$E:$E,$C39,Jogos!$N:$N,"V")+COUNTIFS(Jogos!$I:$I,$C39,Jogos!$O:$O,"V") -> 2 | F39: =COUNTIFS(Jogos!$E:$E,$C39,Jogos!$N:$N,"E")+COUNTIFS(Jogos!$I:$I,$C39,Jogos!$O:$O,"E") -> 3 | G39: =COUNTIFS(Jogos!$E:$E,$C39,Jogos!$N:$N,"D")+COUNTIFS(Jogos!$I:$I,$C39,Jogos!$O:$O,"D") -> 3 | H39: =SUMIFS(Jogos!$F:$F,Jogos!$E:$E,$C39)+SUMIFS(Jogos!$H:$H,Jogos!$I:$I,$C39) -> 5 | I39: =SUMIFS(Jogos!$H:$H,Jogos!$E:$E,$C39)+SUMIFS(Jogos!$F:$F,Jogos!$I:$I,$C39)+COUNTIFS(Jogos!$S:$S,"WWIND",Jogos!$E:$E,$C39)*2+COUNTIFS(Jogos!$S:$S,"WWIND",Jogos!$I:$I,$C39)*2 -> 6 | J39: -1 | N39: 8 | O39: 37.5%
B40: 7º | C40: VASCO DA GAMA | D40: =SUMIFS(ClaOUR!D:D,ClaOUR!$C:$C,$C40)+SUMIFS(ClaPRA!D:D,ClaPRA!$C:$C,$C40) -> 14 | E40: =SUMIFS(ClaOUR!E:E,ClaOUR!$C:$C,$C40)+SUMIFS(ClaPRA!E:E,ClaPRA!$C:$C,$C40) -> 4 | F40: =SUMIFS(ClaOUR!F:F,ClaOUR!$C:$C,$C40)+SUMIFS(ClaPRA!F:F,ClaPRA!$C:$C,$C40) -> 2 | G40: =SUMIFS(ClaOUR!G:G,ClaOUR!$C:$C,$C40)+SUMIFS(ClaPRA!G:G,ClaPRA!$C:$C,$C40) -> 3 | H40: =SUMIFS(ClaOUR!H:H,ClaOUR!$C:$C,$C40)+SUMIFS(ClaPRA!H:H,ClaPRA!$C:$C,$C40) -> 14 | I40: =SUMIFS(ClaOUR!I:I,ClaOUR!$C:$C,$C40)+SUMIFS(ClaPRA!I:I,ClaPRA!$C:$C,$C40) -> 11 | J40: =SUMIFS(ClaOUR!J:J,ClaOUR!$C:$C,$C40)+SUMIFS(ClaPRA!J:J,ClaPRA!$C:$C,$C40) -> 3 | K40: =SUMIFS(ClaOUR!K:K,ClaOUR!$C:$C,$C40)+SUMIFS(ClaPRA!K:K,ClaPRA!$C:$C,$C40) -> 48 | L40: =SUMIFS(ClaOUR!L:L,ClaOUR!$C:$C,$C40)+SUMIFS(ClaPRA!L:L,ClaPRA!$C:$C,$C40) -> 31 | M40: =SUMIFS(ClaOUR!M:M,ClaOUR!$C:$C,$C40)+SUMIFS(ClaPRA!M:M,ClaPRA!$C:$C,$C40) -> 17 | N40: 9 | O40: =D40/(N40*3) -> 51.9%
C41: Eder Patrocinio | D41: 8 | E41: =COUNTIFS(Jogos!$E:$E,$C41,Jogos!$N:$N,"V")+COUNTIFS(Jogos!$I:$I,$C41,Jogos!$O:$O,"V") -> 2 | F41: =COUNTIFS(Jogos!$E:$E,$C41,Jogos!$N:$N,"E")+COUNTIFS(Jogos!$I:$I,$C41,Jogos!$O:$O,"E") -> 2 | G41: =COUNTIFS(Jogos!$E:$E,$C41,Jogos!$N:$N,"D")+COUNTIFS(Jogos!$I:$I,$C41,Jogos!$O:$O,"D") -> 1 | H41: =SUMIFS(Jogos!$F:$F,Jogos!$E:$E,$C41)+SUMIFS(Jogos!$H:$H,Jogos!$I:$I,$C41) -> 8 | I41: =SUMIFS(Jogos!$H:$H,Jogos!$E:$E,$C41)+SUMIFS(Jogos!$F:$F,Jogos!$I:$I,$C41)+COUNTIFS(Jogos!$S:$S,"WWIND",Jogos!$E:$E,$C41)*2+COUNTIFS(Jogos!$S:$S,"WWIND",Jogos!$I:$I,$C41)*2 -> 8 | J41: 0 | N41: 5 | O41: 53.3%
C42: Eduardo Costa | D42: 7 | E42: =COUNTIFS(Jogos!$E:$E,$C42,Jogos!$N:$N,"V")+COUNTIFS(Jogos!$I:$I,$C42,Jogos!$O:$O,"V") -> 2 | F42: =COUNTIFS(Jogos!$E:$E,$C42,Jogos!$N:$N,"E")+COUNTIFS(Jogos!$I:$I,$C42,Jogos!$O:$O,"E") -> 1 | G42: =COUNTIFS(Jogos!$E:$E,$C42,Jogos!$N:$N,"D")+COUNTIFS(Jogos!$I:$I,$C42,Jogos!$O:$O,"D") -> 1 | H42: =SUMIFS(Jogos!$F:$F,Jogos!$E:$E,$C42)+SUMIFS(Jogos!$H:$H,Jogos!$I:$I,$C42) -> 5 | I42: =SUMIFS(Jogos!$H:$H,Jogos!$E:$E,$C42)+SUMIFS(Jogos!$F:$F,Jogos!$I:$I,$C42)+COUNTIFS(Jogos!$S:$S,"WWIND",Jogos!$E:$E,$C42)*2+COUNTIFS(Jogos!$S:$S,"WWIND",Jogos!$I:$I,$C42)*2 -> 1 | J42: 4 | N42: 4 | O42: 58.3%
C43: Evandro Gomes | D43: 4 | E43: =COUNTIFS(Jogos!$E:$E,$C43,Jogos!$N:$N,"V")+COUNTIFS(Jogos!$I:$I,$C43,Jogos!$O:$O,"V") -> 1 | F43: =COUNTIFS(Jogos!$E:$E,$C43,Jogos!$N:$N,"E")+COUNTIFS(Jogos!$I:$I,$C43,Jogos!$O:$O,"E") -> 1 | G43: =COUNTIFS(Jogos!$E:$E,$C43,Jogos!$N:$N,"D")+COUNTIFS(Jogos!$I:$I,$C43,Jogos!$O:$O,"D") -> 3 | H43: =SUMIFS(Jogos!$F:$F,Jogos!$E:$E,$C43)+SUMIFS(Jogos!$H:$H,Jogos!$I:$I,$C43) -> 7 | I43: =SUMIFS(Jogos!$H:$H,Jogos!$E:$E,$C43)+SUMIFS(Jogos!$F:$F,Jogos!$I:$I,$C43)+COUNTIFS(Jogos!$S:$S,"WWIND",Jogos!$E:$E,$C43)*2+COUNTIFS(Jogos!$S:$S,"WWIND",Jogos!$I:$I,$C43)*2 -> 6 | J43: 1 | N43: 5 | O43: 26.7%
C44: Fernando Ferreira | D44: 17 | E44: =COUNTIFS(Jogos!$E:$E,$C44,Jogos!$N:$N,"V")+COUNTIFS(Jogos!$I:$I,$C44,Jogos!$O:$O,"V") -> 5 | F44: =COUNTIFS(Jogos!$E:$E,$C44,Jogos!$N:$N,"E")+COUNTIFS(Jogos!$I:$I,$C44,Jogos!$O:$O,"E") -> 2 | G44: =COUNTIFS(Jogos!$E:$E,$C44,Jogos!$N:$N,"D")+COUNTIFS(Jogos!$I:$I,$C44,Jogos!$O:$O,"D") -> 2 | H44: =SUMIFS(Jogos!$F:$F,Jogos!$E:$E,$C44)+SUMIFS(Jogos!$H:$H,Jogos!$I:$I,$C44) -> 15 | I44: =SUMIFS(Jogos!$H:$H,Jogos!$E:$E,$C44)+SUMIFS(Jogos!$F:$F,Jogos!$I:$I,$C44)+COUNTIFS(Jogos!$S:$S,"WWIND",Jogos!$E:$E,$C44)*2+COUNTIFS(Jogos!$S:$S,"WWIND",Jogos!$I:$I,$C44)*2 -> 8 | J44: 7 | N44: 9 | O44: 63.0%
C45: Henrique Madeira | D45: 6 | E45: =COUNTIFS(Jogos!$E:$E,$C45,Jogos!$N:$N,"V")+COUNTIFS(Jogos!$I:$I,$C45,Jogos!$O:$O,"V") -> 2 | F45: =COUNTIFS(Jogos!$E:$E,$C45,Jogos!$N:$N,"E")+COUNTIFS(Jogos!$I:$I,$C45,Jogos!$O:$O,"E") -> 0 | G45: =COUNTIFS(Jogos!$E:$E,$C45,Jogos!$N:$N,"D")+COUNTIFS(Jogos!$I:$I,$C45,Jogos!$O:$O,"D") -> 3 | H45: =SUMIFS(Jogos!$F:$F,Jogos!$E:$E,$C45)+SUMIFS(Jogos!$H:$H,Jogos!$I:$I,$C45) -> 6 | I45: =SUMIFS(Jogos!$H:$H,Jogos!$E:$E,$C45)+SUMIFS(Jogos!$F:$F,Jogos!$I:$I,$C45)+COUNTIFS(Jogos!$S:$S,"WWIND",Jogos!$E:$E,$C45)*2+COUNTIFS(Jogos!$S:$S,"WWIND",Jogos!$I:$I,$C45)*2 -> 5 | J45: 1 | N45: 5 | O45: 40.0%
C46: Marcelo Lima | D46: 6 | E46: =COUNTIFS(Jogos!$E:$E,$C46,Jogos!$N:$N,"V")+COUNTIFS(Jogos!$I:$I,$C46,Jogos!$O:$O,"V") -> 1 | F46: =COUNTIFS(Jogos!$E:$E,$C46,Jogos!$N:$N,"E")+COUNTIFS(Jogos!$I:$I,$C46,Jogos!$O:$O,"E") -> 3 | G46: =COUNTIFS(Jogos!$E:$E,$C46,Jogos!$N:$N,"D")+COUNTIFS(Jogos!$I:$I,$C46,Jogos!$O:$O,"D") -> 0 | H46: =SUMIFS(Jogos!$F:$F,Jogos!$E:$E,$C46)+SUMIFS(Jogos!$H:$H,Jogos!$I:$I,$C46) -> 4 | I46: =SUMIFS(Jogos!$H:$H,Jogos!$E:$E,$C46)+SUMIFS(Jogos!$F:$F,Jogos!$I:$I,$C46)+COUNTIFS(Jogos!$S:$S,"WWIND",Jogos!$E:$E,$C46)*2+COUNTIFS(Jogos!$S:$S,"WWIND",Jogos!$I:$I,$C46)*2 -> 1 | J46: 3 | N46: 4 | O46: 50.0%
C47: Valmir Silva | D47: 5 | E47: =COUNTIFS(Jogos!$E:$E,$C47,Jogos!$N:$N,"V")+COUNTIFS(Jogos!$I:$I,$C47,Jogos!$O:$O,"V") -> 1 | F47: =COUNTIFS(Jogos!$E:$E,$C47,Jogos!$N:$N,"E")+COUNTIFS(Jogos!$I:$I,$C47,Jogos!$O:$O,"E") -> 2 | G47: =COUNTIFS(Jogos!$E:$E,$C47,Jogos!$N:$N,"D")+COUNTIFS(Jogos!$I:$I,$C47,Jogos!$O:$O,"D") -> 1 | H47: =SUMIFS(Jogos!$F:$F,Jogos!$E:$E,$C47)+SUMIFS(Jogos!$H:$H,Jogos!$I:$I,$C47) -> 3 | I47: =SUMIFS(Jogos!$H:$H,Jogos!$E:$E,$C47)+SUMIFS(Jogos!$F:$F,Jogos!$I:$I,$C47)+COUNTIFS(Jogos!$S:$S,"WWIND",Jogos!$E:$E,$C47)*2+COUNTIFS(Jogos!$S:$S,"WWIND",Jogos!$I:$I,$C47)*2 -> 2 | J47: 1 | N47: 4 | O47: 41.7%
B48: 8º | C48: AABB/ACAFUMA [C] | D48: =SUMIFS(ClaOUR!D:D,ClaOUR!$C:$C,$C48)+SUMIFS(ClaPRA!D:D,ClaPRA!$C:$C,$C48) -> 14 | E48: =SUMIFS(ClaOUR!E:E,ClaOUR!$C:$C,$C48)+SUMIFS(ClaPRA!E:E,ClaPRA!$C:$C,$C48) -> 4 | F48: =SUMIFS(ClaOUR!F:F,ClaOUR!$C:$C,$C48)+SUMIFS(ClaPRA!F:F,ClaPRA!$C:$C,$C48) -> 2 | G48: =SUMIFS(ClaOUR!G:G,ClaOUR!$C:$C,$C48)+SUMIFS(ClaPRA!G:G,ClaPRA!$C:$C,$C48) -> 4 | H48: =SUMIFS(ClaOUR!H:H,ClaOUR!$C:$C,$C48)+SUMIFS(ClaPRA!H:H,ClaPRA!$C:$C,$C48) -> 15 | I48: =SUMIFS(ClaOUR!I:I,ClaOUR!$C:$C,$C48)+SUMIFS(ClaPRA!I:I,ClaPRA!$C:$C,$C48) -> 15 | J48: =SUMIFS(ClaOUR!J:J,ClaOUR!$C:$C,$C48)+SUMIFS(ClaPRA!J:J,ClaPRA!$C:$C,$C48) -> 0 | K48: =SUMIFS(ClaOUR!K:K,ClaOUR!$C:$C,$C48)+SUMIFS(ClaPRA!K:K,ClaPRA!$C:$C,$C48) -> 38 | L48: =SUMIFS(ClaOUR!L:L,ClaOUR!$C:$C,$C48)+SUMIFS(ClaPRA!L:L,ClaPRA!$C:$C,$C48) -> 51 | M48: =SUMIFS(ClaOUR!M:M,ClaOUR!$C:$C,$C48)+SUMIFS(ClaPRA!M:M,ClaPRA!$C:$C,$C48) -> -13 | N48: 10 | O48: =D48/(N48*3) -> 46.7%
C49: Andre Brandao | D49: 15 | E49: =COUNTIFS(Jogos!$E:$E,$C49,Jogos!$N:$N,"V")+COUNTIFS(Jogos!$I:$I,$C49,Jogos!$O:$O,"V") -> 4 | F49: =COUNTIFS(Jogos!$E:$E,$C49,Jogos!$N:$N,"E")+COUNTIFS(Jogos!$I:$I,$C49,Jogos!$O:$O,"E") -> 3 | G49: =COUNTIFS(Jogos!$E:$E,$C49,Jogos!$N:$N,"D")+COUNTIFS(Jogos!$I:$I,$C49,Jogos!$O:$O,"D") -> 3 | H49: =SUMIFS(Jogos!$F:$F,Jogos!$E:$E,$C49)+SUMIFS(Jogos!$H:$H,Jogos!$I:$I,$C49) -> 10 | I49: =SUMIFS(Jogos!$H:$H,Jogos!$E:$E,$C49)+SUMIFS(Jogos!$F:$F,Jogos!$I:$I,$C49)+COUNTIFS(Jogos!$S:$S,"WWIND",Jogos!$E:$E,$C49)*2+COUNTIFS(Jogos!$S:$S,"WWIND",Jogos!$I:$I,$C49)*2 -> 14 | J49: -4 | N49: 10 | O49: 50.0%
C50: Marcelo Silva | D50: 15 | E50: =COUNTIFS(Jogos!$E:$E,$C50,Jogos!$N:$N,"V")+COUNTIFS(Jogos!$I:$I,$C50,Jogos!$O:$O,"V") -> 4 | F50: =COUNTIFS(Jogos!$E:$E,$C50,Jogos!$N:$N,"E")+COUNTIFS(Jogos!$I:$I,$C50,Jogos!$O:$O,"E") -> 3 | G50: =COUNTIFS(Jogos!$E:$E,$C50,Jogos!$N:$N,"D")+COUNTIFS(Jogos!$I:$I,$C50,Jogos!$O:$O,"D") -> 3 | H50: =SUMIFS(Jogos!$F:$F,Jogos!$E:$E,$C50)+SUMIFS(Jogos!$H:$H,Jogos!$I:$I,$C50) -> 7 | I50: =SUMIFS(Jogos!$H:$H,Jogos!$E:$E,$C50)+SUMIFS(Jogos!$F:$F,Jogos!$I:$I,$C50)+COUNTIFS(Jogos!$S:$S,"WWIND",Jogos!$E:$E,$C50)*2+COUNTIFS(Jogos!$S:$S,"WWIND",Jogos!$I:$I,$C50)*2 -> 10 | J50: -3 | N50: 10 | O50: 50.0%
C51: Paulo Airton Junior | D51: 14 | E51: =COUNTIFS(Jogos!$E:$E,$C51,Jogos!$N:$N,"V")+COUNTIFS(Jogos!$I:$I,$C51,Jogos!$O:$O,"V") -> 4 | F51: =COUNTIFS(Jogos!$E:$E,$C51,Jogos!$N:$N,"E")+COUNTIFS(Jogos!$I:$I,$C51,Jogos!$O:$O,"E") -> 2 | G51: =COUNTIFS(Jogos!$E:$E,$C51,Jogos!$N:$N,"D")+COUNTIFS(Jogos!$I:$I,$C51,Jogos!$O:$O,"D") -> 4 | H51: =SUMIFS(Jogos!$F:$F,Jogos!$E:$E,$C51)+SUMIFS(Jogos!$H:$H,Jogos!$I:$I,$C51) -> 10 | I51: =SUMIFS(Jogos!$H:$H,Jogos!$E:$E,$C51)+SUMIFS(Jogos!$F:$F,Jogos!$I:$I,$C51)+COUNTIFS(Jogos!$S:$S,"WWIND",Jogos!$E:$E,$C51)*2+COUNTIFS(Jogos!$S:$S,"WWIND",Jogos!$I:$I,$C51)*2 -> 11 | J51: -1 | N51: 10 | O51: 46.7%
C52: Simplicio Santos | D52: 11 | E52: =COUNTIFS(Jogos!$E:$E,$C52,Jogos!$N:$N,"V")+COUNTIFS(Jogos!$I:$I,$C52,Jogos!$O:$O,"V") -> 3 | F52: =COUNTIFS(Jogos!$E:$E,$C52,Jogos!$N:$N,"E")+COUNTIFS(Jogos!$I:$I,$C52,Jogos!$O:$O,"E") -> 2 | G52: =COUNTIFS(Jogos!$E:$E,$C52,Jogos!$N:$N,"D")+COUNTIFS(Jogos!$I:$I,$C52,Jogos!$O:$O,"D") -> 5 | H52: =SUMIFS(Jogos!$F:$F,Jogos!$E:$E,$C52)+SUMIFS(Jogos!$H:$H,Jogos!$I:$I,$C52) -> 11 | I52: =SUMIFS(Jogos!$H:$H,Jogos!$E:$E,$C52)+SUMIFS(Jogos!$F:$F,Jogos!$I:$I,$C52)+COUNTIFS(Jogos!$S:$S,"WWIND",Jogos!$E:$E,$C52)*2+COUNTIFS(Jogos!$S:$S,"WWIND",Jogos!$I:$I,$C52)*2 -> 16 | J52: -5 | N52: 10 | O52: 36.7%
B53: 9º | C53: AABB/ACAFUMA [A] | D53: =SUMIFS(ClaOUR!D:D,ClaOUR!$C:$C,$C53)+SUMIFS(ClaPRA!D:D,ClaPRA!$C:$C,$C53) -> 14 | E53: =SUMIFS(ClaOUR!E:E,ClaOUR!$C:$C,$C53)+SUMIFS(ClaPRA!E:E,ClaPRA!$C:$C,$C53) -> 4 | F53: =SUMIFS(ClaOUR!F:F,ClaOUR!$C:$C,$C53)+SUMIFS(ClaPRA!F:F,ClaPRA!$C:$C,$C53) -> 2 | G53: =SUMIFS(ClaOUR!G:G,ClaOUR!$C:$C,$C53)+SUMIFS(ClaPRA!G:G,ClaPRA!$C:$C,$C53) -> 3 | H53: =SUMIFS(ClaOUR!H:H,ClaOUR!$C:$C,$C53)+SUMIFS(ClaPRA!H:H,ClaPRA!$C:$C,$C53) -> 16 | I53: =SUMIFS(ClaOUR!I:I,ClaOUR!$C:$C,$C53)+SUMIFS(ClaPRA!I:I,ClaPRA!$C:$C,$C53) -> 11 | J53: =SUMIFS(ClaOUR!J:J,ClaOUR!$C:$C,$C53)+SUMIFS(ClaPRA!J:J,ClaPRA!$C:$C,$C53) -> 5 | K53: =SUMIFS(ClaOUR!K:K,ClaOUR!$C:$C,$C53)+SUMIFS(ClaPRA!K:K,ClaPRA!$C:$C,$C53) -> 50 | L53: =SUMIFS(ClaOUR!L:L,ClaOUR!$C:$C,$C53)+SUMIFS(ClaPRA!L:L,ClaPRA!$C:$C,$C53) -> 31 | M53: =SUMIFS(ClaOUR!M:M,ClaOUR!$C:$C,$C53)+SUMIFS(ClaPRA!M:M,ClaPRA!$C:$C,$C53) -> 19 | N53: 9 | O53: =D53/(N53*3) -> 51.9%
C54: Antonio Carlos Almeida | D54: 10 | E54: =COUNTIFS(Jogos!$E:$E,$C54,Jogos!$N:$N,"V")+COUNTIFS(Jogos!$I:$I,$C54,Jogos!$O:$O,"V") -> 2 | F54: =COUNTIFS(Jogos!$E:$E,$C54,Jogos!$N:$N,"E")+COUNTIFS(Jogos!$I:$I,$C54,Jogos!$O:$O,"E") -> 4 | G54: =COUNTIFS(Jogos!$E:$E,$C54,Jogos!$N:$N,"D")+COUNTIFS(Jogos!$I:$I,$C54,Jogos!$O:$O,"D") -> 3 | H54: =SUMIFS(Jogos!$F:$F,Jogos!$E:$E,$C54)+SUMIFS(Jogos!$H:$H,Jogos!$I:$I,$C54) -> 9 | I54: =SUMIFS(Jogos!$H:$H,Jogos!$E:$E,$C54)+SUMIFS(Jogos!$F:$F,Jogos!$I:$I,$C54)+COUNTIFS(Jogos!$S:$S,"WWIND",Jogos!$E:$E,$C54)*2+COUNTIFS(Jogos!$S:$S,"WWIND",Jogos!$I:$I,$C54)*2 -> 8 | J54: 1 | N54: 9 | O54: 37.0%
C55: Luiz Claudio Caruso | D55: 19 | E55: =COUNTIFS(Jogos!$E:$E,$C55,Jogos!$N:$N,"V")+COUNTIFS(Jogos!$I:$I,$C55,Jogos!$O:$O,"V") -> 6 | F55: =COUNTIFS(Jogos!$E:$E,$C55,Jogos!$N:$N,"E")+COUNTIFS(Jogos!$I:$I,$C55,Jogos!$O:$O,"E") -> 1 | G55: =COUNTIFS(Jogos!$E:$E,$C55,Jogos!$N:$N,"D")+COUNTIFS(Jogos!$I:$I,$C55,Jogos!$O:$O,"D") -> 2 | H55: =SUMIFS(Jogos!$F:$F,Jogos!$E:$E,$C55)+SUMIFS(Jogos!$H:$H,Jogos!$I:$I,$C55) -> 16 | I55: =SUMIFS(Jogos!$H:$H,Jogos!$E:$E,$C55)+SUMIFS(Jogos!$F:$F,Jogos!$I:$I,$C55)+COUNTIFS(Jogos!$S:$S,"WWIND",Jogos!$E:$E,$C55)*2+COUNTIFS(Jogos!$S:$S,"WWIND",Jogos!$I:$I,$C55)*2 -> 7 | J55: 9 | N55: 9 | O55: 70.4%
C56: Paulo Caruso | D56: 13 | E56: =COUNTIFS(Jogos!$E:$E,$C56,Jogos!$N:$N,"V")+COUNTIFS(Jogos!$I:$I,$C56,Jogos!$O:$O,"V") -> 4 | F56: =COUNTIFS(Jogos!$E:$E,$C56,Jogos!$N:$N,"E")+COUNTIFS(Jogos!$I:$I,$C56,Jogos!$O:$O,"E") -> 1 | G56: =COUNTIFS(Jogos!$E:$E,$C56,Jogos!$N:$N,"D")+COUNTIFS(Jogos!$I:$I,$C56,Jogos!$O:$O,"D") -> 4 | H56: =SUMIFS(Jogos!$F:$F,Jogos!$E:$E,$C56)+SUMIFS(Jogos!$H:$H,Jogos!$I:$I,$C56) -> 10 | I56: =SUMIFS(Jogos!$H:$H,Jogos!$E:$E,$C56)+SUMIFS(Jogos!$F:$F,Jogos!$I:$I,$C56)+COUNTIFS(Jogos!$S:$S,"WWIND",Jogos!$E:$E,$C56)*2+COUNTIFS(Jogos!$S:$S,"WWIND",Jogos!$I:$I,$C56)*2 -> 7 | J56: 3 | N56: 9 | O56: 48.1%
C57: Tarcizio Dinoa Junior | D57: 15 | E57: =COUNTIFS(Jogos!$E:$E,$C57,Jogos!$N:$N,"V")+COUNTIFS(Jogos!$I:$I,$C57,Jogos!$O:$O,"V") -> 4 | F57: =COUNTIFS(Jogos!$E:$E,$C57,Jogos!$N:$N,"E")+COUNTIFS(Jogos!$I:$I,$C57,Jogos!$O:$O,"E") -> 3 | G57: =COUNTIFS(Jogos!$E:$E,$C57,Jogos!$N:$N,"D")+COUNTIFS(Jogos!$I:$I,$C57,Jogos!$O:$O,"D") -> 2 | H57: =SUMIFS(Jogos!$F:$F,Jogos!$E:$E,$C57)+SUMIFS(Jogos!$H:$H,Jogos!$I:$I,$C57) -> 15 | I57: =SUMIFS(Jogos!$H:$H,Jogos!$E:$E,$C57)+SUMIFS(Jogos!$F:$F,Jogos!$I:$I,$C57)+COUNTIFS(Jogos!$S:$S,"WWIND",Jogos!$E:$E,$C57)*2+COUNTIFS(Jogos!$S:$S,"WWIND",Jogos!$I:$I,$C57)*2 -> 9 | J57: 6 | N57: 9 | O57: 55.6%
B58: 10º | C58: TUPI [B] | D58: =SUMIFS(ClaOUR!D:D,ClaOUR!$C:$C,$C58)+SUMIFS(ClaPRA!D:D,ClaPRA!$C:$C,$C58) -> 12 | E58: =SUMIFS(ClaOUR!E:E,ClaOUR!$C:$C,$C58)+SUMIFS(ClaPRA!E:E,ClaPRA!$C:$C,$C58) -> 4 | F58: =SUMIFS(ClaOUR!F:F,ClaOUR!$C:$C,$C58)+SUMIFS(ClaPRA!F:F,ClaPRA!$C:$C,$C58) -> 0 | G58: =SUMIFS(ClaOUR!G:G,ClaOUR!$C:$C,$C58)+SUMIFS(ClaPRA!G:G,ClaPRA!$C:$C,$C58) -> 4 | H58: =SUMIFS(ClaOUR!H:H,ClaOUR!$C:$C,$C58)+SUMIFS(ClaPRA!H:H,ClaPRA!$C:$C,$C58) -> 12 | I58: =SUMIFS(ClaOUR!I:I,ClaOUR!$C:$C,$C58)+SUMIFS(ClaPRA!I:I,ClaPRA!$C:$C,$C58) -> 9 | J58: =SUMIFS(ClaOUR!J:J,ClaOUR!$C:$C,$C58)+SUMIFS(ClaPRA!J:J,ClaPRA!$C:$C,$C58) -> 3 | K58: =SUMIFS(ClaOUR!K:K,ClaOUR!$C:$C,$C58)+SUMIFS(ClaPRA!K:K,ClaPRA!$C:$C,$C58) -> 40 | L58: =SUMIFS(ClaOUR!L:L,ClaOUR!$C:$C,$C58)+SUMIFS(ClaPRA!L:L,ClaPRA!$C:$C,$C58) -> 31 | M58: =SUMIFS(ClaOUR!M:M,ClaOUR!$C:$C,$C58)+SUMIFS(ClaPRA!M:M,ClaPRA!$C:$C,$C58) -> 9 | N58: 8 | O58: =D58/(N58*3) -> 50.0%
C59: Flavio Scarpelli | D59: 11 | E59: =COUNTIFS(Jogos!$E:$E,$C59,Jogos!$N:$N,"V")+COUNTIFS(Jogos!$I:$I,$C59,Jogos!$O:$O,"V") -> 3 | F59: =COUNTIFS(Jogos!$E:$E,$C59,Jogos!$N:$N,"E")+COUNTIFS(Jogos!$I:$I,$C59,Jogos!$O:$O,"E") -> 2 | G59: =COUNTIFS(Jogos!$E:$E,$C59,Jogos!$N:$N,"D")+COUNTIFS(Jogos!$I:$I,$C59,Jogos!$O:$O,"D") -> 3 | H59: =SUMIFS(Jogos!$F:$F,Jogos!$E:$E,$C59)+SUMIFS(Jogos!$H:$H,Jogos!$I:$I,$C59) -> 11 | I59: =SUMIFS(Jogos!$H:$H,Jogos!$E:$E,$C59)+SUMIFS(Jogos!$F:$F,Jogos!$I:$I,$C59)+COUNTIFS(Jogos!$S:$S,"WWIND",Jogos!$E:$E,$C59)*2+COUNTIFS(Jogos!$S:$S,"WWIND",Jogos!$I:$I,$C59)*2 -> 9 | J59: 2 | N59: 8 | O59: 45.8%
C60: Leandro Benicio | D60: 11 | E60: =COUNTIFS(Jogos!$E:$E,$C60,Jogos!$N:$N,"V")+COUNTIFS(Jogos!$I:$I,$C60,Jogos!$O:$O,"V") -> 3 | F60: =COUNTIFS(Jogos!$E:$E,$C60,Jogos!$N:$N,"E")+COUNTIFS(Jogos!$I:$I,$C60,Jogos!$O:$O,"E") -> 2 | G60: =COUNTIFS(Jogos!$E:$E,$C60,Jogos!$N:$N,"D")+COUNTIFS(Jogos!$I:$I,$C60,Jogos!$O:$O,"D") -> 3 | H60: =SUMIFS(Jogos!$F:$F,Jogos!$E:$E,$C60)+SUMIFS(Jogos!$H:$H,Jogos!$I:$I,$C60) -> 10 | I60: =SUMIFS(Jogos!$H:$H,Jogos!$E:$E,$C60)+SUMIFS(Jogos!$F:$F,Jogos!$I:$I,$C60)+COUNTIFS(Jogos!$S:$S,"WWIND",Jogos!$E:$E,$C60)*2+COUNTIFS(Jogos!$S:$S,"WWIND",Jogos!$I:$I,$C60)*2 -> 10 | J60: 0 | N60: 8 | O60: 45.8%
C61: Luiz Henrique Colla | D61: 12 | E61: =COUNTIFS(Jogos!$E:$E,$C61,Jogos!$N:$N,"V")+COUNTIFS(Jogos!$I:$I,$C61,Jogos!$O:$O,"V") -> 3 | F61: =COUNTIFS(Jogos!$E:$E,$C61,Jogos!$N:$N,"E")+COUNTIFS(Jogos!$I:$I,$C61,Jogos!$O:$O,"E") -> 3 | G61: =COUNTIFS(Jogos!$E:$E,$C61,Jogos!$N:$N,"D")+COUNTIFS(Jogos!$I:$I,$C61,Jogos!$O:$O,"D") -> 2 | H61: =SUMIFS(Jogos!$F:$F,Jogos!$E:$E,$C61)+SUMIFS(Jogos!$H:$H,Jogos!$I:$I,$C61) -> 9 | I61: =SUMIFS(Jogos!$H:$H,Jogos!$E:$E,$C61)+SUMIFS(Jogos!$F:$F,Jogos!$I:$I,$C61)+COUNTIFS(Jogos!$S:$S,"WWIND",Jogos!$E:$E,$C61)*2+COUNTIFS(Jogos!$S:$S,"WWIND",Jogos!$I:$I,$C61)*2 -> 7 | J61: 2 | N61: 8 | O61: 50.0%
C62: Paulo Ricardo Souza | D62: 13 | E62: =COUNTIFS(Jogos!$E:$E,$C62,Jogos!$N:$N,"V")+COUNTIFS(Jogos!$I:$I,$C62,Jogos!$O:$O,"V") -> 3 | F62: =COUNTIFS(Jogos!$E:$E,$C62,Jogos!$N:$N,"E")+COUNTIFS(Jogos!$I:$I,$C62,Jogos!$O:$O,"E") -> 4 | G62: =COUNTIFS(Jogos!$E:$E,$C62,Jogos!$N:$N,"D")+COUNTIFS(Jogos!$I:$I,$C62,Jogos!$O:$O,"D") -> 1 | H62: =SUMIFS(Jogos!$F:$F,Jogos!$E:$E,$C62)+SUMIFS(Jogos!$H:$H,Jogos!$I:$I,$C62) -> 10 | I62: =SUMIFS(Jogos!$H:$H,Jogos!$E:$E,$C62)+SUMIFS(Jogos!$F:$F,Jogos!$I:$I,$C62)+COUNTIFS(Jogos!$S:$S,"WWIND",Jogos!$E:$E,$C62)*2+COUNTIFS(Jogos!$S:$S,"WWIND",Jogos!$I:$I,$C62)*2 -> 5 | J62: 5 | N62: 8 | O62: 54.2%
A63: TAÇA DE PRATA | B63: 11º | C63: AABB/ACAFUMA [B] | D63: =SUMIFS(ClaOUR!D:D,ClaOUR!$C:$C,$C63)+SUMIFS(ClaPRA!D:D,ClaPRA!$C:$C,$C63) -> 18 | E63: =SUMIFS(ClaOUR!E:E,ClaOUR!$C:$C,$C63)+SUMIFS(ClaPRA!E:E,ClaPRA!$C:$C,$C63) -> 6 | F63: =SUMIFS(ClaOUR!F:F,ClaOUR!$C:$C,$C63)+SUMIFS(ClaPRA!F:F,ClaPRA!$C:$C,$C63) -> 0 | G63: =SUMIFS(ClaOUR!G:G,ClaOUR!$C:$C,$C63)+SUMIFS(ClaPRA!G:G,ClaPRA!$C:$C,$C63) -> 4 | H63: =SUMIFS(ClaOUR!H:H,ClaOUR!$C:$C,$C63)+SUMIFS(ClaPRA!H:H,ClaPRA!$C:$C,$C63) -> 17 | I63: =SUMIFS(ClaOUR!I:I,ClaOUR!$C:$C,$C63)+SUMIFS(ClaPRA!I:I,ClaPRA!$C:$C,$C63) -> 10 | J63: =SUMIFS(ClaOUR!J:J,ClaOUR!$C:$C,$C63)+SUMIFS(ClaPRA!J:J,ClaPRA!$C:$C,$C63) -> 7 | K63: =SUMIFS(ClaOUR!K:K,ClaOUR!$C:$C,$C63)+SUMIFS(ClaPRA!K:K,ClaPRA!$C:$C,$C63) -> 52 | L63: =SUMIFS(ClaOUR!L:L,ClaOUR!$C:$C,$C63)+SUMIFS(ClaPRA!L:L,ClaPRA!$C:$C,$C63) -> 37 | M63: =SUMIFS(ClaOUR!M:M,ClaOUR!$C:$C,$C63)+SUMIFS(ClaPRA!M:M,ClaPRA!$C:$C,$C63) -> 15 | N63: 10 | O63: =D63/(N63*3) -> 60.0%
C64: Adolpho Parente | D64: 23 | E64: =COUNTIFS(Jogos!$E:$E,$C64,Jogos!$N:$N,"V")+COUNTIFS(Jogos!$I:$I,$C64,Jogos!$O:$O,"V") -> 7 | F64: =COUNTIFS(Jogos!$E:$E,$C64,Jogos!$N:$N,"E")+COUNTIFS(Jogos!$I:$I,$C64,Jogos!$O:$O,"E") -> 2 | G64: =COUNTIFS(Jogos!$E:$E,$C64,Jogos!$N:$N,"D")+COUNTIFS(Jogos!$I:$I,$C64,Jogos!$O:$O,"D") -> 1 | H64: =SUMIFS(Jogos!$F:$F,Jogos!$E:$E,$C64)+SUMIFS(Jogos!$H:$H,Jogos!$I:$I,$C64) -> 17 | I64: =SUMIFS(Jogos!$H:$H,Jogos!$E:$E,$C64)+SUMIFS(Jogos!$F:$F,Jogos!$I:$I,$C64)+COUNTIFS(Jogos!$S:$S,"WWIND",Jogos!$E:$E,$C64)*2+COUNTIFS(Jogos!$S:$S,"WWIND",Jogos!$I:$I,$C64)*2 -> 5 | J64: 12 | N64: 10 | O64: 76.7%
C65: Alcides Figueira | D65: 18 | E65: =COUNTIFS(Jogos!$E:$E,$C65,Jogos!$N:$N,"V")+COUNTIFS(Jogos!$I:$I,$C65,Jogos!$O:$O,"V") -> 5 | F65: =COUNTIFS(Jogos!$E:$E,$C65,Jogos!$N:$N,"E")+COUNTIFS(Jogos!$I:$I,$C65,Jogos!$O:$O,"E") -> 3 | G65: =COUNTIFS(Jogos!$E:$E,$C65,Jogos!$N:$N,"D")+COUNTIFS(Jogos!$I:$I,$C65,Jogos!$O:$O,"D") -> 2 | H65: =SUMIFS(Jogos!$F:$F,Jogos!$E:$E,$C65)+SUMIFS(Jogos!$H:$H,Jogos!$I:$I,$C65) -> 24 | I65: =SUMIFS(Jogos!$H:$H,Jogos!$E:$E,$C65)+SUMIFS(Jogos!$F:$F,Jogos!$I:$I,$C65)+COUNTIFS(Jogos!$S:$S,"WWIND",Jogos!$E:$E,$C65)*2+COUNTIFS(Jogos!$S:$S,"WWIND",Jogos!$I:$I,$C65)*2 -> 13 | J65: 11 | N65: 10 | O65: 60.0%
C66: Marcelo Ferreira | D66: 9 | E66: =COUNTIFS(Jogos!$E:$E,$C66,Jogos!$N:$N,"V")+COUNTIFS(Jogos!$I:$I,$C66,Jogos!$O:$O,"V") -> 2 | F66: =COUNTIFS(Jogos!$E:$E,$C66,Jogos!$N:$N,"E")+COUNTIFS(Jogos!$I:$I,$C66,Jogos!$O:$O,"E") -> 3 | G66: =COUNTIFS(Jogos!$E:$E,$C66,Jogos!$N:$N,"D")+COUNTIFS(Jogos!$I:$I,$C66,Jogos!$O:$O,"D") -> 2 | H66: =SUMIFS(Jogos!$F:$F,Jogos!$E:$E,$C66)+SUMIFS(Jogos!$H:$H,Jogos!$I:$I,$C66) -> 3 | I66: =SUMIFS(Jogos!$H:$H,Jogos!$E:$E,$C66)+SUMIFS(Jogos!$F:$F,Jogos!$I:$I,$C66)+COUNTIFS(Jogos!$S:$S,"WWIND",Jogos!$E:$E,$C66)*2+COUNTIFS(Jogos!$S:$S,"WWIND",Jogos!$I:$I,$C66)*2 -> 6 | J66: -3 | N66: 7 | O66: 42.9%
C67: Paulo Cesar Faria | D67: 12 | E67: =COUNTIFS(Jogos!$E:$E,$C67,Jogos!$N:$N,"V")+COUNTIFS(Jogos!$I:$I,$C67,Jogos!$O:$O,"V") -> 3 | F67: =COUNTIFS(Jogos!$E:$E,$C67,Jogos!$N:$N,"E")+COUNTIFS(Jogos!$I:$I,$C67,Jogos!$O:$O,"E") -> 3 | G67: =COUNTIFS(Jogos!$E:$E,$C67,Jogos!$N:$N,"D")+COUNTIFS(Jogos!$I:$I,$C67,Jogos!$O:$O,"D") -> 1 | H67: =SUMIFS(Jogos!$F:$F,Jogos!$E:$E,$C67)+SUMIFS(Jogos!$H:$H,Jogos!$I:$I,$C67) -> 6 | I67: =SUMIFS(Jogos!$H:$H,Jogos!$E:$E,$C67)+SUMIFS(Jogos!$F:$F,Jogos!$I:$I,$C67)+COUNTIFS(Jogos!$S:$S,"WWIND",Jogos!$E:$E,$C67)*2+COUNTIFS(Jogos!$S:$S,"WWIND",Jogos!$I:$I,$C67)*2 -> 6 | J67: 0 | N67: 7 | O67: 57.1%
C68: Rodrigo Caruso | D68: 2 | E68: =COUNTIFS(Jogos!$E:$E,$C68,Jogos!$N:$N,"V")+COUNTIFS(Jogos!$I:$I,$C68,Jogos!$O:$O,"V") -> 0 | F68: =COUNTIFS(Jogos!$E:$E,$C68,Jogos!$N:$N,"E")+COUNTIFS(Jogos!$I:$I,$C68,Jogos!$O:$O,"E") -> 2 | G68: =COUNTIFS(Jogos!$E:$E,$C68,Jogos!$N:$N,"D")+COUNTIFS(Jogos!$I:$I,$C68,Jogos!$O:$O,"D") -> 4 | H68: =SUMIFS(Jogos!$F:$F,Jogos!$E:$E,$C68)+SUMIFS(Jogos!$H:$H,Jogos!$I:$I,$C68) -> 2 | I68: =SUMIFS(Jogos!$H:$H,Jogos!$E:$E,$C68)+SUMIFS(Jogos!$F:$F,Jogos!$I:$I,$C68)+COUNTIFS(Jogos!$S:$S,"WWIND",Jogos!$E:$E,$C68)*2+COUNTIFS(Jogos!$S:$S,"WWIND",Jogos!$I:$I,$C68)*2 -> 7 | J68: -5 | N68: 6 | O68: 11.1%
B69: 12º | C69: COMARY | D69: =SUMIFS(ClaOUR!D:D,ClaOUR!$C:$C,$C69)+SUMIFS(ClaPRA!D:D,ClaPRA!$C:$C,$C69) -> 13 | E69: =SUMIFS(ClaOUR!E:E,ClaOUR!$C:$C,$C69)+SUMIFS(ClaPRA!E:E,ClaPRA!$C:$C,$C69) -> 4 | F69: =SUMIFS(ClaOUR!F:F,ClaOUR!$C:$C,$C69)+SUMIFS(ClaPRA!F:F,ClaPRA!$C:$C,$C69) -> 1 | G69: =SUMIFS(ClaOUR!G:G,ClaOUR!$C:$C,$C69)+SUMIFS(ClaPRA!G:G,ClaPRA!$C:$C,$C69) -> 5 | H69: =SUMIFS(ClaOUR!H:H,ClaOUR!$C:$C,$C69)+SUMIFS(ClaPRA!H:H,ClaPRA!$C:$C,$C69) -> 12 | I69: =SUMIFS(ClaOUR!I:I,ClaOUR!$C:$C,$C69)+SUMIFS(ClaPRA!I:I,ClaPRA!$C:$C,$C69) -> 15 | J69: =SUMIFS(ClaOUR!J:J,ClaOUR!$C:$C,$C69)+SUMIFS(ClaPRA!J:J,ClaPRA!$C:$C,$C69) -> -3 | K69: =SUMIFS(ClaOUR!K:K,ClaOUR!$C:$C,$C69)+SUMIFS(ClaPRA!K:K,ClaPRA!$C:$C,$C69) -> 38 | L69: =SUMIFS(ClaOUR!L:L,ClaOUR!$C:$C,$C69)+SUMIFS(ClaPRA!L:L,ClaPRA!$C:$C,$C69) -> 48 | M69: =SUMIFS(ClaOUR!M:M,ClaOUR!$C:$C,$C69)+SUMIFS(ClaPRA!M:M,ClaPRA!$C:$C,$C69) -> -10 | N69: 10 | O69: =D69/(N69*3) -> 43.3%
C70: Claudio Figueiredo | D70: =IF(N70=0,-0.001,E70*3+F70) -> 4 | E70: =COUNTIFS(Jogos!$E:$E,$C70,Jogos!$N:$N,"V")+COUNTIFS(Jogos!$I:$I,$C70,Jogos!$O:$O,"V") -> 1 | F70: =COUNTIFS(Jogos!$E:$E,$C70,Jogos!$N:$N,"E")+COUNTIFS(Jogos!$I:$I,$C70,Jogos!$O:$O,"E") -> 1 | G70: =COUNTIFS(Jogos!$E:$E,$C70,Jogos!$N:$N,"D")+COUNTIFS(Jogos!$I:$I,$C70,Jogos!$O:$O,"D") -> 2 | H70: =SUMIFS(Jogos!$F:$F,Jogos!$E:$E,$C70)+SUMIFS(Jogos!$H:$H,Jogos!$I:$I,$C70) -> 3 | I70: =SUMIFS(Jogos!$H:$H,Jogos!$E:$E,$C70)+SUMIFS(Jogos!$F:$F,Jogos!$I:$I,$C70)+COUNTIFS(Jogos!$S:$S,"WWIND",Jogos!$E:$E,$C70)*2+COUNTIFS(Jogos!$S:$S,"WWIND",Jogos!$I:$I,$C70)*2 -> 8 | J70: =H70-I70 -> -5 | N70: =SUM(E70:G70) -> 4 | O70: =IF(N70=0,-0.00001,D70/(N70*3)) -> 33.3%
C71: Eduardo Tavares | D71: 8 | E71: =COUNTIFS(Jogos!$E:$E,$C71,Jogos!$N:$N,"V")+COUNTIFS(Jogos!$I:$I,$C71,Jogos!$O:$O,"V") -> 2 | F71: =COUNTIFS(Jogos!$E:$E,$C71,Jogos!$N:$N,"E")+COUNTIFS(Jogos!$I:$I,$C71,Jogos!$O:$O,"E") -> 2 | G71: =COUNTIFS(Jogos!$E:$E,$C71,Jogos!$N:$N,"D")+COUNTIFS(Jogos!$I:$I,$C71,Jogos!$O:$O,"D") -> 4 | H71: =SUMIFS(Jogos!$F:$F,Jogos!$E:$E,$C71)+SUMIFS(Jogos!$H:$H,Jogos!$I:$I,$C71) -> 5 | I71: =SUMIFS(Jogos!$H:$H,Jogos!$E:$E,$C71)+SUMIFS(Jogos!$F:$F,Jogos!$I:$I,$C71)+COUNTIFS(Jogos!$S:$S,"WWIND",Jogos!$E:$E,$C71)*2+COUNTIFS(Jogos!$S:$S,"WWIND",Jogos!$I:$I,$C71)*2 -> 8 | J71: -3 | N71: 8 | O71: 33.3%
C72: Igor Guarilha | D72: 15 | E72: =COUNTIFS(Jogos!$E:$E,$C72,Jogos!$N:$N,"V")+COUNTIFS(Jogos!$I:$I,$C72,Jogos!$O:$O,"V") -> 4 | F72: =COUNTIFS(Jogos!$E:$E,$C72,Jogos!$N:$N,"E")+COUNTIFS(Jogos!$I:$I,$C72,Jogos!$O:$O,"E") -> 3 | G72: =COUNTIFS(Jogos!$E:$E,$C72,Jogos!$N:$N,"D")+COUNTIFS(Jogos!$I:$I,$C72,Jogos!$O:$O,"D") -> 2 | H72: =SUMIFS(Jogos!$F:$F,Jogos!$E:$E,$C72)+SUMIFS(Jogos!$H:$H,Jogos!$I:$I,$C72) -> 10 | I72: =SUMIFS(Jogos!$H:$H,Jogos!$E:$E,$C72)+SUMIFS(Jogos!$F:$F,Jogos!$I:$I,$C72)+COUNTIFS(Jogos!$S:$S,"WWIND",Jogos!$E:$E,$C72)*2+COUNTIFS(Jogos!$S:$S,"WWIND",Jogos!$I:$I,$C72)*2 -> 7 | J72: 3 | N72: 9 | O72: 55.6%
C73: Marco Andre Veloso | D73: 7 | E73: =COUNTIFS(Jogos!$E:$E,$C73,Jogos!$N:$N,"V")+COUNTIFS(Jogos!$I:$I,$C73,Jogos!$O:$O,"V") -> 2 | F73: =COUNTIFS(Jogos!$E:$E,$C73,Jogos!$N:$N,"E")+COUNTIFS(Jogos!$I:$I,$C73,Jogos!$O:$O,"E") -> 1 | G73: =COUNTIFS(Jogos!$E:$E,$C73,Jogos!$N:$N,"D")+COUNTIFS(Jogos!$I:$I,$C73,Jogos!$O:$O,"D") -> 3 | H73: =SUMIFS(Jogos!$F:$F,Jogos!$E:$E,$C73)+SUMIFS(Jogos!$H:$H,Jogos!$I:$I,$C73) -> 6 | I73: =SUMIFS(Jogos!$H:$H,Jogos!$E:$E,$C73)+SUMIFS(Jogos!$F:$F,Jogos!$I:$I,$C73)+COUNTIFS(Jogos!$S:$S,"WWIND",Jogos!$E:$E,$C73)*2+COUNTIFS(Jogos!$S:$S,"WWIND",Jogos!$I:$I,$C73)*2 -> 9 | J73: -3 | N73: 6 | O73: 38.9%
C74: Pablo Sidarta | D74: 11 | E74: =COUNTIFS(Jogos!$E:$E,$C74,Jogos!$N:$N,"V")+COUNTIFS(Jogos!$I:$I,$C74,Jogos!$O:$O,"V") -> 2 | F74: =COUNTIFS(Jogos!$E:$E,$C74,Jogos!$N:$N,"E")+COUNTIFS(Jogos!$I:$I,$C74,Jogos!$O:$O,"E") -> 5 | G74: =COUNTIFS(Jogos!$E:$E,$C74,Jogos!$N:$N,"D")+COUNTIFS(Jogos!$I:$I,$C74,Jogos!$O:$O,"D") -> 2 | H74: =SUMIFS(Jogos!$F:$F,Jogos!$E:$E,$C74)+SUMIFS(Jogos!$H:$H,Jogos!$I:$I,$C74) -> 11 | I74: =SUMIFS(Jogos!$H:$H,Jogos!$E:$E,$C74)+SUMIFS(Jogos!$F:$F,Jogos!$I:$I,$C74)+COUNTIFS(Jogos!$S:$S,"WWIND",Jogos!$E:$E,$C74)*2+COUNTIFS(Jogos!$S:$S,"WWIND",Jogos!$I:$I,$C74)*2 -> 10 | J74: 1 | N74: 9 | O74: 40.7%
C75: Ricardo Machado | D75: 4 | E75: =COUNTIFS(Jogos!$E:$E,$C75,Jogos!$N:$N,"V")+COUNTIFS(Jogos!$I:$I,$C75,Jogos!$O:$O,"V") -> 1 | F75: =COUNTIFS(Jogos!$E:$E,$C75,Jogos!$N:$N,"E")+COUNTIFS(Jogos!$I:$I,$C75,Jogos!$O:$O,"E") -> 1 | G75: =COUNTIFS(Jogos!$E:$E,$C75,Jogos!$N:$N,"D")+COUNTIFS(Jogos!$I:$I,$C75,Jogos!$O:$O,"D") -> 2 | H75: =SUMIFS(Jogos!$F:$F,Jogos!$E:$E,$C75)+SUMIFS(Jogos!$H:$H,Jogos!$I:$I,$C75) -> 3 | I75: =SUMIFS(Jogos!$H:$H,Jogos!$E:$E,$C75)+SUMIFS(Jogos!$F:$F,Jogos!$I:$I,$C75)+COUNTIFS(Jogos!$S:$S,"WWIND",Jogos!$E:$E,$C75)*2+COUNTIFS(Jogos!$S:$S,"WWIND",Jogos!$I:$I,$C75)*2 -> 6 | J75: -3 | N75: 4 | O75: 33.3%
B76: 13º | C76: CHACAL [A] | D76: =SUMIFS(ClaOUR!D:D,ClaOUR!$C:$C,$C76)+SUMIFS(ClaPRA!D:D,ClaPRA!$C:$C,$C76) -> 10 | E76: =SUMIFS(ClaOUR!E:E,ClaOUR!$C:$C,$C76)+SUMIFS(ClaPRA!E:E,ClaPRA!$C:$C,$C76) -> 3 | F76: =SUMIFS(ClaOUR!F:F,ClaOUR!$C:$C,$C76)+SUMIFS(ClaPRA!F:F,ClaPRA!$C:$C,$C76) -> 1 | G76: =SUMIFS(ClaOUR!G:G,ClaOUR!$C:$C,$C76)+SUMIFS(ClaPRA!G:G,ClaPRA!$C:$C,$C76) -> 6 | H76: =SUMIFS(ClaOUR!H:H,ClaOUR!$C:$C,$C76)+SUMIFS(ClaPRA!H:H,ClaPRA!$C:$C,$C76) -> 10 | I76: =SUMIFS(ClaOUR!I:I,ClaOUR!$C:$C,$C76)+SUMIFS(ClaPRA!I:I,ClaPRA!$C:$C,$C76) -> 16 | J76: =SUMIFS(ClaOUR!J:J,ClaOUR!$C:$C,$C76)+SUMIFS(ClaPRA!J:J,ClaPRA!$C:$C,$C76) -> -6 | K76: =SUMIFS(ClaOUR!K:K,ClaOUR!$C:$C,$C76)+SUMIFS(ClaPRA!K:K,ClaPRA!$C:$C,$C76) -> 48 | L76: =SUMIFS(ClaOUR!L:L,ClaOUR!$C:$C,$C76)+SUMIFS(ClaPRA!L:L,ClaPRA!$C:$C,$C76) -> 50 | M76: =SUMIFS(ClaOUR!M:M,ClaOUR!$C:$C,$C76)+SUMIFS(ClaPRA!M:M,ClaPRA!$C:$C,$C76) -> -2 | N76: 10 | O76: =D76/(N76*3) -> 33.3%
C77: Janilson Pereira | D77: 13 | E77: =COUNTIFS(Jogos!$E:$E,$C77,Jogos!$N:$N,"V")+COUNTIFS(Jogos!$I:$I,$C77,Jogos!$O:$O,"V") -> 4 | F77: =COUNTIFS(Jogos!$E:$E,$C77,Jogos!$N:$N,"E")+COUNTIFS(Jogos!$I:$I,$C77,Jogos!$O:$O,"E") -> 1 | G77: =COUNTIFS(Jogos!$E:$E,$C77,Jogos!$N:$N,"D")+COUNTIFS(Jogos!$I:$I,$C77,Jogos!$O:$O,"D") -> 4 | H77: =SUMIFS(Jogos!$F:$F,Jogos!$E:$E,$C77)+SUMIFS(Jogos!$H:$H,Jogos!$I:$I,$C77) -> 12 | I77: =SUMIFS(Jogos!$H:$H,Jogos!$E:$E,$C77)+SUMIFS(Jogos!$F:$F,Jogos!$I:$I,$C77)+COUNTIFS(Jogos!$S:$S,"WWIND",Jogos!$E:$E,$C77)*2+COUNTIFS(Jogos!$S:$S,"WWIND",Jogos!$I:$I,$C77)*2 -> 10 | J77: 2 | N77: 9 | O77: 48.1%
C78: Joao Francisco Stephan | D78: 4 | E78: =COUNTIFS(Jogos!$E:$E,$C78,Jogos!$N:$N,"V")+COUNTIFS(Jogos!$I:$I,$C78,Jogos!$O:$O,"V") -> 1 | F78: =COUNTIFS(Jogos!$E:$E,$C78,Jogos!$N:$N,"E")+COUNTIFS(Jogos!$I:$I,$C78,Jogos!$O:$O,"E") -> 1 | G78: =COUNTIFS(Jogos!$E:$E,$C78,Jogos!$N:$N,"D")+COUNTIFS(Jogos!$I:$I,$C78,Jogos!$O:$O,"D") -> 1 | H78: =SUMIFS(Jogos!$F:$F,Jogos!$E:$E,$C78)+SUMIFS(Jogos!$H:$H,Jogos!$I:$I,$C78) -> 4 | I78: =SUMIFS(Jogos!$H:$H,Jogos!$E:$E,$C78)+SUMIFS(Jogos!$F:$F,Jogos!$I:$I,$C78)+COUNTIFS(Jogos!$S:$S,"WWIND",Jogos!$E:$E,$C78)*2+COUNTIFS(Jogos!$S:$S,"WWIND",Jogos!$I:$I,$C78)*2 -> 3 | J78: 1 | N78: 3 | O78: 44.4%
C79: Julio Celio Braga | D79: 7 | E79: =COUNTIFS(Jogos!$E:$E,$C79,Jogos!$N:$N,"V")+COUNTIFS(Jogos!$I:$I,$C79,Jogos!$O:$O,"V") -> 1 | F79: =COUNTIFS(Jogos!$E:$E,$C79,Jogos!$N:$N,"E")+COUNTIFS(Jogos!$I:$I,$C79,Jogos!$O:$O,"E") -> 4 | G79: =COUNTIFS(Jogos!$E:$E,$C79,Jogos!$N:$N,"D")+COUNTIFS(Jogos!$I:$I,$C79,Jogos!$O:$O,"D") -> 4 | H79: =SUMIFS(Jogos!$F:$F,Jogos!$E:$E,$C79)+SUMIFS(Jogos!$H:$H,Jogos!$I:$I,$C79) -> 12 | I79: =SUMIFS(Jogos!$H:$H,Jogos!$E:$E,$C79)+SUMIFS(Jogos!$F:$F,Jogos!$I:$I,$C79)+COUNTIFS(Jogos!$S:$S,"WWIND",Jogos!$E:$E,$C79)*2+COUNTIFS(Jogos!$S:$S,"WWIND",Jogos!$I:$I,$C79)*2 -> 14 | J79: -2 | N79: 9 | O79: 25.9%
C80: Paulo Mangia | D80: 4 | E80: =COUNTIFS(Jogos!$E:$E,$C80,Jogos!$N:$N,"V")+COUNTIFS(Jogos!$I:$I,$C80,Jogos!$O:$O,"V") -> 0 | F80: =COUNTIFS(Jogos!$E:$E,$C80,Jogos!$N:$N,"E")+COUNTIFS(Jogos!$I:$I,$C80,Jogos!$O:$O,"E") -> 4 | G80: =COUNTIFS(Jogos!$E:$E,$C80,Jogos!$N:$N,"D")+COUNTIFS(Jogos!$I:$I,$C80,Jogos!$O:$O,"D") -> 5 | H80: =SUMIFS(Jogos!$F:$F,Jogos!$E:$E,$C80)+SUMIFS(Jogos!$H:$H,Jogos!$I:$I,$C80) -> 4 | I80: =SUMIFS(Jogos!$H:$H,Jogos!$E:$E,$C80)+SUMIFS(Jogos!$F:$F,Jogos!$I:$I,$C80)+COUNTIFS(Jogos!$S:$S,"WWIND",Jogos!$E:$E,$C80)*2+COUNTIFS(Jogos!$S:$S,"WWIND",Jogos!$I:$I,$C80)*2 -> 12 | J80: -8 | N80: 9 | O80: 14.8%
C81: Thiago Stephan | D81: 16 | E81: =COUNTIFS(Jogos!$E:$E,$C81,Jogos!$N:$N,"V")+COUNTIFS(Jogos!$I:$I,$C81,Jogos!$O:$O,"V") -> 4 | F81: =COUNTIFS(Jogos!$E:$E,$C81,Jogos!$N:$N,"E")+COUNTIFS(Jogos!$I:$I,$C81,Jogos!$O:$O,"E") -> 4 | G81: =COUNTIFS(Jogos!$E:$E,$C81,Jogos!$N:$N,"D")+COUNTIFS(Jogos!$I:$I,$C81,Jogos!$O:$O,"D") -> 2 | H81: =SUMIFS(Jogos!$F:$F,Jogos!$E:$E,$C81)+SUMIFS(Jogos!$H:$H,Jogos!$I:$I,$C81) -> 16 | I81: =SUMIFS(Jogos!$H:$H,Jogos!$E:$E,$C81)+SUMIFS(Jogos!$F:$F,Jogos!$I:$I,$C81)+COUNTIFS(Jogos!$S:$S,"WWIND",Jogos!$E:$E,$C81)*2+COUNTIFS(Jogos!$S:$S,"WWIND",Jogos!$I:$I,$C81)*2 -> 11 | J81: 5 | N81: 10 | O81: 53.3%
B82: 14º | C82: ELDORADO | D82: =SUMIFS(ClaOUR!D:D,ClaOUR!$C:$C,$C82)+SUMIFS(ClaPRA!D:D,ClaPRA!$C:$C,$C82) -> 7 | E82: =SUMIFS(ClaOUR!E:E,ClaOUR!$C:$C,$C82)+SUMIFS(ClaPRA!E:E,ClaPRA!$C:$C,$C82) -> 2 | F82: =SUMIFS(ClaOUR!F:F,ClaOUR!$C:$C,$C82)+SUMIFS(ClaPRA!F:F,ClaPRA!$C:$C,$C82) -> 1 | G82: =SUMIFS(ClaOUR!G:G,ClaOUR!$C:$C,$C82)+SUMIFS(ClaPRA!G:G,ClaPRA!$C:$C,$C82) -> 6 | H82: =SUMIFS(ClaOUR!H:H,ClaOUR!$C:$C,$C82)+SUMIFS(ClaPRA!H:H,ClaPRA!$C:$C,$C82) -> 6 | I82: =SUMIFS(ClaOUR!I:I,ClaOUR!$C:$C,$C82)+SUMIFS(ClaPRA!I:I,ClaPRA!$C:$C,$C82) -> 18 | J82: =SUMIFS(ClaOUR!J:J,ClaOUR!$C:$C,$C82)+SUMIFS(ClaPRA!J:J,ClaPRA!$C:$C,$C82) -> -12 | K82: =SUMIFS(ClaOUR!K:K,ClaOUR!$C:$C,$C82)+SUMIFS(ClaPRA!K:K,ClaPRA!$C:$C,$C82) -> 24 | L82: =SUMIFS(ClaOUR!L:L,ClaOUR!$C:$C,$C82)+SUMIFS(ClaPRA!L:L,ClaPRA!$C:$C,$C82) -> 42 | M82: =SUMIFS(ClaOUR!M:M,ClaOUR!$C:$C,$C82)+SUMIFS(ClaPRA!M:M,ClaPRA!$C:$C,$C82) -> -18 | N82: 9 | O82: =D82/(N82*3) -> 25.9%
C83: Alex Lage | D83: 7 | E83: =COUNTIFS(Jogos!$E:$E,$C83,Jogos!$N:$N,"V")+COUNTIFS(Jogos!$I:$I,$C83,Jogos!$O:$O,"V") -> 1 | F83: =COUNTIFS(Jogos!$E:$E,$C83,Jogos!$N:$N,"E")+COUNTIFS(Jogos!$I:$I,$C83,Jogos!$O:$O,"E") -> 4 | G83: =COUNTIFS(Jogos!$E:$E,$C83,Jogos!$N:$N,"D")+COUNTIFS(Jogos!$I:$I,$C83,Jogos!$O:$O,"D") -> 4 | H83: =SUMIFS(Jogos!$F:$F,Jogos!$E:$E,$C83)+SUMIFS(Jogos!$H:$H,Jogos!$I:$I,$C83) -> 9 | I83: =SUMIFS(Jogos!$H:$H,Jogos!$E:$E,$C83)+SUMIFS(Jogos!$F:$F,Jogos!$I:$I,$C83)+COUNTIFS(Jogos!$S:$S,"WWIND",Jogos!$E:$E,$C83)*2+COUNTIFS(Jogos!$S:$S,"WWIND",Jogos!$I:$I,$C83)*2 -> 15 | J83: -6 | N83: 9 | O83: 25.9%
C84: Bernardo Pires | D84: 2 | E84: =COUNTIFS(Jogos!$E:$E,$C84,Jogos!$N:$N,"V")+COUNTIFS(Jogos!$I:$I,$C84,Jogos!$O:$O,"V") -> 0 | F84: =COUNTIFS(Jogos!$E:$E,$C84,Jogos!$N:$N,"E")+COUNTIFS(Jogos!$I:$I,$C84,Jogos!$O:$O,"E") -> 2 | G84: =COUNTIFS(Jogos!$E:$E,$C84,Jogos!$N:$N,"D")+COUNTIFS(Jogos!$I:$I,$C84,Jogos!$O:$O,"D") -> 7 | H84: =SUMIFS(Jogos!$F:$F,Jogos!$E:$E,$C84)+SUMIFS(Jogos!$H:$H,Jogos!$I:$I,$C84) -> 2 | I84: =SUMIFS(Jogos!$H:$H,Jogos!$E:$E,$C84)+SUMIFS(Jogos!$F:$F,Jogos!$I:$I,$C84)+COUNTIFS(Jogos!$S:$S,"WWIND",Jogos!$E:$E,$C84)*2+COUNTIFS(Jogos!$S:$S,"WWIND",Jogos!$I:$I,$C84)*2 -> 13 | J84: -11 | N84: 9 | O84: 7.4%
C85: Jorge Dias | D85: 8 | E85: =COUNTIFS(Jogos!$E:$E,$C85,Jogos!$N:$N,"V")+COUNTIFS(Jogos!$I:$I,$C85,Jogos!$O:$O,"V") -> 2 | F85: =COUNTIFS(Jogos!$E:$E,$C85,Jogos!$N:$N,"E")+COUNTIFS(Jogos!$I:$I,$C85,Jogos!$O:$O,"E") -> 2 | G85: =COUNTIFS(Jogos!$E:$E,$C85,Jogos!$N:$N,"D")+COUNTIFS(Jogos!$I:$I,$C85,Jogos!$O:$O,"D") -> 5 | H85: =SUMIFS(Jogos!$F:$F,Jogos!$E:$E,$C85)+SUMIFS(Jogos!$H:$H,Jogos!$I:$I,$C85) -> 7 | I85: =SUMIFS(Jogos!$H:$H,Jogos!$E:$E,$C85)+SUMIFS(Jogos!$F:$F,Jogos!$I:$I,$C85)+COUNTIFS(Jogos!$S:$S,"WWIND",Jogos!$E:$E,$C85)*2+COUNTIFS(Jogos!$S:$S,"WWIND",Jogos!$I:$I,$C85)*2 -> 9 | J85: -2 | N85: 9 | O85: 29.6%
C86: Jose Pires | D86: 13 | E86: =COUNTIFS(Jogos!$E:$E,$C86,Jogos!$N:$N,"V")+COUNTIFS(Jogos!$I:$I,$C86,Jogos!$O:$O,"V") -> 3 | F86: =COUNTIFS(Jogos!$E:$E,$C86,Jogos!$N:$N,"E")+COUNTIFS(Jogos!$I:$I,$C86,Jogos!$O:$O,"E") -> 4 | G86: =COUNTIFS(Jogos!$E:$E,$C86,Jogos!$N:$N,"D")+COUNTIFS(Jogos!$I:$I,$C86,Jogos!$O:$O,"D") -> 2 | H86: =SUMIFS(Jogos!$F:$F,Jogos!$E:$E,$C86)+SUMIFS(Jogos!$H:$H,Jogos!$I:$I,$C86) -> 6 | I86: =SUMIFS(Jogos!$H:$H,Jogos!$E:$E,$C86)+SUMIFS(Jogos!$F:$F,Jogos!$I:$I,$C86)+COUNTIFS(Jogos!$S:$S,"WWIND",Jogos!$E:$E,$C86)*2+COUNTIFS(Jogos!$S:$S,"WWIND",Jogos!$I:$I,$C86)*2 -> 5 | J86: 1 | N86: 9 | O86: 48.1%
B87: 15º | C87: GRÊMIO MINEIRO | D87: =SUMIFS(ClaOUR!D:D,ClaOUR!$C:$C,$C87)+SUMIFS(ClaPRA!D:D,ClaPRA!$C:$C,$C87) -> 5 | E87: =SUMIFS(ClaOUR!E:E,ClaOUR!$C:$C,$C87)+SUMIFS(ClaPRA!E:E,ClaPRA!$C:$C,$C87) -> 1 | F87: =SUMIFS(ClaOUR!F:F,ClaOUR!$C:$C,$C87)+SUMIFS(ClaPRA!F:F,ClaPRA!$C:$C,$C87) -> 2 | G87: =SUMIFS(ClaOUR!G:G,ClaOUR!$C:$C,$C87)+SUMIFS(ClaPRA!G:G,ClaPRA!$C:$C,$C87) -> 6 | H87: =SUMIFS(ClaOUR!H:H,ClaOUR!$C:$C,$C87)+SUMIFS(ClaPRA!H:H,ClaPRA!$C:$C,$C87) -> 7 | I87: =SUMIFS(ClaOUR!I:I,ClaOUR!$C:$C,$C87)+SUMIFS(ClaPRA!I:I,ClaPRA!$C:$C,$C87) -> 22 | J87: =SUMIFS(ClaOUR!J:J,ClaOUR!$C:$C,$C87)+SUMIFS(ClaPRA!J:J,ClaPRA!$C:$C,$C87) -> -15 | K87: =SUMIFS(ClaOUR!K:K,ClaOUR!$C:$C,$C87)+SUMIFS(ClaPRA!K:K,ClaPRA!$C:$C,$C87) -> 33 | L87: =SUMIFS(ClaOUR!L:L,ClaOUR!$C:$C,$C87)+SUMIFS(ClaPRA!L:L,ClaPRA!$C:$C,$C87) -> 63 | M87: =SUMIFS(ClaOUR!M:M,ClaOUR!$C:$C,$C87)+SUMIFS(ClaPRA!M:M,ClaPRA!$C:$C,$C87) -> -30 | N87: 9 | O87: =D87/(N87*3) -> 18.5%
C88: Fernando Vianna | D88: 5 | E88: =COUNTIFS(Jogos!$E:$E,$C88,Jogos!$N:$N,"V")+COUNTIFS(Jogos!$I:$I,$C88,Jogos!$O:$O,"V") -> 1 | F88: =COUNTIFS(Jogos!$E:$E,$C88,Jogos!$N:$N,"E")+COUNTIFS(Jogos!$I:$I,$C88,Jogos!$O:$O,"E") -> 2 | G88: =COUNTIFS(Jogos!$E:$E,$C88,Jogos!$N:$N,"D")+COUNTIFS(Jogos!$I:$I,$C88,Jogos!$O:$O,"D") -> 6 | H88: =SUMIFS(Jogos!$F:$F,Jogos!$E:$E,$C88)+SUMIFS(Jogos!$H:$H,Jogos!$I:$I,$C88) -> 5 | I88: =SUMIFS(Jogos!$H:$H,Jogos!$E:$E,$C88)+SUMIFS(Jogos!$F:$F,Jogos!$I:$I,$C88)+COUNTIFS(Jogos!$S:$S,"WWIND",Jogos!$E:$E,$C88)*2+COUNTIFS(Jogos!$S:$S,"WWIND",Jogos!$I:$I,$C88)*2 -> 14 | J88: -9 | N88: 9 | O88: 18.5%
C89: Gustavo Lopes | D89: 10 | E89: =COUNTIFS(Jogos!$E:$E,$C89,Jogos!$N:$N,"V")+COUNTIFS(Jogos!$I:$I,$C89,Jogos!$O:$O,"V") -> 2 | F89: =COUNTIFS(Jogos!$E:$E,$C89,Jogos!$N:$N,"E")+COUNTIFS(Jogos!$I:$I,$C89,Jogos!$O:$O,"E") -> 4 | G89: =COUNTIFS(Jogos!$E:$E,$C89,Jogos!$N:$N,"D")+COUNTIFS(Jogos!$I:$I,$C89,Jogos!$O:$O,"D") -> 3 | H89: =SUMIFS(Jogos!$F:$F,Jogos!$E:$E,$C89)+SUMIFS(Jogos!$H:$H,Jogos!$I:$I,$C89) -> 7 | I89: =SUMIFS(Jogos!$H:$H,Jogos!$E:$E,$C89)+SUMIFS(Jogos!$F:$F,Jogos!$I:$I,$C89)+COUNTIFS(Jogos!$S:$S,"WWIND",Jogos!$E:$E,$C89)*2+COUNTIFS(Jogos!$S:$S,"WWIND",Jogos!$I:$I,$C89)*2 -> 7 | J89: 0 | N89: 9 | O89: 37.0%
C90: Rodrigo Primola | D90: 1 | E90: =COUNTIFS(Jogos!$E:$E,$C90,Jogos!$N:$N,"V")+COUNTIFS(Jogos!$I:$I,$C90,Jogos!$O:$O,"V") -> 0 | F90: =COUNTIFS(Jogos!$E:$E,$C90,Jogos!$N:$N,"E")+COUNTIFS(Jogos!$I:$I,$C90,Jogos!$O:$O,"E") -> 1 | G90: =COUNTIFS(Jogos!$E:$E,$C90,Jogos!$N:$N,"D")+COUNTIFS(Jogos!$I:$I,$C90,Jogos!$O:$O,"D") -> 8 | H90: =SUMIFS(Jogos!$F:$F,Jogos!$E:$E,$C90)+SUMIFS(Jogos!$H:$H,Jogos!$I:$I,$C90) -> 5 | I90: =SUMIFS(Jogos!$H:$H,Jogos!$E:$E,$C90)+SUMIFS(Jogos!$F:$F,Jogos!$I:$I,$C90)+COUNTIFS(Jogos!$S:$S,"WWIND",Jogos!$E:$E,$C90)*2+COUNTIFS(Jogos!$S:$S,"WWIND",Jogos!$I:$I,$C90)*2 -> 25 | J90: -20 | N90: 9 | O90: 3.7%
C91: Vander Felipe | D91: 12 | E91: =COUNTIFS(Jogos!$E:$E,$C91,Jogos!$N:$N,"V")+COUNTIFS(Jogos!$I:$I,$C91,Jogos!$O:$O,"V") -> 4 | F91: =COUNTIFS(Jogos!$E:$E,$C91,Jogos!$N:$N,"E")+COUNTIFS(Jogos!$I:$I,$C91,Jogos!$O:$O,"E") -> 0 | G91: =COUNTIFS(Jogos!$E:$E,$C91,Jogos!$N:$N,"D")+COUNTIFS(Jogos!$I:$I,$C91,Jogos!$O:$O,"D") -> 5 | H91: =SUMIFS(Jogos!$F:$F,Jogos!$E:$E,$C91)+SUMIFS(Jogos!$H:$H,Jogos!$I:$I,$C91) -> 16 | I91: =SUMIFS(Jogos!$H:$H,Jogos!$E:$E,$C91)+SUMIFS(Jogos!$F:$F,Jogos!$I:$I,$C91)+COUNTIFS(Jogos!$S:$S,"WWIND",Jogos!$E:$E,$C91)*2+COUNTIFS(Jogos!$S:$S,"WWIND",Jogos!$I:$I,$C91)*2 -> 17 | J91: -1 | N91: 9 | O91: 44.4%
B92: 16º | C92: MATIAS [B] | D92: =SUMIFS(ClaOUR!D:D,ClaOUR!$C:$C,$C92)+SUMIFS(ClaPRA!D:D,ClaPRA!$C:$C,$C92) -> 1 | E92: =SUMIFS(ClaOUR!E:E,ClaOUR!$C:$C,$C92)+SUMIFS(ClaPRA!E:E,ClaPRA!$C:$C,$C92) -> 0 | F92: =SUMIFS(ClaOUR!F:F,ClaOUR!$C:$C,$C92)+SUMIFS(ClaPRA!F:F,ClaPRA!$C:$C,$C92) -> 1 | G92: =SUMIFS(ClaOUR!G:G,ClaOUR!$C:$C,$C92)+SUMIFS(ClaPRA!G:G,ClaPRA!$C:$C,$C92) -> 8 | H92: =SUMIFS(ClaOUR!H:H,ClaOUR!$C:$C,$C92)+SUMIFS(ClaPRA!H:H,ClaPRA!$C:$C,$C92) -> 4 | I92: =SUMIFS(ClaOUR!I:I,ClaOUR!$C:$C,$C92)+SUMIFS(ClaPRA!I:I,ClaPRA!$C:$C,$C92) -> 24 | J92: =SUMIFS(ClaOUR!J:J,ClaOUR!$C:$C,$C92)+SUMIFS(ClaPRA!J:J,ClaPRA!$C:$C,$C92) -> -20 | K92: =SUMIFS(ClaOUR!K:K,ClaOUR!$C:$C,$C92)+SUMIFS(ClaPRA!K:K,ClaPRA!$C:$C,$C92) -> 18 | L92: =SUMIFS(ClaOUR!L:L,ClaOUR!$C:$C,$C92)+SUMIFS(ClaPRA!L:L,ClaPRA!$C:$C,$C92) -> 61 | M92: =SUMIFS(ClaOUR!M:M,ClaOUR!$C:$C,$C92)+SUMIFS(ClaPRA!M:M,ClaPRA!$C:$C,$C92) -> -43 | N92: 9 | O92: =D92/(N92*3) -> 3.7%
C93: Ailson Brites | D93: 2 | E93: =COUNTIFS(Jogos!$E:$E,$C93,Jogos!$N:$N,"V")+COUNTIFS(Jogos!$I:$I,$C93,Jogos!$O:$O,"V") -> 0 | F93: =COUNTIFS(Jogos!$E:$E,$C93,Jogos!$N:$N,"E")+COUNTIFS(Jogos!$I:$I,$C93,Jogos!$O:$O,"E") -> 2 | G93: =COUNTIFS(Jogos!$E:$E,$C93,Jogos!$N:$N,"D")+COUNTIFS(Jogos!$I:$I,$C93,Jogos!$O:$O,"D") -> 7 | H93: =SUMIFS(Jogos!$F:$F,Jogos!$E:$E,$C93)+SUMIFS(Jogos!$H:$H,Jogos!$I:$I,$C93) -> 6 | I93: =SUMIFS(Jogos!$H:$H,Jogos!$E:$E,$C93)+SUMIFS(Jogos!$F:$F,Jogos!$I:$I,$C93)+COUNTIFS(Jogos!$S:$S,"WWIND",Jogos!$E:$E,$C93)*2+COUNTIFS(Jogos!$S:$S,"WWIND",Jogos!$I:$I,$C93)*2 -> 17 | J93: -11 | N93: 9 | O93: 7.4%
C94: Eber Chapinotti | D94: 8 | E94: =COUNTIFS(Jogos!$E:$E,$C94,Jogos!$N:$N,"V")+COUNTIFS(Jogos!$I:$I,$C94,Jogos!$O:$O,"V") -> 2 | F94: =COUNTIFS(Jogos!$E:$E,$C94,Jogos!$N:$N,"E")+COUNTIFS(Jogos!$I:$I,$C94,Jogos!$O:$O,"E") -> 2 | G94: =COUNTIFS(Jogos!$E:$E,$C94,Jogos!$N:$N,"D")+COUNTIFS(Jogos!$I:$I,$C94,Jogos!$O:$O,"D") -> 3 | H94: =SUMIFS(Jogos!$F:$F,Jogos!$E:$E,$C94)+SUMIFS(Jogos!$H:$H,Jogos!$I:$I,$C94) -> 5 | I94: =SUMIFS(Jogos!$H:$H,Jogos!$E:$E,$C94)+SUMIFS(Jogos!$F:$F,Jogos!$I:$I,$C94)+COUNTIFS(Jogos!$S:$S,"WWIND",Jogos!$E:$E,$C94)*2+COUNTIFS(Jogos!$S:$S,"WWIND",Jogos!$I:$I,$C94)*2 -> 8 | J94: -3 | N94: 7 | O94: 38.1%
C95: Humberto Ramos | D95: 0 | E95: =COUNTIFS(Jogos!$E:$E,$C95,Jogos!$N:$N,"V")+COUNTIFS(Jogos!$I:$I,$C95,Jogos!$O:$O,"V") -> 0 | F95: =COUNTIFS(Jogos!$E:$E,$C95,Jogos!$N:$N,"E")+COUNTIFS(Jogos!$I:$I,$C95,Jogos!$O:$O,"E") -> 0 | G95: =COUNTIFS(Jogos!$E:$E,$C95,Jogos!$N:$N,"D")+COUNTIFS(Jogos!$I:$I,$C95,Jogos!$O:$O,"D") -> 3 | H95: =SUMIFS(Jogos!$F:$F,Jogos!$E:$E,$C95)+SUMIFS(Jogos!$H:$H,Jogos!$I:$I,$C95) -> 0 | I95: =SUMIFS(Jogos!$H:$H,Jogos!$E:$E,$C95)+SUMIFS(Jogos!$F:$F,Jogos!$I:$I,$C95)+COUNTIFS(Jogos!$S:$S,"WWIND",Jogos!$E:$E,$C95)*2+COUNTIFS(Jogos!$S:$S,"WWIND",Jogos!$I:$I,$C95)*2 -> 11 | J95: -11 | N95: 3 | O95: 0.0%
C96: Mario Cleber | D96: 1 | E96: =COUNTIFS(Jogos!$E:$E,$C96,Jogos!$N:$N,"V")+COUNTIFS(Jogos!$I:$I,$C96,Jogos!$O:$O,"V") -> 0 | F96: =COUNTIFS(Jogos!$E:$E,$C96,Jogos!$N:$N,"E")+COUNTIFS(Jogos!$I:$I,$C96,Jogos!$O:$O,"E") -> 1 | G96: =COUNTIFS(Jogos!$E:$E,$C96,Jogos!$N:$N,"D")+COUNTIFS(Jogos!$I:$I,$C96,Jogos!$O:$O,"D") -> 4 | H96: =SUMIFS(Jogos!$F:$F,Jogos!$E:$E,$C96)+SUMIFS(Jogos!$H:$H,Jogos!$I:$I,$C96) -> 0 | I96: =SUMIFS(Jogos!$H:$H,Jogos!$E:$E,$C96)+SUMIFS(Jogos!$F:$F,Jogos!$I:$I,$C96)+COUNTIFS(Jogos!$S:$S,"WWIND",Jogos!$E:$E,$C96)*2+COUNTIFS(Jogos!$S:$S,"WWIND",Jogos!$I:$I,$C96)*2 -> 10 | J96: -10 | N96: 5 | O96: 6.7%
C97: Ricardo Sartine | D97: 0 | E97: =COUNTIFS(Jogos!$E:$E,$C97,Jogos!$N:$N,"V")+COUNTIFS(Jogos!$I:$I,$C97,Jogos!$O:$O,"V") -> 0 | F97: =COUNTIFS(Jogos!$E:$E,$C97,Jogos!$N:$N,"E")+COUNTIFS(Jogos!$I:$I,$C97,Jogos!$O:$O,"E") -> 0 | G97: =COUNTIFS(Jogos!$E:$E,$C97,Jogos!$N:$N,"D")+COUNTIFS(Jogos!$I:$I,$C97,Jogos!$O:$O,"D") -> 3 | H97: =SUMIFS(Jogos!$F:$F,Jogos!$E:$E,$C97)+SUMIFS(Jogos!$H:$H,Jogos!$I:$I,$C97) -> 0 | I97: =SUMIFS(Jogos!$H:$H,Jogos!$E:$E,$C97)+SUMIFS(Jogos!$F:$F,Jogos!$I:$I,$C97)+COUNTIFS(Jogos!$S:$S,"WWIND",Jogos!$E:$E,$C97)*2+COUNTIFS(Jogos!$S:$S,"WWIND",Jogos!$I:$I,$C97)*2 -> 8 | J97: -8 | N97: 3 | O97: 0.0%
C98: Romualdo Piccinini | D98: 9 | E98: =COUNTIFS(Jogos!$E:$E,$C98,Jogos!$N:$N,"V")+COUNTIFS(Jogos!$I:$I,$C98,Jogos!$O:$O,"V") -> 2 | F98: =COUNTIFS(Jogos!$E:$E,$C98,Jogos!$N:$N,"E")+COUNTIFS(Jogos!$I:$I,$C98,Jogos!$O:$O,"E") -> 3 | G98: =COUNTIFS(Jogos!$E:$E,$C98,Jogos!$N:$N,"D")+COUNTIFS(Jogos!$I:$I,$C98,Jogos!$O:$O,"D") -> 4 | H98: =SUMIFS(Jogos!$F:$F,Jogos!$E:$E,$C98)+SUMIFS(Jogos!$H:$H,Jogos!$I:$I,$C98) -> 7 | I98: =SUMIFS(Jogos!$H:$H,Jogos!$E:$E,$C98)+SUMIFS(Jogos!$F:$F,Jogos!$I:$I,$C98)+COUNTIFS(Jogos!$S:$S,"WWIND",Jogos!$E:$E,$C98)*2+COUNTIFS(Jogos!$S:$S,"WWIND",Jogos!$I:$I,$C98)*2 -> 7 | J98: 0 | N98: 9 | O98: 33.3%
B99: 17º | C99: CHACAL [B] | D99: =SUMIFS(ClaOUR!D:D,ClaOUR!$C:$C,$C99)+SUMIFS(ClaPRA!D:D,ClaPRA!$C:$C,$C99) -> 0 | E99: =SUMIFS(ClaOUR!E:E,ClaOUR!$C:$C,$C99)+SUMIFS(ClaPRA!E:E,ClaPRA!$C:$C,$C99) -> 0 | F99: =SUMIFS(ClaOUR!F:F,ClaOUR!$C:$C,$C99)+SUMIFS(ClaPRA!F:F,ClaPRA!$C:$C,$C99) -> 0 | G99: =SUMIFS(ClaOUR!G:G,ClaOUR!$C:$C,$C99)+SUMIFS(ClaPRA!G:G,ClaPRA!$C:$C,$C99) -> 8 | H99: =SUMIFS(ClaOUR!H:H,ClaOUR!$C:$C,$C99)+SUMIFS(ClaPRA!H:H,ClaPRA!$C:$C,$C99) -> 2 | I99: =SUMIFS(ClaOUR!I:I,ClaOUR!$C:$C,$C99)+SUMIFS(ClaPRA!I:I,ClaPRA!$C:$C,$C99) -> 24 | J99: =SUMIFS(ClaOUR!J:J,ClaOUR!$C:$C,$C99)+SUMIFS(ClaPRA!J:J,ClaPRA!$C:$C,$C99) -> -22 | K99: =SUMIFS(ClaOUR!K:K,ClaOUR!$C:$C,$C99)+SUMIFS(ClaPRA!K:K,ClaPRA!$C:$C,$C99) -> 10 | L99: =SUMIFS(ClaOUR!L:L,ClaOUR!$C:$C,$C99)+SUMIFS(ClaPRA!L:L,ClaPRA!$C:$C,$C99) -> 68 | M99: =SUMIFS(ClaOUR!M:M,ClaOUR!$C:$C,$C99)+SUMIFS(ClaPRA!M:M,ClaPRA!$C:$C,$C99) -> -58 | N99: 8 | O99: =D99/(N99*3) -> 0.0%
C100: Everton Costa | D100: 2 | E100: =COUNTIFS(Jogos!$E:$E,$C100,Jogos!$N:$N,"V")+COUNTIFS(Jogos!$I:$I,$C100,Jogos!$O:$O,"V") -> 0 | F100: =COUNTIFS(Jogos!$E:$E,$C100,Jogos!$N:$N,"E")+COUNTIFS(Jogos!$I:$I,$C100,Jogos!$O:$O,"E") -> 2 | G100: =COUNTIFS(Jogos!$E:$E,$C100,Jogos!$N:$N,"D")+COUNTIFS(Jogos!$I:$I,$C100,Jogos!$O:$O,"D") -> 4 | H100: =SUMIFS(Jogos!$F:$F,Jogos!$E:$E,$C100)+SUMIFS(Jogos!$H:$H,Jogos!$I:$I,$C100) -> 1 | I100: =SUMIFS(Jogos!$H:$H,Jogos!$E:$E,$C100)+SUMIFS(Jogos!$F:$F,Jogos!$I:$I,$C100)+COUNTIFS(Jogos!$S:$S,"WWIND",Jogos!$E:$E,$C100)*2+COUNTIFS(Jogos!$S:$S,"WWIND",Jogos!$I:$I,$C100)*2 -> 10 | J100: -9 | N100: 6 | O100: 11.1%
C101: Heman Junior | D101: 1 | E101: =COUNTIFS(Jogos!$E:$E,$C101,Jogos!$N:$N,"V")+COUNTIFS(Jogos!$I:$I,$C101,Jogos!$O:$O,"V") -> 0 | F101: =COUNTIFS(Jogos!$E:$E,$C101,Jogos!$N:$N,"E")+COUNTIFS(Jogos!$I:$I,$C101,Jogos!$O:$O,"E") -> 1 | G101: =COUNTIFS(Jogos!$E:$E,$C101,Jogos!$N:$N,"D")+COUNTIFS(Jogos!$I:$I,$C101,Jogos!$O:$O,"D") -> 3 | H101: =SUMIFS(Jogos!$F:$F,Jogos!$E:$E,$C101)+SUMIFS(Jogos!$H:$H,Jogos!$I:$I,$C101) -> 1 | I101: =SUMIFS(Jogos!$H:$H,Jogos!$E:$E,$C101)+SUMIFS(Jogos!$F:$F,Jogos!$I:$I,$C101)+COUNTIFS(Jogos!$S:$S,"WWIND",Jogos!$E:$E,$C101)*2+COUNTIFS(Jogos!$S:$S,"WWIND",Jogos!$I:$I,$C101)*2 -> 7 | J101: -6 | N101: 4 | O101: 8.3%
C102: Jefferson Rosa | D102: 3 | E102: =COUNTIFS(Jogos!$E:$E,$C102,Jogos!$N:$N,"V")+COUNTIFS(Jogos!$I:$I,$C102,Jogos!$O:$O,"V") -> 1 | F102: =COUNTIFS(Jogos!$E:$E,$C102,Jogos!$N:$N,"E")+COUNTIFS(Jogos!$I:$I,$C102,Jogos!$O:$O,"E") -> 0 | G102: =COUNTIFS(Jogos!$E:$E,$C102,Jogos!$N:$N,"D")+COUNTIFS(Jogos!$I:$I,$C102,Jogos!$O:$O,"D") -> 4 | H102: =SUMIFS(Jogos!$F:$F,Jogos!$E:$E,$C102)+SUMIFS(Jogos!$H:$H,Jogos!$I:$I,$C102) -> 2 | I102: =SUMIFS(Jogos!$H:$H,Jogos!$E:$E,$C102)+SUMIFS(Jogos!$F:$F,Jogos!$I:$I,$C102)+COUNTIFS(Jogos!$S:$S,"WWIND",Jogos!$E:$E,$C102)*2+COUNTIFS(Jogos!$S:$S,"WWIND",Jogos!$I:$I,$C102)*2 -> 13 | J102: -11 | N102: 5 | O102: 20.0%
C103: Lucas Luna | D103: 3 | E103: =COUNTIFS(Jogos!$E:$E,$C103,Jogos!$N:$N,"V")+COUNTIFS(Jogos!$I:$I,$C103,Jogos!$O:$O,"V") -> 1 | F103: =COUNTIFS(Jogos!$E:$E,$C103,Jogos!$N:$N,"E")+COUNTIFS(Jogos!$I:$I,$C103,Jogos!$O:$O,"E") -> 0 | G103: =COUNTIFS(Jogos!$E:$E,$C103,Jogos!$N:$N,"D")+COUNTIFS(Jogos!$I:$I,$C103,Jogos!$O:$O,"D") -> 6 | H103: =SUMIFS(Jogos!$F:$F,Jogos!$E:$E,$C103)+SUMIFS(Jogos!$H:$H,Jogos!$I:$I,$C103) -> 4 | I103: =SUMIFS(Jogos!$H:$H,Jogos!$E:$E,$C103)+SUMIFS(Jogos!$F:$F,Jogos!$I:$I,$C103)+COUNTIFS(Jogos!$S:$S,"WWIND",Jogos!$E:$E,$C103)*2+COUNTIFS(Jogos!$S:$S,"WWIND",Jogos!$I:$I,$C103)*2 -> 17 | J103: -13 | N103: 7 | O103: 14.3%
C104: Pablino Colen | D104: 0 | E104: =COUNTIFS(Jogos!$E:$E,$C104,Jogos!$N:$N,"V")+COUNTIFS(Jogos!$I:$I,$C104,Jogos!$O:$O,"V") -> 0 | F104: =COUNTIFS(Jogos!$E:$E,$C104,Jogos!$N:$N,"E")+COUNTIFS(Jogos!$I:$I,$C104,Jogos!$O:$O,"E") -> 0 | G104: =COUNTIFS(Jogos!$E:$E,$C104,Jogos!$N:$N,"D")+COUNTIFS(Jogos!$I:$I,$C104,Jogos!$O:$O,"D") -> 2 | H104: =SUMIFS(Jogos!$F:$F,Jogos!$E:$E,$C104)+SUMIFS(Jogos!$H:$H,Jogos!$I:$I,$C104) -> 0 | I104: =SUMIFS(Jogos!$H:$H,Jogos!$E:$E,$C104)+SUMIFS(Jogos!$F:$F,Jogos!$I:$I,$C104)+COUNTIFS(Jogos!$S:$S,"WWIND",Jogos!$E:$E,$C104)*2+COUNTIFS(Jogos!$S:$S,"WWIND",Jogos!$I:$I,$C104)*2 -> 3 | J104: -3 | N104: 2 | O104: 0.0%
C105: Rodolfo Magalhaes | D105: 3 | E105: =COUNTIFS(Jogos!$E:$E,$C105,Jogos!$N:$N,"V")+COUNTIFS(Jogos!$I:$I,$C105,Jogos!$O:$O,"V") -> 0 | F105: =COUNTIFS(Jogos!$E:$E,$C105,Jogos!$N:$N,"E")+COUNTIFS(Jogos!$I:$I,$C105,Jogos!$O:$O,"E") -> 3 | G105: =COUNTIFS(Jogos!$E:$E,$C105,Jogos!$N:$N,"D")+COUNTIFS(Jogos!$I:$I,$C105,Jogos!$O:$O,"D") -> 2 | H105: =SUMIFS(Jogos!$F:$F,Jogos!$E:$E,$C105)+SUMIFS(Jogos!$H:$H,Jogos!$I:$I,$C105) -> 2 | I105: =SUMIFS(Jogos!$H:$H,Jogos!$E:$E,$C105)+SUMIFS(Jogos!$F:$F,Jogos!$I:$I,$C105)+COUNTIFS(Jogos!$S:$S,"WWIND",Jogos!$E:$E,$C105)*2+COUNTIFS(Jogos!$S:$S,"WWIND",Jogos!$I:$I,$C105)*2 -> 6 | J105: -4 | N105: 5 | O105: 20.0%
C106: Vanderley da Silva | D106: 0 | E106: =COUNTIFS(Jogos!$E:$E,$C106,Jogos!$N:$N,"V")+COUNTIFS(Jogos!$I:$I,$C106,Jogos!$O:$O,"V") -> 0 | F106: =COUNTIFS(Jogos!$E:$E,$C106,Jogos!$N:$N,"E")+COUNTIFS(Jogos!$I:$I,$C106,Jogos!$O:$O,"E") -> 0 | G106: =COUNTIFS(Jogos!$E:$E,$C106,Jogos!$N:$N,"D")+COUNTIFS(Jogos!$I:$I,$C106,Jogos!$O:$O,"D") -> 3 | H106: =SUMIFS(Jogos!$F:$F,Jogos!$E:$E,$C106)+SUMIFS(Jogos!$H:$H,Jogos!$I:$I,$C106) -> 0 | I106: =SUMIFS(Jogos!$H:$H,Jogos!$E:$E,$C106)+SUMIFS(Jogos!$F:$F,Jogos!$I:$I,$C106)+COUNTIFS(Jogos!$S:$S,"WWIND",Jogos!$E:$E,$C106)*2+COUNTIFS(Jogos!$S:$S,"WWIND",Jogos!$I:$I,$C106)*2 -> 12 | J106: -12 | N106: 3 | O106: 0.0%

Sheet ClaOUR
A1: =ClaFIN!A1 -> XL CAMPEONATO BRASILEIRO INTERCLUBES / 2022
A2: =ClaFIN!A2 -> Matias Barbosa / MG, 15 a 17 de abril de 2022
A4: TAÇA DE OURO | D4: PG | E4: V | F4: E | G4: D | H4: GP | I4: GC | J4: SG | K4: GPI | L4: GCI | M4: SGI | N4: J
A5: PRIMEIRA FASE
A6: 01 | B6: 1º | C6: TUPI [A] | D6: =E6*3+F6 -> 24 | E6: =COUNTIFS(Jogos!$N:$N,"V",Jogos!$D:$D,$A6,Jogos!$E:$E,$C6)+COUNTIFS(Jogos!$O:$O,"V",Jogos!$D:$D,$A6,Jogos!$I:$I,$C6) -> 8 | F6: =COUNTIFS(Jogos!$N:$N,"E",Jogos!$D:$D,$A6,Jogos!$E:$E,$C6)+COUNTIFS(Jogos!$O:$O,"E",Jogos!$D:$D,$A6,Jogos!$I:$I,$C6) -> 0 | G6: =COUNTIFS(Jogos!$N:$N,"D",Jogos!$D:$D,$A6,Jogos!$E:$E,$C6)+COUNTIFS(Jogos!$O:$O,"D",Jogos!$D:$D,$A6,Jogos!$I:$I,$C6) -> 0 | H6: =SUMIFS(Jogos!$L:$L,Jogos!$D:$D,$A6,Jogos!$E:$E,$C6)+SUMIFS(Jogos!$Q:$Q,Jogos!$D:$D,$A6,Jogos!$I:$I,$C6) -> 21 | I6: =SUMIFS(Jogos!$Q:$Q,Jogos!$D:$D,$A6,Jogos!$E:$E,$C6)+SUMIFS(Jogos!$L:$L,Jogos!$D:$D,$A6,Jogos!$I:$I,$C6) -> 2 | J6: =H6-I6 -> 19 | K6: =SUMIFS(Jogos!$M:$M,Jogos!$D:$D,$A6,Jogos!$E:$E,$C6)+SUMIFS(Jogos!$P:$P,Jogos!$D:$D,$A6,Jogos!$I:$I,$C6) -> 57 | L6: =SUMIFS(Jogos!$P:$P,Jogos!$D:$D,$A6,Jogos!$E:$E,$C6)+SUMIFS(Jogos!$M:$M,Jogos!$D:$D,$A6,Jogos!$I:$I,$C6) -> 22 | M6: =K6-L6 -> 35 | N6: =SUM(E6:G6) -> 8
A7: 01 | B7: 2º | C7: BOTAFOGO | D7: 16 | E7: =COUNTIFS(Jogos!$N:$N,"V",Jogos!$D:$D,$A7,Jogos!$E:$E,$C7)+COUNTIFS(Jogos!$O:$O,"V",Jogos!$D:$D,$A7,Jogos!$I:$I,$C7) -> 5 | F7: =COUNTIFS(Jogos!$N:$N,"E",Jogos!$D:$D,$A7,Jogos!$E:$E,$C7)+COUNTIFS(Jogos!$O:$O,"E",Jogos!$D:$D,$A7,Jogos!$I:$I,$C7) -> 1 | G7: =COUNTIFS(Jogos!$N:$N,"D",Jogos!$D:$D,$A7,Jogos!$E:$E,$C7)+COUNTIFS(Jogos!$O:$O,"D",Jogos!$D:$D,$A7,Jogos!$I:$I,$C7) -> 2 | H7: =SUMIFS(Jogos!$L:$L,Jogos!$D:$D,$A7,Jogos!$E:$E,$C7)+SUMIFS(Jogos!$Q:$Q,Jogos!$D:$D,$A7,Jogos!$I:$I,$C7) -> 17 | I7: =SUMIFS(Jogos!$Q:$Q,Jogos!$D:$D,$A7,Jogos!$E:$E,$C7)+SUMIFS(Jogos!$L:$L,Jogos!$D:$D,$A7,Jogos!$I:$I,$C7) -> 7 | J7: 10 | K7: =SUMIFS(Jogos!$M:$M,Jogos!$D:$D,$A7,Jogos!$E:$E,$C7)+SUMIFS(Jogos!$P:$P,Jogos!$D:$D,$A7,Jogos!$I:$I,$C7) -> 41 | L7: =SUMIFS(Jogos!$P:$P,Jogos!$D:$D,$A7,Jogos!$E:$E,$C7)+SUMIFS(Jogos!$M:$M,Jogos!$D:$D,$A7,Jogos!$I:$I,$C7) -> 24 | M7: 17 | N7: 8
A8: 01 | B8: 3º | C8: LIBERDADE [B] | D8: 15 | E8: =COUNTIFS(Jogos!$N:$N,"V",Jogos!$D:$D,$A8,Jogos!$E:$E,$C8)+COUNTIFS(Jogos!$O:$O,"V",Jogos!$D:$D,$A8,Jogos!$I:$I,$C8) -> 5 | F8: =COUNTIFS(Jogos!$N:$N,"E",Jogos!$D:$D,$A8,Jogos!$E:$E,$C8)+COUNTIFS(Jogos!$O:$O,"E",Jogos!$D:$D,$A8,Jogos!$I:$I,$C8) -> 0 | G8: =COUNTIFS(Jogos!$N:$N,"D",Jogos!$D:$D,$A8,Jogos!$E:$E,$C8)+COUNTIFS(Jogos!$O:$O,"D",Jogos!$D:$D,$A8,Jogos!$I:$I,$C8) -> 3 | H8: =SUMIFS(Jogos!$L:$L,Jogos!$D:$D,$A8,Jogos!$E:$E,$C8)+SUMIFS(Jogos!$Q:$Q,Jogos!$D:$D,$A8,Jogos!$I:$I,$C8) -> 13 | I8: =SUMIFS(Jogos!$Q:$Q,Jogos!$D:$D,$A8,Jogos!$E:$E,$C8)+SUMIFS(Jogos!$L:$L,Jogos!$D:$D,$A8,Jogos!$I:$I,$C8) -> 11 | J8: 2 | K8: =SUMIFS(Jogos!$M:$M,Jogos!$D:$D,$A8,Jogos!$E:$E,$C8)+SUMIFS(Jogos!$P:$P,Jogos!$D:$D,$A8,Jogos!$I:$I,$C8) -> 34 | L8: =SUMIFS(Jogos!$P:$P,Jogos!$D:$D,$A8,Jogos!$E:$E,$C8)+SUMIFS(Jogos!$M:$M,Jogos!$D:$D,$A8,Jogos!$I:$I,$C8) -> 28 | M8: 6 | N8: 8
A9: 01 | B9: 4º | C9: AABB/ACAFUMA [A] | D9: 14 | E9: =COUNTIFS(Jogos!$N:$N,"V",Jogos!$D:$D,$A9,Jogos!$E:$E,$C9)+COUNTIFS(Jogos!$O:$O,"V",Jogos!$D:$D,$A9,Jogos!$I:$I,$C9) -> 4 | F9: =COUNTIFS(Jogos!$N:$N,"E",Jogos!$D:$D,$A9,Jogos!$E:$E,$C9)+COUNTIFS(Jogos!$O:$O,"E",Jogos!$D:$D,$A9,Jogos!$I:$I,$C9) -> 2 | G9: =COUNTIFS(Jogos!$N:$N,"D",Jogos!$D:$D,$A9,Jogos!$E:$E,$C9)+COUNTIFS(Jogos!$O:$O,"D",Jogos!$D:$D,$A9,Jogos!$I:$I,$C9) -> 2 | H9: =SUMIFS(Jogos!$L:$L,Jogos!$D:$D,$A9,Jogos!$E:$E,$C9)+SUMIFS(Jogos!$Q:$Q,Jogos!$D:$D,$A9,Jogos!$I:$I,$C9) -> 16 | I9: =SUMIFS(Jogos!$Q:$Q,Jogos!$D:$D,$A9,Jogos!$E:$E,$C9)+SUMIFS(Jogos!$L:$L,Jogos!$D:$D,$A9,Jogos!$I:$I,$C9) -> 7 | J9: 9 | K9: =SUMIFS(Jogos!$M:$M,Jogos!$D:$D,$A9,Jogos!$E:$E,$C9)+SUMIFS(Jogos!$P:$P,Jogos!$D:$D,$A9,Jogos!$I:$I,$C9) -> 49 | L9: =SUMIFS(Jogos!$P:$P,Jogos!$D:$D,$A9,Jogos!$E:$E,$C9)+SUMIFS(Jogos!$M:$M,Jogos!$D:$D,$A9,Jogos!$I:$I,$C9) -> 20 | M9: 29 | N9: 8
A10: 01 | B10: 5º | C10: AABB/ACAFUMA [C] | D10: 11 | E10: =COUNTIFS(Jogos!$N:$N,"V",Jogos!$D:$D,$A10,Jogos!$E:$E,$C10)+COUNTIFS(Jogos!$O:$O,"V",Jogos!$D:$D,$A10,Jogos!$I:$I,$C10) -> 3 | F10: =COUNTIFS(Jogos!$N:$N,"E",Jogos!$D:$D,$A10,Jogos!$E:$E,$C10)+COUNTIFS(Jogos!$O:$O,"E",Jogos!$D:$D,$A10,Jogos!$I:$I,$C10) -> 2 | G10: =COUNTIFS(Jogos!$N:$N,"D",Jogos!$D:$D,$A10,Jogos!$E:$E,$C10)+COUNTIFS(Jogos!$O:$O,"D",Jogos!$D:$D,$A10,Jogos!$I:$I,$C10) -> 3 | H10: =SUMIFS(Jogos!$L:$L,Jogos!$D:$D,$A10,Jogos!$E:$E,$C10)+SUMIFS(Jogos!$Q:$Q,Jogos!$D:$D,$A10,Jogos!$I:$I,$C10) -> 12 | I10: =SUMIFS(Jogos!$Q:$Q,Jogos!$D:$D,$A10,Jogos!$E:$E,$C10)+SUMIFS(Jogos!$L:$L,Jogos!$D:$D,$A10,Jogos!$I:$I,$C10) -> 11 | J10: 1 | K10: =SUMIFS(Jogos!$M:$M,Jogos!$D:$D,$A10,Jogos!$E:$E,$C10)+SUMIFS(Jogos!$P:$P,Jogos!$D:$D,$A10,Jogos!$I:$I,$C10) -> 30 | L10: =SUMIFS(Jogos!$P:$P,Jogos!$D:$D,$A10,Jogos!$E:$E,$C10)+SUMIFS(Jogos!$M:$M,Jogos!$D:$D,$A10,Jogos!$I:$I,$C10) -> 36 | M10: -6 | N10: 8
A11: 01 | B11: 6º | C11: COMARY | D11: 10 | E11: =COUNTIFS(Jogos!$N:$N,"V",Jogos!$D:$D,$A11,Jogos!$E:$E,$C11)+COUNTIFS(Jogos!$O:$O,"V",Jogos!$D:$D,$A11,Jogos!$I:$I,$C11) -> 3 | F11: =COUNTIFS(Jogos!$N:$N,"E",Jogos!$D:$D,$A11,Jogos!$E:$E,$C11)+COUNTIFS(Jogos!$O:$O,"E",Jogos!$D:$D,$A11,Jogos!$I:$I,$C11) -> 1 | G11: =COUNTIFS(Jogos!$N:$N,"D",Jogos!$D:$D,$A11,Jogos!$E:$E,$C11)+COUNTIFS(Jogos!$O:$O,"D",Jogos!$D:$D,$A11,Jogos!$I:$I,$C11) -> 4 | H11: =SUMIFS(Jogos!$L:$L,Jogos!$D:$D,$A11,Jogos!$E:$E,$C11)+SUMIFS(Jogos!$Q:$Q,Jogos!$D:$D,$A11,Jogos!$I:$I,$C11) -> 10 | I11: =SUMIFS(Jogos!$Q:$Q,Jogos!$D:$D,$A11,Jogos!$E:$E,$C11)+SUMIFS(Jogos!$L:$L,Jogos!$D:$D,$A11,Jogos!$I:$I,$C11) -> 12 | J11: -2 | K11: =SUMIFS(Jogos!$M:$M,Jogos!$D:$D,$A11,Jogos!$E:$E,$C11)+SUMIFS(Jogos!$P:$P,Jogos!$D:$D,$A11,Jogos!$I:$I,$C11) -> 30 | L11: =SUMIFS(Jogos!$P:$P,Jogos!$D:$D,$A11,Jogos!$E:$E,$C11)+SUMIFS(Jogos!$M:$M,Jogos!$D:$D,$A11,Jogos!$I:$I,$C11) -> 38 | M11: -8 | N11: 8
A12: 01 | B12: 7º | C12: CHACAL [A] | D12: 7 | E12: =COUNTIFS(Jogos!$N:$N,"V",Jogos!$D:$D,$A12,Jogos!$E:$E,$C12)+COUNTIFS(Jogos!$O:$O,"V",Jogos!$D:$D,$A12,Jogos!$I:$I,$C12) -> 2 | F12: =COUNTIFS(Jogos!$N:$N,"E",Jogos!$D:$D,$A12,Jogos!$E:$E,$C12)+COUNTIFS(Jogos!$O:$O,"E",Jogos!$D:$D,$A12,Jogos!$I:$I,$C12) -> 1 | G12: =COUNTIFS(Jogos!$N:$N,"D",Jogos!$D:$D,$A12,Jogos!$E:$E,$C12)+COUNTIFS(Jogos!$O:$O,"D",Jogos!$D:$D,$A12,Jogos!$I:$I,$C12) -> 5 | H12: =SUMIFS(Jogos!$L:$L,Jogos!$D:$D,$A12,Jogos!$E:$E,$C12)+SUMIFS(Jogos!$Q:$Q,Jogos!$D:$D,$A12,Jogos!$I:$I,$C12) -> 6 | I12: =SUMIFS(Jogos!$Q:$Q,Jogos!$D:$D,$A12,Jogos!$E:$E,$C12)+SUMIFS(Jogos!$L:$L,Jogos!$D:$D,$A12,Jogos!$I:$I,$C12) -> 13 | J12: -7 | K12: =SUMIFS(Jogos!$M:$M,Jogos!$D:$D,$A12,Jogos!$E:$E,$C12)+SUMIFS(Jogos!$P:$P,Jogos!$D:$D,$A12,Jogos!$I:$I,$C12) -> 32 | L12: =SUMIFS(Jogos!$P:$P,Jogos!$D:$D,$A12,Jogos!$E:$E,$C12)+SUMIFS(Jogos!$M:$M,Jogos!$D:$D,$A12,Jogos!$I:$I,$C12) -> 42 | M12: -10 | N12: 8
A13: 01 | B13: 8º | C13: GRÊMIO MINEIRO | D13: 5 | E13: =COUNTIFS(Jogos!$N:$N,"V",Jogos!$D:$D,$A13,Jogos!$E:$E,$C13)+COUNTIFS(Jogos!$O:$O,"V",Jogos!$D:$D,$A13,Jogos!$I:$I,$C13) -> 1 | F13: =COUNTIFS(Jogos!$N:$N,"E",Jogos!$D:$D,$A13,Jogos!$E:$E,$C13)+COUNTIFS(Jogos!$O:$O,"E",Jogos!$D:$D,$A13,Jogos!$I:$I,$C13) -> 2 | G13: =COUNTIFS(Jogos!$N:$N,"D",Jogos!$D:$D,$A13,Jogos!$E:$E,$C13)+COUNTIFS(Jogos!$O:$O,"D",Jogos!$D:$D,$A13,Jogos!$I:$I,$C13) -> 5 | H13: =SUMIFS(Jogos!$L:$L,Jogos!$D:$D,$A13,Jogos!$E:$E,$C13)+SUMIFS(Jogos!$Q:$Q,Jogos!$D:$D,$A13,Jogos!$I:$I,$C13) -> 6 | I13: =SUMIFS(Jogos!$Q:$Q,Jogos!$D:$D,$A13,Jogos!$E:$E,$C13)+SUMIFS(Jogos!$L:$L,Jogos!$D:$D,$A13,Jogos!$I:$I,$C13) -> 20 | J13: -14 | K13: =SUMIFS(Jogos!$M:$M,Jogos!$D:$D,$A13,Jogos!$E:$E,$C13)+SUMIFS(Jogos!$P:$P,Jogos!$D:$D,$A13,Jogos!$I:$I,$C13) -> 31 | L13: =SUMIFS(Jogos!$P:$P,Jogos!$D:$D,$A13,Jogos!$E:$E,$C13)+SUMIFS(Jogos!$M:$M,Jogos!$D:$D,$A13,Jogos!$I:$I,$C13) -> 56 | M13: -25 | N13: 8
A14: 01 | B14: 9º | C14: MATIAS [B] | D14: 1 | E14: =COUNTIFS(Jogos!$N:$N,"V",Jogos!$D:$D,$A14,Jogos!$E:$E,$C14)+COUNTIFS(Jogos!$O:$O,"V",Jogos!$D:$D,$A14,Jogos!$I:$I,$C14) -> 0 | F14: =COUNTIFS(Jogos!$N:$N,"E",Jogos!$D:$D,$A14,Jogos!$E:$E,$C14)+COUNTIFS(Jogos!$O:$O,"E",Jogos!$D:$D,$A14,Jogos!$I:$I,$C14) -> 1 | G14: =COUNTIFS(Jogos!$N:$N,"D",Jogos!$D:$D,$A14,Jogos!$E:$E,$C14)+COUNTIFS(Jogos!$O:$O,"D",Jogos!$D:$D,$A14,Jogos!$I:$I,$C14) -> 7 | H14: =SUMIFS(Jogos!$L:$L,Jogos!$D:$D,$A14,Jogos!$E:$E,$C14)+SUMIFS(Jogos!$Q:$Q,Jogos!$D:$D,$A14,Jogos!$I:$I,$C14) -> 4 | I14: =SUMIFS(Jogos!$Q:$Q,Jogos!$D:$D,$A14,Jogos!$E:$E,$C14)+SUMIFS(Jogos!$L:$L,Jogos!$D:$D,$A14,Jogos!$I:$I,$C14) -> 22 | J14: -18 | K14: =SUMIFS(Jogos!$M:$M,Jogos!$D:$D,$A14,Jogos!$E:$E,$C14)+SUMIFS(Jogos!$P:$P,Jogos!$D:$D,$A14,Jogos!$I:$I,$C14) -> 17 | L14: =SUMIFS(Jogos!$P:$P,Jogos!$D:$D,$A14,Jogos!$E:$E,$C14)+SUMIFS(Jogos!$M:$M,Jogos!$D:$D,$A14,Jogos!$I:$I,$C14) -> 55 | M14: -38 | N14: 8
A15: 02 | B15: 1º | C15: LIBERDADE [A] | D15: 19 | E15: =COUNTIFS(Jogos!$N:$N,"V",Jogos!$D:$D,$A15,Jogos!$E:$E,$C15)+COUNTIFS(Jogos!$O:$O,"V",Jogos!$D:$D,$A15,Jogos!$I:$I,$C15) -> 6 | F15: =COUNTIFS(Jogos!$N:$N,"E",Jogos!$D:$D,$A15,Jogos!$E:$E,$C15)+COUNTIFS(Jogos!$O:$O,"E",Jogos!$D:$D,$A15,Jogos!$I:$I,$C15) -> 1 | G15: =COUNTIFS(Jogos!$N:$N,"D",Jogos!$D:$D,$A15,Jogos!$E:$E,$C15)+COUNTIFS(Jogos!$O:$O,"D",Jogos!$D:$D,$A15,Jogos!$I:$I,$C15) -> 0 | H15: =SUMIFS(Jogos!$L:$L,Jogos!$D:$D,$A15,Jogos!$E:$E,$C15)+SUMIFS(Jogos!$Q:$Q,Jogos!$D:$D,$A15,Jogos!$I:$I,$C15) -> 19 | I15: =SUMIFS(Jogos!$Q:$Q,Jogos!$D:$D,$A15,Jogos!$E:$E,$C15)+SUMIFS(Jogos!$L:$L,Jogos!$D:$D,$A15,Jogos!$I:$I,$C15) -> 5 | J15: 14 | K15: =SUMIFS(Jogos!$M:$M,Jogos!$D:$D,$A15,Jogos!$E:$E,$C15)+SUMIFS(Jogos!$P:$P,Jogos!$D:$D,$A15,Jogos!$I:$I,$C15) -> 50 | L15: =SUMIFS(Jogos!$P:$P,Jogos!$D:$D,$A15,Jogos!$E:$E,$C15)+SUMIFS(Jogos!$M:$M,Jogos!$D:$D,$A15,Jogos!$I:$I,$C15) -> 21 | M15: 29 | N15: 7
A16: 02 | B16: 2º | C16: UNIÃO INDEPENDENTE/UBERABA | D16: 13 | E16: =COUNTIFS(Jogos!$N:$N,"V",Jogos!$D:$D,$A16,Jogos!$E:$E,$C16)+COUNTIFS(Jogos!$O:$O,"V",Jogos!$D:$D,$A16,Jogos!$I:$I,$C16) -> 4 | F16: =COUNTIFS(Jogos!$N:$N,"E",Jogos!$D:$D,$A16,Jogos!$E:$E,$C16)+COUNTIFS(Jogos!$O:$O,"E",Jogos!$D:$D,$A16,Jogos!$I:$I,$C16) -> 1 | G16: =COUNTIFS(Jogos!$N:$N,"D",Jogos!$D:$D,$A16,Jogos!$E:$E,$C16)+COUNTIFS(Jogos!$O:$O,"D",Jogos!$D:$D,$A16,Jogos!$I:$I,$C16) -> 2 | H16: =SUMIFS(Jogos!$L:$L,Jogos!$D:$D,$A16,Jogos!$E:$E,$C16)+SUMIFS(Jogos!$Q:$Q,Jogos!$D:$D,$A16,Jogos!$I:$I,$C16) -> 14 | I16: =SUMIFS(Jogos!$Q:$Q,Jogos!$D:$D,$A16,Jogos!$E:$E,$C16)+SUMIFS(Jogos!$L:$L,Jogos!$D:$D,$A16,Jogos!$I:$I,$C16) -> 7 | J16: 7 | K16: =SUMIFS(Jogos!$M:$M,Jogos!$D:$D,$A16,Jogos!$E:$E,$C16)+SUMIFS(Jogos!$P:$P,Jogos!$D:$D,$A16,Jogos!$I:$I,$C16) -> 38 | L16: =SUMIFS(Jogos!$P:$P,Jogos!$D:$D,$A16,Jogos!$E:$E,$C16)+SUMIFS(Jogos!$M:$M,Jogos!$D:$D,$A16,Jogos!$I:$I,$C16) -> 26 | M16: 12 | N16: 7
A17: 02 | B17: 3º | C17: MATIAS [A] | D17: 13 | E17: =COUNTIFS(Jogos!$N:$N,"V",Jogos!$D:$D,$A17,Jogos!$E:$E,$C17)+COUNTIFS(Jogos!$O:$O,"V",Jogos!$D:$D,$A17,Jogos!$I:$I,$C17) -> 4 | F17: =COUNTIFS(Jogos!$N:$N,"E",Jogos!$D:$D,$A17,Jogos!$E:$E,$C17)+COUNTIFS(Jogos!$O:$O,"E",Jogos!$D:$D,$A17,Jogos!$I:$I,$C17) -> 1 | G17: =COUNTIFS(Jogos!$N:$N,"D",Jogos!$D:$D,$A17,Jogos!$E:$E,$C17)+COUNTIFS(Jogos!$O:$O,"D",Jogos!$D:$D,$A17,Jogos!$I:$I,$C17) -> 2 | H17: =SUMIFS(Jogos!$L:$L,Jogos!$D:$D,$A17,Jogos!$E:$E,$C17)+SUMIFS(Jogos!$Q:$Q,Jogos!$D:$D,$A17,Jogos!$I:$I,$C17) -> 16 | I17: =SUMIFS(Jogos!$Q:$Q,Jogos!$D:$D,$A17,Jogos!$E:$E,$C17)+SUMIFS(Jogos!$L:$L,Jogos!$D:$D,$A17,Jogos!$I:$I,$C17) -> 11 | J17: 5 | K17: =SUMIFS(Jogos!$M:$M,Jogos!$D:$D,$A17,Jogos!$E:$E,$C17)+SUMIFS(Jogos!$P:$P,Jogos!$D:$D,$A17,Jogos!$I:$I,$C17) -> 34 | L17: =SUMIFS(Jogos!$P:$P,Jogos!$D:$D,$A17,Jogos!$E:$E,$C17)+SUMIFS(Jogos!$M:$M,Jogos!$D:$D,$A17,Jogos!$I:$I,$C17) -> 24 | M17: 10 | N17: 7
A18: 02 | B18: 4º | C18: TUPI [B] | D18: 12 | E18: =COUNTIFS(Jogos!$N:$N,"V",Jogos!$D:$D,$A18,Jogos!$E:$E,$C18)+COUNTIFS(Jogos!$O:$O,"V",Jogos!$D:$D,$A18,Jogos!$I:$I,$C18) -> 4 | F18: =COUNTIFS(Jogos!$N:$N,"E",Jogos!$D:$D,$A18,Jogos!$E:$E,$C18)+COUNTIFS(Jogos!$O:$O,"E",Jogos!$D:$D,$A18,Jogos!$I:$I,$C18) -> 0 | G18: =COUNTIFS(Jogos!$N:$N,"D",Jogos!$D:$D,$A18,Jogos!$E:$E,$C18)+COUNTIFS(Jogos!$O:$O,"D",Jogos!$D:$D,$A18,Jogos!$I:$I,$C18) -> 3 | H18: =SUMIFS(Jogos!$L:$L,Jogos!$D:$D,$A18,Jogos!$E:$E,$C18)+SUMIFS(Jogos!$Q:$Q,Jogos!$D:$D,$A18,Jogos!$I:$I,$C18) -> 11 | I18: =SUMIFS(Jogos!$Q:$Q,Jogos!$D:$D,$A18,Jogos!$E:$E,$C18)+SUMIFS(Jogos!$L:$L,Jogos!$D:$D,$A18,Jogos!$I:$I,$C18) -> 7 | J18: 4 | K18: =SUMIFS(Jogos!$M:$M,Jogos!$D:$D,$A18,Jogos!$E:$E,$C18)+SUMIFS(Jogos!$P:$P,Jogos!$D:$D,$A18,Jogos!$I:$I,$C18) -> 33 | L18: =SUMIFS(Jogos!$P:$P,Jogos!$D:$D,$A18,Jogos!$E:$E,$C18)+SUMIFS(Jogos!$M:$M,Jogos!$D:$D,$A18,Jogos!$I:$I,$C18) -> 27 | M18: 6 | N18: 7
A19: 02 | B19: 5º | C19: VASCO DA GAMA | D19: 11 | E19: =COUNTIFS(Jogos!$N:$N,"V",Jogos!$D:$D,$A19,Jogos!$E:$E,$C19)+COUNTIFS(Jogos!$O:$O,"V",Jogos!$D:$D,$A19,Jogos!$I:$I,$C19) -> 3 | F19: =COUNTIFS(Jogos!$N:$N,"E",Jogos!$D:$D,$A19,Jogos!$E:$E,$C19)+COUNTIFS(Jogos!$O:$O,"E",Jogos!$D:$D,$A19,Jogos!$I:$I,$C19) -> 2 | G19: =COUNTIFS(Jogos!$N:$N,"D",Jogos!$D:$D,$A19,Jogos!$E:$E,$C19)+COUNTIFS(Jogos!$O:$O,"D",Jogos!$D:$D,$A19,Jogos!$I:$I,$C19) -> 2 | H19: =SUMIFS(Jogos!$L:$L,Jogos!$D:$D,$A19,Jogos!$E:$E,$C19)+SUMIFS(Jogos!$Q:$Q,Jogos!$D:$D,$A19,Jogos!$I:$I,$C19) -> 10 | I19: =SUMIFS(Jogos!$Q:$Q,Jogos!$D:$D,$A19,Jogos!$E:$E,$C19)+SUMIFS(Jogos!$L:$L,Jogos!$D:$D,$A19,Jogos!$I:$I,$C19) -> 10 | J19: 0 | K19: =SUMIFS(Jogos!$M:$M,Jogos!$D:$D,$A19,Jogos!$E:$E,$C19)+SUMIFS(Jogos!$P:$P,Jogos!$D:$D,$A19,Jogos!$I:$I,$C19) -> 35 | L19: =SUMIFS(Jogos!$P:$P,Jogos!$D:$D,$A19,Jogos!$E:$E,$C19)+SUMIFS(Jogos!$M:$M,Jogos!$D:$D,$A19,Jogos!$I:$I,$C19) -> 27 | M19: 8 | N19: 7
A20: 02 | B20: 6º | C20: AABB/ACAFUMA [B] | D20: 9 | E20: =COUNTIFS(Jogos!$N:$N,"V",Jogos!$D:$D,$A20,Jogos!$E:$E,$C20)+COUNTIFS(Jogos!$O:$O,"V",Jogos!$D:$D,$A20,Jogos!$I:$I,$C20) -> 3 | F20: =COUNTIFS(Jogos!$N:$N,"E",Jogos!$D:$D,$A20,Jogos!$E:$E,$C20)+COUNTIFS(Jogos!$O:$O,"E",Jogos!$D:$D,$A20,Jogos!$I:$I,$C20) -> 0 | G20: =COUNTIFS(Jogos!$N:$N,"D",Jogos!$D:$D,$A20,Jogos!$E:$E,$C20)+COUNTIFS(Jogos!$O:$O,"D",Jogos!$D:$D,$A20,Jogos!$I:$I,$C20) -> 4 | H20: =SUMIFS(Jogos!$L:$L,Jogos!$D:$D,$A20,Jogos!$E:$E,$C20)+SUMIFS(Jogos!$Q:$Q,Jogos!$D:$D,$A20,Jogos!$I:$I,$C20) -> 9 | I20: =SUMIFS(Jogos!$Q:$Q,Jogos!$D:$D,$A20,Jogos!$E:$E,$C20)+SUMIFS(Jogos!$L:$L,Jogos!$D:$D,$A20,Jogos!$I:$I,$C20) -> 8 | J20: 1 | K20: =SUMIFS(Jogos!$M:$M,Jogos!$D:$D,$A20,Jogos!$E:$E,$C20)+SUMIFS(Jogos!$P:$P,Jogos!$D:$D,$A20,Jogos!$I:$I,$C20) -> 31 | L20: =SUMIFS(Jogos!$P:$P,Jogos!$D:$D,$A20,Jogos!$E:$E,$C20)+SUMIFS(Jogos!$M:$M,Jogos!$D:$D,$A20,Jogos!$I:$I,$C20) -> 29 | M20: 2 | N20: 7
A21: 02 | B21: 7º | C21: ELDORADO | D21: 4 | E21: =COUNTIFS(Jogos!$N:$N,"V",Jogos!$D:$D,$A21,Jogos!$E:$E,$C21)+COUNTIFS(Jogos!$O:$O,"V",Jogos!$D:$D,$A21,Jogos!$I:$I,$C21) -> 1 | F21: =COUNTIFS(Jogos!$N:$N,"E",Jogos!$D:$D,$A21,Jogos!$E:$E,$C21)+COUNTIFS(Jogos!$O:$O,"E",Jogos!$D:$D,$A21,Jogos!$I:$I,$C21) -> 1 | G21: =COUNTIFS(Jogos!$N:$N,"D",Jogos!$D:$D,$A21,Jogos!$E:$E,$C21)+COUNTIFS(Jogos!$O:$O,"D",Jogos!$D:$D,$A21,Jogos!$I:$I,$C21) -> 5 | H21: =SUMIFS(Jogos!$L:$L,Jogos!$D:$D,$A21,Jogos!$E:$E,$C21)+SUMIFS(Jogos!$Q:$Q,Jogos!$D:$D,$A21,Jogos!$I:$I,$C21) -> 4 | I21: =SUMIFS(Jogos!$Q:$Q,Jogos!$D:$D,$A21,Jogos!$E:$E,$C21)+SUMIFS(Jogos!$L:$L,Jogos!$D:$D,$A21,Jogos!$I:$I,$C21) -> 16 | J21: -12 | K21: =SUMIFS(Jogos!$M:$M,Jogos!$D:$D,$A21,Jogos!$E:$E,$C21)+SUMIFS(Jogos!$P:$P,Jogos!$D:$D,$A21,Jogos!$I:$I,$C21) -> 15 | L21: =SUMIFS(Jogos!$P:$P,Jogos!$D:$D,$A21,Jogos!$E:$E,$C21)+SUMIFS(Jogos!$M:$M,Jogos!$D:$D,$A21,Jogos!$I:$I,$C21) -> 36 | M21: -21 | N21: 7
A22: 02 | B22: 8º | C22: CHACAL [B] | D22: 0 | E22: =COUNTIFS(Jogos!$N:$N,"V",Jogos!$D:$D,$A22,Jogos!$E:$E,$C22)+COUNTIFS(Jogos!$O:$O,"V",Jogos!$D:$D,$A22,Jogos!$I:$I,$C22) -> 0 | F22: =COUNTIFS(Jogos!$N:$N,"E",Jogos!$D:$D,$A22,Jogos!$E:$E,$C22)+COUNTIFS(Jogos!$O:$O,"E",Jogos!$D:$D,$A22,Jogos!$I:$I,$C22) -> 0 | G22: =COUNTIFS(Jogos!$N:$N,"D",Jogos!$D:$D,$A22,Jogos!$E:$E,$C22)+COUNTIFS(Jogos!$O:$O,"D",Jogos!$D:$D,$A22,Jogos!$I:$I,$C22) -> 7 | H22: =SUMIFS(Jogos!$L:$L,Jogos!$D:$D,$A22,Jogos!$E:$E,$C22)+SUMIFS(Jogos!$Q:$Q,Jogos!$D:$D,$A22,Jogos!$I:$I,$C22) -> 2 | I22: =SUMIFS(Jogos!$Q:$Q,Jogos!$D:$D,$A22,Jogos!$E:$E,$C22)+SUMIFS(Jogos!$L:$L,Jogos!$D:$D,$A22,Jogos!$I:$I,$C22) -> 21 | J22: -19 | K22: =SUMIFS(Jogos!$M:$M,Jogos!$D:$D,$A22,Jogos!$E:$E,$C22)+SUMIFS(Jogos!$P:$P,Jogos!$D:$D,$A22,Jogos!$I:$I,$C22) -> 9 | L22: =SUMIFS(Jogos!$P:$P,Jogos!$D:$D,$A22,Jogos!$E:$E,$C22)+SUMIFS(Jogos!$M:$M,Jogos!$D:$D,$A22,Jogos!$I:$I,$C22) -> 55 | M22: -46 | N22: 7
A24: TAÇA DE OURO | D24: PG | E24: V | F24: E | G24: D | H24: GP | I24: GC | J24: SG | K24: GPI | L24: GCI | M24: SGI | N24: J
A25: SEGUNDA FASE
A26: 03 | B26: 1º | C26: VASCO DA GAMA | D26: =E26*3+F26 -> 3 | E26: =COUNTIFS(Jogos!$N:$N,"V",Jogos!$D:$D,$A26,Jogos!$E:$E,$C26)+COUNTIFS(Jogos!$O:$O,"V",Jogos!$D:$D,$A26,Jogos!$I:$I,$C26) -> 1 | F26: =COUNTIFS(Jogos!$N:$N,"E",Jogos!$D:$D,$A26,Jogos!$E:$E,$C26)+COUNTIFS(Jogos!$O:$O,"E",Jogos!$D:$D,$A26,Jogos!$I:$I,$C26) -> 0 | G26: =COUNTIFS(Jogos!$N:$N,"D",Jogos!$D:$D,$A26,Jogos!$E:$E,$C26)+COUNTIFS(Jogos!$O:$O,"D",Jogos!$D:$D,$A26,Jogos!$I:$I,$C26) -> 0 | H26: =SUMIFS(Jogos!$L:$L,Jogos!$D:$D,$A26,Jogos!$E:$E,$C26)+SUMIFS(Jogos!$Q:$Q,Jogos!$D:$D,$A26,Jogos!$I:$I,$C26) -> 4 | I26: =SUMIFS(Jogos!$Q:$Q,Jogos!$D:$D,$A26,Jogos!$E:$E,$C26)+SUMIFS(Jogos!$L:$L,Jogos!$D:$D,$A26,Jogos!$I:$I,$C26) -> 0 | J26: =H26-I26 -> 4 | K26: =SUMIFS(Jogos!$M:$M,Jogos!$D:$D,$A26,Jogos!$E:$E,$C26)+SUMIFS(Jogos!$P:$P,Jogos!$D:$D,$A26,Jogos!$I:$I,$C26) -> 11 | L26: =SUMIFS(Jogos!$P:$P,Jogos!$D:$D,$A26,Jogos!$E:$E,$C26)+SUMIFS(Jogos!$M:$M,Jogos!$D:$D,$A26,Jogos!$I:$I,$C26) -> 1 | M26: =K26-L26 -> 10 | N26: =SUM(E26:G26) -> 1
A27: 03 | B27: 2º | C27: AABB/ACAFUMA [A] | D27: 0 | E27: =COUNTIFS(Jogos!$N:$N,"V",Jogos!$D:$D,$A27,Jogos!$E:$E,$C27)+COUNTIFS(Jogos!$O:$O,"V",Jogos!$D:$D,$A27,Jogos!$I:$I,$C27) -> 0 | F27: =COUNTIFS(Jogos!$N:$N,"E",Jogos!$D:$D,$A27,Jogos!$E:$E,$C27)+COUNTIFS(Jogos!$O:$O,"E",Jogos!$D:$D,$A27,Jogos!$I:$I,$C27) -> 0 | G27: =COUNTIFS(Jogos!$N:$N,"D",Jogos!$D:$D,$A27,Jogos!$E:$E,$C27)+COUNTIFS(Jogos!$O:$O,"D",Jogos!$D:$D,$A27,Jogos!$I:$I,$C27) -> 1 | H27: =SUMIFS(Jogos!$L:$L,Jogos!$D:$D,$A27,Jogos!$E:$E,$C27)+SUMIFS(Jogos!$Q:$Q,Jogos!$D:$D,$A27,Jogos!$I:$I,$C27) -> 0 | I27: =SUMIFS(Jogos!$Q:$Q,Jogos!$D:$D,$A27,Jogos!$E:$E,$C27)+SUMIFS(Jogos!$L:$L,Jogos!$D:$D,$A27,Jogos!$I:$I,$C27) -> 4 | J27: -4 | K27: =SUMIFS(Jogos!$M:$M,Jogos!$D:$D,$A27,Jogos!$E:$E,$C27)+SUMIFS(Jogos!$P:$P,Jogos!$D:$D,$A27,Jogos!$I:$I,$C27) -> 1 | L27: =SUMIFS(Jogos!$P:$P,Jogos!$D:$D,$A27,Jogos!$E:$E,$C27)+SUMIFS(Jogos!$M:$M,Jogos!$D:$D,$A27,Jogos!$I:$I,$C27) -> 11 | M27: -10 | N27: 1
A28: 04 | B28: 1º | C28: AABB/ACAFUMA [C] | D28: 3 | E28: =COUNTIFS(Jogos!$N:$N,"V",Jogos!$D:$D,$A28,Jogos!$E:$E,$C28)+COUNTIFS(Jogos!$O:$O,"V",Jogos!$D:$D,$A28,Jogos!$I:$I,$C28) -> 1 | F28: =COUNTIFS(Jogos!$N:$N,"E",Jogos!$D:$D,$A28,Jogos!$E:$E,$C28)+COUNTIFS(Jogos!$O:$O,"E",Jogos!$D:$D,$A28,Jogos!$I:$I,$C28) -> 0 | G28: =COUNTIFS(Jogos!$N:$N,"D",Jogos!$D:$D,$A28,Jogos!$E:$E,$C28)+COUNTIFS(Jogos!$O:$O,"D",Jogos!$D:$D,$A28,Jogos!$I:$I,$C28) -> 0 | H28: =SUMIFS(Jogos!$L:$L,Jogos!$D:$D,$A28,Jogos!$E:$E,$C28)+SUMIFS(Jogos!$Q:$Q,Jogos!$D:$D,$A28,Jogos!$I:$I,$C28) -> 2 | I28: =SUMIFS(Jogos!$Q:$Q,Jogos!$D:$D,$A28,Jogos!$E:$E,$C28)+SUMIFS(Jogos!$L:$L,Jogos!$D:$D,$A28,Jogos!$I:$I,$C28) -> 1 | J28: 1 | K28: =SUMIFS(Jogos!$M:$M,Jogos!$D:$D,$A28,Jogos!$E:$E,$C28)+SUMIFS(Jogos!$P:$P,Jogos!$D:$D,$A28,Jogos!$I:$I,$C28) -> 4 | L28: =SUMIFS(Jogos!$P:$P,Jogos!$D:$D,$A28,Jogos!$E:$E,$C28)+SUMIFS(Jogos!$M:$M,Jogos!$D:$D,$A28,Jogos!$I:$I,$C28) -> 7 | M28: -3 | N28: 1
A29: 04 | B29: 2º | C29: TUPI [B] | D29: 0 | E29: =COUNTIFS(Jogos!$N:$N,"V",Jogos!$D:$D,$A29,Jogos!$E:$E,$C29)+COUNTIFS(Jogos!$O:$O,"V",Jogos!$D:$D,$A29,Jogos!$I:$I,$C29) -> 0 | F29: =COUNTIFS(Jogos!$N:$N,"E",Jogos!$D:$D,$A29,Jogos!$E:$E,$C29)+COUNTIFS(Jogos!$O:$O,"E",Jogos!$D:$D,$A29,Jogos!$I:$I,$C29) -> 0 | G29: =COUNTIFS(Jogos!$N:$N,"D",Jogos!$D:$D,$A29,Jogos!$E:$E,$C29)+COUNTIFS(Jogos!$O:$O,"D",Jogos!$D:$D,$A29,Jogos!$I:$I,$C29) -> 1 | H29: =SUMIFS(Jogos!$L:$L,Jogos!$D:$D,$A29,Jogos!$E:$E,$C29)+SUMIFS(Jogos!$Q:$Q,Jogos!$D:$D,$A29,Jogos!$I:$I,$C29) -> 1 | I29: =SUMIFS(Jogos!$Q:$Q,Jogos!$D:$D,$A29,Jogos!$E:$E,$C29)+SUMIFS(Jogos!$L:$L,Jogos!$D:$D,$A29,Jogos!$I:$I,$C29) -> 2 | J29: -1 | K29: =SUMIFS(Jogos!$M:$M,Jogos!$D:$D,$A29,Jogos!$E:$E,$C29)+SUMIFS(Jogos!$P:$P,Jogos!$D:$D,$A29,Jogos!$I:$I,$C29) -> 7 | L29: =SUMIFS(Jogos!$P:$P,Jogos!$D:$D,$A29,Jogos!$E:$E,$C29)+SUMIFS(Jogos!$M:$M,Jogos!$D:$D,$A29,Jogos!$I:$I,$C29) -> 4 | M29: 3 | N29: 1
A31: TAÇA DE OURO | D31: PG | E31: V | F31: E | G31: D | H31: GP | I31: GC | J31: SG | K31: GPI | L31: GCI | M31: SGI | N31: J
A32: QUARTAS-DE-FINAIS
A33: 05 | B33: 1º | C33: TUPI [A] | D33: =E33*3+F33 -> 3 | E33: =COUNTIFS(Jogos!$N:$N,"V",Jogos!$D:$D,$A33,Jogos!$E:$E,$C33)+COUNTIFS(Jogos!$O:$O,"V",Jogos!$D:$D,$A33,Jogos!$I:$I,$C33) -> 1 | F33: =COUNTIFS(Jogos!$N:$N,"E",Jogos!$D:$D,$A33,Jogos!$E:$E,$C33)+COUNTIFS(Jogos!$O:$O,"E",Jogos!$D:$D,$A33,Jogos!$I:$I,$C33) -> 0 | G33: =COUNTIFS(Jogos!$N:$N,"D",Jogos!$D:$D,$A33,Jogos!$E:$E,$C33)+COUNTIFS(Jogos!$O:$O,"D",Jogos!$D:$D,$A33,Jogos!$I:$I,$C33) -> 0 | H33: =SUMIFS(Jogos!$L:$L,Jogos!$D:$D,$A33,Jogos!$E:$E,$C33)+SUMIFS(Jogos!$Q:$Q,Jogos!$D:$D,$A33,Jogos!$I:$I,$C33) -> 3 | I33: =SUMIFS(Jogos!$Q:$Q,Jogos!$D:$D,$A33,Jogos!$E:$E,$C33)+SUMIFS(Jogos!$L:$L,Jogos!$D:$D,$A33,Jogos!$I:$I,$C33) -> 1 | J33: =H33-I33 -> 2 | K33: =SUMIFS(Jogos!$M:$M,Jogos!$D:$D,$A33,Jogos!$E:$E,$C33)+SUMIFS(Jogos!$P:$P,Jogos!$D:$D,$A33,Jogos!$I:$I,$C33) -> 8 | L33: =SUMIFS(Jogos!$P:$P,Jogos!$D:$D,$A33,Jogos!$E:$E,$C33)+SUMIFS(Jogos!$M:$M,Jogos!$D:$D,$A33,Jogos!$I:$I,$C33) -> 4 | M33: =K33-L33 -> 4 | N33: =SUM(E33:G33) -> 1
A34: 05 | B34: 2º | C34: AABB/ACAFUMA [C] | D34: 0 | E34: =COUNTIFS(Jogos!$N:$N,"V",Jogos!$D:$D,$A34,Jogos!$E:$E,$C34)+COUNTIFS(Jogos!$O:$O,"V",Jogos!$D:$D,$A34,Jogos!$I:$I,$C34) -> 0 | F34: =COUNTIFS(Jogos!$N:$N,"E",Jogos!$D:$D,$A34,Jogos!$E:$E,$C34)+COUNTIFS(Jogos!$O:$O,"E",Jogos!$D:$D,$A34,Jogos!$I:$I,$C34) -> 0 | G34: =COUNTIFS(Jogos!$N:$N,"D",Jogos!$D:$D,$A34,Jogos!$E:$E,$C34)+COUNTIFS(Jogos!$O:$O,"D",Jogos!$D:$D,$A34,Jogos!$I:$I,$C34) -> 1 | H34: =SUMIFS(Jogos!$L:$L,Jogos!$D:$D,$A34,Jogos!$E:$E,$C34)+SUMIFS(Jogos!$Q:$Q,Jogos!$D:$D,$A34,Jogos!$I:$I,$C34) -> 1 | I34: =SUMIFS(Jogos!$Q:$Q,Jogos!$D:$D,$A34,Jogos!$E:$E,$C34)+SUMIFS(Jogos!$L:$L,Jogos!$D:$D,$A34,Jogos!$I:$I,$C34) -> 3 | J34: -2 | K34: =SUMIFS(Jogos!$M:$M,Jogos!$D:$D,$A34,Jogos!$E:$E,$C34)+SUMIFS(Jogos!$P:$P,Jogos!$D:$D,$A34,Jogos!$I:$I,$C34) -> 4 | L34: =SUMIFS(Jogos!$P:$P,Jogos!$D:$D,$A34,Jogos!$E:$E,$C34)+SUMIFS(Jogos!$M:$M,Jogos!$D:$D,$A34,Jogos!$I:$I,$C34) -> 8 | M34: -4 | N34: 1
A35: 06 | B35: 1º | C35: LIBERDADE [A] | D35: 3 | E35: =COUNTIFS(Jogos!$N:$N,"V",Jogos!$D:$D,$A35,Jogos!$E:$E,$C35)+COUNTIFS(Jogos!$O:$O,"V",Jogos!$D:$D,$A35,Jogos!$I:$I,$C35) -> 1 | F35: =COUNTIFS(Jogos!$N:$N,"E",Jogos!$D:$D,$A35,Jogos!$E:$E,$C35)+COUNTIFS(Jogos!$O:$O,"E",Jogos!$D:$D,$A35,Jogos!$I:$I,$C35) -> 0 | G35: =COUNTIFS(Jogos!$N:$N,"D",Jogos!$D:$D,$A35,Jogos!$E:$E,$C35)+COUNTIFS(Jogos!$O:$O,"D",Jogos!$D:$D,$A35,Jogos!$I:$I,$C35) -> 0 | H35: =SUMIFS(Jogos!$L:$L,Jogos!$D:$D,$A35,Jogos!$E:$E,$C35)+SUMIFS(Jogos!$Q:$Q,Jogos!$D:$D,$A35,Jogos!$I:$I,$C35) -> 1 | I35: =SUMIFS(Jogos!$Q:$Q,Jogos!$D:$D,$A35,Jogos!$E:$E,$C35)+SUMIFS(Jogos!$L:$L,Jogos!$D:$D,$A35,Jogos!$I:$I,$C35) -> 0 | J35: 1 | K35: =SUMIFS(Jogos!$M:$M,Jogos!$D:$D,$A35,Jogos!$E:$E,$C35)+SUMIFS(Jogos!$P:$P,Jogos!$D:$D,$A35,Jogos!$I:$I,$C35) -> 3 | L35: =SUMIFS(Jogos!$P:$P,Jogos!$D:$D,$A35,Jogos!$E:$E,$C35)+SUMIFS(Jogos!$M:$M,Jogos!$D:$D,$A35,Jogos!$I:$I,$C35) -> 2 | M35: 1 | N35: 1
A36: 06 | B36: 2º | C36: VASCO DA GAMA | D36: 0 | E36: =COUNTIFS(Jogos!$N:$N,"V",Jogos!$D:$D,$A36,Jogos!$E:$E,$C36)+COUNTIFS(Jogos!$O:$O,"V",Jogos!$D:$D,$A36,Jogos!$I:$I,$C36) -> 0 | F36: =COUNTIFS(Jogos!$N:$N,"E",Jogos!$D:$D,$A36,Jogos!$E:$E,$C36)+COUNTIFS(Jogos!$O:$O,"E",Jogos!$D:$D,$A36,Jogos!$I:$I,$C36) -> 0 | G36: =COUNTIFS(Jogos!$N:$N,"D",Jogos!$D:$D,$A36,Jogos!$E:$E,$C36)+COUNTIFS(Jogos!$O:$O,"D",Jogos!$D:$D,$A36,Jogos!$I:$I,$C36) -> 1 | H36: =SUMIFS(Jogos!$L:$L,Jogos!$D:$D,$A36,Jogos!$E:$E,$C36)+SUMIFS(Jogos!$Q:$Q,Jogos!$D:$D,$A36,Jogos!$I:$I,$C36) -> 0 | I36: =SUMIFS(Jogos!$Q:$Q,Jogos!$D:$D,$A36,Jogos!$E:$E,$C36)+SUMIFS(Jogos!$L:$L,Jogos!$D:$D,$A36,Jogos!$I:$I,$C36) -> 1 | J36: -1 | K36: =SUMIFS(Jogos!$M:$M,Jogos!$D:$D,$A36,Jogos!$E:$E,$C36)+SUMIFS(Jogos!$P:$P,Jogos!$D:$D,$A36,Jogos!$I:$I,$C36) -> 2 | L36: =SUMIFS(Jogos!$P:$P,Jogos!$D:$D,$A36,Jogos!$E:$E,$C36)+SUMIFS(Jogos!$M:$M,Jogos!$D:$D,$A36,Jogos!$I:$I,$C36) -> 3 | M36: -1 | N36: 1
A37: 07 | B37: 1º | C37: MATIAS [A] | D37: 3 | E37: =COUNTIFS(Jogos!$N:$N,"V",Jogos!$D:$D,$A37,Jogos!$E:$E,$C37)+COUNTIFS(Jogos!$O:$O,"V",Jogos!$D:$D,$A37,Jogos!$I:$I,$C37) -> 1 | F37: =COUNTIFS(Jogos!$N:$N,"E",Jogos!$D:$D,$A37,Jogos!$E:$E,$C37)+COUNTIFS(Jogos!$O:$O,"E",Jogos!$D:$D,$A37,Jogos!$I:$I,$C37) -> 0 | G37: =COUNTIFS(Jogos!$N:$N,"D",Jogos!$D:$D,$A37,Jogos!$E:$E,$C37)+COUNTIFS(Jogos!$O:$O,"D",Jogos!$D:$D,$A37,Jogos!$I:$I,$C37) -> 0 | H37: =SUMIFS(Jogos!$L:$L,Jogos!$D:$D,$A37,Jogos!$E:$E,$C37)+SUMIFS(Jogos!$Q:$Q,Jogos!$D:$D,$A37,Jogos!$I:$I,$C37) -> 2 | I37: =SUMIFS(Jogos!$Q:$Q,Jogos!$D:$D,$A37,Jogos!$E:$E,$C37)+SUMIFS(Jogos!$L:$L,Jogos!$D:$D,$A37,Jogos!$I:$I,$C37) -> 1 | J37: 1 | K37: =SUMIFS(Jogos!$M:$M,Jogos!$D:$D,$A37,Jogos!$E:$E,$C37)+SUMIFS(Jogos!$P:$P,Jogos!$D:$D,$A37,Jogos!$I:$I,$C37) -> 5 | L37: =SUMIFS(Jogos!$P:$P,Jogos!$D:$D,$A37,Jogos!$E:$E,$C37)+SUMIFS(Jogos!$M:$M,Jogos!$D:$D,$A37,Jogos!$I:$I,$C37) -> 3 | M37: 2 | N37: 1
A38: 07 | B38: 2º | C38: BOTAFOGO | D38: 0 | E38: =COUNTIFS(Jogos!$N:$N,"V",Jogos!$D:$D,$A38,Jogos!$E:$E,$C38)+COUNTIFS(Jogos!$O:$O,"V",Jogos!$D:$D,$A38,Jogos!$I:$I,$C38) -> 0 | F38: =COUNTIFS(Jogos!$N:$N,"E",Jogos!$D:$D,$A38,Jogos!$E:$E,$C38)+COUNTIFS(Jogos!$O:$O,"E",Jogos!$D:$D,$A38,Jogos!$I:$I,$C38) -> 0 | G38: =COUNTIFS(Jogos!$N:$N,"D",Jogos!$D:$D,$A38,Jogos!$E:$E,$C38)+COUNTIFS(Jogos!$O:$O,"D",Jogos!$D:$D,$A38,Jogos!$I:$I,$C38) -> 1 | H38: =SUMIFS(Jogos!$L:$L,Jogos!$D:$D,$A38,Jogos!$E:$E,$C38)+SUMIFS(Jogos!$Q:$Q,Jogos!$D:$D,$A38,Jogos!$I:$I,$C38) -> 1 | I38: =SUMIFS(Jogos!$Q:$Q,Jogos!$D:$D,$A38,Jogos!$E:$E,$C38)+SUMIFS(Jogos!$L:$L,Jogos!$D:$D,$A38,Jogos!$I:$I,$C38) -> 2 | J38: -1 | K38: =SUMIFS(Jogos!$M:$M,Jogos!$D:$D,$A38,Jogos!$E:$E,$C38)+SUMIFS(Jogos!$P:$P,Jogos!$D:$D,$A38,Jogos!$I:$I,$C38) -> 3 | L38: =SUMIFS(Jogos!$P:$P,Jogos!$D:$D,$A38,Jogos!$E:$E,$C38)+SUMIFS(Jogos!$M:$M,Jogos!$D:$D,$A38,Jogos!$I:$I,$C38) -> 5 | M38: -2 | N38: 1
A39: 08 | B39: 1º | C39: UNIÃO INDEPENDENTE/UBERABA | D39: 1 | E39: =COUNTIFS(Jogos!$N:$N,"V",Jogos!$D:$D,$A39,Jogos!$E:$E,$C39)+COUNTIFS(Jogos!$O:$O,"V",Jogos!$D:$D,$A39,Jogos!$I:$I,$C39) -> 0 | F39: =COUNTIFS(Jogos!$N:$N,"E",Jogos!$D:$D,$A39,Jogos!$E:$E,$C39)+COUNTIFS(Jogos!$O:$O,"E",Jogos!$D:$D,$A39,Jogos!$I:$I,$C39) -> 1 | G39: =COUNTIFS(Jogos!$N:$N,"D",Jogos!$D:$D,$A39,Jogos!$E:$E,$C39)+COUNTIFS(Jogos!$O:$O,"D",Jogos!$D:$D,$A39,Jogos!$I:$I,$C39) -> 0 | H39: =SUMIFS(Jogos!$L:$L,Jogos!$D:$D,$A39,Jogos!$E:$E,$C39)+SUMIFS(Jogos!$Q:$Q,Jogos!$D:$D,$A39,Jogos!$I:$I,$C39) -> 1 | I39: =SUMIFS(Jogos!$Q:$Q,Jogos!$D:$D,$A39,Jogos!$E:$E,$C39)+SUMIFS(Jogos!$L:$L,Jogos!$D:$D,$A39,Jogos!$I:$I,$C39) -> 1 | J39: 0 | K39: =SUMIFS(Jogos!$M:$M,Jogos!$D:$D,$A39,Jogos!$E:$E,$C39)+SUMIFS(Jogos!$P:$P,Jogos!$D:$D,$A39,Jogos!$I:$I,$C39) -> 2 | L39: =SUMIFS(Jogos!$P:$P,Jogos!$D:$D,$A39,Jogos!$E:$E,$C39)+SUMIFS(Jogos!$M:$M,Jogos!$D:$D,$A39,Jogos!$I:$I,$C39) -> 2 | M39: 0 | N39: 1
A40: 08 | B40: 2º | C40: LIBERDADE [B] | D40: 1 | E40: =COUNTIFS(Jogos!$N:$N,"V",Jogos!$D:$D,$A40,Jogos!$E:$E,$C40)+COUNTIFS(Jogos!$O:$O,"V",Jogos!$D:$D,$A40,Jogos!$I:$I,$C40) -> 0 | F40: =COUNTIFS(Jogos!$N:$N,"E",Jogos!$D:$D,$A40,Jogos!$E:$E,$C40)+COUNTIFS(Jogos!$O:$O,"E",Jogos!$D:$D,$A40,Jogos!$I:$I,$C40) -> 1 | G40: =COUNTIFS(Jogos!$N:$N,"D",Jogos!$D:$D,$A40,Jogos!$E:$E,$C40)+COUNTIFS(Jogos!$O:$O,"D",Jogos!$D:$D,$A40,Jogos!$I:$I,$C40) -> 0 | H40: =SUMIFS(Jogos!$L:$L,Jogos!$D:$D,$A40,Jogos!$E:$E,$C40)+SUMIFS(Jogos!$Q:$Q,Jogos!$D:$D,$A40,Jogos!$I:$I,$C40) -> 1 | I40: =SUMIFS(Jogos!$Q:$Q,Jogos!$D:$D,$A40,Jogos!$E:$E,$C40)+SUMIFS(Jogos!$L:$L,Jogos!$D:$D,$A40,Jogos!$I:$I,$C40) -> 1 | J40: 0 | K40: =SUMIFS(Jogos!$M:$M,Jogos!$D:$D,$A40,Jogos!$E:$E,$C40)+SUMIFS(Jogos!$P:$P,Jogos!$D:$D,$A40,Jogos!$I:$I,$C40) -> 2 | L40: =SUMIFS(Jogos!$P:$P,Jogos!$D:$D,$A40,Jogos!$E:$E,$C40)+SUMIFS(Jogos!$M:$M,Jogos!$D:$D,$A40,Jogos!$I:$I,$C40) -> 2 | M40: 0 | N40: 1
A42: TAÇA DE OURO | D42: PG | E42: V | F42: E | G42: D | H42: GP | I42: GC | J42: SG | K42: GPI | L42: GCI | M42: SGI | N42: J
A43: SEMI-FINAIS
A44: 09 | B44: 1º | C44: TUPI [A] | D44: =E44*3+F44 -> 3 | E44: =COUNTIFS(Jogos!$N:$N,"V",Jogos!$D:$D,$A44,Jogos!$E:$E,$C44)+COUNTIFS(Jogos!$O:$O,"V",Jogos!$D:$D,$A44,Jogos!$I:$I,$C44) -> 1 | F44: =COUNTIFS(Jogos!$N:$N,"E",Jogos!$D:$D,$A44,Jogos!$E:$E,$C44)+COUNTIFS(Jogos!$O:$O,"E",Jogos!$D:$D,$A44,Jogos!$I:$I,$C44) -> 0 | G44: =COUNTIFS(Jogos!$N:$N,"D",Jogos!$D:$D,$A44,Jogos!$E:$E,$C44)+COUNTIFS(Jogos!$O:$O,"D",Jogos!$D:$D,$A44,Jogos!$I:$I,$C44) -> 0 | H44: =SUMIFS(Jogos!$L:$L,Jogos!$D:$D,$A44,Jogos!$E:$E,$C44)+SUMIFS(Jogos!$Q:$Q,Jogos!$D:$D,$A44,Jogos!$I:$I,$C44) -> 2 | I44: =SUMIFS(Jogos!$Q:$Q,Jogos!$D:$D,$A44,Jogos!$E:$E,$C44)+SUMIFS(Jogos!$L:$L,Jogos!$D:$D,$A44,Jogos!$I:$I,$C44) -> 0 | J44: =H44-I44 -> 2 | K44: =SUMIFS(Jogos!$M:$M,Jogos!$D:$D,$A44,Jogos!$E:$E,$C44)+SUMIFS(Jogos!$P:$P,Jogos!$D:$D,$A44,Jogos!$I:$I,$C44) -> 2 | L44: =SUMIFS(Jogos!$P:$P,Jogos!$D:$D,$A44,Jogos!$E:$E,$C44)+SUMIFS(Jogos!$M:$M,Jogos!$D:$D,$A44,Jogos!$I:$I,$C44) -> 0 | M44: =K44-L44 -> 2 | N44: =SUM(E44:G44) -> 1
A45: 09 | B45: 2º | C45: UNIÃO INDEPENDENTE/UBERABA | D45: =E45*3+F45 -> 0 | E45: =COUNTIFS(Jogos!$N:$N,"V",Jogos!$D:$D,$A45,Jogos!$E:$E,$C45)+COUNTIFS(Jogos!$O:$O,"V",Jogos!$D:$D,$A45,Jogos!$I:$I,$C45) -> 0 | F45: =COUNTIFS(Jogos!$N:$N,"E",Jogos!$D:$D,$A45,Jogos!$E:$E,$C45)+COUNTIFS(Jogos!$O:$O,"E",Jogos!$D:$D,$A45,Jogos!$I:$I,$C45) -> 0 | G45: =COUNTIFS(Jogos!$N:$N,"D",Jogos!$D:$D,$A45,Jogos!$E:$E,$C45)+COUNTIFS(Jogos!$O:$O,"D",Jogos!$D:$D,$A45,Jogos!$I:$I,$C45) -> 1 | H45: =SUMIFS(Jogos!$L:$L,Jogos!$D:$D,$A45,Jogos!$E:$E,$C45)+SUMIFS(Jogos!$Q:$Q,Jogos!$D:$D,$A45,Jogos!$I:$I,$C45) -> 0 | I45: =SUMIFS(Jogos!$Q:$Q,Jogos!$D:$D,$A45,Jogos!$E:$E,$C45)+SUMIFS(Jogos!$L:$L,Jogos!$D:$D,$A45,Jogos!$I:$I,$C45) -> 2 | J45: =H45-I45 -> -2 | K45: =SUMIFS(Jogos!$M:$M,Jogos!$D:$D,$A45,Jogos!$E:$E,$C45)+SUMIFS(Jogos!$P:$P,Jogos!$D:$D,$A45,Jogos!$I:$I,$C45) -> 0 | L45: =SUMIFS(Jogos!$P:$P,Jogos!$D:$D,$A45,Jogos!$E:$E,$C45)+SUMIFS(Jogos!$M:$M,Jogos!$D:$D,$A45,Jogos!$I:$I,$C45) -> 2 | M45: =K45-L45 -> -2 | N45: =SUM(E45:G45) -> 1
A46: 10 | B46: 1º | C46: LIBERDADE [A] | D46: =E46*3+F46 -> 3 | E46: =COUNTIFS(Jogos!$N:$N,"V",Jogos!$D:$D,$A46,Jogos!$E:$E,$C46)+COUNTIFS(Jogos!$O:$O,"V",Jogos!$D:$D,$A46,Jogos!$I:$I,$C46) -> 1 | F46: =COUNTIFS(Jogos!$N:$N,"E",Jogos!$D:$D,$A46,Jogos!$E:$E,$C46)+COUNTIFS(Jogos!$O:$O,"E",Jogos!$D:$D,$A46,Jogos!$I:$I,$C46) -> 0 | G46: =COUNTIFS(Jogos!$N:$N,"D",Jogos!$D:$D,$A46,Jogos!$E:$E,$C46)+COUNTIFS(Jogos!$O:$O,"D",Jogos!$D:$D,$A46,Jogos!$I:$I,$C46) -> 0 | H46: =SUMIFS(Jogos!$L:$L,Jogos!$D:$D,$A46,Jogos!$E:$E,$C46)+SUMIFS(Jogos!$Q:$Q,Jogos!$D:$D,$A46,Jogos!$I:$I,$C46) -> 3 | I46: =SUMIFS(Jogos!$Q:$Q,Jogos!$D:$D,$A46,Jogos!$E:$E,$C46)+SUMIFS(Jogos!$L:$L,Jogos!$D:$D,$A46,Jogos!$I:$I,$C46) -> 0 | J46: =H46-I46 -> 3 | K46: =SUMIFS(Jogos!$M:$M,Jogos!$D:$D,$A46,Jogos!$E:$E,$C46)+SUMIFS(Jogos!$P:$P,Jogos!$D:$D,$A46,Jogos!$I:$I,$C46) -> 4 | L46: =SUMIFS(Jogos!$P:$P,Jogos!$D:$D,$A46,Jogos!$E:$E,$C46)+SUMIFS(Jogos!$M:$M,Jogos!$D:$D,$A46,Jogos!$I:$I,$C46) -> 0 | M46: =K46-L46 -> 4 | N46: =SUM(E46:G46) -> 1
A47: 10 | B47: 2º | C47: MATIAS [A] | D47: =E47*3+F47 -> 0 | E47: =COUNTIFS(Jogos!$N:$N,"V",Jogos!$D:$D,$A47,Jogos!$E:$E,$C47)+COUNTIFS(Jogos!$O:$O,"V",Jogos!$D:$D,$A47,Jogos!$I:$I,$C47) -> 0 | F47: =COUNTIFS(Jogos!$N:$N,"E",Jogos!$D:$D,$A47,Jogos!$E:$E,$C47)+COUNTIFS(Jogos!$O:$O,"E",Jogos!$D:$D,$A47,Jogos!$I:$I,$C47) -> 0 | G47: =COUNTIFS(Jogos!$N:$N,"D",Jogos!$D:$D,$A47,Jogos!$E:$E,$C47)+COUNTIFS(Jogos!$O:$O,"D",Jogos!$D:$D,$A47,Jogos!$I:$I,$C47) -> 1 | H47: =SUMIFS(Jogos!$L:$L,Jogos!$D:$D,$A47,Jogos!$E:$E,$C47)+SUMIFS(Jogos!$Q:$Q,Jogos!$D:$D,$A47,Jogos!$I:$I,$C47) -> 0 | I47: =SUMIFS(Jogos!$Q:$Q,Jogos!$D:$D,$A47,Jogos!$E:$E,$C47)+SUMIFS(Jogos!$L:$L,Jogos!$D:$D,$A47,Jogos!$I:$I,$C47) -> 3 | J47: =H47-I47 -> -3 | K47: =SUMIFS(Jogos!$M:$M,Jogos!$D:$D,$A47,Jogos!$E:$E,$C47)+SUMIFS(Jogos!$P:$P,Jogos!$D:$D,$A47,Jogos!$I:$I,$C47) -> 0 | L47: =SUMIFS(Jogos!$P:$P,Jogos!$D:$D,$A47,Jogos!$E:$E,$C47)+SUMIFS(Jogos!$M:$M,Jogos!$D:$D,$A47,Jogos!$I:$I,$C47) -> 4 | M47: =K47-L47 -> -4 | N47: =SUM(E47:G47) -> 1
A49: TAÇA DE OURO | D49: PG | E49: V | F49: E | G49: D | H49: GP | I49: GC | J49: SG | K49: GPI | L49: GCI | M49: SGI | N49: J
A50: FINAL
A51: 11 | B51: 1º | C51: LIBERDADE [A] | D51: =E51*3+F51 -> 3 | E51: =COUNTIFS(Jogos!$N:$N,"V",Jogos!$D:$D,$A51,Jogos!$E:$E,$C51)+COUNTIFS(Jogos!$O:$O,"V",Jogos!$D:$D,$A51,Jogos!$I:$I,$C51) -> 1 | F51: =COUNTIFS(Jogos!$N:$N,"E",Jogos!$D:$D,$A51,Jogos!$E:$E,$C51)+COUNTIFS(Jogos!$O:$O,"E",Jogos!$D:$D,$A51,Jogos!$I:$I,$C51) -> 0 | G51: =COUNTIFS(Jogos!$N:$N,"D",Jogos!$D:$D,$A51,Jogos!$E:$E,$C51)+COUNTIFS(Jogos!$O:$O,"D",Jogos!$D:$D,$A51,Jogos!$I:$I,$C51) -> 0 | H51: =SUMIFS(Jogos!$L:$L,Jogos!$D:$D,$A51,Jogos!$E:$E,$C51)+SUMIFS(Jogos!$Q:$Q,Jogos!$D:$D,$A51,Jogos!$I:$I,$C51) -> 2 | I51: =SUMIFS(Jogos!$Q:$Q,Jogos!$D:$D,$A51,Jogos!$E:$E,$C51)+SUMIFS(Jogos!$L:$L,Jogos!$D:$D,$A51,Jogos!$I:$I,$C51) -> 1 | J51: =H51-I51 -> 1 | K51: =SUMIFS(Jogos!$M:$M,Jogos!$D:$D,$A51,Jogos!$E:$E,$C51)+SUMIFS(Jogos!$P:$P,Jogos!$D:$D,$A51,Jogos!$I:$I,$C51) -> 5 | L51: =SUMIFS(Jogos!$P:$P,Jogos!$D:$D,$A51,Jogos!$E:$E,$C51)+SUMIFS(Jogos!$M:$M,Jogos!$D:$D,$A51,Jogos!$I:$I,$C51) -> 5 | M51: =K51-L51 -> 0 | N51: =SUM(E51:G51) -> 1
A52: 11 | B52: 2º | C52: TUPI [A] | D52: =E52*3+F52 -> 0 | E52: =COUNTIFS(Jogos!$N:$N,"V",Jogos!$D:$D,$A52,Jogos!$E:$E,$C52)+COUNTIFS(Jogos!$O:$O,"V",Jogos!$D:$D,$A52,Jogos!$I:$I,$C52) -> 0 | F52: =COUNTIFS(Jogos!$N:$N,"E",Jogos!$D:$D,$A52,Jogos!$E:$E,$C52)+COUNTIFS(Jogos!$O:$O,"E",Jogos!$D:$D,$A52,Jogos!$I:$I,$C52) -> 0 | G52: =COUNTIFS(Jogos!$N:$N,"D",Jogos!$D:$D,$A52,Jogos!$E:$E,$C52)+COUNTIFS(Jogos!$O:$O,"D",Jogos!$D:$D,$A52,Jogos!$I:$I,$C52) -> 1 | H52: =SUMIFS(Jogos!$L:$L,Jogos!$D:$D,$A52,Jogos!$E:$E,$C52)+SUMIFS(Jogos!$Q:$Q,Jogos!$D:$D,$A52,Jogos!$I:$I,$C52) -> 1 | I52: =SUMIFS(Jogos!$Q:$Q,Jogos!$D:$D,$A52,Jogos!$E:$E,$C52)+SUMIFS(Jogos!$L:$L,Jogos!$D:$D,$A52,Jogos!$I:$I,$C52) -> 2 | J52: =H52-I52 -> -1 | K52: =SUMIFS(Jogos!$M:$M,Jogos!$D:$D,$A52,Jogos!$E:$E,$C52)+SUMIFS(Jogos!$P:$P,Jogos!$D:$D,$A52,Jogos!$I:$I,$C52) -> 5 | L52: =SUMIFS(Jogos!$P:$P,Jogos!$D:$D,$A52,Jogos!$E:$E,$C52)+SUMIFS(Jogos!$M:$M,Jogos!$D:$D,$A52,Jogos!$I:$I,$C52) -> 5 | M52: =K52-L52 -> 0 | N52: =SUM(E52:G52) -> 1

Sheet ClaPRA
A1: =ClaFIN!A1 -> XL CAMPEONATO BRASILEIRO INTERCLUBES / 2022
A2: =ClaFIN!A2 -> Matias Barbosa / MG, 15 a 17 de abril de 2022
A4: TAÇA DE PRATA | D4: PG | E4: V | F4: E | G4: D | H4: GP | I4: GC | J4: SG | K4: GPI | L4: GCI | M4: SGI | N4: J
A5: PRIMEIRA FASE
A6: TP.01 | B6: 1º | C6: ELDORADO | D6: =E6*3+F6 -> 3 | E6: =COUNTIFS(Jogos!$N:$N,"V",Jogos!$D:$D,$A6,Jogos!$E:$E,$C6)+COUNTIFS(Jogos!$O:$O,"V",Jogos!$D:$D,$A6,Jogos!$I:$I,$C6) -> 1 | F6: =COUNTIFS(Jogos!$N:$N,"E",Jogos!$D:$D,$A6,Jogos!$E:$E,$C6)+COUNTIFS(Jogos!$O:$O,"E",Jogos!$D:$D,$A6,Jogos!$I:$I,$C6) -> 0 | G6: =COUNTIFS(Jogos!$N:$N,"D",Jogos!$D:$D,$A6,Jogos!$E:$E,$C6)+COUNTIFS(Jogos!$O:$O,"D",Jogos!$D:$D,$A6,Jogos!$I:$I,$C6) -> 0 | H6: =SUMIFS(Jogos!$L:$L,Jogos!$D:$D,$A6,Jogos!$E:$E,$C6)+SUMIFS(Jogos!$Q:$Q,Jogos!$D:$D,$A6,Jogos!$I:$I,$C6) -> 2 | I6: =SUMIFS(Jogos!$Q:$Q,Jogos!$D:$D,$A6,Jogos!$E:$E,$C6)+SUMIFS(Jogos!$L:$L,Jogos!$D:$D,$A6,Jogos!$I:$I,$C6) -> 0 | J6: =H6-I6 -> 2 | K6: =SUMIFS(Jogos!$M:$M,Jogos!$D:$D,$A6,Jogos!$E:$E,$C6)+SUMIFS(Jogos!$P:$P,Jogos!$D:$D,$A6,Jogos!$I:$I,$C6) -> 6 | L6: =SUMIFS(Jogos!$P:$P,Jogos!$D:$D,$A6,Jogos!$E:$E,$C6)+SUMIFS(Jogos!$M:$M,Jogos!$D:$D,$A6,Jogos!$I:$I,$C6) -> 1 | M6: =K6-L6 -> 5 | N6: =SUM(E6:G6) -> 1
A7: TP.01 | B7: 2º | C7: MATIAS [B] | D7: 0 | E7: =COUNTIFS(Jogos!$N:$N,"V",Jogos!$D:$D,$A7,Jogos!$E:$E,$C7)+COUNTIFS(Jogos!$O:$O,"V",Jogos!$D:$D,$A7,Jogos!$I:$I,$C7) -> 0 | F7: =COUNTIFS(Jogos!$N:$N,"E",Jogos!$D:$D,$A7,Jogos!$E:$E,$C7)+COUNTIFS(Jogos!$O:$O,"E",Jogos!$D:$D,$A7,Jogos!$I:$I,$C7) -> 0 | G7: =COUNTIFS(Jogos!$N:$N,"D",Jogos!$D:$D,$A7,Jogos!$E:$E,$C7)+COUNTIFS(Jogos!$O:$O,"D",Jogos!$D:$D,$A7,Jogos!$I:$I,$C7) -> 1 | H7: =SUMIFS(Jogos!$L:$L,Jogos!$D:$D,$A7,Jogos!$E:$E,$C7)+SUMIFS(Jogos!$Q:$Q,Jogos!$D:$D,$A7,Jogos!$I:$I,$C7) -> 0 | I7: =SUMIFS(Jogos!$Q:$Q,Jogos!$D:$D,$A7,Jogos!$E:$E,$C7)+SUMIFS(Jogos!$L:$L,Jogos!$D:$D,$A7,Jogos!$I:$I,$C7) -> 2 | J7: -2 | K7: =SUMIFS(Jogos!$M:$M,Jogos!$D:$D,$A7,Jogos!$E:$E,$C7)+SUMIFS(Jogos!$P:$P,Jogos!$D:$D,$A7,Jogos!$I:$I,$C7) -> 1 | L7: =SUMIFS(Jogos!$P:$P,Jogos!$D:$D,$A7,Jogos!$E:$E,$C7)+SUMIFS(Jogos!$M:$M,Jogos!$D:$D,$A7,Jogos!$I:$I,$C7) -> 6 | M7: -5 | N7: 1
A8: TP.02 | B8: 1º | C8: CHACAL [A] | D8: =E8*3+F8 -> 3 | E8: =COUNTIFS(Jogos!$N:$N,"V",Jogos!$D:$D,$A8,Jogos!$E:$E,$C8)+COUNTIFS(Jogos!$O:$O,"V",Jogos!$D:$D,$A8,Jogos!$I:$I,$C8) -> 1 | F8: =COUNTIFS(Jogos!$N:$N,"E",Jogos!$D:$D,$A8,Jogos!$E:$E,$C8)+COUNTIFS(Jogos!$O:$O,"E",Jogos!$D:$D,$A8,Jogos!$I:$I,$C8) -> 0 | G8: =COUNTIFS(Jogos!$N:$N,"D",Jogos!$D:$D,$A8,Jogos!$E:$E,$C8)+COUNTIFS(Jogos!$O:$O,"D",Jogos!$D:$D,$A8,Jogos!$I:$I,$C8) -> 0 | H8: =SUMIFS(Jogos!$L:$L,Jogos!$D:$D,$A8,Jogos!$E:$E,$C8)+SUMIFS(Jogos!$Q:$Q,Jogos!$D:$D,$A8,Jogos!$I:$I,$C8) -> 3 | I8: =SUMIFS(Jogos!$Q:$Q,Jogos!$D:$D,$A8,Jogos!$E:$E,$C8)+SUMIFS(Jogos!$L:$L,Jogos!$D:$D,$A8,Jogos!$I:$I,$C8) -> 0 | J8: =H8-I8 -> 3 | K8: =SUMIFS(Jogos!$M:$M,Jogos!$D:$D,$A8,Jogos!$E:$E,$C8)+SUMIFS(Jogos!$P:$P,Jogos!$D:$D,$A8,Jogos!$I:$I,$C8) -> 13 | L8: =SUMIFS(Jogos!$P:$P,Jogos!$D:$D,$A8,Jogos!$E:$E,$C8)+SUMIFS(Jogos!$M:$M,Jogos!$D:$D,$A8,Jogos!$I:$I,$C8) -> 1 | M8: =K8-L8 -> 12 | N8: =SUM(E8:G8) -> 1
A9: TP.02 | B9: 2º | C9: CHACAL [B] | D9: 0 | E9: =COUNTIFS(Jogos!$N:$N,"V",Jogos!$D:$D,$A9,Jogos!$E:$E,$C9)+COUNTIFS(Jogos!$O:$O,"V",Jogos!$D:$D,$A9,Jogos!$I:$I,$C9) -> 0 | F9: =COUNTIFS(Jogos!$N:$N,"E",Jogos!$D:$D,$A9,Jogos!$E:$E,$C9)+COUNTIFS(Jogos!$O:$O,"E",Jogos!$D:$D,$A9,Jogos!$I:$I,$C9) -> 0 | G9: =COUNTIFS(Jogos!$N:$N,"D",Jogos!$D:$D,$A9,Jogos!$E:$E,$C9)+COUNTIFS(Jogos!$O:$O,"D",Jogos!$D:$D,$A9,Jogos!$I:$I,$C9) -> 1 | H9: =SUMIFS(Jogos!$L:$L,Jogos!$D:$D,$A9,Jogos!$E:$E,$C9)+SUMIFS(Jogos!$Q:$Q,Jogos!$D:$D,$A9,Jogos!$I:$I,$C9) -> 0 | I9: =SUMIFS(Jogos!$Q:$Q,Jogos!$D:$D,$A9,Jogos!$E:$E,$C9)+SUMIFS(Jogos!$L:$L,Jogos!$D:$D,$A9,Jogos!$I:$I,$C9) -> 3 | J9: -3 | K9: =SUMIFS(Jogos!$M:$M,Jogos!$D:$D,$A9,Jogos!$E:$E,$C9)+SUMIFS(Jogos!$P:$P,Jogos!$D:$D,$A9,Jogos!$I:$I,$C9) -> 1 | L9: =SUMIFS(Jogos!$P:$P,Jogos!$D:$D,$A9,Jogos!$E:$E,$C9)+SUMIFS(Jogos!$M:$M,Jogos!$D:$D,$A9,Jogos!$I:$I,$C9) -> 13 | M9: -12 | N9: 1
A10: TP.03 | B10: 1º | C10: AABB/ACAFUMA [B] | D10: 3 | E10: =COUNTIFS(Jogos!$N:$N,"V",Jogos!$D:$D,$A10,Jogos!$E:$E,$C10)+COUNTIFS(Jogos!$O:$O,"V",Jogos!$D:$D,$A10,Jogos!$I:$I,$C10) -> 1 | F10: =COUNTIFS(Jogos!$N:$N,"E",Jogos!$D:$D,$A10,Jogos!$E:$E,$C10)+COUNTIFS(Jogos!$O:$O,"E",Jogos!$D:$D,$A10,Jogos!$I:$I,$C10) -> 0 | G10: =COUNTIFS(Jogos!$N:$N,"D",Jogos!$D:$D,$A10,Jogos!$E:$E,$C10)+COUNTIFS(Jogos!$O:$O,"D",Jogos!$D:$D,$A10,Jogos!$I:$I,$C10) -> 0 | H10: =SUMIFS(Jogos!$L:$L,Jogos!$D:$D,$A10,Jogos!$E:$E,$C10)+SUMIFS(Jogos!$Q:$Q,Jogos!$D:$D,$A10,Jogos!$I:$I,$C10) -> 2 | I10: =SUMIFS(Jogos!$Q:$Q,Jogos!$D:$D,$A10,Jogos!$E:$E,$C10)+SUMIFS(Jogos!$L:$L,Jogos!$D:$D,$A10,Jogos!$I:$I,$C10) -> 1 | J10: 1 | K10: =SUMIFS(Jogos!$M:$M,Jogos!$D:$D,$A10,Jogos!$E:$E,$C10)+SUMIFS(Jogos!$P:$P,Jogos!$D:$D,$A10,Jogos!$I:$I,$C10) -> 7 | L10: =SUMIFS(Jogos!$P:$P,Jogos!$D:$D,$A10,Jogos!$E:$E,$C10)+SUMIFS(Jogos!$M:$M,Jogos!$D:$D,$A10,Jogos!$I:$I,$C10) -> 2 | M10: 5 | N10: 1
A11: TP.03 | B11: 2º | C11: GRÊMIO MINEIRO | D11: 0 | E11: =COUNTIFS(Jogos!$N:$N,"V",Jogos!$D:$D,$A11,Jogos!$E:$E,$C11)+COUNTIFS(Jogos!$O:$O,"V",Jogos!$D:$D,$A11,Jogos!$I:$I,$C11) -> 0 | F11: =COUNTIFS(Jogos!$N:$N,"E",Jogos!$D:$D,$A11,Jogos!$E:$E,$C11)+COUNTIFS(Jogos!$O:$O,"E",Jogos!$D:$D,$A11,Jogos!$I:$I,$C11) -> 0 | G11: =COUNTIFS(Jogos!$N:$N,"D",Jogos!$D:$D,$A11,Jogos!$E:$E,$C11)+COUNTIFS(Jogos!$O:$O,"D",Jogos!$D:$D,$A11,Jogos!$I:$I,$C11) -> 1 | H11: =SUMIFS(Jogos!$L:$L,Jogos!$D:$D,$A11,Jogos!$E:$E,$C11)+SUMIFS(Jogos!$Q:$Q,Jogos!$D:$D,$A11,Jogos!$I:$I,$C11) -> 1 | I11: =SUMIFS(Jogos!$Q:$Q,Jogos!$D:$D,$A11,Jogos!$E:$E,$C11)+SUMIFS(Jogos!$L:$L,Jogos!$D:$D,$A11,Jogos!$I:$I,$C11) -> 2 | J11: -1 | K11: =SUMIFS(Jogos!$M:$M,Jogos!$D:$D,$A11,Jogos!$E:$E,$C11)+SUMIFS(Jogos!$P:$P,Jogos!$D:$D,$A11,Jogos!$I:$I,$C11) -> 2 | L11: =SUMIFS(Jogos!$P:$P,Jogos!$D:$D,$A11,Jogos!$E:$E,$C11)+SUMIFS(Jogos!$M:$M,Jogos!$D:$D,$A11,Jogos!$I:$I,$C11) -> 7 | M11: -5 | N11: 1
A13: TAÇA DE PRATA | D13: PG | E13: V | F13: E | G13: D | H13: GP | I13: GC | J13: SG | K13: GPI | L13: GCI | M13: SGI | N13: J
A14: SEMI-FINAL
A15: TP.04 | B15: 1º | C15: COMARY | D15: =E15*3+F15 -> 3 | E15: =COUNTIFS(Jogos!$N:$N,"V",Jogos!$D:$D,$A15,Jogos!$E:$E,$C15)+COUNTIFS(Jogos!$O:$O,"V",Jogos!$D:$D,$A15,Jogos!$I:$I,$C15) -> 1 | F15: =COUNTIFS(Jogos!$N:$N,"E",Jogos!$D:$D,$A15,Jogos!$E:$E,$C15)+COUNTIFS(Jogos!$O:$O,"E",Jogos!$D:$D,$A15,Jogos!$I:$I,$C15) -> 0 | G15: =COUNTIFS(Jogos!$N:$N,"D",Jogos!$D:$D,$A15,Jogos!$E:$E,$C15)+COUNTIFS(Jogos!$O:$O,"D",Jogos!$D:$D,$A15,Jogos!$I:$I,$C15) -> 0 | H15: =SUMIFS(Jogos!$L:$L,Jogos!$D:$D,$A15,Jogos!$E:$E,$C15)+SUMIFS(Jogos!$Q:$Q,Jogos!$D:$D,$A15,Jogos!$I:$I,$C15) -> 2 | I15: =SUMIFS(Jogos!$Q:$Q,Jogos!$D:$D,$A15,Jogos!$E:$E,$C15)+SUMIFS(Jogos!$L:$L,Jogos!$D:$D,$A15,Jogos!$I:$I,$C15) -> 0 | J15: =H15-I15 -> 2 | K15: =SUMIFS(Jogos!$M:$M,Jogos!$D:$D,$A15,Jogos!$E:$E,$C15)+SUMIFS(Jogos!$P:$P,Jogos!$D:$D,$A15,Jogos!$I:$I,$C15) -> 5 | L15: =SUMIFS(Jogos!$P:$P,Jogos!$D:$D,$A15,Jogos!$E:$E,$C15)+SUMIFS(Jogos!$M:$M,Jogos!$D:$D,$A15,Jogos!$I:$I,$C15) -> 3 | M15: =K15-L15 -> 2 | N15: =SUM(E15:G15) -> 1
A16: TP.04 | B16: 2º | C16: ELDORADO | D16: =E16*3+F16 -> 0 | E16: =COUNTIFS(Jogos!$N:$N,"V",Jogos!$D:$D,$A16,Jogos!$E:$E,$C16)+COUNTIFS(Jogos!$O:$O,"V",Jogos!$D:$D,$A16,Jogos!$I:$I,$C16) -> 0 | F16: =COUNTIFS(Jogos!$N:$N,"E",Jogos!$D:$D,$A16,Jogos!$E:$E,$C16)+COUNTIFS(Jogos!$O:$O,"E",Jogos!$D:$D,$A16,Jogos!$I:$I,$C16) -> 0 | G16: =COUNTIFS(Jogos!$N:$N,"D",Jogos!$D:$D,$A16,Jogos!$E:$E,$C16)+COUNTIFS(Jogos!$O:$O,"D",Jogos!$D:$D,$A16,Jogos!$I:$I,$C16) -> 1 | H16: =SUMIFS(Jogos!$L:$L,Jogos!$D:$D,$A16,Jogos!$E:$E,$C16)+SUMIFS(Jogos!$Q:$Q,Jogos!$D:$D,$A16,Jogos!$I:$I,$C16) -> 0 | I16: =SUMIFS(Jogos!$Q:$Q,Jogos!$D:$D,$A16,Jogos!$E:$E,$C16)+SUMIFS(Jogos!$L:$L,Jogos!$D:$D,$A16,Jogos!$I:$I,$C16) -> 2 | J16: =H16-I16 -> -2 | K16: =SUMIFS(Jogos!$M:$M,Jogos!$D:$D,$A16,Jogos!$E:$E,$C16)+SUMIFS(Jogos!$P:$P,Jogos!$D:$D,$A16,Jogos!$I:$I,$C16) -> 3 | L16: =SUMIFS(Jogos!$P:$P,Jogos!$D:$D,$A16,Jogos!$E:$E,$C16)+SUMIFS(Jogos!$M:$M,Jogos!$D:$D,$A16,Jogos!$I:$I,$C16) -> 5 | M16: =K16-L16 -> -2 | N16: =SUM(E16:G16) -> 1
A17: TP.05 | B17: 1º | C17: AABB/ACAFUMA [B] | D17: =E17*3+F17 -> 3 | E17: =COUNTIFS(Jogos!$N:$N,"V",Jogos!$D:$D,$A17,Jogos!$E:$E,$C17)+COUNTIFS(Jogos!$O:$O,"V",Jogos!$D:$D,$A17,Jogos!$I:$I,$C17) -> 1 | F17: =COUNTIFS(Jogos!$N:$N,"E",Jogos!$D:$D,$A17,Jogos!$E:$E,$C17)+COUNTIFS(Jogos!$O:$O,"E",Jogos!$D:$D,$A17,Jogos!$I:$I,$C17) -> 0 | G17: =COUNTIFS(Jogos!$N:$N,"D",Jogos!$D:$D,$A17,Jogos!$E:$E,$C17)+COUNTIFS(Jogos!$O:$O,"D",Jogos!$D:$D,$A17,Jogos!$I:$I,$C17) -> 0 | H17: =SUMIFS(Jogos!$L:$L,Jogos!$D:$D,$A17,Jogos!$E:$E,$C17)+SUMIFS(Jogos!$Q:$Q,Jogos!$D:$D,$A17,Jogos!$I:$I,$C17) -> 3 | I17: =SUMIFS(Jogos!$Q:$Q,Jogos!$D:$D,$A17,Jogos!$E:$E,$C17)+SUMIFS(Jogos!$L:$L,Jogos!$D:$D,$A17,Jogos!$I:$I,$C17) -> 1 | J17: =H17-I17 -> 2 | K17: =SUMIFS(Jogos!$M:$M,Jogos!$D:$D,$A17,Jogos!$E:$E,$C17)+SUMIFS(Jogos!$P:$P,Jogos!$D:$D,$A17,Jogos!$I:$I,$C17) -> 7 | L17: =SUMIFS(Jogos!$P:$P,Jogos!$D:$D,$A17,Jogos!$E:$E,$C17)+SUMIFS(Jogos!$M:$M,Jogos!$D:$D,$A17,Jogos!$I:$I,$C17) -> 3 | M17: =K17-L17 -> 4 | N17: =SUM(E17:G17) -> 1
A18: TP.05 | B18: 2º | C18: CHACAL [A] | D18: =E18*3+F18 -> 0 | E18: =COUNTIFS(Jogos!$N:$N,"V",Jogos!$D:$D,$A18,Jogos!$E:$E,$C18)+COUNTIFS(Jogos!$O:$O,"V",Jogos!$D:$D,$A18,Jogos!$I:$I,$C18) -> 0 | F18: =COUNTIFS(Jogos!$N:$N,"E",Jogos!$D:$D,$A18,Jogos!$E:$E,$C18)+COUNTIFS(Jogos!$O:$O,"E",Jogos!$D:$D,$A18,Jogos!$I:$I,$C18) -> 0 | G18: =COUNTIFS(Jogos!$N:$N,"D",Jogos!$D:$D,$A18,Jogos!$E:$E,$C18)+COUNTIFS(Jogos!$O:$O,"D",Jogos!$D:$D,$A18,Jogos!$I:$I,$C18) -> 1 | H18: =SUMIFS(Jogos!$L:$L,Jogos!$D:$D,$A18,Jogos!$E:$E,$C18)+SUMIFS(Jogos!$Q:$Q,Jogos!$D:$D,$A18,Jogos!$I:$I,$C18) -> 1 | I18: =SUMIFS(Jogos!$Q:$Q,Jogos!$D:$D,$A18,Jogos!$E:$E,$C18)+SUMIFS(Jogos!$L:$L,Jogos!$D:$D,$A18,Jogos!$I:$I,$C18) -> 3 | J18: =H18-I18 -> -2 | K18: =SUMIFS(Jogos!$M:$M,Jogos!$D:$D,$A18,Jogos!$E:$E,$C18)+SUMIFS(Jogos!$P:$P,Jogos!$D:$D,$A18,Jogos!$I:$I,$C18) -> 3 | L18: =SUMIFS(Jogos!$P:$P,Jogos!$D:$D,$A18,Jogos!$E:$E,$C18)+SUMIFS(Jogos!$M:$M,Jogos!$D:$D,$A18,Jogos!$I:$I,$C18) -> 7 | M18: =K18-L18 -> -4 | N18: =SUM(E18:G18) -> 1
A20: TAÇA DE PRATA | D20: PG | E20: V | F20: E | G20: D | H20: GP | I20: GC | J20: SG | K20: GPI | L20: GCI | M20: SGI | N20: J
A21: FINAL
A22: TP.06 | B22: 1º | C22: AABB/ACAFUMA [B] | D22: =E22*3+F22 -> 3 | E22: =COUNTIFS(Jogos!$N:$N,"V",Jogos!$D:$D,$A22,Jogos!$E:$E,$C22)+COUNTIFS(Jogos!$O:$O,"V",Jogos!$D:$D,$A22,Jogos!$I:$I,$C22) -> 1 | F22: =COUNTIFS(Jogos!$N:$N,"E",Jogos!$D:$D,$A22,Jogos!$E:$E,$C22)+COUNTIFS(Jogos!$O:$O,"E",Jogos!$D:$D,$A22,Jogos!$I:$I,$C22) -> 0 | G22: =COUNTIFS(Jogos!$N:$N,"D",Jogos!$D:$D,$A22,Jogos!$E:$E,$C22)+COUNTIFS(Jogos!$O:$O,"D",Jogos!$D:$D,$A22,Jogos!$I:$I,$C22) -> 0 | H22: =SUMIFS(Jogos!$L:$L,Jogos!$D:$D,$A22,Jogos!$E:$E,$C22)+SUMIFS(Jogos!$Q:$Q,Jogos!$D:$D,$A22,Jogos!$I:$I,$C22) -> 3 | I22: =SUMIFS(Jogos!$Q:$Q,Jogos!$D:$D,$A22,Jogos!$E:$E,$C22)+SUMIFS(Jogos!$L:$L,Jogos!$D:$D,$A22,Jogos!$I:$I,$C22) -> 0 | J22: =H22-I22 -> 3 | K22: =SUMIFS(Jogos!$M:$M,Jogos!$D:$D,$A22,Jogos!$E:$E,$C22)+SUMIFS(Jogos!$P:$P,Jogos!$D:$D,$A22,Jogos!$I:$I,$C22) -> 7 | L22: =SUMIFS(Jogos!$P:$P,Jogos!$D:$D,$A22,Jogos!$E:$E,$C22)+SUMIFS(Jogos!$M:$M,Jogos!$D:$D,$A22,Jogos!$I:$I,$C22) -> 3 | M22: =K22-L22 -> 4 | N22: =SUM(E22:G22) -> 1
A23: TP.06 | B23: 2º | C23: COMARY | D23: =E23*3+F23 -> 0 | E23: =COUNTIFS(Jogos!$N:$N,"V",Jogos!$D:$D,$A23,Jogos!$E:$E,$C23)+COUNTIFS(Jogos!$O:$O,"V",Jogos!$D:$D,$A23,Jogos!$I:$I,$C23) -> 0 | F23: =COUNTIFS(Jogos!$N:$N,"E",Jogos!$D:$D,$A23,Jogos!$E:$E,$C23)+COUNTIFS(Jogos!$O:$O,"E",Jogos!$D:$D,$A23,Jogos!$I:$I,$C23) -> 0 | G23: =COUNTIFS(Jogos!$N:$N,"D",Jogos!$D:$D,$A23,Jogos!$E:$E,$C23)+COUNTIFS(Jogos!$O:$O,"D",Jogos!$D:$D,$A23,Jogos!$I:$I,$C23) -> 1 | H23: =SUMIFS(Jogos!$L:$L,Jogos!$D:$D,$A23,Jogos!$E:$E,$C23)+SUMIFS(Jogos!$Q:$Q,Jogos!$D:$D,$A23,Jogos!$I:$I,$C23) -> 0 | I23: =SUMIFS(Jogos!$Q:$Q,Jogos!$D:$D,$A23,Jogos!$E:$E,$C23)+SUMIFS(Jogos!$L:$L,Jogos!$D:$D,$A23,Jogos!$I:$I,$C23) -> 3 | J23: =H23-I23 -> -3 | K23: =SUMIFS(Jogos!$M:$M,Jogos!$D:$D,$A23,Jogos!$E:$E,$C23)+SUMIFS(Jogos!$P:$P,Jogos!$D:$D,$A23,Jogos!$I:$I,$C23) -> 3 | L23: =SUMIFS(Jogos!$P:$P,Jogos!$D:$D,$A23,Jogos!$E:$E,$C23)+SUMIFS(Jogos!$M:$M,Jogos!$D:$D,$A23,Jogos!$I:$I,$C23) -> 7 | M23: =K23-L23 -> -4 | N23: =SUM(E23:G23) -> 1

Sheet ClaIND
A1: =Info!A1 -> XL CAMPEONATO BRASILEIRO INTERCLUBES / 2022 | N1: linhas de conferencia | P1: PG | Q1: V | R1: E | S1: D | T1: GP | U1: GC | V1: SG | W1: J
A2: =Info!A2 -> Matias Barbosa / MG, 15 a 17 de abril de 2022 | Q2: =SUM(D6:D90) -> 232 | R2: 168 | S2: 232 | T2: 692 | U2: 692 | V2: 0 | W2: 632
V3: total de jogos individuais | W3: =W2/2 -> 316
A4: BOTONISTA | B4: CLUBE | C4: PG | D4: V | E4: E | F4: D | G4: GP | H4: GC | I4: SG | J4: J | K4: REND | L4: POS
A6: Adolpho Parente | B6: AABB/ACAFUMA [B] | C6: =IF(J6=0,-0.001,D6*3+E6) -> 23 | D6: =COUNTIFS(Jogos!$E:$E,$A6,Jogos!$N:$N,"V")+COUNTIFS(Jogos!$I:$I,$A6,Jogos!$O:$O,"V") -> 7 | E6: =COUNTIFS(Jogos!$E:$E,$A6,Jogos!$N:$N,"E")+COUNTIFS(Jogos!$I:$I,$A6,Jogos!$O:$O,"E") -> 2 | F6: =COUNTIFS(Jogos!$E:$E,$A6,Jogos!$N:$N,"D")+COUNTIFS(Jogos!$I:$I,$A6,Jogos!$O:$O,"D") -> 1 | G6: =SUMIFS(Jogos!$F:$F,Jogos!$E:$E,$A6)+SUMIFS(Jogos!$H:$H,Jogos!$I:$I,$A6) -> 17 | H6: =SUMIFS(Jogos!$H:$H,Jogos!$E:$E,$A6)+SUMIFS(Jogos!$F:$F,Jogos!$I:$I,$A6)+COUNTIFS(Jogos!$S:$S,"WWIND",Jogos!$E:$E,$A6)*2+COUNTIFS(Jogos!$S:$S,"WWIND",Jogos!$I:$I,$A6)*2 -> 5 | I6: =G6-H6 -> 12 | J6: =SUM(D6:F6) -> 10 | K6: =IF(J6=0,-0.00001,C6/(J6*3)) -> 76.7% | L6: =INDEX(ClaFIN!B:C,MATCH(B6,ClaFIN!C:C,0),1) -> 11º
A7: Ailson Brites | B7: MATIAS [B] | C7: 2 | D7: =COUNTIFS(Jogos!$E:$E,$A7,Jogos!$N:$N,"V")+COUNTIFS(Jogos!$I:$I,$A7,Jogos!$O:$O,"V") -> 0 | E7: =COUNTIFS(Jogos!$E:$E,$A7,Jogos!$N:$N,"E")+COUNTIFS(Jogos!$I:$I,$A7,Jogos!$O:$O,"E") -> 2 | F7: =COUNTIFS(Jogos!$E:$E,$A7,Jogos!$N:$N,"D")+COUNTIFS(Jogos!$I:$I,$A7,Jogos!$O:$O,"D") -> 7 | G7: =SUMIFS(Jogos!$F:$F,Jogos!$E:$E,$A7)+SUMIFS(Jogos!$H:$H,Jogos!$I:$I,$A7) -> 6 | H7: =SUMIFS(Jogos!$H:$H,Jogos!$E:$E,$A7)+SUMIFS(Jogos!$F:$F,Jogos!$I:$I,$A7)+COUNTIFS(Jogos!$S:$S,"WWIND",Jogos!$E:$E,$A7)*2+COUNTIFS(Jogos!$S:$S,"WWIND",Jogos!$I:$I,$A7)*2 -> 17 | I7: -11 | J7: 9 | K7: 7.4% | L7: =INDEX(ClaFIN!B:C,MATCH(B7,ClaFIN!C:C,0),1) -> 16º
A8: Alcides Figueira | B8: AABB/ACAFUMA [B] | C8: 18 | D8: =COUNTIFS(Jogos!$E:$E,$A8,Jogos!$N:$N,"V")+COUNTIFS(Jogos!$I:$I,$A8,Jogos!$O:$O,"V") -> 5 | E8: =COUNTIFS(Jogos!$E:$E,$A8,Jogos!$N:$N,"E")+COUNTIFS(Jogos!$I:$I,$A8,Jogos!$O:$O,"E") -> 3 | F8: =COUNTIFS(Jogos!$E:$E,$A8,Jogos!$N:$N,"D")+COUNTIFS(Jogos!$I:$I,$A8,Jogos!$O:$O,"D") -> 2 | G8: =SUMIFS(Jogos!$F:$F,Jogos!$E:$E,$A8)+SUMIFS(Jogos!$H:$H,Jogos!$I:$I,$A8) -> 24 | H8: =SUMIFS(Jogos!$H:$H,Jogos!$E:$E,$A8)+SUMIFS(Jogos!$F:$F,Jogos!$I:$I,$A8)+COUNTIFS(Jogos!$S:$S,"WWIND",Jogos!$E:$E,$A8)*2+COUNTIFS(Jogos!$S:$S,"WWIND",Jogos!$I:$I,$A8)*2 -> 13 | I8: 11 | J8: 10 | K8: 60.0% | L8: =INDEX(ClaFIN!B:C,MATCH(B8,ClaFIN!C:C,0),1) -> 11º
A9: Alex Lage | B9: ELDORADO | C9: 7 | D9: =COUNTIFS(Jogos!$E:$E,$A9,Jogos!$N:$N,"V")+COUNTIFS(Jogos!$I:$I,$A9,Jogos!$O:$O,"V") -> 1 | E9: =COUNTIFS(Jogos!$E:$E,$A9,Jogos!$N:$N,"E")+COUNTIFS(Jogos!$I:$I,$A9,Jogos!$O:$O,"E") -> 4 | F9: =COUNTIFS(Jogos!$E:$E,$A9,Jogos!$N:$N,"D")+COUNTIFS(Jogos!$I:$I,$A9,Jogos!$O:$O,"D") -> 4 | G9: =SUMIFS(Jogos!$F:$F,Jogos!$E:$E,$A9)+SUMIFS(Jogos!$H:$H,Jogos!$I:$I,$A9) -> 9 | H9: =SUMIFS(Jogos!$H:$H,Jogos!$E:$E,$A9)+SUMIFS(Jogos!$F:$F,Jogos!$I:$I,$A9)+COUNTIFS(Jogos!$S:$S,"WWIND",Jogos!$E:$E,$A9)*2+COUNTIFS(Jogos!$S:$S,"WWIND",Jogos!$I:$I,$A9)*2 -> 15 | I9: -6 | J9: 9 | K9: 25.9% | L9: =INDEX(ClaFIN!B:C,MATCH(B9,ClaFIN!C:C,0),1) -> 14º
A10: Altanir Junior | B10: BOTAFOGO | C10: 16 | D10: =COUNTIFS(Jogos!$E:$E,$A10,Jogos!$N:$N,"V")+COUNTIFS(Jogos!$I:$I,$A10,Jogos!$O:$O,"V") -> 5 | E10: =COUNTIFS(Jogos!$E:$E,$A10,Jogos!$N:$N,"E")+COUNTIFS(Jogos!$I:$I,$A10,Jogos!$O:$O,"E") -> 1 | F10: =COUNTIFS(Jogos!$E:$E,$A10,Jogos!$N:$N,"D")+COUNTIFS(Jogos!$I:$I,$A10,Jogos!$O:$O,"D") -> 3 | G10: =SUMIFS(Jogos!$F:$F,Jogos!$E:$E,$A10)+SUMIFS(Jogos!$H:$H,Jogos!$I:$I,$A10) -> 15 | H10: =SUMIFS(Jogos!$H:$H,Jogos!$E:$E,$A10)+SUMIFS(Jogos!$F:$F,Jogos!$I:$I,$A10)+COUNTIFS(Jogos!$S:$S,"WWIND",Jogos!$E:$E,$A10)*2+COUNTIFS(Jogos!$S:$S,"WWIND",Jogos!$I:$I,$A10)*2 -> 9 | I10: 6 | J10: 9 | K10: 59.3% | L10: =INDEX(ClaFIN!B:C,MATCH(B10,ClaFIN!C:C,0),1) -> 5º
A11: Andre Brandao | B11: AABB/ACAFUMA [C] | C11: 15 | D11: =COUNTIFS(Jogos!$E:$E,$A11,Jogos!$N:$N,"V")+COUNTIFS(Jogos!$I:$I,$A11,Jogos!$O:$O,"V") -> 4 | E11: =COUNTIFS(Jogos!$E:$E,$A11,Jogos!$N:$N,"E")+COUNTIFS(Jogos!$I:$I,$A11,Jogos!$O:$O,"E") -> 3 | F11: =COUNTIFS(Jogos!$E:$E,$A11,Jogos!$N:$N,"D")+COUNTIFS(Jogos!$I:$I,$A11,Jogos!$O:$O,"D") -> 3 | G11: =SUMIFS(Jogos!$F:$F,Jogos!$E:$E,$A11)+SUMIFS(Jogos!$H:$H,Jogos!$I:$I,$A11) -> 10 | H11: =SUMIFS(Jogos!$H:$H,Jogos!$E:$E,$A11)+SUMIFS(Jogos!$F:$F,Jogos!$I:$I,$A11)+COUNTIFS(Jogos!$S:$S,"WWIND",Jogos!$E:$E,$A11)*2+COUNTIFS(Jogos!$S:$S,"WWIND",Jogos!$I:$I,$A11)*2 -> 14 | I11: -4 | J11: 10 | K11: 50.0% | L11: =INDEX(ClaFIN!B:C,MATCH(B11,ClaFIN!C:C,0),1) -> 8º
A12: Antonio Carlos Almeida | B12: AABB/ACAFUMA [A] | C12: 10 | D12: =COUNTIFS(Jogos!$E:$E,$A12,Jogos!$N:$N,"V")+COUNTIFS(Jogos!$I:$I,$A12,Jogos!$O:$O,"V") -> 2 | E12: =COUNTIFS(Jogos!$E:$E,$A12,Jogos!$N:$N,"E")+COUNTIFS(Jogos!$I:$I,$A12,Jogos!$O:$O,"E") -> 4 | F12: =COUNTIFS(Jogos!$E:$E,$A12,Jogos!$N:$N,"D")+COUNTIFS(Jogos!$I:$I,$A12,Jogos!$O:$O,"D") -> 3 | G12: =SUMIFS(Jogos!$F:$F,Jogos!$E:$E,$A12)+SUMIFS(Jogos!$H:$H,Jogos!$I:$I,$A12) -> 9 | H12: =SUMIFS(Jogos!$H:$H,Jogos!$E:$E,$A12)+SUMIFS(Jogos!$F:$F,Jogos!$I:$I,$A12)+COUNTIFS(Jogos!$S:$S,"WWIND",Jogos!$E:$E,$A12)*2+COUNTIFS(Jogos!$S:$S,"WWIND",Jogos!$I:$I,$A12)*2 -> 8 | I12: 1 | J12: 9 | K12: 37.0% | L12: =INDEX(ClaFIN!B:C,MATCH(B12,ClaFIN!C:C,0),1) -> 9º
A13: Bernardo Pires | B13: ELDORADO | C13: 2 | D13: =COUNTIFS(Jogos!$E:$E,$A13,Jogos!$N:$N,"V")+COUNTIFS(Jogos!$I:$I,$A13,Jogos!$O:$O,"V") -> 0 | E13: =COUNTIFS(Jogos!$E:$E,$A13,Jogos!$N:$N,"E")+COUNTIFS(Jogos!$I:$I,$A13,Jogos!$O:$O,"E") -> 2 | F13: =COUNTIFS(Jogos!$E:$E,$A13,Jogos!$N:$N,"D")+COUNTIFS(Jogos!$I:$I,$A13,Jogos!$O:$O,"D") -> 7 | G13: =SUMIFS(Jogos!$F:$F,Jogos!$E:$E,$A13)+SUMIFS(Jogos!$H:$H,Jogos!$I:$I,$A13) -> 2 | H13: =SUMIFS(Jogos!$H:$H,Jogos!$E:$E,$A13)+SUMIFS(Jogos!$F:$F,Jogos!$I:$I,$A13)+COUNTIFS(Jogos!$S:$S,"WWIND",Jogos!$E:$E,$A13)*2+COUNTIFS(Jogos!$S:$S,"WWIND",Jogos!$I:$I,$A13)*2 -> 13 | I13: -11 | J13: 9 | K13: 7.4% | L13: =INDEX(ClaFIN!B:C,MATCH(B13,ClaFIN!C:C,0),1) -> 14º
A14: Breno Ribeiro | B14: LIBERDADE [A] | C14: 20 | D14: =COUNTIFS(Jogos!$E:$E,$A14,Jogos!$N:$N,"V")+COUNTIFS(Jogos!$I:$I,$A14,Jogos!$O:$O,"V") -> 6 | E14: =COUNTIFS(Jogos!$E:$E,$A14,Jogos!$N:$N,"E")+COUNTIFS(Jogos!$I:$I,$A14,Jogos!$O:$O,"E") -> 2 | F14: =COUNTIFS(Jogos!$E:$E,$A14,Jogos!$N:$N,"D")+COUNTIFS(Jogos!$I:$I,$A14,Jogos!$O:$O,"D") -> 2 | G14: =SUMIFS(Jogos!$F:$F,Jogos!$E:$E,$A14)+SUMIFS(Jogos!$H:$H,Jogos!$I:$I,$A14) -> 13 | H14: =SUMIFS(Jogos!$H:$H,Jogos!$E:$E,$A14)+SUMIFS(Jogos!$F:$F,Jogos!$I:$I,$A14)+COUNTIFS(Jogos!$S:$S,"WWIND",Jogos!$E:$E,$A14)*2+COUNTIFS(Jogos!$S:$S,"WWIND",Jogos!$I:$I,$A14)*2 -> 7 | I14: 6 | J14: 10 | K14: 66.7% | L14: =INDEX(ClaFIN!B:C,MATCH(B14,ClaFIN!C:C,0),1) -> 1º
A15: Brunno Gill | B15: MATIAS [A] | C15: 18 | D15: =COUNTIFS(Jogos!$E:$E,$A15,Jogos!$N:$N,"V")+COUNTIFS(Jogos!$I:$I,$A15,Jogos!$O:$O,"V") -> 6 | E15: =COUNTIFS(Jogos!$E:$E,$A15,Jogos!$N:$N,"E")+COUNTIFS(Jogos!$I:$I,$A15,Jogos!$O:$O,"E") -> 0 | F15: =COUNTIFS(Jogos!$E:$E,$A15,Jogos!$N:$N,"D")+COUNTIFS(Jogos!$I:$I,$A15,Jogos!$O:$O,"D") -> 3 | G15: =SUMIFS(Jogos!$F:$F,Jogos!$E:$E,$A15)+SUMIFS(Jogos!$H:$H,Jogos!$I:$I,$A15) -> 12 | H15: =SUMIFS(Jogos!$H:$H,Jogos!$E:$E,$A15)+SUMIFS(Jogos!$F:$F,Jogos!$I:$I,$A15)+COUNTIFS(Jogos!$S:$S,"WWIND",Jogos!$E:$E,$A15)*2+COUNTIFS(Jogos!$S:$S,"WWIND",Jogos!$I:$I,$A15)*2 -> 6 | I15: 6 | J15: 9 | K15: 66.7% | L15: =INDEX(ClaFIN!B:C,MATCH(B15,ClaFIN!C:C,0),1) -> 3º
A16: Bruno Machado | B16: BOTAFOGO | C16: 0 | D16: =COUNTIFS(Jogos!$E:$E,$A16,Jogos!$N:$N,"V")+COUNTIFS(Jogos!$I:$I,$A16,Jogos!$O:$O,"V") -> 0 | E16: =COUNTIFS(Jogos!$E:$E,$A16,Jogos!$N:$N,"E")+COUNTIFS(Jogos!$I:$I,$A16,Jogos!$O:$O,"E") -> 0 | F16: =COUNTIFS(Jogos!$E:$E,$A16,Jogos!$N:$N,"D")+COUNTIFS(Jogos!$I:$I,$A16,Jogos!$O:$O,"D") -> 1 | G16: =SUMIFS(Jogos!$F:$F,Jogos!$E:$E,$A16)+SUMIFS(Jogos!$H:$H,Jogos!$I:$I,$A16) -> 0 | H16: =SUMIFS(Jogos!$H:$H,Jogos!$E:$E,$A16)+SUMIFS(Jogos!$F:$F,Jogos!$I:$I,$A16)+COUNTIFS(Jogos!$S:$S,"WWIND",Jogos!$E:$E,$A16)*2+COUNTIFS(Jogos!$S:$S,"WWIND",Jogos!$I:$I,$A16)*2 -> 1 | I16: -1 | J16: 1 | K16: 0.0% | L16: =INDEX(ClaFIN!B:C,MATCH(B16,ClaFIN!C:C,0),1) -> 5º
A17: Carlos Antonio Miranda | B17: TUPI [A] | C17: 20 | D17: =COUNTIFS(Jogos!$E:$E,$A17,Jogos!$N:$N,"V")+COUNTIFS(Jogos!$I:$I,$A17,Jogos!$O:$O,"V") -> 6 | E17: =COUNTIFS(Jogos!$E:$E,$A17,Jogos!$N:$N,"E")+COUNTIFS(Jogos!$I:$I,$A17,Jogos!$O:$O,"E") -> 2 | F17: =COUNTIFS(Jogos!$E:$E,$A17,Jogos!$N:$N,"D")+COUNTIFS(Jogos!$I:$I,$A17,Jogos!$O:$O,"D") -> 1 | G17: =SUMIFS(Jogos!$F:$F,Jogos!$E:$E,$A17)+SUMIFS(Jogos!$H:$H,Jogos!$I:$I,$A17) -> 14 | H17: =SUMIFS(Jogos!$H:$H,Jogos!$E:$E,$A17)+SUMIFS(Jogos!$F:$F,Jogos!$I:$I,$A17)+COUNTIFS(Jogos!$S:$S,"WWIND",Jogos!$E:$E,$A17)*2+COUNTIFS(Jogos!$S:$S,"WWIND",Jogos!$I:$I,$A17)*2 -> 7 | I17: 7 | J17: 9 | K17: 74.1% | L17: =INDEX(ClaFIN!B:C,MATCH(B17,ClaFIN!C:C,0),1) -> 2º
A18: Carlos Henrique Garcia | B18: LIBERDADE [A] | C18: 20 | D18: =COUNTIFS(Jogos!$E:$E,$A18,Jogos!$N:$N,"V")+COUNTIFS(Jogos!$I:$I,$A18,Jogos!$O:$O,"V") -> 6 | E18: =COUNTIFS(Jogos!$E:$E,$A18,Jogos!$N:$N,"E")+COUNTIFS(Jogos!$I:$I,$A18,Jogos!$O:$O,"E") -> 2 | F18: =COUNTIFS(Jogos!$E:$E,$A18,Jogos!$N:$N,"D")+COUNTIFS(Jogos!$I:$I,$A18,Jogos!$O:$O,"D") -> 2 | G18: =SUMIFS(Jogos!$F:$F,Jogos!$E:$E,$A18)+SUMIFS(Jogos!$H:$H,Jogos!$I:$I,$A18) -> 19 | H18: =SUMIFS(Jogos!$H:$H,Jogos!$E:$E,$A18)+SUMIFS(Jogos!$F:$F,Jogos!$I:$I,$A18)+COUNTIFS(Jogos!$S:$S,"WWIND",Jogos!$E:$E,$A18)*2+COUNTIFS(Jogos!$S:$S,"WWIND",Jogos!$I:$I,$A18)*2 -> 7 | I18: 12 | J18: 10 | K18: 66.7% | L18: =INDEX(ClaFIN!B:C,MATCH(B18,ClaFIN!C:C,0),1) -> 1º
A19: Claudio Figueiredo | B19: COMARY | C19: 4 | D19: =COUNTIFS(Jogos!$E:$E,$A19,Jogos!$N:$N,"V")+COUNTIFS(Jogos!$I:$I,$A19,Jogos!$O:$O,"V") -> 1 | E19: =COUNTIFS(Jogos!$E:$E,$A19,Jogos!$N:$N,"E")+COUNTIFS(Jogos!$I:$I,$A19,Jogos!$O:$O,"E") -> 1 | F19: =COUNTIFS(Jogos!$E:$E,$A19,Jogos!$N:$N,"D")+COUNTIFS(Jogos!$I:$I,$A19,Jogos!$O:$O,"D") -> 2 | G19: =SUMIFS(Jogos!$F:$F,Jogos!$E:$E,$A19)+SUMIFS(Jogos!$H:$H,Jogos!$I:$I,$A19) -> 3 | H19: =SUMIFS(Jogos!$H:$H,Jogos!$E:$E,$A19)+SUMIFS(Jogos!$F:$F,Jogos!$I:$I,$A19)+COUNTIFS(Jogos!$S:$S,"WWIND",Jogos!$E:$E,$A19)*2+COUNTIFS(Jogos!$S:$S,"WWIND",Jogos!$I:$I,$A19)*2 -> 8 | I19: -5 | J19: 4 | K19: 33.3% | L19: =INDEX(ClaFIN!B:C,MATCH(B19,ClaFIN!C:C,0),1) -> 12º
A20: Constancio Moura | B20: UNIÃO INDEPENDENTE/UBERABA | C20: 14 | D20: =COUNTIFS(Jogos!$E:$E,$A20,Jogos!$N:$N,"V")+COUNTIFS(Jogos!$I:$I,$A20,Jogos!$O:$O,"V") -> 4 | E20: =COUNTIFS(Jogos!$E:$E,$A20,Jogos!$N:$N,"E")+COUNTIFS(Jogos!$I:$I,$A20,Jogos!$O:$O,"E") -> 2 | F20: =COUNTIFS(Jogos!$E:$E,$A20,Jogos!$N:$N,"D")+COUNTIFS(Jogos!$I:$I,$A20,Jogos!$O:$O,"D") -> 3 | G20: =SUMIFS(Jogos!$F:$F,Jogos!$E:$E,$A20)+SUMIFS(Jogos!$H:$H,Jogos!$I:$I,$A20) -> 12 | H20: =SUMIFS(Jogos!$H:$H,Jogos!$E:$E,$A20)+SUMIFS(Jogos!$F:$F,Jogos!$I:$I,$A20)+COUNTIFS(Jogos!$S:$S,"WWIND",Jogos!$E:$E,$A20)*2+COUNTIFS(Jogos!$S:$S,"WWIND",Jogos!$I:$I,$A20)*2 -> 10 | I20: 2 | J20: 9 | K20: 51.9% | L20: =INDEX(ClaFIN!B:C,MATCH(B20,ClaFIN!C:C,0),1) -> 4º
A21: Daniel Oliveira | B21: LIBERDADE [B] | C21: 4 | D21: =COUNTIFS(Jogos!$E:$E,$A21,Jogos!$N:$N,"V")+COUNTIFS(Jogos!$I:$I,$A21,Jogos!$O:$O,"V") -> 1 | E21: =COUNTIFS(Jogos!$E:$E,$A21,Jogos!$N:$N,"E")+COUNTIFS(Jogos!$I:$I,$A21,Jogos!$O:$O,"E") -> 1 | F21: =COUNTIFS(Jogos!$E:$E,$A21,Jogos!$N:$N,"D")+COUNTIFS(Jogos!$I:$I,$A21,Jogos!$O:$O,"D") -> 3 | G21: =SUMIFS(Jogos!$F:$F,Jogos!$E:$E,$A21)+SUMIFS(Jogos!$H:$H,Jogos!$I:$I,$A21) -> 4 | H21: =SUMIFS(Jogos!$H:$H,Jogos!$E:$E,$A21)+SUMIFS(Jogos!$F:$F,Jogos!$I:$I,$A21)+COUNTIFS(Jogos!$S:$S,"WWIND",Jogos!$E:$E,$A21)*2+COUNTIFS(Jogos!$S:$S,"WWIND",Jogos!$I:$I,$A21)*2 -> 7 | I21: -3 | J21: 5 | K21: 26.7% | L21: =INDEX(ClaFIN!B:C,MATCH(B21,ClaFIN!C:C,0),1) -> 6º
A22: Diego Americo | B22: BOTAFOGO | C22: 17 | D22: =COUNTIFS(Jogos!$E:$E,$A22,Jogos!$N:$N,"V")+COUNTIFS(Jogos!$I:$I,$A22,Jogos!$O:$O,"V") -> 4 | E22: =COUNTIFS(Jogos!$E:$E,$A22,Jogos!$N:$N,"E")+COUNTIFS(Jogos!$I:$I,$A22,Jogos!$O:$O,"E") -> 5 | F22: =COUNTIFS(Jogos!$E:$E,$A22,Jogos!$N:$N,"D")+COUNTIFS(Jogos!$I:$I,$A22,Jogos!$O:$O,"D") -> 0 | G22: =SUMIFS(Jogos!$F:$F,Jogos!$E:$E,$A22)+SUMIFS(Jogos!$H:$H,Jogos!$I:$I,$A22) -> 10 | H22: =SUMIFS(Jogos!$H:$H,Jogos!$E:$E,$A22)+SUMIFS(Jogos!$F:$F,Jogos!$I:$I,$A22)+COUNTIFS(Jogos!$S:$S,"WWIND",Jogos!$E:$E,$A22)*2+COUNTIFS(Jogos!$S:$S,"WWIND",Jogos!$I:$I,$A22)*2 -> 3 | I22: 7 | J22: 9 | K22: 63.0% | L22: =INDEX(ClaFIN!B:C,MATCH(B22,ClaFIN!C:C,0),1) -> 5º
A23: Eber Chapinotti | B23: MATIAS [B] | C23: 8 | D23: =COUNTIFS(Jogos!$E:$E,$A23,Jogos!$N:$N,"V")+COUNTIFS(Jogos!$I:$I,$A23,Jogos!$O:$O,"V") -> 2 | E23: =COUNTIFS(Jogos!$E:$E,$A23,Jogos!$N:$N,"E")+COUNTIFS(Jogos!$I:$I,$A23,Jogos!$O:$O,"E") -> 2 | F23: =COUNTIFS(Jogos!$E:$E,$A23,Jogos!$N:$N,"D")+COUNTIFS(Jogos!$I:$I,$A23,Jogos!$O:$O,"D") -> 3 | G23: =SUMIFS(Jogos!$F:$F,Jogos!$E:$E,$A23)+SUMIFS(Jogos!$H:$H,Jogos!$I:$I,$A23) -> 5 | H23: =SUMIFS(Jogos!$H:$H,Jogos!$E:$E,$A23)+SUMIFS(Jogos!$F:$F,Jogos!$I:$I,$A23)+COUNTIFS(Jogos!$S:$S,"WWIND",Jogos!$E:$E,$A23)*2+COUNTIFS(Jogos!$S:$S,"WWIND",Jogos!$I:$I,$A23)*2 -> 8 | I23: -3 | J23: 7 | K23: 38.1% | L23: =INDEX(ClaFIN!B:C,MATCH(B23,ClaFIN!C:C,0),1) -> 16º
A24: Eder Patrocinio | B24: VASCO DA GAMA | C24: 8 | D24: =COUNTIFS(Jogos!$E:$E,$A24,Jogos!$N:$N,"V")+COUNTIFS(Jogos!$I:$I,$A24,Jogos!$O:$O,"V") -> 2 | E24: =COUNTIFS(Jogos!$E:$E,$A24,Jogos!$N:$N,"E")+COUNTIFS(Jogos!$I:$I,$A24,Jogos!$O:$O,"E") -> 2 | F24: =COUNTIFS(Jogos!$E:$E,$A24,Jogos!$N:$N,"D")+COUNTIFS(Jogos!$I:$I,$A24,Jogos!$O:$O,"D") -> 1 | G24: =SUMIFS(Jogos!$F:$F,Jogos!$E:$E,$A24)+SUMIFS(Jogos!$H:$H,Jogos!$I:$I,$A24) -> 8 | H24: =SUMIFS(Jogos!$H:$H,Jogos!$E:$E,$A24)+SUMIFS(Jogos!$F:$F,Jogos!$I:$I,$A24)+COUNTIFS(Jogos!$S:$S,"WWIND",Jogos!$E:$E,$A24)*2+COUNTIFS(Jogos!$S:$S,"WWIND",Jogos!$I:$I,$A24)*2 -> 8 | I24: 0 | J24: 5 | K24: 53.3% | L24: =INDEX(ClaFIN!B:C,MATCH(B24,ClaFIN!C:C,0),1) -> 7º
A25: Eduardo Costa | B25: VASCO DA GAMA | C25: 7 | D25: =COUNTIFS(Jogos!$E:$E,$A25,Jogos!$N:$N,"V")+COUNTIFS(Jogos!$I:$I,$A25,Jogos!$O:$O,"V") -> 2 | E25: =COUNTIFS(Jogos!$E:$E,$A25,Jogos!$N:$N,"E")+COUNTIFS(Jogos!$I:$I,$A25,Jogos!$O:$O,"E") -> 1 | F25: =COUNTIFS(Jogos!$E:$E,$A25,Jogos!$N:$N,"D")+COUNTIFS(Jogos!$I:$I,$A25,Jogos!$O:$O,"D") -> 1 | G25: =SUMIFS(Jogos!$F:$F,Jogos!$E:$E,$A25)+SUMIFS(Jogos!$H:$H,Jogos!$I:$I,$A25) -> 5 | H25: =SUMIFS(Jogos!$H:$H,Jogos!$E:$E,$A25)+SUMIFS(Jogos!$F:$F,Jogos!$I:$I,$A25)+COUNTIFS(Jogos!$S:$S,"WWIND",Jogos!$E:$E,$A25)*2+COUNTIFS(Jogos!$S:$S,"WWIND",Jogos!$I:$I,$A25)*2 -> 1 | I25: 4 | J25: 4 | K25: 58.3% | L25: =INDEX(ClaFIN!B:C,MATCH(B25,ClaFIN!C:C,0),1) -> 7º
A26: Eduardo Guerra | B26: TUPI [A] | C26: 10 | D26: =COUNTIFS(Jogos!$E:$E,$A26,Jogos!$N:$N,"V")+COUNTIFS(Jogos!$I:$I,$A26,Jogos!$O:$O,"V") -> 3 | E26: =COUNTIFS(Jogos!$E:$E,$A26,Jogos!$N:$N,"E")+COUNTIFS(Jogos!$I:$I,$A26,Jogos!$O:$O,"E") -> 1 | F26: =COUNTIFS(Jogos!$E:$E,$A26,Jogos!$N:$N,"D")+COUNTIFS(Jogos!$I:$I,$A26,Jogos!$O:$O,"D") -> 0 | G26: =SUMIFS(Jogos!$F:$F,Jogos!$E:$E,$A26)+SUMIFS(Jogos!$H:$H,Jogos!$I:$I,$A26) -> 9 | H26: =SUMIFS(Jogos!$H:$H,Jogos!$E:$E,$A26)+SUMIFS(Jogos!$F:$F,Jogos!$I:$I,$A26)+COUNTIFS(Jogos!$S:$S,"WWIND",Jogos!$E:$E,$A26)*2+COUNTIFS(Jogos!$S:$S,"WWIND",Jogos!$I:$I,$A26)*2 -> 3 | I26: 6 | J26: 4 | K26: 83.3% | L26: =INDEX(ClaFIN!B:C,MATCH(B26,ClaFIN!C:C,0),1) -> 2º
A27: Eduardo Tavares | B27: COMARY | C27: 8 | D27: =COUNTIFS(Jogos!$E:$E,$A27,Jogos!$N:$N,"V")+COUNTIFS(Jogos!$I:$I,$A27,Jogos!$O:$O,"V") -> 2 | E27: =COUNTIFS(Jogos!$E:$E,$A27,Jogos!$N:$N,"E")+COUNTIFS(Jogos!$I:$I,$A27,Jogos!$O:$O,"E") -> 2 | F27: =COUNTIFS(Jogos!$E:$E,$A27,Jogos!$N:$N,"D")+COUNTIFS(Jogos!$I:$I,$A27,Jogos!$O:$O,"D") -> 4 | G27: =SUMIFS(Jogos!$F:$F,Jogos!$E:$E,$A27)+SUMIFS(Jogos!$H:$H,Jogos!$I:$I,$A27) -> 5 | H27: =SUMIFS(Jogos!$H:$H,Jogos!$E:$E,$A27)+SUMIFS(Jogos!$F:$F,Jogos!$I:$I,$A27)+COUNTIFS(Jogos!$S:$S,"WWIND",Jogos!$E:$E,$A27)*2+COUNTIFS(Jogos!$S:$S,"WWIND",Jogos!$I:$I,$A27)*2 -> 8 | I27: -3 | J27: 8 | K27: 33.3% | L27: =INDEX(ClaFIN!B:C,MATCH(B27,ClaFIN!C:C,0),1) -> 12º
A28: Emerson Claudino | B28: UNIÃO INDEPENDENTE/UBERABA | C28: 15 | D28: =COUNTIFS(Jogos!$E:$E,$A28,Jogos!$N:$N,"V")+COUNTIFS(Jogos!$I:$I,$A28,Jogos!$O:$O,"V") -> 4 | E28: =COUNTIFS(Jogos!$E:$E,$A28,Jogos!$N:$N,"E")+COUNTIFS(Jogos!$I:$I,$A28,Jogos!$O:$O,"E") -> 3 | F28: =COUNTIFS(Jogos!$E:$E,$A28,Jogos!$N:$N,"D")+COUNTIFS(Jogos!$I:$I,$A28,Jogos!$O:$O,"D") -> 2 | G28: =SUMIFS(Jogos!$F:$F,Jogos!$E:$E,$A28)+SUMIFS(Jogos!$H:$H,Jogos!$I:$I,$A28) -> 9 | H28: =SUMIFS(Jogos!$H:$H,Jogos!$E:$E,$A28)+SUMIFS(Jogos!$F:$F,Jogos!$I:$I,$A28)+COUNTIFS(Jogos!$S:$S,"WWIND",Jogos!$E:$E,$A28)*2+COUNTIFS(Jogos!$S:$S,"WWIND",Jogos!$I:$I,$A28)*2 -> 4 | I28: 5 | J28: 9 | K28: 55.6% | L28: =INDEX(ClaFIN!B:C,MATCH(B28,ClaFIN!C:C,0),1) -> 4º
A29: Evandro Gomes | B29: VASCO DA GAMA | C29: 4 | D29: =COUNTIFS(Jogos!$E:$E,$A29,Jogos!$N:$N,"V")+COUNTIFS(Jogos!$I:$I,$A29,Jogos!$O:$O,"V") -> 1 | E29: =COUNTIFS(Jogos!$E:$E,$A29,Jogos!$N:$N,"E")+COUNTIFS(Jogos!$I:$I,$A29,Jogos!$O:$O,"E") -> 1 | F29: =COUNTIFS(Jogos!$E:$E,$A29,Jogos!$N:$N,"D")+COUNTIFS(Jogos!$I:$I,$A29,Jogos!$O:$O,"D") -> 3 | G29: =SUMIFS(Jogos!$F:$F,Jogos!$E:$E,$A29)+SUMIFS(Jogos!$H:$H,Jogos!$I:$I,$A29) -> 7 | H29: =SUMIFS(Jogos!$H:$H,Jogos!$E:$E,$A29)+SUMIFS(Jogos!$F:$F,Jogos!$I:$I,$A29)+COUNTIFS(Jogos!$S:$S,"WWIND",Jogos!$E:$E,$A29)*2+COUNTIFS(Jogos!$S:$S,"WWIND",Jogos!$I:$I,$A29)*2 -> 6 | I29: 1 | J29: 5 | K29: 26.7% | L29: =INDEX(ClaFIN!B:C,MATCH(B29,ClaFIN!C:C,0),1) -> 7º
A30: Everton Costa | B30: CHACAL [B] | C30: 2 | D30: =COUNTIFS(Jogos!$E:$E,$A30,Jogos!$N:$N,"V")+COUNTIFS(Jogos!$I:$I,$A30,Jogos!$O:$O,"V") -> 0 | E30: =COUNTIFS(Jogos!$E:$E,$A30,Jogos!$N:$N,"E")+COUNTIFS(Jogos!$I:$I,$A30,Jogos!$O:$O,"E") -> 2 | F30: =COUNTIFS(Jogos!$E:$E,$A30,Jogos!$N:$N,"D")+COUNTIFS(Jogos!$I:$I,$A30,Jogos!$O:$O,"D") -> 4 | G30: =SUMIFS(Jogos!$F:$F,Jogos!$E:$E,$A30)+SUMIFS(Jogos!$H:$H,Jogos!$I:$I,$A30) -> 1 | H30: =SUMIFS(Jogos!$H:$H,Jogos!$E:$E,$A30)+SUMIFS(Jogos!$F:$F,Jogos!$I:$I,$A30)+COUNTIFS(Jogos!$S:$S,"WWIND",Jogos!$E:$E,$A30)*2+COUNTIFS(Jogos!$S:$S,"WWIND",Jogos!$I:$I,$A30)*2 -> 10 | I30: -9 | J30: 6 | K30: 11.1% | L30: =INDEX(ClaFIN!B:C,MATCH(B30,ClaFIN!C:C,0),1) -> 17º
A31: Fernando Ferreira | B31: VASCO DA GAMA | C31: 17 | D31: =COUNTIFS(Jogos!$E:$E,$A31,Jogos!$N:$N,"V")+COUNTIFS(Jogos!$I:$I,$A31,Jogos!$O:$O,"V") -> 5 | E31: =COUNTIFS(Jogos!$E:$E,$A31,Jogos!$N:$N,"E")+COUNTIFS(Jogos!$I:$I,$A31,Jogos!$O:$O,"E") -> 2 | F31: =COUNTIFS(Jogos!$E:$E,$A31,Jogos!$N:$N,"D")+COUNTIFS(Jogos!$I:$I,$A31,Jogos!$O:$O,"D") -> 2 | G31: =SUMIFS(Jogos!$F:$F,Jogos!$E:$E,$A31)+SUMIFS(Jogos!$H:$H,Jogos!$I:$I,$A31) -> 15 | H31: =SUMIFS(Jogos!$H:$H,Jogos!$E:$E,$A31)+SUMIFS(Jogos!$F:$F,Jogos!$I:$I,$A31)+COUNTIFS(Jogos!$S:$S,"WWIND",Jogos!$E:$E,$A31)*2+COUNTIFS(Jogos!$S:$S,"WWIND",Jogos!$I:$I,$A31)*2 -> 8 | I31: 7 | J31: 9 | K31: 63.0% | L31: =INDEX(ClaFIN!B:C,MATCH(B31,ClaFIN!C:C,0),1) -> 7º
A32: Fernando Vianna | B32: GRÊMIO MINEIRO | C32: 5 | D32: =COUNTIFS(Jogos!$E:$E,$A32,Jogos!$N:$N,"V")+COUNTIFS(Jogos!$I:$I,$A32,Jogos!$O:$O,"V") -> 1 | E32: =COUNTIFS(Jogos!$E:$E,$A32,Jogos!$N:$N,"E")+COUNTIFS(Jogos!$I:$I,$A32,Jogos!$O:$O,"E") -> 2 | F32: =COUNTIFS(Jogos!$E:$E,$A32,Jogos!$N:$N,"D")+COUNTIFS(Jogos!$I:$I,$A32,Jogos!$O:$O,"D") -> 6 | G32: =SUMIFS(Jogos!$F:$F,Jogos!$E:$E,$A32)+SUMIFS(Jogos!$H:$H,Jogos!$I:$I,$A32) -> 5 | H32: =SUMIFS(Jogos!$H:$H,Jogos!$E:$E,$A32)+SUMIFS(Jogos!$F:$F,Jogos!$I:$I,$A32)+COUNTIFS(Jogos!$S:$S,"WWIND",Jogos!$E:$E,$A32)*2+COUNTIFS(Jogos!$S:$S,"WWIND",Jogos!$I:$I,$A32)*2 -> 14 | I32: -9 | J32: 9 | K32: 18.5% | L32: =INDEX(ClaFIN!B:C,MATCH(B32,ClaFIN!C:C,0),1) -> 15º
A33: Flavio Scarpelli | B33: TUPI [B] | C33: 11 | D33: =COUNTIFS(Jogos!$E:$E,$A33,Jogos!$N:$N,"V")+COUNTIFS(Jogos!$I:$I,$A33,Jogos!$O:$O,"V") -> 3 | E33: =COUNTIFS(Jogos!$E:$E,$A33,Jogos!$N:$N,"E")+COUNTIFS(Jogos!$I:$I,$A33,Jogos!$O:$O,"E") -> 2 | F33: =COUNTIFS(Jogos!$E:$E,$A33,Jogos!$N:$N,"D")+COUNTIFS(Jogos!$I:$I,$A33,Jogos!$O:$O,"D") -> 3 | G33: =SUMIFS(Jogos!$F:$F,Jogos!$E:$E,$A33)+SUMIFS(Jogos!$H:$H,Jogos!$I:$I,$A33) -> 11 | H33: =SUMIFS(Jogos!$H:$H,Jogos!$E:$E,$A33)+SUMIFS(Jogos!$F:$F,Jogos!$I:$I,$A33)+COUNTIFS(Jogos!$S:$S,"WWIND",Jogos!$E:$E,$A33)*2+COUNTIFS(Jogos!$S:$S,"WWIND",Jogos!$I:$I,$A33)*2 -> 9 | I33: 2 | J33: 8 | K33: 45.8% | L33: =INDEX(ClaFIN!B:C,MATCH(B33,ClaFIN!C:C,0),1) -> 10º
A34: Gustavo Lopes | B34: GRÊMIO MINEIRO | C34: 10 | D34: =COUNTIFS(Jogos!$E:$E,$A34,Jogos!$N:$N,"V")+COUNTIFS(Jogos!$I:$I,$A34,Jogos!$O:$O,"V") -> 2 | E34: =COUNTIFS(Jogos!$E:$E,$A34,Jogos!$N:$N,"E")+COUNTIFS(Jogos!$I:$I,$A34,Jogos!$O:$O,"E") -> 4 | F34: =COUNTIFS(Jogos!$E:$E,$A34,Jogos!$N:$N,"D")+COUNTIFS(Jogos!$I:$I,$A34,Jogos!$O:$O,"D") -> 3 | G34: =SUMIFS(Jogos!$F:$F,Jogos!$E:$E,$A34)+SUMIFS(Jogos!$H:$H,Jogos!$I:$I,$A34) -> 7 | H34: =SUMIFS(Jogos!$H:$H,Jogos!$E:$E,$A34)+SUMIFS(Jogos!$F:$F,Jogos!$I:$I,$A34)+COUNTIFS(Jogos!$S:$S,"WWIND",Jogos!$E:$E,$A34)*2+COUNTIFS(Jogos!$S:$S,"WWIND",Jogos!$I:$I,$A34)*2 -> 7 | I34: 0 | J34: 9 | K34: 37.0% | L34: =INDEX(ClaFIN!B:C,MATCH(B34,ClaFIN!C:C,0),1) -> 15º
A35: Heman Junior | B35: CHACAL [B] | C35: 1 | D35: =COUNTIFS(Jogos!$E:$E,$A35,Jogos!$N:$N,"V")+COUNTIFS(Jogos!$I:$I,$A35,Jogos!$O:$O,"V") -> 0 | E35: =COUNTIFS(Jogos!$E:$E,$A35,Jogos!$N:$N,"E")+COUNTIFS(Jogos!$I:$I,$A35,Jogos!$O:$O,"E") -> 1 | F35: =COUNTIFS(Jogos!$E:$E,$A35,Jogos!$N:$N,"D")+COUNTIFS(Jogos!$I:$I,$A35,Jogos!$O:$O,"D") -> 3 | G35: =SUMIFS(Jogos!$F:$F,Jogos!$E:$E,$A35)+SUMIFS(Jogos!$H:$H,Jogos!$I:$I,$A35) -> 1 | H35: =SUMIFS(Jogos!$H:$H,Jogos!$E:$E,$A35)+SUMIFS(Jogos!$F:$F,Jogos!$I:$I,$A35)+COUNTIFS(Jogos!$S:$S,"WWIND",Jogos!$E:$E,$A35)*2+COUNTIFS(Jogos!$S:$S,"WWIND",Jogos!$I:$I,$A35)*2 -> 7 | I35: -6 | J35: 4 | K35: 8.3% | L35: =INDEX(ClaFIN!B:C,MATCH(B35,ClaFIN!C:C,0),1) -> 17º
A36: Henrique Madeira | B36: VASCO DA GAMA | C36: 6 | D36: =COUNTIFS(Jogos!$E:$E,$A36,Jogos!$N:$N,"V")+COUNTIFS(Jogos!$I:$I,$A36,Jogos!$O:$O,"V") -> 2 | E36: =COUNTIFS(Jogos!$E:$E,$A36,Jogos!$N:$N,"E")+COUNTIFS(Jogos!$I:$I,$A36,Jogos!$O:$O,"E") -> 0 | F36: =COUNTIFS(Jogos!$E:$E,$A36,Jogos!$N:$N,"D")+COUNTIFS(Jogos!$I:$I,$A36,Jogos!$O:$O,"D") -> 3 | G36: =SUMIFS(Jogos!$F:$F,Jogos!$E:$E,$A36)+SUMIFS(Jogos!$H:$H,Jogos!$I:$I,$A36) -> 6 | H36: =SUMIFS(Jogos!$H:$H,Jogos!$E:$E,$A36)+SUMIFS(Jogos!$F:$F,Jogos!$I:$I,$A36)+COUNTIFS(Jogos!$S:$S,"WWIND",Jogos!$E:$E,$A36)*2+COUNTIFS(Jogos!$S:$S,"WWIND",Jogos!$I:$I,$A36)*2 -> 5 | I36: 1 | J36: 5 | K36: 40.0% | L36: =INDEX(ClaFIN!B:C,MATCH(B36,ClaFIN!C:C,0),1) -> 7º
A37: Humberto Ramos | B37: MATIAS [B] | C37: 0 | D37: =COUNTIFS(Jogos!$E:$E,$A37,Jogos!$N:$N,"V")+COUNTIFS(Jogos!$I:$I,$A37,Jogos!$O:$O,"V") -> 0 | E37: =COUNTIFS(Jogos!$E:$E,$A37,Jogos!$N:$N,"E")+COUNTIFS(Jogos!$I:$I,$A37,Jogos!$O:$O,"E") -> 0 | F37: =COUNTIFS(Jogos!$E:$E,$A37,Jogos!$N:$N,"D")+COUNTIFS(Jogos!$I:$I,$A37,Jogos!$O:$O,"D") -> 3 | G37: =SUMIFS(Jogos!$F:$F,Jogos!$E:$E,$A37)+SUMIFS(Jogos!$H:$H,Jogos!$I:$I,$A37) -> 0 | H37: =SUMIFS(Jogos!$H:$H,Jogos!$E:$E,$A37)+SUMIFS(Jogos!$F:$F,Jogos!$I:$I,$A37)+COUNTIFS(Jogos!$S:$S,"WWIND",Jogos!$E:$E,$A37)*2+COUNTIFS(Jogos!$S:$S,"WWIND",Jogos!$I:$I,$A37)*2 -> 11 | I37: -11 | J37: 3 | K37: 0.0% | L37: =INDEX(ClaFIN!B:C,MATCH(B37,ClaFIN!C:C,0),1) -> 16º
A38: Igor Guarilha | B38: COMARY | C38: =IF(J38=0,-0.001,D38*3+E38) -> 15 | D38: =COUNTIFS(Jogos!$E:$E,$A38,Jogos!$N:$N,"V")+COUNTIFS(Jogos!$I:$I,$A38,Jogos!$O:$O,"V") -> 4 | E38: =COUNTIFS(Jogos!$E:$E,$A38,Jogos!$N:$N,"E")+COUNTIFS(Jogos!$I:$I,$A38,Jogos!$O:$O,"E") -> 3 | F38: =COUNTIFS(Jogos!$E:$E,$A38,Jogos!$N:$N,"D")+COUNTIFS(Jogos!$I:$I,$A38,Jogos!$O:$O,"D") -> 2 | G38: =SUMIFS(Jogos!$F:$F,Jogos!$E:$E,$A38)+SUMIFS(Jogos!$H:$H,Jogos!$I:$I,$A38) -> 10 | H38: =SUMIFS(Jogos!$H:$H,Jogos!$E:$E,$A38)+SUMIFS(Jogos!$F:$F,Jogos!$I:$I,$A38)+COUNTIFS(Jogos!$S:$S,"WWIND",Jogos!$E:$E,$A38)*2+COUNTIFS(Jogos!$S:$S,"WWIND",Jogos!$I:$I,$A38)*2 -> 7 | I38: =G38-H38 -> 3 | J38: =SUM(D38:F38) -> 9 | K38: =IF(J38=0,-0.00001,C38/(J38*3)) -> 55.6% | L38: =INDEX(ClaFIN!B:C,MATCH(B38,ClaFIN!C:C,0),1) -> 12º
A39: Janilson Pereira | B39: CHACAL [A] | C39: 13 | D39: =COUNTIFS(Jogos!$E:$E,$A39,Jogos!$N:$N,"V")+COUNTIFS(Jogos!$I:$I,$A39,Jogos!$O:$O,"V") -> 4 | E39: =COUNTIFS(Jogos!$E:$E,$A39,Jogos!$N:$N,"E")+COUNTIFS(Jogos!$I:$I,$A39,Jogos!$O:$O,"E") -> 1 | F39: =COUNTIFS(Jogos!$E:$E,$A39,Jogos!$N:$N,"D")+COUNTIFS(Jogos!$I:$I,$A39,Jogos!$O:$O,"D") -> 4 | G39: =SUMIFS(Jogos!$F:$F,Jogos!$E:$E,$A39)+SUMIFS(Jogos!$H:$H,Jogos!$I:$I,$A39) -> 12 | H39: =SUMIFS(Jogos!$H:$H,Jogos!$E:$E,$A39)+SUMIFS(Jogos!$F:$F,Jogos!$I:$I,$A39)+COUNTIFS(Jogos!$S:$S,"WWIND",Jogos!$E:$E,$A39)*2+COUNTIFS(Jogos!$S:$S,"WWIND",Jogos!$I:$I,$A39)*2 -> 10 | I39: 2 | J39: 9 | K39: 48.1% | L39: =INDEX(ClaFIN!B:C,MATCH(B39,ClaFIN!C:C,0),1) -> 13º
A40: Jefferson Rosa | B40: CHACAL [B] | C40: 3 | D40: =COUNTIFS(Jogos!$E:$E,$A40,Jogos!$N:$N,"V")+COUNTIFS(Jogos!$I:$I,$A40,Jogos!$O:$O,"V") -> 1 | E40: =COUNTIFS(Jogos!$E:$E,$A40,Jogos!$N:$N,"E")+COUNTIFS(Jogos!$I:$I,$A40,Jogos!$O:$O,"E") -> 0 | F40: =COUNTIFS(Jogos!$E:$E,$A40,Jogos!$N:$N,"D")+COUNTIFS(Jogos!$I:$I,$A40,Jogos!$O:$O,"D") -> 4 | G40: =SUMIFS(Jogos!$F:$F,Jogos!$E:$E,$A40)+SUMIFS(Jogos!$H:$H,Jogos!$I:$I,$A40) -> 2 | H40: =SUMIFS(Jogos!$H:$H,Jogos!$E:$E,$A40)+SUMIFS(Jogos!$F:$F,Jogos!$I:$I,$A40)+COUNTIFS(Jogos!$S:$S,"WWIND",Jogos!$E:$E,$A40)*2+COUNTIFS(Jogos!$S:$S,"WWIND",Jogos!$I:$I,$A40)*2 -> 13 | I40: -11 | J40: 5 | K40: 20.0% | L40: =INDEX(ClaFIN!B:C,MATCH(B40,ClaFIN!C:C,0),1) -> 17º
A41: Joao Eduardo Pereira | B41: LIBERDADE [B] | C41: 9 | D41: =COUNTIFS(Jogos!$E:$E,$A41,Jogos!$N:$N,"V")+COUNTIFS(Jogos!$I:$I,$A41,Jogos!$O:$O,"V") -> 2 | E41: =COUNTIFS(Jogos!$E:$E,$A41,Jogos!$N:$N,"E")+COUNTIFS(Jogos!$I:$I,$A41,Jogos!$O:$O,"E") -> 3 | F41: =COUNTIFS(Jogos!$E:$E,$A41,Jogos!$N:$N,"D")+COUNTIFS(Jogos!$I:$I,$A41,Jogos!$O:$O,"D") -> 1 | G41: =SUMIFS(Jogos!$F:$F,Jogos!$E:$E,$A41)+SUMIFS(Jogos!$H:$H,Jogos!$I:$I,$A41) -> 6 | H41: =SUMIFS(Jogos!$H:$H,Jogos!$E:$E,$A41)+SUMIFS(Jogos!$F:$F,Jogos!$I:$I,$A41)+COUNTIFS(Jogos!$S:$S,"WWIND",Jogos!$E:$E,$A41)*2+COUNTIFS(Jogos!$S:$S,"WWIND",Jogos!$I:$I,$A41)*2 -> 6 | I41: 0 | J41: 6 | K41: 50.0% | L41: =INDEX(ClaFIN!B:C,MATCH(B41,ClaFIN!C:C,0),1) -> 6º
A42: Joao Francisco Stephan | B42: CHACAL [A] | C42: 4 | D42: =COUNTIFS(Jogos!$E:$E,$A42,Jogos!$N:$N,"V")+COUNTIFS(Jogos!$I:$I,$A42,Jogos!$O:$O,"V") -> 1 | E42: =COUNTIFS(Jogos!$E:$E,$A42,Jogos!$N:$N,"E")+COUNTIFS(Jogos!$I:$I,$A42,Jogos!$O:$O,"E") -> 1 | F42: =COUNTIFS(Jogos!$E:$E,$A42,Jogos!$N:$N,"D")+COUNTIFS(Jogos!$I:$I,$A42,Jogos!$O:$O,"D") -> 1 | G42: =SUMIFS(Jogos!$F:$F,Jogos!$E:$E,$A42)+SUMIFS(Jogos!$H:$H,Jogos!$I:$I,$A42) -> 4 | H42: =SUMIFS(Jogos!$H:$H,Jogos!$E:$E,$A42)+SUMIFS(Jogos!$F:$F,Jogos!$I:$I,$A42)+COUNTIFS(Jogos!$S:$S,"WWIND",Jogos!$E:$E,$A42)*2+COUNTIFS(Jogos!$S:$S,"WWIND",Jogos!$I:$I,$A42)*2 -> 3 | I42: 1 | J42: 3 | K42: 44.4% | L42: =INDEX(ClaFIN!B:C,MATCH(B42,ClaFIN!C:C,0),1) -> 13º
A43: Jorge Dias | B43: ELDORADO | C43: 8 | D43: =COUNTIFS(Jogos!$E:$E,$A43,Jogos!$N:$N,"V")+COUNTIFS(Jogos!$I:$I,$A43,Jogos!$O:$O,"V") -> 2 | E43: =COUNTIFS(Jogos!$E:$E,$A43,Jogos!$N:$N,"E")+COUNTIFS(Jogos!$I:$I,$A43,Jogos!$O:$O,"E") -> 2 | F43: =COUNTIFS(Jogos!$E:$E,$A43,Jogos!$N:$N,"D")+COUNTIFS(Jogos!$I:$I,$A43,Jogos!$O:$O,"D") -> 5 | G43: =SUMIFS(Jogos!$F:$F,Jogos!$E:$E,$A43)+SUMIFS(Jogos!$H:$H,Jogos!$I:$I,$A43) -> 7 | H43: =SUMIFS(Jogos!$H:$H,Jogos!$E:$E,$A43)+SUMIFS(Jogos!$F:$F,Jogos!$I:$I,$A43)+COUNTIFS(Jogos!$S:$S,"WWIND",Jogos!$E:$E,$A43)*2+COUNTIFS(Jogos!$S:$S,"WWIND",Jogos!$I:$I,$A43)*2 -> 9 | I43: -2 | J43: 9 | K43: 29.6% | L43: =INDEX(ClaFIN!B:C,MATCH(B43,ClaFIN!C:C,0),1) -> 14º
A44: Jose Lessa | B44: MATIAS [A] | C44: 19 | D44: =COUNTIFS(Jogos!$E:$E,$A44,Jogos!$N:$N,"V")+COUNTIFS(Jogos!$I:$I,$A44,Jogos!$O:$O,"V") -> 6 | E44: =COUNTIFS(Jogos!$E:$E,$A44,Jogos!$N:$N,"E")+COUNTIFS(Jogos!$I:$I,$A44,Jogos!$O:$O,"E") -> 1 | F44: =COUNTIFS(Jogos!$E:$E,$A44,Jogos!$N:$N,"D")+COUNTIFS(Jogos!$I:$I,$A44,Jogos!$O:$O,"D") -> 2 | G44: =SUMIFS(Jogos!$F:$F,Jogos!$E:$E,$A44)+SUMIFS(Jogos!$H:$H,Jogos!$I:$I,$A44) -> 12 | H44: =SUMIFS(Jogos!$H:$H,Jogos!$E:$E,$A44)+SUMIFS(Jogos!$F:$F,Jogos!$I:$I,$A44)+COUNTIFS(Jogos!$S:$S,"WWIND",Jogos!$E:$E,$A44)*2+COUNTIFS(Jogos!$S:$S,"WWIND",Jogos!$I:$I,$A44)*2 -> 7 | I44: 5 | J44: 9 | K44: 70.4% | L44: =INDEX(ClaFIN!B:C,MATCH(B44,ClaFIN!C:C,0),1) -> 3º
A45: Jose Pires | B45: ELDORADO | C45: 13 | D45: =COUNTIFS(Jogos!$E:$E,$A45,Jogos!$N:$N,"V")+COUNTIFS(Jogos!$I:$I,$A45,Jogos!$O:$O,"V") -> 3 | E45: =COUNTIFS(Jogos!$E:$E,$A45,Jogos!$N:$N,"E")+COUNTIFS(Jogos!$I:$I,$A45,Jogos!$O:$O,"E") -> 4 | F45: =COUNTIFS(Jogos!$E:$E,$A45,Jogos!$N:$N,"D")+COUNTIFS(Jogos!$I:$I,$A45,Jogos!$O:$O,"D") -> 2 | G45: =SUMIFS(Jogos!$F:$F,Jogos!$E:$E,$A45)+SUMIFS(Jogos!$H:$H,Jogos!$I:$I,$A45) -> 6 | H45: =SUMIFS(Jogos!$H:$H,Jogos!$E:$E,$A45)+SUMIFS(Jogos!$F:$F,Jogos!$I:$I,$A45)+COUNTIFS(Jogos!$S:$S,"WWIND",Jogos!$E:$E,$A45)*2+COUNTIFS(Jogos!$S:$S,"WWIND",Jogos!$I:$I,$A45)*2 -> 5 | I45: 1 | J45: 9 | K45: 48.1% | L45: =INDEX(ClaFIN!B:C,MATCH(B45,ClaFIN!C:C,0),1) -> 14º
A46: Juliano Gomes | B46: UNIÃO INDEPENDENTE/UBERABA | C46: 14 | D46: =COUNTIFS(Jogos!$E:$E,$A46,Jogos!$N:$N,"V")+COUNTIFS(Jogos!$I:$I,$A46,Jogos!$O:$O,"V") -> 4 | E46: =COUNTIFS(Jogos!$E:$E,$A46,Jogos!$N:$N,"E")+COUNTIFS(Jogos!$I:$I,$A46,Jogos!$O:$O,"E") -> 2 | F46: =COUNTIFS(Jogos!$E:$E,$A46,Jogos!$N:$N,"D")+COUNTIFS(Jogos!$I:$I,$A46,Jogos!$O:$O,"D") -> 3 | G46: =SUMIFS(Jogos!$F:$F,Jogos!$E:$E,$A46)+SUMIFS(Jogos!$H:$H,Jogos!$I:$I,$A46) -> 12 | H46: =SUMIFS(Jogos!$H:$H,Jogos!$E:$E,$A46)+SUMIFS(Jogos!$F:$F,Jogos!$I:$I,$A46)+COUNTIFS(Jogos!$S:$S,"WWIND",Jogos!$E:$E,$A46)*2+COUNTIFS(Jogos!$S:$S,"WWIND",Jogos!$I:$I,$A46)*2 -> 11 | I46: 1 | J46: 9 | K46: 51.9% | L46: =INDEX(ClaFIN!B:C,MATCH(B46,ClaFIN!C:C,0),1) -> 4º
A47: Julio Celio Braga | B47: CHACAL [A] | C47: 7 | D47: =COUNTIFS(Jogos!$E:$E,$A47,Jogos!$N:$N,"V")+COUNTIFS(Jogos!$I:$I,$A47,Jogos!$O:$O,"V") -> 1 | E47: =COUNTIFS(Jogos!$E:$E,$A47,Jogos!$N:$N,"E")+COUNTIFS(Jogos!$I:$I,$A47,Jogos!$O:$O,"E") -> 4 | F47: =COUNTIFS(Jogos!$E:$E,$A47,Jogos!$N:$N,"D")+COUNTIFS(Jogos!$I:$I,$A47,Jogos!$O:$O,"D") -> 4 | G47: =SUMIFS(Jogos!$F:$F,Jogos!$E:$E,$A47)+SUMIFS(Jogos!$H:$H,Jogos!$I:$I,$A47) -> 12 | H47: =SUMIFS(Jogos!$H:$H,Jogos!$E:$E,$A47)+SUMIFS(Jogos!$F:$F,Jogos!$I:$I,$A47)+COUNTIFS(Jogos!$S:$S,"WWIND",Jogos!$E:$E,$A47)*2+COUNTIFS(Jogos!$S:$S,"WWIND",Jogos!$I:$I,$A47)*2 -> 14 | I47: -2 | J47: 9 | K47: 25.9% | L47: =INDEX(ClaFIN!B:C,MATCH(B47,ClaFIN!C:C,0),1) -> 13º
A48: Leandro Benicio | B48: TUPI [B] | C48: 11 | D48: =COUNTIFS(Jogos!$E:$E,$A48,Jogos!$N:$N,"V")+COUNTIFS(Jogos!$I:$I,$A48,Jogos!$O:$O,"V") -> 3 | E48: =COUNTIFS(Jogos!$E:$E,$A48,Jogos!$N:$N,"E")+COUNTIFS(Jogos!$I:$I,$A48,Jogos!$O:$O,"E") -> 2 | F48: =COUNTIFS(Jogos!$E:$E,$A48,Jogos!$N:$N,"D")+COUNTIFS(Jogos!$I:$I,$A48,Jogos!$O:$O,"D") -> 3 | G48: =SUMIFS(Jogos!$F:$F,Jogos!$E:$E,$A48)+SUMIFS(Jogos!$H:$H,Jogos!$I:$I,$A48) -> 10 | H48: =SUMIFS(Jogos!$H:$H,Jogos!$E:$E,$A48)+SUMIFS(Jogos!$F:$F,Jogos!$I:$I,$A48)+COUNTIFS(Jogos!$S:$S,"WWIND",Jogos!$E:$E,$A48)*2+COUNTIFS(Jogos!$S:$S,"WWIND",Jogos!$I:$I,$A48)*2 -> 10 | I48: 0 | J48: 8 | K48: 45.8% | L48: =INDEX(ClaFIN!B:C,MATCH(B48,ClaFIN!C:C,0),1) -> 10º
A49: Leonardo de Oliveira | B49: MATIAS [A] | C49: 12 | D49: =COUNTIFS(Jogos!$E:$E,$A49,Jogos!$N:$N,"V")+COUNTIFS(Jogos!$I:$I,$A49,Jogos!$O:$O,"V") -> 4 | E49: =COUNTIFS(Jogos!$E:$E,$A49,Jogos!$N:$N,"E")+COUNTIFS(Jogos!$I:$I,$A49,Jogos!$O:$O,"E") -> 0 | F49: =COUNTIFS(Jogos!$E:$E,$A49,Jogos!$N:$N,"D")+COUNTIFS(Jogos!$I:$I,$A49,Jogos!$O:$O,"D") -> 5 | G49: =SUMIFS(Jogos!$F:$F,Jogos!$E:$E,$A49)+SUMIFS(Jogos!$H:$H,Jogos!$I:$I,$A49) -> 10 | H49: =SUMIFS(Jogos!$H:$H,Jogos!$E:$E,$A49)+SUMIFS(Jogos!$F:$F,Jogos!$I:$I,$A49)+COUNTIFS(Jogos!$S:$S,"WWIND",Jogos!$E:$E,$A49)*2+COUNTIFS(Jogos!$S:$S,"WWIND",Jogos!$I:$I,$A49)*2 -> 11 | I49: -1 | J49: 9 | K49: 44.4% | L49: =INDEX(ClaFIN!B:C,MATCH(B49,ClaFIN!C:C,0),1) -> 3º
A50: Leonardo Duguet | B50: LIBERDADE [A] | C50: 19 | D50: =COUNTIFS(Jogos!$E:$E,$A50,Jogos!$N:$N,"V")+COUNTIFS(Jogos!$I:$I,$A50,Jogos!$O:$O,"V") -> 6 | E50: =COUNTIFS(Jogos!$E:$E,$A50,Jogos!$N:$N,"E")+COUNTIFS(Jogos!$I:$I,$A50,Jogos!$O:$O,"E") -> 1 | F50: =COUNTIFS(Jogos!$E:$E,$A50,Jogos!$N:$N,"D")+COUNTIFS(Jogos!$I:$I,$A50,Jogos!$O:$O,"D") -> 1 | G50: =SUMIFS(Jogos!$F:$F,Jogos!$E:$E,$A50)+SUMIFS(Jogos!$H:$H,Jogos!$I:$I,$A50) -> 10 | H50: =SUMIFS(Jogos!$H:$H,Jogos!$E:$E,$A50)+SUMIFS(Jogos!$F:$F,Jogos!$I:$I,$A50)+COUNTIFS(Jogos!$S:$S,"WWIND",Jogos!$E:$E,$A50)*2+COUNTIFS(Jogos!$S:$S,"WWIND",Jogos!$I:$I,$A50)*2 -> 5 | I50: 5 | J50: 8 | K50: 79.2% | L50: =INDEX(ClaFIN!B:C,MATCH(B50,ClaFIN!C:C,0),1) -> 1º
A51: Leonardo Stumpf | B51: TUPI [A] | C51: 23 | D51: =COUNTIFS(Jogos!$E:$E,$A51,Jogos!$N:$N,"V")+COUNTIFS(Jogos!$I:$I,$A51,Jogos!$O:$O,"V") -> 7 | E51: =COUNTIFS(Jogos!$E:$E,$A51,Jogos!$N:$N,"E")+COUNTIFS(Jogos!$I:$I,$A51,Jogos!$O:$O,"E") -> 2 | F51: =COUNTIFS(Jogos!$E:$E,$A51,Jogos!$N:$N,"D")+COUNTIFS(Jogos!$I:$I,$A51,Jogos!$O:$O,"D") -> 2 | G51: =SUMIFS(Jogos!$F:$F,Jogos!$E:$E,$A51)+SUMIFS(Jogos!$H:$H,Jogos!$I:$I,$A51) -> 23 | H51: =SUMIFS(Jogos!$H:$H,Jogos!$E:$E,$A51)+SUMIFS(Jogos!$F:$F,Jogos!$I:$I,$A51)+COUNTIFS(Jogos!$S:$S,"WWIND",Jogos!$E:$E,$A51)*2+COUNTIFS(Jogos!$S:$S,"WWIND",Jogos!$I:$I,$A51)*2 -> 9 | I51: 14 | J51: 11 | K51: 69.7% | L51: =INDEX(ClaFIN!B:C,MATCH(B51,ClaFIN!C:C,0),1) -> 2º
A52: Lorival Ribeiro | B52: LIBERDADE [A] | C52: 23 | D52: =COUNTIFS(Jogos!$E:$E,$A52,Jogos!$N:$N,"V")+COUNTIFS(Jogos!$I:$I,$A52,Jogos!$O:$O,"V") -> 7 | E52: =COUNTIFS(Jogos!$E:$E,$A52,Jogos!$N:$N,"E")+COUNTIFS(Jogos!$I:$I,$A52,Jogos!$O:$O,"E") -> 2 | F52: =COUNTIFS(Jogos!$E:$E,$A52,Jogos!$N:$N,"D")+COUNTIFS(Jogos!$I:$I,$A52,Jogos!$O:$O,"D") -> 0 | G52: =SUMIFS(Jogos!$F:$F,Jogos!$E:$E,$A52)+SUMIFS(Jogos!$H:$H,Jogos!$I:$I,$A52) -> 19 | H52: =SUMIFS(Jogos!$H:$H,Jogos!$E:$E,$A52)+SUMIFS(Jogos!$F:$F,Jogos!$I:$I,$A52)+COUNTIFS(Jogos!$S:$S,"WWIND",Jogos!$E:$E,$A52)*2+COUNTIFS(Jogos!$S:$S,"WWIND",Jogos!$I:$I,$A52)*2 -> 6 | I52: 13 | J52: 9 | K52: 85.2% | L52: =INDEX(ClaFIN!B:C,MATCH(B52,ClaFIN!C:C,0),1) -> 1º
A53: Lucas Luna | B53: CHACAL [B] | C53: 3 | D53: =COUNTIFS(Jogos!$E:$E,$A53,Jogos!$N:$N,"V")+COUNTIFS(Jogos!$I:$I,$A53,Jogos!$O:$O,"V") -> 1 | E53: =COUNTIFS(Jogos!$E:$E,$A53,Jogos!$N:$N,"E")+COUNTIFS(Jogos!$I:$I,$A53,Jogos!$O:$O,"E") -> 0 | F53: =COUNTIFS(Jogos!$E:$E,$A53,Jogos!$N:$N,"D")+COUNTIFS(Jogos!$I:$I,$A53,Jogos!$O:$O,"D") -> 6 | G53: =SUMIFS(Jogos!$F:$F,Jogos!$E:$E,$A53)+SUMIFS(Jogos!$H:$H,Jogos!$I:$I,$A53) -> 4 | H53: =SUMIFS(Jogos!$H:$H,Jogos!$E:$E,$A53)+SUMIFS(Jogos!$F:$F,Jogos!$I:$I,$A53)+COUNTIFS(Jogos!$S:$S,"WWIND",Jogos!$E:$E,$A53)*2+COUNTIFS(Jogos!$S:$S,"WWIND",Jogos!$I:$I,$A53)*2 -> 17 | I53: -13 | J53: 7 | K53: 14.3% | L53: =INDEX(ClaFIN!B:C,MATCH(B53,ClaFIN!C:C,0),1) -> 17º
A54: Luiz Carlos Guerra | B54: LIBERDADE [B] | C54: 17 | D54: =COUNTIFS(Jogos!$E:$E,$A54,Jogos!$N:$N,"V")+COUNTIFS(Jogos!$I:$I,$A54,Jogos!$O:$O,"V") -> 5 | E54: =COUNTIFS(Jogos!$E:$E,$A54,Jogos!$N:$N,"E")+COUNTIFS(Jogos!$I:$I,$A54,Jogos!$O:$O,"E") -> 2 | F54: =COUNTIFS(Jogos!$E:$E,$A54,Jogos!$N:$N,"D")+COUNTIFS(Jogos!$I:$I,$A54,Jogos!$O:$O,"D") -> 2 | G54: =SUMIFS(Jogos!$F:$F,Jogos!$E:$E,$A54)+SUMIFS(Jogos!$H:$H,Jogos!$I:$I,$A54) -> 15 | H54: =SUMIFS(Jogos!$H:$H,Jogos!$E:$E,$A54)+SUMIFS(Jogos!$F:$F,Jogos!$I:$I,$A54)+COUNTIFS(Jogos!$S:$S,"WWIND",Jogos!$E:$E,$A54)*2+COUNTIFS(Jogos!$S:$S,"WWIND",Jogos!$I:$I,$A54)*2 -> 7 | I54: 8 | J54: 9 | K54: 63.0% | L54: =INDEX(ClaFIN!B:C,MATCH(B54,ClaFIN!C:C,0),1) -> 6º
A55: Luiz Claudio Caruso | B55: AABB/ACAFUMA [A] | C55: 19 | D55: =COUNTIFS(Jogos!$E:$E,$A55,Jogos!$N:$N,"V")+COUNTIFS(Jogos!$I:$I,$A55,Jogos!$O:$O,"V") -> 6 | E55: =COUNTIFS(Jogos!$E:$E,$A55,Jogos!$N:$N,"E")+COUNTIFS(Jogos!$I:$I,$A55,Jogos!$O:$O,"E") -> 1 | F55: =COUNTIFS(Jogos!$E:$E,$A55,Jogos!$N:$N,"D")+COUNTIFS(Jogos!$I:$I,$A55,Jogos!$O:$O,"D") -> 2 | G55: =SUMIFS(Jogos!$F:$F,Jogos!$E:$E,$A55)+SUMIFS(Jogos!$H:$H,Jogos!$I:$I,$A55) -> 16 | H55: =SUMIFS(Jogos!$H:$H,Jogos!$E:$E,$A55)+SUMIFS(Jogos!$F:$F,Jogos!$I:$I,$A55)+COUNTIFS(Jogos!$S:$S,"WWIND",Jogos!$E:$E,$A55)*2+COUNTIFS(Jogos!$S:$S,"WWIND",Jogos!$I:$I,$A55)*2 -> 7 | I55: 9 | J55: 9 | K55: 70.4% | L55: =INDEX(ClaFIN!B:C,MATCH(B55,ClaFIN!C:C,0),1) -> 9º
A56: Luiz Henrique Colla | B56: TUPI [B] | C56: 12 | D56: =COUNTIFS(Jogos!$E:$E,$A56,Jogos!$N:$N,"V")+COUNTIFS(Jogos!$I:$I,$A56,Jogos!$O:$O,"V") -> 3 | E56: =COUNTIFS(Jogos!$E:$E,$A56,Jogos!$N:$N,"E")+COUNTIFS(Jogos!$I:$I,$A56,Jogos!$O:$O,"E") -> 3 | F56: =COUNTIFS(Jogos!$E:$E,$A56,Jogos!$N:$N,"D")+COUNTIFS(Jogos!$I:$I,$A56,Jogos!$O:$O,"D") -> 2 | G56: =SUMIFS(Jogos!$F:$F,Jogos!$E:$E,$A56)+SUMIFS(Jogos!$H:$H,Jogos!$I:$I,$A56) -> 9 | H56: =SUMIFS(Jogos!$H:$H,Jogos!$E:$E,$A56)+SUMIFS(Jogos!$F:$F,Jogos!$I:$I,$A56)+COUNTIFS(Jogos!$S:$S,"WWIND",Jogos!$E:$E,$A56)*2+COUNTIFS(Jogos!$S:$S,"WWIND",Jogos!$I:$I,$A56)*2 -> 7 | I56: 2 | J56: 8 | K56: 50.0% | L56: =INDEX(ClaFIN!B:C,MATCH(B56,ClaFIN!C:C,0),1) -> 10º
A57: Luiz Humberto | B57: UNIÃO INDEPENDENTE/UBERABA | C57: 13 | D57: =COUNTIFS(Jogos!$E:$E,$A57,Jogos!$N:$N,"V")+COUNTIFS(Jogos!$I:$I,$A57,Jogos!$O:$O,"V") -> 3 | E57: =COUNTIFS(Jogos!$E:$E,$A57,Jogos!$N:$N,"E")+COUNTIFS(Jogos!$I:$I,$A57,Jogos!$O:$O,"E") -> 4 | F57: =COUNTIFS(Jogos!$E:$E,$A57,Jogos!$N:$N,"D")+COUNTIFS(Jogos!$I:$I,$A57,Jogos!$O:$O,"D") -> 2 | G57: =SUMIFS(Jogos!$F:$F,Jogos!$E:$E,$A57)+SUMIFS(Jogos!$H:$H,Jogos!$I:$I,$A57) -> 7 | H57: =SUMIFS(Jogos!$H:$H,Jogos!$E:$E,$A57)+SUMIFS(Jogos!$F:$F,Jogos!$I:$I,$A57)+COUNTIFS(Jogos!$S:$S,"WWIND",Jogos!$E:$E,$A57)*2+COUNTIFS(Jogos!$S:$S,"WWIND",Jogos!$I:$I,$A57)*2 -> 5 | I57: 2 | J57: 9 | K57: 48.1% | L57: =INDEX(ClaFIN!B:C,MATCH(B57,ClaFIN!C:C,0),1) -> 4º
A58: Marcelo Ferreira | B58: AABB/ACAFUMA [B] | C58: 9 | D58: =COUNTIFS(Jogos!$E:$E,$A58,Jogos!$N:$N,"V")+COUNTIFS(Jogos!$I:$I,$A58,Jogos!$O:$O,"V") -> 2 | E58: =COUNTIFS(Jogos!$E:$E,$A58,Jogos!$N:$N,"E")+COUNTIFS(Jogos!$I:$I,$A58,Jogos!$O:$O,"E") -> 3 | F58: =COUNTIFS(Jogos!$E:$E,$A58,Jogos!$N:$N,"D")+COUNTIFS(Jogos!$I:$I,$A58,Jogos!$O:$O,"D") -> 2 | G58: =SUMIFS(Jogos!$F:$F,Jogos!$E:$E,$A58)+SUMIFS(Jogos!$H:$H,Jogos!$I:$I,$A58) -> 3 | H58: =SUMIFS(Jogos!$H:$H,Jogos!$E:$E,$A58)+SUMIFS(Jogos!$F:$F,Jogos!$I:$I,$A58)+COUNTIFS(Jogos!$S:$S,"WWIND",Jogos!$E:$E,$A58)*2+COUNTIFS(Jogos!$S:$S,"WWIND",Jogos!$I:$I,$A58)*2 -> 6 | I58: -3 | J58: 7 | K58: 42.9% | L58: =INDEX(ClaFIN!B:C,MATCH(B58,ClaFIN!C:C,0),1) -> 11º
A59: Marcelo Henrique | B59: MATIAS [A] | C59: 8 | D59: =COUNTIFS(Jogos!$E:$E,$A59,Jogos!$N:$N,"V")+COUNTIFS(Jogos!$I:$I,$A59,Jogos!$O:$O,"V") -> 2 | E59: =COUNTIFS(Jogos!$E:$E,$A59,Jogos!$N:$N,"E")+COUNTIFS(Jogos!$I:$I,$A59,Jogos!$O:$O,"E") -> 2 | F59: =COUNTIFS(Jogos!$E:$E,$A59,Jogos!$N:$N,"D")+COUNTIFS(Jogos!$I:$I,$A59,Jogos!$O:$O,"D") -> 5 | G59: =SUMIFS(Jogos!$F:$F,Jogos!$E:$E,$A59)+SUMIFS(Jogos!$H:$H,Jogos!$I:$I,$A59) -> 5 | H59: =SUMIFS(Jogos!$H:$H,Jogos!$E:$E,$A59)+SUMIFS(Jogos!$F:$F,Jogos!$I:$I,$A59)+COUNTIFS(Jogos!$S:$S,"WWIND",Jogos!$E:$E,$A59)*2+COUNTIFS(Jogos!$S:$S,"WWIND",Jogos!$I:$I,$A59)*2 -> 7 | I59: -2 | J59: 9 | K59: 29.6% | L59: =INDEX(ClaFIN!B:C,MATCH(B59,ClaFIN!C:C,0),1) -> 3º
A60: Marcelo Lima | B60: VASCO DA GAMA | C60: 6 | D60: =COUNTIFS(Jogos!$E:$E,$A60,Jogos!$N:$N,"V")+COUNTIFS(Jogos!$I:$I,$A60,Jogos!$O:$O,"V") -> 1 | E60: =COUNTIFS(Jogos!$E:$E,$A60,Jogos!$N:$N,"E")+COUNTIFS(Jogos!$I:$I,$A60,Jogos!$O:$O,"E") -> 3 | F60: =COUNTIFS(Jogos!$E:$E,$A60,Jogos!$N:$N,"D")+COUNTIFS(Jogos!$I:$I,$A60,Jogos!$O:$O,"D") -> 0 | G60: =SUMIFS(Jogos!$F:$F,Jogos!$E:$E,$A60)+SUMIFS(Jogos!$H:$H,Jogos!$I:$I,$A60) -> 4 | H60: =SUMIFS(Jogos!$H:$H,Jogos!$E:$E,$A60)+SUMIFS(Jogos!$F:$F,Jogos!$I:$I,$A60)+COUNTIFS(Jogos!$S:$S,"WWIND",Jogos!$E:$E,$A60)*2+COUNTIFS(Jogos!$S:$S,"WWIND",Jogos!$I:$I,$A60)*2 -> 1 | I60: 3 | J60: 4 | K60: 50.0% | L60: =INDEX(ClaFIN!B:C,MATCH(B60,ClaFIN!C:C,0),1) -> 7º
A61: Marcelo Silva | B61: AABB/ACAFUMA [C] | C61: 15 | D61: =COUNTIFS(Jogos!$E:$E,$A61,Jogos!$N:$N,"V")+COUNTIFS(Jogos!$I:$I,$A61,Jogos!$O:$O,"V") -> 4 | E61: =COUNTIFS(Jogos!$E:$E,$A61,Jogos!$N:$N,"E")+COUNTIFS(Jogos!$I:$I,$A61,Jogos!$O:$O,"E") -> 3 | F61: =COUNTIFS(Jogos!$E:$E,$A61,Jogos!$N:$N,"D")+COUNTIFS(Jogos!$I:$I,$A61,Jogos!$O:$O,"D") -> 3 | G61: =SUMIFS(Jogos!$F:$F,Jogos!$E:$E,$A61)+SUMIFS(Jogos!$H:$H,Jogos!$I:$I,$A61) -> 7 | H61: =SUMIFS(Jogos!$H:$H,Jogos!$E:$E,$A61)+SUMIFS(Jogos!$F:$F,Jogos!$I:$I,$A61)+COUNTIFS(Jogos!$S:$S,"WWIND",Jogos!$E:$E,$A61)*2+COUNTIFS(Jogos!$S:$S,"WWIND",Jogos!$I:$I,$A61)*2 -> 10 | I61: -3 | J61: 10 | K61: 50.0% | L61: =INDEX(ClaFIN!B:C,MATCH(B61,ClaFIN!C:C,0),1) -> 8º
A62: Marcelo Virgilio | B62: LIBERDADE [B] | C62: 13 | D62: =COUNTIFS(Jogos!$E:$E,$A62,Jogos!$N:$N,"V")+COUNTIFS(Jogos!$I:$I,$A62,Jogos!$O:$O,"V") -> 4 | E62: =COUNTIFS(Jogos!$E:$E,$A62,Jogos!$N:$N,"E")+COUNTIFS(Jogos!$I:$I,$A62,Jogos!$O:$O,"E") -> 1 | F62: =COUNTIFS(Jogos!$E:$E,$A62,Jogos!$N:$N,"D")+COUNTIFS(Jogos!$I:$I,$A62,Jogos!$O:$O,"D") -> 3 | G62: =SUMIFS(Jogos!$F:$F,Jogos!$E:$E,$A62)+SUMIFS(Jogos!$H:$H,Jogos!$I:$I,$A62) -> 6 | H62: =SUMIFS(Jogos!$H:$H,Jogos!$E:$E,$A62)+SUMIFS(Jogos!$F:$F,Jogos!$I:$I,$A62)+COUNTIFS(Jogos!$S:$S,"WWIND",Jogos!$E:$E,$A62)*2+COUNTIFS(Jogos!$S:$S,"WWIND",Jogos!$I:$I,$A62)*2 -> 4 | I62: 2 | J62: 8 | K62: 54.2% | L62: =INDEX(ClaFIN!B:C,MATCH(B62,ClaFIN!C:C,0),1) -> 6º
A63: Marco Andre Veloso | B63: COMARY | C63: 7 | D63: =COUNTIFS(Jogos!$E:$E,$A63,Jogos!$N:$N,"V")+COUNTIFS(Jogos!$I:$I,$A63,Jogos!$O:$O,"V") -> 2 | E63: =COUNTIFS(Jogos!$E:$E,$A63,Jogos!$N:$N,"E")+COUNTIFS(Jogos!$I:$I,$A63,Jogos!$O:$O,"E") -> 1 | F63: =COUNTIFS(Jogos!$E:$E,$A63,Jogos!$N:$N,"D")+COUNTIFS(Jogos!$I:$I,$A63,Jogos!$O:$O,"D") -> 3 | G63: =SUMIFS(Jogos!$F:$F,Jogos!$E:$E,$A63)+SUMIFS(Jogos!$H:$H,Jogos!$I:$I,$A63) -> 6 | H63: =SUMIFS(Jogos!$H:$H,Jogos!$E:$E,$A63)+SUMIFS(Jogos!$F:$F,Jogos!$I:$I,$A63)+COUNTIFS(Jogos!$S:$S,"WWIND",Jogos!$E:$E,$A63)*2+COUNTIFS(Jogos!$S:$S,"WWIND",Jogos!$I:$I,$A63)*2 -> 9 | I63: -3 | J63: 6 | K63: 38.9% | L63: =INDEX(ClaFIN!B:C,MATCH(B63,ClaFIN!C:C,0),1) -> 12º
A64: Marcos Ferreira | B64: BOTAFOGO | C64: 3 | D64: =COUNTIFS(Jogos!$E:$E,$A64,Jogos!$N:$N,"V")+COUNTIFS(Jogos!$I:$I,$A64,Jogos!$O:$O,"V") -> 1 | E64: =COUNTIFS(Jogos!$E:$E,$A64,Jogos!$N:$N,"E")+COUNTIFS(Jogos!$I:$I,$A64,Jogos!$O:$O,"E") -> 0 | F64: =COUNTIFS(Jogos!$E:$E,$A64,Jogos!$N:$N,"D")+COUNTIFS(Jogos!$I:$I,$A64,Jogos!$O:$O,"D") -> 0 | G64: =SUMIFS(Jogos!$F:$F,Jogos!$E:$E,$A64)+SUMIFS(Jogos!$H:$H,Jogos!$I:$I,$A64) -> 2 | H64: =SUMIFS(Jogos!$H:$H,Jogos!$E:$E,$A64)+SUMIFS(Jogos!$F:$F,Jogos!$I:$I,$A64)+COUNTIFS(Jogos!$S:$S,"WWIND",Jogos!$E:$E,$A64)*2+COUNTIFS(Jogos!$S:$S,"WWIND",Jogos!$I:$I,$A64)*2 -> 0 | I64: 2 | J64: 1 | K64: 100.0% | L64: =INDEX(ClaFIN!B:C,MATCH(B64,ClaFIN!C:C,0),1) -> 5º
A65: Marcus Monteiro | B65: TUPI [A] | C65: 22 | D65: =COUNTIFS(Jogos!$E:$E,$A65,Jogos!$N:$N,"V")+COUNTIFS(Jogos!$I:$I,$A65,Jogos!$O:$O,"V") -> 6 | E65: =COUNTIFS(Jogos!$E:$E,$A65,Jogos!$N:$N,"E")+COUNTIFS(Jogos!$I:$I,$A65,Jogos!$O:$O,"E") -> 4 | F65: =COUNTIFS(Jogos!$E:$E,$A65,Jogos!$N:$N,"D")+COUNTIFS(Jogos!$I:$I,$A65,Jogos!$O:$O,"D") -> 1 | G65: =SUMIFS(Jogos!$F:$F,Jogos!$E:$E,$A65)+SUMIFS(Jogos!$H:$H,Jogos!$I:$I,$A65) -> 17 | H65: =SUMIFS(Jogos!$H:$H,Jogos!$E:$E,$A65)+SUMIFS(Jogos!$F:$F,Jogos!$I:$I,$A65)+COUNTIFS(Jogos!$S:$S,"WWIND",Jogos!$E:$E,$A65)*2+COUNTIFS(Jogos!$S:$S,"WWIND",Jogos!$I:$I,$A65)*2 -> 9 | I65: 8 | J65: 11 | K65: 66.7% | L65: =INDEX(ClaFIN!B:C,MATCH(B65,ClaFIN!C:C,0),1) -> 2º
A66: Mario Cleber | B66: MATIAS [B] | C66: 1 | D66: =COUNTIFS(Jogos!$E:$E,$A66,Jogos!$N:$N,"V")+COUNTIFS(Jogos!$I:$I,$A66,Jogos!$O:$O,"V") -> 0 | E66: =COUNTIFS(Jogos!$E:$E,$A66,Jogos!$N:$N,"E")+COUNTIFS(Jogos!$I:$I,$A66,Jogos!$O:$O,"E") -> 1 | F66: =COUNTIFS(Jogos!$E:$E,$A66,Jogos!$N:$N,"D")+COUNTIFS(Jogos!$I:$I,$A66,Jogos!$O:$O,"D") -> 4 | G66: =SUMIFS(Jogos!$F:$F,Jogos!$E:$E,$A66)+SUMIFS(Jogos!$H:$H,Jogos!$I:$I,$A66) -> 0 | H66: =SUMIFS(Jogos!$H:$H,Jogos!$E:$E,$A66)+SUMIFS(Jogos!$F:$F,Jogos!$I:$I,$A66)+COUNTIFS(Jogos!$S:$S,"WWIND",Jogos!$E:$E,$A66)*2+COUNTIFS(Jogos!$S:$S,"WWIND",Jogos!$I:$I,$A66)*2 -> 10 | I66: -10 | J66: 5 | K66: 6.7% | L66: =INDEX(ClaFIN!B:C,MATCH(B66,ClaFIN!C:C,0),1) -> 16º
A67: Pablino Colen | B67: CHACAL [B] | C67: 0 | D67: =COUNTIFS(Jogos!$E:$E,$A67,Jogos!$N:$N,"V")+COUNTIFS(Jogos!$I:$I,$A67,Jogos!$O:$O,"V") -> 0 | E67: =COUNTIFS(Jogos!$E:$E,$A67,Jogos!$N:$N,"E")+COUNTIFS(Jogos!$I:$I,$A67,Jogos!$O:$O,"E") -> 0 | F67: =COUNTIFS(Jogos!$E:$E,$A67,Jogos!$N:$N,"D")+COUNTIFS(Jogos!$I:$I,$A67,Jogos!$O:$O,"D") -> 2 | G67: =SUMIFS(Jogos!$F:$F,Jogos!$E:$E,$A67)+SUMIFS(Jogos!$H:$H,Jogos!$I:$I,$A67) -> 0 | H67: =SUMIFS(Jogos!$H:$H,Jogos!$E:$E,$A67)+SUMIFS(Jogos!$F:$F,Jogos!$I:$I,$A67)+COUNTIFS(Jogos!$S:$S,"WWIND",Jogos!$E:$E,$A67)*2+COUNTIFS(Jogos!$S:$S,"WWIND",Jogos!$I:$I,$A67)*2 -> 3 | I67: -3 | J67: 2 | K67: 0.0% | L67: =INDEX(ClaFIN!B:C,MATCH(B67,ClaFIN!C:C,0),1) -> 17º
A68: Pablo Sidarta | B68: COMARY | C68: 11 | D68: =COUNTIFS(Jogos!$E:$E,$A68,Jogos!$N:$N,"V")+COUNTIFS(Jogos!$I:$I,$A68,Jogos!$O:$O,"V") -> 2 | E68: =COUNTIFS(Jogos!$E:$E,$A68,Jogos!$N:$N,"E")+COUNTIFS(Jogos!$I:$I,$A68,Jogos!$O:$O,"E") -> 5 | F68: =COUNTIFS(Jogos!$E:$E,$A68,Jogos!$N:$N,"D")+COUNTIFS(Jogos!$I:$I,$A68,Jogos!$O:$O,"D") -> 2 | G68: =SUMIFS(Jogos!$F:$F,Jogos!$E:$E,$A68)+SUMIFS(Jogos!$H:$H,Jogos!$I:$I,$A68) -> 11 | H68: =SUMIFS(Jogos!$H:$H,Jogos!$E:$E,$A68)+SUMIFS(Jogos!$F:$F,Jogos!$I:$I,$A68)+COUNTIFS(Jogos!$S:$S,"WWIND",Jogos!$E:$E,$A68)*2+COUNTIFS(Jogos!$S:$S,"WWIND",Jogos!$I:$I,$A68)*2 -> 10 | I68: 1 | J68: 9 | K68: 40.7% | L68: =INDEX(ClaFIN!B:C,MATCH(B68,ClaFIN!C:C,0),1) -> 12º
A69: Paulo Airton Junior | B69: AABB/ACAFUMA [C] | C69: 14 | D69: =COUNTIFS(Jogos!$E:$E,$A69,Jogos!$N:$N,"V")+COUNTIFS(Jogos!$I:$I,$A69,Jogos!$O:$O,"V") -> 4 | E69: =COUNTIFS(Jogos!$E:$E,$A69,Jogos!$N:$N,"E")+COUNTIFS(Jogos!$I:$I,$A69,Jogos!$O:$O,"E") -> 2 | F69: =COUNTIFS(Jogos!$E:$E,$A69,Jogos!$N:$N,"D")+COUNTIFS(Jogos!$I:$I,$A69,Jogos!$O:$O,"D") -> 4 | G69: =SUMIFS(Jogos!$F:$F,Jogos!$E:$E,$A69)+SUMIFS(Jogos!$H:$H,Jogos!$I:$I,$A69) -> 10 | H69: =SUMIFS(Jogos!$H:$H,Jogos!$E:$E,$A69)+SUMIFS(Jogos!$F:$F,Jogos!$I:$I,$A69)+COUNTIFS(Jogos!$S:$S,"WWIND",Jogos!$E:$E,$A69)*2+COUNTIFS(Jogos!$S:$S,"WWIND",Jogos!$I:$I,$A69)*2 -> 11 | I69: -1 | J69: 10 | K69: 46.7% | L69: =INDEX(ClaFIN!B:C,MATCH(B69,ClaFIN!C:C,0),1) -> 8º
A70: Paulo Caruso | B70: AABB/ACAFUMA [A] | C70: =IF(J70=0,-0.001,D70*3+E70) -> 13 | D70: =COUNTIFS(Jogos!$E:$E,$A70,Jogos!$N:$N,"V")+COUNTIFS(Jogos!$I:$I,$A70,Jogos!$O:$O,"V") -> 4 | E70: =COUNTIFS(Jogos!$E:$E,$A70,Jogos!$N:$N,"E")+COUNTIFS(Jogos!$I:$I,$A70,Jogos!$O:$O,"E") -> 1 | F70: =COUNTIFS(Jogos!$E:$E,$A70,Jogos!$N:$N,"D")+COUNTIFS(Jogos!$I:$I,$A70,Jogos!$O:$O,"D") -> 4 | G70: =SUMIFS(Jogos!$F:$F,Jogos!$E:$E,$A70)+SUMIFS(Jogos!$H:$H,Jogos!$I:$I,$A70) -> 10 | H70: =SUMIFS(Jogos!$H:$H,Jogos!$E:$E,$A70)+SUMIFS(Jogos!$F:$F,Jogos!$I:$I,$A70)+COUNTIFS(Jogos!$S:$S,"WWIND",Jogos!$E:$E,$A70)*2+COUNTIFS(Jogos!$S:$S,"WWIND",Jogos!$I:$I,$A70)*2 -> 7 | I70: =G70-H70 -> 3 | J70: =SUM(D70:F70) -> 9 | K70: =IF(J70=0,-0.00001,C70/(J70*3)) -> 48.1% | L70: =INDEX(ClaFIN!B:C,MATCH(B70,ClaFIN!C:C,0),1) -> 9º
A71: Paulo Cesar Faria | B71: AABB/ACAFUMA [B] | C71: 12 | D71: =COUNTIFS(Jogos!$E:$E,$A71,Jogos!$N:$N,"V")+COUNTIFS(Jogos!$I:$I,$A71,Jogos!$O:$O,"V") -> 3 | E71: =COUNTIFS(Jogos!$E:$E,$A71,Jogos!$N:$N,"E")+COUNTIFS(Jogos!$I:$I,$A71,Jogos!$O:$O,"E") -> 3 | F71: =COUNTIFS(Jogos!$E:$E,$A71,Jogos!$N:$N,"D")+COUNTIFS(Jogos!$I:$I,$A71,Jogos!$O:$O,"D") -> 1 | G71: =SUMIFS(Jogos!$F:$F,Jogos!$E:$E,$A71)+SUMIFS(Jogos!$H:$H,Jogos!$I:$I,$A71) -> 6 | H71: =SUMIFS(Jogos!$H:$H,Jogos!$E:$E,$A71)+SUMIFS(Jogos!$F:$F,Jogos!$I:$I,$A71)+COUNTIFS(Jogos!$S:$S,"WWIND",Jogos!$E:$E,$A71)*2+COUNTIFS(Jogos!$S:$S,"WWIND",Jogos!$I:$I,$A71)*2 -> 6 | I71: 0 | J71: 7 | K71: 57.1% | L71: =INDEX(ClaFIN!B:C,MATCH(B71,ClaFIN!C:C,0),1) -> 11º
A72: Paulo Mangia | B72: CHACAL [A] | C72: 4 | D72: =COUNTIFS(Jogos!$E:$E,$A72,Jogos!$N:$N,"V")+COUNTIFS(Jogos!$I:$I,$A72,Jogos!$O:$O,"V") -> 0 | E72: =COUNTIFS(Jogos!$E:$E,$A72,Jogos!$N:$N,"E")+COUNTIFS(Jogos!$I:$I,$A72,Jogos!$O:$O,"E") -> 4 | F72: =COUNTIFS(Jogos!$E:$E,$A72,Jogos!$N:$N,"D")+COUNTIFS(Jogos!$I:$I,$A72,Jogos!$O:$O,"D") -> 5 | G72: =SUMIFS(Jogos!$F:$F,Jogos!$E:$E,$A72)+SUMIFS(Jogos!$H:$H,Jogos!$I:$I,$A72) -> 4 | H72: =SUMIFS(Jogos!$H:$H,Jogos!$E:$E,$A72)+SUMIFS(Jogos!$F:$F,Jogos!$I:$I,$A72)+COUNTIFS(Jogos!$S:$S,"WWIND",Jogos!$E:$E,$A72)*2+COUNTIFS(Jogos!$S:$S,"WWIND",Jogos!$I:$I,$A72)*2 -> 12 | I72: -8 | J72: 9 | K72: 14.8% | L72: =INDEX(ClaFIN!B:C,MATCH(B72,ClaFIN!C:C,0),1) -> 13º
A73: Paulo Marcos de França | B73: TUPI [A] | C73: 18 | D73: =COUNTIFS(Jogos!$E:$E,$A73,Jogos!$N:$N,"V")+COUNTIFS(Jogos!$I:$I,$A73,Jogos!$O:$O,"V") -> 5 | E73: =COUNTIFS(Jogos!$E:$E,$A73,Jogos!$N:$N,"E")+COUNTIFS(Jogos!$I:$I,$A73,Jogos!$O:$O,"E") -> 3 | F73: =COUNTIFS(Jogos!$E:$E,$A73,Jogos!$N:$N,"D")+COUNTIFS(Jogos!$I:$I,$A73,Jogos!$O:$O,"D") -> 1 | G73: =SUMIFS(Jogos!$F:$F,Jogos!$E:$E,$A73)+SUMIFS(Jogos!$H:$H,Jogos!$I:$I,$A73) -> 9 | H73: =SUMIFS(Jogos!$H:$H,Jogos!$E:$E,$A73)+SUMIFS(Jogos!$F:$F,Jogos!$I:$I,$A73)+COUNTIFS(Jogos!$S:$S,"WWIND",Jogos!$E:$E,$A73)*2+COUNTIFS(Jogos!$S:$S,"WWIND",Jogos!$I:$I,$A73)*2 -> 3 | I73: 6 | J73: 9 | K73: 66.7% | L73: =INDEX(ClaFIN!B:C,MATCH(B73,ClaFIN!C:C,0),1) -> 2º
A74: Paulo Ricardo Souza | B74: TUPI [B] | C74: 13 | D74: =COUNTIFS(Jogos!$E:$E,$A74,Jogos!$N:$N,"V")+COUNTIFS(Jogos!$I:$I,$A74,Jogos!$O:$O,"V") -> 3 | E74: =COUNTIFS(Jogos!$E:$E,$A74,Jogos!$N:$N,"E")+COUNTIFS(Jogos!$I:$I,$A74,Jogos!$O:$O,"E") -> 4 | F74: =COUNTIFS(Jogos!$E:$E,$A74,Jogos!$N:$N,"D")+COUNTIFS(Jogos!$I:$I,$A74,Jogos!$O:$O,"D") -> 1 | G74: =SUMIFS(Jogos!$F:$F,Jogos!$E:$E,$A74)+SUMIFS(Jogos!$H:$H,Jogos!$I:$I,$A74) -> 10 | H74: =SUMIFS(Jogos!$H:$H,Jogos!$E:$E,$A74)+SUMIFS(Jogos!$F:$F,Jogos!$I:$I,$A74)+COUNTIFS(Jogos!$S:$S,"WWIND",Jogos!$E:$E,$A74)*2+COUNTIFS(Jogos!$S:$S,"WWIND",Jogos!$I:$I,$A74)*2 -> 5 | I74: 5 | J74: 8 | K74: 54.2% | L74: =INDEX(ClaFIN!B:C,MATCH(B74,ClaFIN!C:C,0),1) -> 10º
A75: Rafael Pena | B75: LIBERDADE [B] | C75: 9 | D75: =COUNTIFS(Jogos!$E:$E,$A75,Jogos!$N:$N,"V")+COUNTIFS(Jogos!$I:$I,$A75,Jogos!$O:$O,"V") -> 2 | E75: =COUNTIFS(Jogos!$E:$E,$A75,Jogos!$N:$N,"E")+COUNTIFS(Jogos!$I:$I,$A75,Jogos!$O:$O,"E") -> 3 | F75: =COUNTIFS(Jogos!$E:$E,$A75,Jogos!$N:$N,"D")+COUNTIFS(Jogos!$I:$I,$A75,Jogos!$O:$O,"D") -> 3 | G75: =SUMIFS(Jogos!$F:$F,Jogos!$E:$E,$A75)+SUMIFS(Jogos!$H:$H,Jogos!$I:$I,$A75) -> 5 | H75: =SUMIFS(Jogos!$H:$H,Jogos!$E:$E,$A75)+SUMIFS(Jogos!$F:$F,Jogos!$I:$I,$A75)+COUNTIFS(Jogos!$S:$S,"WWIND",Jogos!$E:$E,$A75)*2+COUNTIFS(Jogos!$S:$S,"WWIND",Jogos!$I:$I,$A75)*2 -> 6 | I75: -1 | J75: 8 | K75: 37.5% | L75: =INDEX(ClaFIN!B:C,MATCH(B75,ClaFIN!C:C,0),1) -> 6º
A76: Renato Negreiros | B76: BOTAFOGO | C76: 9 | D76: =COUNTIFS(Jogos!$E:$E,$A76,Jogos!$N:$N,"V")+COUNTIFS(Jogos!$I:$I,$A76,Jogos!$O:$O,"V") -> 2 | E76: =COUNTIFS(Jogos!$E:$E,$A76,Jogos!$N:$N,"E")+COUNTIFS(Jogos!$I:$I,$A76,Jogos!$O:$O,"E") -> 3 | F76: =COUNTIFS(Jogos!$E:$E,$A76,Jogos!$N:$N,"D")+COUNTIFS(Jogos!$I:$I,$A76,Jogos!$O:$O,"D") -> 3 | G76: =SUMIFS(Jogos!$F:$F,Jogos!$E:$E,$A76)+SUMIFS(Jogos!$H:$H,Jogos!$I:$I,$A76) -> 7 | H76: =SUMIFS(Jogos!$H:$H,Jogos!$E:$E,$A76)+SUMIFS(Jogos!$F:$F,Jogos!$I:$I,$A76)+COUNTIFS(Jogos!$S:$S,"WWIND",Jogos!$E:$E,$A76)*2+COUNTIFS(Jogos!$S:$S,"WWIND",Jogos!$I:$I,$A76)*2 -> 9 | I76: -2 | J76: 8 | K76: 37.5% | L76: =INDEX(ClaFIN!B:C,MATCH(B76,ClaFIN!C:C,0),1) -> 5º
A77: Ricardo Machado | B77: COMARY | C77: 4 | D77: =COUNTIFS(Jogos!$E:$E,$A77,Jogos!$N:$N,"V")+COUNTIFS(Jogos!$I:$I,$A77,Jogos!$O:$O,"V") -> 1 | E77: =COUNTIFS(Jogos!$E:$E,$A77,Jogos!$N:$N,"E")+COUNTIFS(Jogos!$I:$I,$A77,Jogos!$O:$O,"E") -> 1 | F77: =COUNTIFS(Jogos!$E:$E,$A77,Jogos!$N:$N,"D")+COUNTIFS(Jogos!$I:$I,$A77,Jogos!$O:$O,"D") -> 2 | G77: =SUMIFS(Jogos!$F:$F,Jogos!$E:$E,$A77)+SUMIFS(Jogos!$H:$H,Jogos!$I:$I,$A77) -> 3 | H77: =SUMIFS(Jogos!$H:$H,Jogos!$E:$E,$A77)+SUMIFS(Jogos!$F:$F,Jogos!$I:$I,$A77)+COUNTIFS(Jogos!$S:$S,"WWIND",Jogos!$E:$E,$A77)*2+COUNTIFS(Jogos!$S:$S,"WWIND",Jogos!$I:$I,$A77)*2 -> 6 | I77: -3 | J77: 4 | K77: 33.3% | L77: =INDEX(ClaFIN!B:C,MATCH(B77,ClaFIN!C:C,0),1) -> 12º
A78: Ricardo Sartine | B78: MATIAS [B] | C78: 0 | D78: =COUNTIFS(Jogos!$E:$E,$A78,Jogos!$N:$N,"V")+COUNTIFS(Jogos!$I:$I,$A78,Jogos!$O:$O,"V") -> 0 | E78: =COUNTIFS(Jogos!$E:$E,$A78,Jogos!$N:$N,"E")+COUNTIFS(Jogos!$I:$I,$A78,Jogos!$O:$O,"E") -> 0 | F78: =COUNTIFS(Jogos!$E:$E,$A78,Jogos!$N:$N,"D")+COUNTIFS(Jogos!$I:$I,$A78,Jogos!$O:$O,"D") -> 3 | G78: =SUMIFS(Jogos!$F:$F,Jogos!$E:$E,$A78)+SUMIFS(Jogos!$H:$H,Jogos!$I:$I,$A78) -> 0 | H78: =SUMIFS(Jogos!$H:$H,Jogos!$E:$E,$A78)+SUMIFS(Jogos!$F:$F,Jogos!$I:$I,$A78)+COUNTIFS(Jogos!$S:$S,"WWIND",Jogos!$E:$E,$A78)*2+COUNTIFS(Jogos!$S:$S,"WWIND",Jogos!$I:$I,$A78)*2 -> 8 | I78: -8 | J78: 3 | K78: 0.0% | L78: =INDEX(ClaFIN!B:C,MATCH(B78,ClaFIN!C:C,0),1) -> 16º
A79: Rodolfo Magalhaes | B79: CHACAL [B] | C79: 3 | D79: =COUNTIFS(Jogos!$E:$E,$A79,Jogos!$N:$N,"V")+COUNTIFS(Jogos!$I:$I,$A79,Jogos!$O:$O,"V") -> 0 | E79: =COUNTIFS(Jogos!$E:$E,$A79,Jogos!$N:$N,"E")+COUNTIFS(Jogos!$I:$I,$A79,Jogos!$O:$O,"E") -> 3 | F79: =COUNTIFS(Jogos!$E:$E,$A79,Jogos!$N:$N,"D")+COUNTIFS(Jogos!$I:$I,$A79,Jogos!$O:$O,"D") -> 2 | G79: =SUMIFS(Jogos!$F:$F,Jogos!$E:$E,$A79)+SUMIFS(Jogos!$H:$H,Jogos!$I:$I,$A79) -> 2 | H79: =SUMIFS(Jogos!$H:$H,Jogos!$E:$E,$A79)+SUMIFS(Jogos!$F:$F,Jogos!$I:$I,$A79)+COUNTIFS(Jogos!$S:$S,"WWIND",Jogos!$E:$E,$A79)*2+COUNTIFS(Jogos!$S:$S,"WWIND",Jogos!$I:$I,$A79)*2 -> 6 | I79: -4 | J79: 5 | K79: 20.0% | L79: =INDEX(ClaFIN!B:C,MATCH(B79,ClaFIN!C:C,0),1) -> 17º
A80: Rodrigo Caruso | B80: AABB/ACAFUMA [B] | C80: 2 | D80: =COUNTIFS(Jogos!$E:$E,$A80,Jogos!$N:$N,"V")+COUNTIFS(Jogos!$I:$I,$A80,Jogos!$O:$O,"V") -> 0 | E80: =COUNTIFS(Jogos!$E:$E,$A80,Jogos!$N:$N,"E")+COUNTIFS(Jogos!$I:$I,$A80,Jogos!$O:$O,"E") -> 2 | F80: =COUNTIFS(Jogos!$E:$E,$A80,Jogos!$N:$N,"D")+COUNTIFS(Jogos!$I:$I,$A80,Jogos!$O:$O,"D") -> 4 | G80: =SUMIFS(Jogos!$F:$F,Jogos!$E:$E,$A80)+SUMIFS(Jogos!$H:$H,Jogos!$I:$I,$A80) -> 2 | H80: =SUMIFS(Jogos!$H:$H,Jogos!$E:$E,$A80)+SUMIFS(Jogos!$F:$F,Jogos!$I:$I,$A80)+COUNTIFS(Jogos!$S:$S,"WWIND",Jogos!$E:$E,$A80)*2+COUNTIFS(Jogos!$S:$S,"WWIND",Jogos!$I:$I,$A80)*2 -> 7 | I80: -5 | J80: 6 | K80: 11.1% | L80: =INDEX(ClaFIN!B:C,MATCH(B80,ClaFIN!C:C,0),1) -> 11º
A81: Rodrigo Primola | B81: GRÊMIO MINEIRO | C81: 1 | D81: =COUNTIFS(Jogos!$E:$E,$A81,Jogos!$N:$N,"V")+COUNTIFS(Jogos!$I:$I,$A81,Jogos!$O:$O,"V") -> 0 | E81: =COUNTIFS(Jogos!$E:$E,$A81,Jogos!$N:$N,"E")+COUNTIFS(Jogos!$I:$I,$A81,Jogos!$O:$O,"E") -> 1 | F81: =COUNTIFS(Jogos!$E:$E,$A81,Jogos!$N:$N,"D")+COUNTIFS(Jogos!$I:$I,$A81,Jogos!$O:$O,"D") -> 8 | G81: =SUMIFS(Jogos!$F:$F,Jogos!$E:$E,$A81)+SUMIFS(Jogos!$H:$H,Jogos!$I:$I,$A81) -> 5 | H81: =SUMIFS(Jogos!$H:$H,Jogos!$E:$E,$A81)+SUMIFS(Jogos!$F:$F,Jogos!$I:$I,$A81)+COUNTIFS(Jogos!$S:$S,"WWIND",Jogos!$E:$E,$A81)*2+COUNTIFS(Jogos!$S:$S,"WWIND",Jogos!$I:$I,$A81)*2 -> 25 | I81: -20 | J81: 9 | K81: 3.7% | L81: =INDEX(ClaFIN!B:C,MATCH(B81,ClaFIN!C:C,0),1) -> 15º
A82: Romualdo Piccinini | B82: MATIAS [B] | C82: 9 | D82: =COUNTIFS(Jogos!$E:$E,$A82,Jogos!$N:$N,"V")+COUNTIFS(Jogos!$I:$I,$A82,Jogos!$O:$O,"V") -> 2 | E82: =COUNTIFS(Jogos!$E:$E,$A82,Jogos!$N:$N,"E")+COUNTIFS(Jogos!$I:$I,$A82,Jogos!$O:$O,"E") -> 3 | F82: =COUNTIFS(Jogos!$E:$E,$A82,Jogos!$N:$N,"D")+COUNTIFS(Jogos!$I:$I,$A82,Jogos!$O:$O,"D") -> 4 | G82: =SUMIFS(Jogos!$F:$F,Jogos!$E:$E,$A82)+SUMIFS(Jogos!$H:$H,Jogos!$I:$I,$A82) -> 7 | H82: =SUMIFS(Jogos!$H:$H,Jogos!$E:$E,$A82)+SUMIFS(Jogos!$F:$F,Jogos!$I:$I,$A82)+COUNTIFS(Jogos!$S:$S,"WWIND",Jogos!$E:$E,$A82)*2+COUNTIFS(Jogos!$S:$S,"WWIND",Jogos!$I:$I,$A82)*2 -> 7 | I82: 0 | J82: 9 | K82: 33.3% | L82: =INDEX(ClaFIN!B:C,MATCH(B82,ClaFIN!C:C,0),1) -> 16º
A83: Sergio Falcometa | B83: BOTAFOGO | C83: 18 | D83: =COUNTIFS(Jogos!$E:$E,$A83,Jogos!$N:$N,"V")+COUNTIFS(Jogos!$I:$I,$A83,Jogos!$O:$O,"V") -> 6 | E83: =COUNTIFS(Jogos!$E:$E,$A83,Jogos!$N:$N,"E")+COUNTIFS(Jogos!$I:$I,$A83,Jogos!$O:$O,"E") -> 0 | F83: =COUNTIFS(Jogos!$E:$E,$A83,Jogos!$N:$N,"D")+COUNTIFS(Jogos!$I:$I,$A83,Jogos!$O:$O,"D") -> 2 | G83: =SUMIFS(Jogos!$F:$F,Jogos!$E:$E,$A83)+SUMIFS(Jogos!$H:$H,Jogos!$I:$I,$A83) -> 10 | H83: =SUMIFS(Jogos!$H:$H,Jogos!$E:$E,$A83)+SUMIFS(Jogos!$F:$F,Jogos!$I:$I,$A83)+COUNTIFS(Jogos!$S:$S,"WWIND",Jogos!$E:$E,$A83)*2+COUNTIFS(Jogos!$S:$S,"WWIND",Jogos!$I:$I,$A83)*2 -> 7 | I83: 3 | J83: 8 | K83: 75.0% | L83: =INDEX(ClaFIN!B:C,MATCH(B83,ClaFIN!C:C,0),1) -> 5º
A84: Simplicio Santos | B84: AABB/ACAFUMA [C] | C84: 11 | D84: =COUNTIFS(Jogos!$E:$E,$A84,Jogos!$N:$N,"V")+COUNTIFS(Jogos!$I:$I,$A84,Jogos!$O:$O,"V") -> 3 | E84: =COUNTIFS(Jogos!$E:$E,$A84,Jogos!$N:$N,"E")+COUNTIFS(Jogos!$I:$I,$A84,Jogos!$O:$O,"E") -> 2 | F84: =COUNTIFS(Jogos!$E:$E,$A84,Jogos!$N:$N,"D")+COUNTIFS(Jogos!$I:$I,$A84,Jogos!$O:$O,"D") -> 5 | G84: =SUMIFS(Jogos!$F:$F,Jogos!$E:$E,$A84)+SUMIFS(Jogos!$H:$H,Jogos!$I:$I,$A84) -> 11 | H84: =SUMIFS(Jogos!$H:$H,Jogos!$E:$E,$A84)+SUMIFS(Jogos!$F:$F,Jogos!$I:$I,$A84)+COUNTIFS(Jogos!$S:$S,"WWIND",Jogos!$E:$E,$A84)*2+COUNTIFS(Jogos!$S:$S,"WWIND",Jogos!$I:$I,$A84)*2 -> 16 | I84: -5 | J84: 10 | K84: 36.7% | L84: =INDEX(ClaFIN!B:C,MATCH(B84,ClaFIN!C:C,0),1) -> 8º
A85: Tarcizio Dinoa Junior | B85: AABB/ACAFUMA [A] | C85: 15 | D85: =COUNTIFS(Jogos!$E:$E,$A85,Jogos!$N:$N,"V")+COUNTIFS(Jogos!$I:$I,$A85,Jogos!$O:$O,"V") -> 4 | E85: =COUNTIFS(Jogos!$E:$E,$A85,Jogos!$N:$N,"E")+COUNTIFS(Jogos!$I:$I,$A85,Jogos!$O:$O,"E") -> 3 | F85: =COUNTIFS(Jogos!$E:$E,$A85,Jogos!$N:$N,"D")+COUNTIFS(Jogos!$I:$I,$A85,Jogos!$O:$O,"D") -> 2 | G85: =SUMIFS(Jogos!$F:$F,Jogos!$E:$E,$A85)+SUMIFS(Jogos!$H:$H,Jogos!$I:$I,$A85) -> 15 | H85: =SUMIFS(Jogos!$H:$H,Jogos!$E:$E,$A85)+SUMIFS(Jogos!$F:$F,Jogos!$I:$I,$A85)+COUNTIFS(Jogos!$S:$S,"WWIND",Jogos!$E:$E,$A85)*2+COUNTIFS(Jogos!$S:$S,"WWIND",Jogos!$I:$I,$A85)*2 -> 9 | I85: 6 | J85: 9 | K85: 55.6% | L85: =INDEX(ClaFIN!B:C,MATCH(B85,ClaFIN!C:C,0),1) -> 9º
A86: Thiago Stephan | B86: CHACAL [A] | C86: 16 | D86: =COUNTIFS(Jogos!$E:$E,$A86,Jogos!$N:$N,"V")+COUNTIFS(Jogos!$I:$I,$A86,Jogos!$O:$O,"V") -> 4 | E86: =COUNTIFS(Jogos!$E:$E,$A86,Jogos!$N:$N,"E")+COUNTIFS(Jogos!$I:$I,$A86,Jogos!$O:$O,"E") -> 4 | F86: =COUNTIFS(Jogos!$E:$E,$A86,Jogos!$N:$N,"D")+COUNTIFS(Jogos!$I:$I,$A86,Jogos!$O:$O,"D") -> 2 | G86: =SUMIFS(Jogos!$F:$F,Jogos!$E:$E,$A86)+SUMIFS(Jogos!$H:$H,Jogos!$I:$I,$A86) -> 16 | H86: =SUMIFS(Jogos!$H:$H,Jogos!$E:$E,$A86)+SUMIFS(Jogos!$F:$F,Jogos!$I:$I,$A86)+COUNTIFS(Jogos!$S:$S,"WWIND",Jogos!$E:$E,$A86)*2+COUNTIFS(Jogos!$S:$S,"WWIND",Jogos!$I:$I,$A86)*2 -> 11 | I86: 5 | J86: 10 | K86: 53.3% | L86: =INDEX(ClaFIN!B:C,MATCH(B86,ClaFIN!C:C,0),1) -> 13º
A87: Valmir Silva | B87: VASCO DA GAMA | C87: 5 | D87: =COUNTIFS(Jogos!$E:$E,$A87,Jogos!$N:$N,"V")+COUNTIFS(Jogos!$I:$I,$A87,Jogos!$O:$O,"V") -> 1 | E87: =COUNTIFS(Jogos!$E:$E,$A87,Jogos!$N:$N,"E")+COUNTIFS(Jogos!$I:$I,$A87,Jogos!$O:$O,"E") -> 2 | F87: =COUNTIFS(Jogos!$E:$E,$A87,Jogos!$N:$N,"D")+COUNTIFS(Jogos!$I:$I,$A87,Jogos!$O:$O,"D") -> 1 | G87: =SUMIFS(Jogos!$F:$F,Jogos!$E:$E,$A87)+SUMIFS(Jogos!$H:$H,Jogos!$I:$I,$A87) -> 3 | H87: =SUMIFS(Jogos!$H:$H,Jogos!$E:$E,$A87)+SUMIFS(Jogos!$F:$F,Jogos!$I:$I,$A87)+COUNTIFS(Jogos!$S:$S,"WWIND",Jogos!$E:$E,$A87)*2+COUNTIFS(Jogos!$S:$S,"WWIND",Jogos!$I:$I,$A87)*2 -> 2 | I87: 1 | J87: 4 | K87: 41.7% | L87: =INDEX(ClaFIN!B:C,MATCH(B87,ClaFIN!C:C,0),1) -> 7º
A88: Vander Felipe | B88: GRÊMIO MINEIRO | C88: 12 | D88: =COUNTIFS(Jogos!$E:$E,$A88,Jogos!$N:$N,"V")+COUNTIFS(Jogos!$I:$I,$A88,Jogos!$O:$O,"V") -> 4 | E88: =COUNTIFS(Jogos!$E:$E,$A88,Jogos!$N:$N,"E")+COUNTIFS(Jogos!$I:$I,$A88,Jogos!$O:$O,"E") -> 0 | F88: =COUNTIFS(Jogos!$E:$E,$A88,Jogos!$N:$N,"D")+COUNTIFS(Jogos!$I:$I,$A88,Jogos!$O:$O,"D") -> 5 | G88: =SUMIFS(Jogos!$F:$F,Jogos!$E:$E,$A88)+SUMIFS(Jogos!$H:$H,Jogos!$I:$I,$A88) -> 16 | H88: =SUMIFS(Jogos!$H:$H,Jogos!$E:$E,$A88)+SUMIFS(Jogos!$F:$F,Jogos!$I:$I,$A88)+COUNTIFS(Jogos!$S:$S,"WWIND",Jogos!$E:$E,$A88)*2+COUNTIFS(Jogos!$S:$S,"WWIND",Jogos!$I:$I,$A88)*2 -> 17 | I88: -1 | J88: 9 | K88: 44.4% | L88: =INDEX(ClaFIN!B:C,MATCH(B88,ClaFIN!C:C,0),1) -> 15º
A89: Vanderley da Silva | B89: CHACAL [B] | C89: 0 | D89: =COUNTIFS(Jogos!$E:$E,$A89,Jogos!$N:$N,"V")+COUNTIFS(Jogos!$I:$I,$A89,Jogos!$O:$O,"V") -> 0 | E89: =COUNTIFS(Jogos!$E:$E,$A89,Jogos!$N:$N,"E")+COUNTIFS(Jogos!$I:$I,$A89,Jogos!$O:$O,"E") -> 0 | F89: =COUNTIFS(Jogos!$E:$E,$A89,Jogos!$N:$N,"D")+COUNTIFS(Jogos!$I:$I,$A89,Jogos!$O:$O,"D") -> 3 | G89: =SUMIFS(Jogos!$F:$F,Jogos!$E:$E,$A89)+SUMIFS(Jogos!$H:$H,Jogos!$I:$I,$A89) -> 0 | H89: =SUMIFS(Jogos!$H:$H,Jogos!$E:$E,$A89)+SUMIFS(Jogos!$F:$F,Jogos!$I:$I,$A89)+COUNTIFS(Jogos!$S:$S,"WWIND",Jogos!$E:$E,$A89)*2+COUNTIFS(Jogos!$S:$S,"WWIND",Jogos!$I:$I,$A89)*2 -> 12 | I89: -12 | J89: 3 | K89: 0.0% | L89: =INDEX(ClaFIN!B:C,MATCH(B89,ClaFIN!C:C,0),1) -> 17º
A90: Wendel Cordeiro | B90: LIBERDADE [A] | C90: 2 | D90: =COUNTIFS(Jogos!$E:$E,$A90,Jogos!$N:$N,"V")+COUNTIFS(Jogos!$I:$I,$A90,Jogos!$O:$O,"V") -> 0 | E90: =COUNTIFS(Jogos!$E:$E,$A90,Jogos!$N:$N,"E")+COUNTIFS(Jogos!$I:$I,$A90,Jogos!$O:$O,"E") -> 2 | F90: =COUNTIFS(Jogos!$E:$E,$A90,Jogos!$N:$N,"D")+COUNTIFS(Jogos!$I:$I,$A90,Jogos!$O:$O,"D") -> 1 | G90: =SUMIFS(Jogos!$F:$F,Jogos!$E:$E,$A90)+SUMIFS(Jogos!$H:$H,Jogos!$I:$I,$A90) -> 1 | H90: =SUMIFS(Jogos!$H:$H,Jogos!$E:$E,$A90)+SUMIFS(Jogos!$F:$F,Jogos!$I:$I,$A90)+COUNTIFS(Jogos!$S:$S,"WWIND",Jogos!$E:$E,$A90)*2+COUNTIFS(Jogos!$S:$S,"WWIND",Jogos!$I:$I,$A90)*2 -> 3 | I90: -2 | J90: 3 | K90: 22.2% | L90: =INDEX(ClaFIN!B:C,MATCH(B90,ClaFIN!C:C,0),1) -> 1º
